Workbook

Sheet Summary
A1: 분 전 | B1: minutes
A2: 일전 | B2: days
A3: 시간 전 | B3: hours
A4: 방금 | B4: 1 minutes

Sheet Analysis - 1v1
A1: 2014-04-14 | B1: 104.4 | C1: 180 | D1: =SUM(B1:B1) -> 104.4 | E1: =SUM(C1:C1) -> 180 | G1: =D1/1020 -> 0.1023529412
A2: =A1+7 -> 2014-04-21 | B2: 104.4 | C2: 180 | D2: =SUM(B1:B2) -> 208.8 | E2: =SUM(C1:C2) -> 360 | G2: =D2/1020 -> 0.2047058824
A3: =A2+7 -> 2014-04-28 | B3: 104.4 | C3: 180 | D3: =SUM(B1:B3) -> 313.2 | E3: =SUM(C1:C3) -> 540 | G3: 0.3070588235
A4: 2014-05-05 | B4: 104.4 | C4: 180 | D4: =SUM(B1:B4) -> 417.6 | E4: =SUM(C1:C4) -> 720 | G4: 0.4094117647
A5: 2014-05-12 | B5: 104.4 | C5: 180 | D5: =SUM(B1:B5) -> 522 | E5: =SUM(C1:C5) -> 900 | G5: 0.5117647059
A6: 2014-05-19 | B6: 104.4 | C6: 180 | D6: =SUM(B1:B6) -> 626.4 | E6: =SUM(C1:C6) -> 1080 | G6: 0.6141176471
A7: 2014-05-26 | B7: 104.4 | C7: 180 | D7: =SUM(B1:B7) -> 730.8 | E7: =SUM(C1:C7) -> 1260 | G7: 0.7164705882
A8: 2014-06-02 | B8: 104.4 | C8: 180 | D8: =SUM(B1:B8) -> 835.2 | E8: =SUM(C1:C8) -> 1440 | G8: 0.8188235294
A9: 2014-06-09 | B9: 104.4 | C9: 180 | D9: =SUM(B1:B9) -> 939.6 | E9: =SUM(C1:C9) -> 1620 | G9: 0.9211764706
A10: 2014-06-16 | B10: 104.4 | C10: 180 | D10: =SUM(B1:B10) -> 1044 | E10: =SUM(C1:C10) -> 1800
A11: 2014-06-23 | B11: 104.4 | C11: 180 | D11: =SUM(B1:B11) -> 1148.4 | E11: =SUM(C1:C11) -> 1980
A12: season lock
A14: Raw Counts | K14: % Distributions
A15: Weeks Remaining | B15: Bronze | C15: Silver | D15: Gold | E15: Platinum | F15: Diamond | G15: Master | H15: GM | I15: Totals | K15: Bronze | L15: Silver | M15: Gold | N15: Platinum | O15: Diamond | P15: Master
A16: 1 | B16: 421 | C16: 612 | D16: 3135 | E16: 2382 | F16: 2719 | G16: 374 | H16: 199 | I16: =SUM(B16:H16) -> 9842 | K16: =B16/$I16 -> 0.04277585857 | L16: =C16/$I16 -> 0.06218248324 | M16: =D16/$I16 -> 0.3185328185 | N16: =E16/$I16 -> 0.2420239789 | O16: =F16/$I16 -> 0.2762649868 | P16: =G16/$I16 -> 0.03800040642
A17: 2 | B17: 161 | C17: 246 | D17: 1188 | E17: 834 | F17: 902 | G17: 117 | H17: 0 | I17: =SUM(B17:H17) -> 3448 | K17: =B17/$I17 -> 0.0466937355 | L17: 0.07134570766 | M17: 0.3445475638 | N17: 0.2418793503 | O17: 0.2616009281 | P17: 0.03393271462
A18: 3 | B18: 114 | C18: 257 | D18: 1139 | E18: 824 | F18: 784 | G18: 155 | H18: 0 | I18: 3273 | K18: 0.0348304308 | L18: 0.07852123434 | M18: 0.3479987779 | N18: 0.251756798 | O18: 0.2395355943 | P18: 0.04735716468
A19: 4 | B19: 154 | C19: 326 | D19: 1354 | E19: 943 | F19: 792 | G19: 148 | H19: 0 | I19: 3717 | K19: 0.04143126177 | L19: 0.08770513855 | M19: 0.3642722626 | N19: 0.2536992198 | O19: 0.2130750605 | P19: 0.03981705677
A20: 5 | B20: 162 | C20: 398 | D20: 1792 | E20: 1032 | F20: 857 | G20: 172 | H20: 0 | I20: 4413 | K20: 0.03670972128 | L20: 0.09018808067 | M20: 0.4060729662 | N20: 0.2338545207 | O20: 0.1941989576 | P20: 0.03897575346
A21: 6 | B21: 208 | C21: 553 | D21: 2136 | E21: 1260 | F21: 847 | G21: 164 | H21: 0 | I21: 5168 | K21: 0.04024767802 | L21: 0.107004644 | M21: 0.4133126935 | N21: 0.2438080495 | O21: 0.1638931889 | P21: 0.03173374613
A22: 7 | B22: 280 | C22: 839 | D22: 2873 | E22: 1389 | F22: 968 | G22: 182 | H22: 0 | I22: 6531 | K22: 0.04287245445 | L22: 0.1284642474 | M22: 0.4399020058 | N22: 0.2126779972 | O22: 0.1482161997 | P22: 0.02786709539
A23: 8 | B23: 529 | C23: 1802 | D23: 4447 | E23: 1591 | F23: 973 | G23: 229 | H23: 0 | I23: =SUM(B23:H23) -> 9571 | K23: 0.05527113154 | L23: 0.188277087 | M23: 0.4646327447 | N23: 0.1662313238 | O23: 0.1016612684 | P23: 0.02392644447
A24: 9 | B24: 1306 | C24: 4567 | D24: 6817 | E24: 1927 | F24: 1126 | G24: 214 | H24: 0 | I24: =SUM(B24:H24) -> 15957 | K24: 0.08184495833 | L24: 0.2862066805 | M24: 0.4272106286 | N24: 0.120762048 | O24: 0.07056464248 | P24: 0.01341104218
A25: 10 | B25: 9901 | C25: 17572 | D25: 11411 | E25: 3806 | F25: 1911 | G25: 348 | H25: 0 | I25: =SUM(B25:H25) -> 44949 | K25: 0.2202718637 | L25: 0.3909319451 | M25: 0.253865492 | N25: 0.08467374135 | O25: 0.04251485016 | P25: 0.007742107722
A26: Totals | B26: =SUM(B16:B25) -> 13236 | C26: =SUM(C16:C25) -> 27172 | D26: 36292 | E26: 15988 | F26: 11879 | G26: 2103 | H26: 199 | I26: 106869 | K26: 0.1238525672 | L26: 0.2542552096 | M26: 0.3395933339 | N26: 0.1496037204 | O26: 0.1111547783 | P26: 0.01967829773
J27: Target: | K27: 0.08 | L27: 0.2 | M27: 0.32 | N27: 0.2 | O27: 0.18 | P27: 0.02
A28: =A16&"* | "&B16&" | "&C16&" | "&D16&" | "&E16&" | "&F16&" | "&G16 -> 1* | 421 | 612 | 3135 | 2382 | 2719 | 374 | K28: =A16&"* | "&ROUNDDOWN(K16,4)*100&"% | "&ROUNDDOWN(L16,4)*100&"% | "&ROUNDDOWN(M16,4)*100&"% | "&ROUNDDOWN(N16,4)*100&"% | "&ROUNDDOWN(O16,4)*100&"% | "&ROUNDDOWN(P16,4)*100&"%" -> 1* | 4.27% | 6.21% | 31.85% | 24.2% | 27.62% | 3.8%
A29: =A17&" | "&B17&" | "&C17&" | "&D17&" | "&E17&" | "&F17&" | "&G17 -> 2 | 161 | 246 | 1188 | 834 | 902 | 117 | K29: =A17&" | "&ROUNDDOWN(K17,4)*100&"% | "&ROUNDDOWN(L17,4)*100&"% | "&ROUNDDOWN(M17,4)*100&"% | "&ROUNDDOWN(N17,4)*100&"% | "&ROUNDDOWN(O17,4)*100&"% | "&ROUNDDOWN(P17,4)*100&"%" -> 2 | 4.66% | 7.13% | 34.45% | 24.18% | 26.16% | 3.39%
A30: 3 | 114 | 257 | 1139 | 824 | 784 | 155 | K30: 3 | 3.48% | 7.85% | 34.79% | 25.17% | 23.95% | 4.73%
A31: 4 | 154 | 326 | 1354 | 943 | 792 | 148 | K31: 4 | 4.14% | 8.77% | 36.42% | 25.36% | 21.3% | 3.98%
A32: 5 | 162 | 398 | 1792 | 1032 | 857 | 172 | K32: 5 | 3.67% | 9.01% | 40.6% | 23.38% | 19.41% | 3.89%
A33: 6 | 208 | 553 | 2136 | 1260 | 847 | 164 | K33: 6 | 4.02% | 10.7% | 41.33% | 24.38% | 16.38% | 3.17%
A34: 7 | 280 | 839 | 2873 | 1389 | 968 | 182 | K34: 7 | 4.28% | 12.84% | 43.99% | 21.26% | 14.82% | 2.78%
A35: 8 | 529 | 1802 | 4447 | 1591 | 973 | 229 | K35: 8 | 5.52% | 18.82% | 46.46% | 16.62% | 10.16% | 2.39%
A36: 9 | 1306 | 4567 | 6817 | 1927 | 1126 | 214 | K36: =A24&" | "&ROUNDDOWN(K24,4)*100&"% | "&ROUNDDOWN(L24,4)*100&"% | "&ROUNDDOWN(M24,4)*100&"% | "&ROUNDDOWN(N24,4)*100&"% | "&ROUNDDOWN(O24,4)*100&"% | "&ROUNDDOWN(P24,4)*100&"%" -> 9 | 8.18% | 28.62% | 42.72% | 12.07% | 7.05% | 1.34%
A37: =A25&"** | "&B25&" | "&C25&" | "&D25&" | "&E25&" | "&F25&" | "&G25 -> 10** | 9901 | 17572 | 11411 | 3806 | 1911 | 348 | K37: =A25&"** | "&ROUNDDOWN(K25,4)*100&"% | "&ROUNDDOWN(L25,4)*100&"% | "&ROUNDDOWN(M25,4)*100&"% | "&ROUNDDOWN(N25,4)*100&"% | "&ROUNDDOWN(O25,4)*100&"% | "&ROUNDDOWN(P25,4)*100&"%" -> 10** | 22.02% | 39.09% | 25.38% | 8.46% | 4.25% | 0.77%
A40: Extra Stats
A41: Race Stats
B42: Bronze | F42: Silver | J42: Gold | N42: Platinum | R42: Diamond | V42: Master | Z42: Grandmaster
A43: Weeks Remaining | B43: Z | C43: T | D43: P | E43: R | F43: Z | G43: T | H43: P | I43: R | J43: Z | K43: T | L43: P | M43: R | N43: Z | O43: T | P43: P | Q43: R | R43: Z | S43: T | T43: P | U43: R | V43: Z | W43: T | X43: P | Y43: R | Z43: Z | AA43: T | AB43: P | AC43: R
A44: 1 | B44: 61 | C44: 201 | D44: 107 | E44: 52 | F44: 128 | G44: 250 | H44: 148 | I44: 86 | J44: 909 | K44: 1074 | L44: 827 | M44: 325 | N44: 840 | O44: 741 | P44: 593 | Q44: 208 | R44: 1026 | S44: 836 | T44: 724 | U44: 133 | V44: 162 | W44: 97 | X44: 108 | Y44: 7 | Z44: 76 | AA44: 47 | AB44: 73 | AC44: 3
A45: 2 | B45: 24 | C45: 73 | D45: 44 | E45: 20 | F45: 52 | G45: 109 | H45: 59 | I45: 26 | J45: 351 | K45: 380 | L45: 338 | M45: 119 | N45: 300 | O45: 249 | P45: 204 | Q45: 81 | R45: 343 | S45: 266 | T45: 251 | U45: 42 | V45: 38 | W45: 37 | X45: 39 | Y45: 3
A46: 3 | B46: 21 | C46: 50 | D46: 28 | E46: 15 | F46: 63 | G46: 98 | H46: 71 | I46: 25 | J46: 338 | K46: 370 | L46: 297 | M46: 134 | N46: 331 | O46: 218 | P46: 206 | Q46: 69 | R46: 300 | S46: 253 | T46: 188 | U46: 43 | V46: 62 | W46: 44 | X46: 42 | Y46: 7
A47: 4 | B47: 28 | C47: 54 | D47: 53 | E47: 19 | F47: 79 | G47: 112 | H47: 100 | I47: 35 | J47: 415 | K47: 402 | L47: 397 | M47: 140 | N47: 353 | O47: 267 | P47: 235 | Q47: 88 | R47: 293 | S47: 231 | T47: 222 | U47: 46 | V47: 54 | W47: 41 | X47: 46 | Y47: 7
A48: 5 | B48: 29 | C48: 65 | D48: 49 | E48: 19 | F48: 95 | G48: 144 | H48: 124 | I48: 35 | J48: 586 | K48: 527 | L48: 489 | M48: 190 | N48: 387 | O48: 296 | P48: 258 | Q48: 91 | R48: 335 | S48: 242 | T48: 245 | U48: 35 | V48: 60 | W48: 49 | X48: 59 | Y48: 4
A49: 6 | B49: 51 | C49: 72 | D49: 60 | E49: 25 | F49: 139 | G49: 190 | H49: 167 | I49: 57 | J49: 699 | K49: 630 | L49: 568 | M49: 239 | N49: 491 | O49: 365 | P49: 287 | Q49: 117 | R49: 326 | S49: 232 | T49: 235 | U49: 54 | V49: 55 | W49: 59 | X49: 48 | Y49: 2
A50: 7 | B50: 58 | C50: 103 | D50: 97 | E50: 22 | F50: 205 | G50: 286 | H50: 248 | I50: 100 | J50: 913 | K50: 811 | L50: 820 | M50: 329 | N50: 535 | O50: 378 | P50: 339 | Q50: 137 | R50: 355 | S50: 300 | T50: 255 | U50: 58 | V50: 69 | W50: 43 | X50: 63 | Y50: 7
A51: 8 | B51: 91 | C51: 211 | D51: 176 | E51: 51 | F51: 468 | G51: 570 | H51: 578 | I51: 186 | J51: 1448 | K51: 1240 | L51: 1278 | M51: 481 | N51: 576 | O51: 445 | P51: 410 | Q51: 160 | R51: 355 | S51: 276 | T51: 280 | U51: 62 | V51: 81 | W51: 77 | X51: 65 | Y51: 6
A52: 9 | B52: 295 | C52: 465 | D52: 442 | E52: 104 | F52: 1318 | G52: 1354 | H52: 1357 | I52: 538 | J52: 2328 | K52: 1822 | L52: 1879 | M52: 788 | N52: 725 | O52: 524 | P52: 508 | Q52: 170 | R52: 413 | S52: 316 | T52: 328 | U52: 69 | V52: 75 | W52: 69 | X52: 61 | Y52: 9
A53: 10 | B53: 2475 | C53: 3285 | D53: 3024 | E53: 1117 | F53: 4835 | G53: 5373 | H53: 5171 | I53: 2193 | J53: 3780 | K53: 3153 | L53: 3183 | M53: 1295 | N53: 1321 | O53: 1071 | P53: 1031 | Q53: 383 | R53: 680 | S53: 567 | T53: 521 | U53: 143 | V53: 122 | W53: 98 | X53: 108 | Y53: 20
A54: Totals | B54: =SUM(B44:B53) -> 3133 | C54: =SUM(C44:C53) -> 4579 | D54: 4080 | E54: 1444 | F54: 7382 | G54: 8486 | H54: 8023 | I54: 3281 | J54: 11767 | K54: 10409 | L54: 10076 | M54: 4040 | N54: 5859 | O54: 4554 | P54: 4071 | Q54: 1504 | R54: 4426 | S54: 3519 | T54: 3249 | U54: 685 | V54: 778 | W54: 614 | X54: 639 | Y54: 72 | Z54: 76 | AA54: 47 | AB54: 73 | AC54: 3
A57: Most Recent Games
B58: Bronze | D58: Silver | F58: Gold | H58: Platinum | J58: Diamond | L58: Master | N58: Grandmaster
A59: Weeks Remaining | B59: Last Week | C59: Last Month | D59: Last Week | E59: Last Month | F59: Last Week | G59: Last Month | H59: Last Week | I59: Last Month | J59: Last Week | K59: Last Month | L59: Last Week | M59: Last Month | N59: Last Week | O59: Last Month
A60: 1 | B60: 421 | D60: 612 | F60: 3133 | G60: 2 | H60: 2381 | I60: 1 | J60: 2718 | K60: 1 | L60: 374 | N60: 199
A61: 2 | B61: 126 | C61: 35 | D61: 195 | E61: 51 | F61: 930 | G61: 258 | H61: 633 | I61: 201 | J61: 604 | K61: 298 | L61: 95 | M61: 22
A62: 3 | B62: 76 | C62: 38 | D62: 172 | E62: 85 | F62: 755 | G62: 384 | H62: 491 | I62: 333 | J62: 431 | K62: 353 | L62: 115 | M62: 40
A63: 4 | B63: 88 | C63: 66 | D63: 192 | E63: 134 | F63: 781 | G63: 573 | H63: 486 | I63: 457 | J63: 384 | K63: 408 | L63: 101 | M63: 47
A64: 5 | B64: 81 | C64: 72 | D64: 240 | E64: 141 | F64: 971 | G64: 748 | H64: 533 | I64: 445 | J64: 385 | K64: 401 | L64: 110 | M64: 57
A65: 6 | B65: 95 | C65: 80 | D65: 306 | E65: 175 | F65: 1052 | G65: 777 | H65: 532 | I65: 484 | J65: 314 | K65: 341 | L65: 71 | M65: 76
A66: 7 | B66: 106 | C66: 95 | D66: 374 | E66: 327 | F66: 1248 | G66: 1083 | H66: 520 | I66: 511 | J66: 322 | K66: 335 | L66: 64 | M66: 80
A67: 8 | B67: 145 | C67: 152 | D67: 621 | E67: 568 | F67: 1731 | G67: 1716 | H67: 527 | I67: 560 | J67: 284 | K67: 352 | L67: 73 | M67: 95
A68: 9 | B68: 252 | C68: 315 | D68: 1198 | E68: 1519 | F68: 2207 | G68: 2690 | H68: 550 | I68: 726 | J68: 287 | K68: 408 | L68: 62 | M68: 70
A69: 10 | B69: 1046 | C69: 1904 | D69: 3477 | E69: 6363 | F69: 2591 | G69: 4409 | H69: 835 | I69: 1426 | J69: 352 | K69: 607 | L69: 62 | M69: 102
A70: Totals | B70: =SUM(B60:B69) -> 2436 | C70: =SUM(C60:C69) -> 2757 | D70: 7387 | E70: 9363 | F70: 15399 | G70: 12640 | H70: 7488 | I70: 5144 | J70: 6081 | K70: 3504 | L70: 1127 | M70: 589 | N70: 199 | O70: 0
A71: Totals: | B71: =B70+D70+F70+H70+J70+L70+N70 -> 40117 | C71: =C70+E70+G70+I70+K70+M70+O70 -> 33997
A72: Race Stats
B73: Bronze | F73: Silver | J73: Gold | N73: Platinum | R73: Diamond | V73: Master | Z73: Grandmaster
A74: Weeks Remaining | B74: Z | C74: T | D74: P | E74: R | F74: Z | G74: T | H74: P | I74: R | J74: Z | K74: T | L74: P | M74: R | N74: Z | O74: T | P74: P | Q74: R | R74: Z | S74: T | T74: P | U74: R | V74: Z | W74: T | X74: P | Y74: R | Z74: Z | AA74: T | AB74: P | AC74: R
A75: 1 | B75: =B44/SUM(B44:E44) -> 0.1448931116 | C75: =C44/SUM(B44:E44) -> 0.4774346793 | D75: =D44/SUM(B44:E44) -> 0.2541567696 | E75: =E44/SUM(B44:E44) -> 0.1235154394 | F75: =F44/SUM(F44:I44) -> 0.2091503268 | G75: =G44/SUM(F44:I44) -> 0.408496732 | H75: =H44/SUM(F44:I44) -> 0.2418300654 | I75: =I44/SUM(F44:I44) -> 0.1405228758 | J75: =J44/SUM(J44:M44) -> 0.2899521531 | K75: =K44/SUM(J44:M44) -> 0.3425837321 | L75: =L44/SUM(J44:M44) -> 0.2637958533 | M75: =M44/SUM(J44:M44) -> 0.1036682616 | N75: =N44/SUM(N44:Q44) -> 0.3526448363 | O75: =O44/SUM(N44:Q44) -> 0.3110831234 | P75: =P44/SUM(N44:Q44) -> 0.2489504618 | Q75: =Q44/SUM(N44:Q44) -> 0.08732157851 | R75: =R44/SUM(R44:U44) -> 0.377344612 | S75: =S44/SUM(R44:U44) -> 0.3074659801 | T75: =T44/SUM(R44:U44) -> 0.2662743656 | U75: =U44/SUM(R44:U44) -> 0.04891504229 | V75: =V44/SUM(V44:Y44) -> 0.4331550802 | W75: =W44/SUM(V44:Y44) -> 0.2593582888 | X75: =X44/SUM(V44:Y44) -> 0.2887700535 | Y75: =Y44/SUM(V44:Y44) -> 0.01871657754 | Z75: =Z44/SUM(Z44:AC44) -> 0.3819095477 | AA75: =AA44/SUM(Z44:AC44) -> 0.2361809045 | AB75: =AB44/SUM(Z44:AC44) -> 0.3668341709 | AC75: =AC44/SUM(Z44:AC44) -> 0.01507537688
A76: 2 | B76: =B45/SUM(B45:E45) -> 0.149068323 | C76: =C45/SUM(B45:E45) -> 0.4534161491 | D76: =D45/SUM(B45:E45) -> 0.2732919255 | E76: =E45/SUM(B45:E45) -> 0.1242236025 | F76: =F45/SUM(F45:I45) -> 0.2113821138 | G76: =G45/SUM(F45:I45) -> 0.4430894309 | H76: =H45/SUM(F45:I45) -> 0.2398373984 | I76: =I45/SUM(F45:I45) -> 0.1056910569 | J76: =J45/SUM(J45:M45) -> 0.2954545455 | K76: =K45/SUM(J45:M45) -> 0.3198653199 | L76: =L45/SUM(J45:M45) -> 0.2845117845 | M76: =M45/SUM(J45:M45) -> 0.1001683502 | N76: =N45/SUM(N45:Q45) -> 0.3597122302 | O76: =O45/SUM(N45:Q45) -> 0.2985611511 | P76: =P45/SUM(N45:Q45) -> 0.2446043165 | Q76: =Q45/SUM(N45:Q45) -> 0.09712230216 | R76: =R45/SUM(R45:U45) -> 0.3802660754 | S76: =S45/SUM(R45:U45) -> 0.2949002217 | T76: =T45/SUM(R45:U45) -> 0.27827051 | U76: =U45/SUM(R45:U45) -> 0.0465631929 | V76: =V45/SUM(V45:Y45) -> 0.3247863248 | W76: =W45/SUM(V45:Y45) -> 0.3162393162 | X76: =X45/SUM(V45:Y45) -> 0.3333333333 | Y76: =Y45/SUM(V45:Y45) -> 0.02564102564
A77: 3 | B77: =B46/SUM(B46:E46) -> 0.1842105263 | C77: =C46/SUM(B46:E46) -> 0.4385964912 | D77: =D46/SUM(B46:E46) -> 0.2456140351 | E77: =E46/SUM(B46:E46) -> 0.1315789474 | F77: =F46/SUM(F46:I46) -> 0.2451361868 | G77: =G46/SUM(F46:I46) -> 0.3813229572 | H77: =H46/SUM(F46:I46) -> 0.2762645914 | I77: =I46/SUM(F46:I46) -> 0.09727626459 | J77: =J46/SUM(J46:M46) -> 0.2967515364 | K77: =K46/SUM(J46:M46) -> 0.3248463565 | L77: =L46/SUM(J46:M46) -> 0.2607550483 | M77: =M46/SUM(J46:M46) -> 0.1176470588 | N77: =N46/SUM(N46:Q46) -> 0.4016990291 | O77: =O46/SUM(N46:Q46) -> 0.2645631068 | P77: =P46/SUM(N46:Q46) -> 0.25 | Q77: =Q46/SUM(N46:Q46) -> 0.08373786408 | R77: =R46/SUM(R46:U46) -> 0.3826530612 | S77: =S46/SUM(R46:U46) -> 0.3227040816 | T77: =T46/SUM(R46:U46) -> 0.2397959184 | U77: =U46/SUM(R46:U46) -> 0.05484693878 | V77: =V46/SUM(V46:Y46) -> 0.4 | W77: =W46/SUM(V46:Y46) -> 0.2838709677 | X77: =X46/SUM(V46:Y46) -> 0.2709677419 | Y77: =Y46/SUM(V46:Y46) -> 0.04516129032
A78: 4 | B78: 0.1818181818 | C78: 0.3506493506 | D78: 0.3441558442 | E78: 0.1233766234 | F78: 0.2423312883 | G78: 0.3435582822 | H78: 0.3067484663 | I78: 0.1073619632 | J78: 0.3064992614 | K78: 0.2968980798 | L78: 0.2932053176 | M78: 0.1033973412 | N78: 0.3743372216 | O78: 0.2831389183 | P78: 0.249204666 | Q78: 0.09331919406 | R78: 0.3699494949 | S78: 0.2916666667 | T78: 0.2803030303 | U78: 0.05808080808 | V78: 0.3648648649 | W78: 0.277027027 | X78: 0.3108108108 | Y78: 0.0472972973
A79: 5 | B79: 0.1790123457 | C79: 0.4012345679 | D79: 0.3024691358 | E79: 0.1172839506 | F79: 0.2386934673 | G79: 0.3618090452 | H79: 0.3115577889 | I79: 0.08793969849 | J79: 0.3270089286 | K79: 0.2940848214 | L79: 0.2728794643 | M79: 0.1060267857 | N79: 0.375 | O79: 0.2868217054 | P79: 0.25 | Q79: 0.08817829457 | R79: 0.3908984831 | S79: 0.2823803967 | T79: 0.2858809802 | U79: 0.04084014002 | V79: 0.3488372093 | W79: 0.2848837209 | X79: 0.3430232558 | Y79: 0.02325581395
A80: 6 | B80: 0.2451923077 | C80: 0.3461538462 | D80: 0.2884615385 | E80: 0.1201923077 | F80: 0.2513562387 | G80: 0.3435804702 | H80: 0.3019891501 | I80: 0.103074141 | J80: 0.327247191 | K80: 0.2949438202 | L80: 0.265917603 | M80: 0.1118913858 | N80: 0.3896825397 | O80: 0.2896825397 | P80: 0.2277777778 | Q80: 0.09285714286 | R80: 0.3848878394 | S80: 0.2739079103 | T80: 0.2774498229 | U80: 0.06375442739 | V80: 0.3353658537 | W80: 0.3597560976 | X80: 0.2926829268 | Y80: 0.01219512195
A81: 7 | B81: 0.2071428571 | C81: 0.3678571429 | D81: 0.3464285714 | E81: 0.07857142857 | F81: 0.2443384982 | G81: 0.3408820024 | H81: 0.2955899881 | I81: 0.1191895113 | J81: 0.3177862861 | K81: 0.2822833275 | L81: 0.2854159415 | M81: 0.1145144448 | N81: 0.3851691865 | O81: 0.2721382289 | P81: 0.2440604752 | Q81: 0.09863210943 | R81: 0.3667355372 | S81: 0.3099173554 | T81: 0.2634297521 | U81: 0.05991735537 | V81: 0.3791208791 | W81: 0.2362637363 | X81: 0.3461538462 | Y81: 0.03846153846
A82: 8 | B82: 0.1720226843 | C82: 0.3988657845 | D82: 0.3327032136 | E82: 0.09640831758 | F82: 0.2597114317 | G82: 0.3163152053 | H82: 0.320754717 | I82: 0.1032186459 | J82: 0.3256127727 | K82: 0.2788396672 | L82: 0.2873847538 | M82: 0.1081628064 | N82: 0.3620364551 | O82: 0.279698303 | P82: 0.25769956 | Q82: 0.100565682 | R82: 0.3648509764 | S82: 0.2836587873 | T82: 0.2877697842 | U82: 0.06372045221 | V82: 0.3537117904 | W82: 0.3362445415 | X82: 0.2838427948 | Y82: 0.02620087336
A83: 9 | B83: 0.2258805513 | C83: 0.3560490046 | D83: 0.3384379786 | E83: 0.07963246554 | F83: 0.2885920736 | G83: 0.2964747099 | H83: 0.2971315962 | I83: 0.1178016203 | J83: 0.3414991932 | K83: 0.267272994 | L83: 0.2756344433 | M83: 0.1155933695 | N83: 0.3762324857 | O83: 0.2719252724 | P83: 0.2636222107 | Q83: 0.08822003114 | R83: 0.3667850799 | S83: 0.2806394316 | T83: 0.2912966252 | U83: 0.06127886323 | V83: 0.3504672897 | W83: 0.3224299065 | X83: 0.285046729 | Y83: 0.04205607477
A84: 10 | B84: 0.24997475 | C84: 0.3317846682 | D84: 0.3054236946 | E84: 0.1128168872 | F84: 0.2751536535 | G84: 0.305770544 | H84: 0.2942749829 | I84: 0.1248008195 | J84: 0.3312593112 | K84: 0.2763123302 | L84: 0.2789413724 | M84: 0.1134869862 | N84: 0.3470835523 | O84: 0.281397793 | P84: 0.2708880715 | Q84: 0.1006305833 | R84: 0.3558346415 | S84: 0.2967032967 | T84: 0.2726321298 | U84: 0.07482993197 | V84: 0.3505747126 | W84: 0.2816091954 | X84: 0.3103448276 | Y84: 0.05747126437
A86: Most Recent Games
B87: Bronze | D87: Silver | F87: Gold | H87: Platinum | J87: Diamond | L87: Master | N87: Grandmaster
A88: Weeks Remaining | B88: Last Week | C88: Last Month | D88: Last Week | E88: Last Month | F88: Last Week | G88: Last Month | H88: Last Week | I88: Last Month | J88: Last Week | K88: Last Month | L88: Last Week | M88: Last Month | N88: Last Week | O88: Last Month
A89: 1 | B89: =B60/B26 -> 0.03180719251 | C89: =C60/B26 -> 0 | D89: =D60/C26 -> 0.02252318563 | E89: =E60/C26 -> 0 | F89: =F60/D26 -> 0.0863275653 | G89: =G60/D26 -> 5.510856387e-05 | H89: =H60/E26 -> 0.1489241931 | I89: =I60/E26 -> 6.254691018e-05 | J89: =J60/F26 -> 0.2288071386 | K89: =K60/F26 -> 8.418217022e-05 | L89: =L60/G26 -> 0.1778411793 | M89: =M60/G26 -> 0 | N89: 1
A90: 2 | B90: =B61/B26 -> 0.009519492294 | C90: =C61/B26 -> 0.002644303415 | D90: =D61/C26 -> 0.007176505226 | E90: =E61/C26 -> 0.001876932136 | F90: =F61/D26 -> 0.0256254822 | G90: =G61/D26 -> 0.007109004739 | H90: =H61/E26 -> 0.03959219415 | I90: =I61/E26 -> 0.01257192895 | J90: =J61/F26 -> 0.05084603081 | K90: =K61/F26 -> 0.02508628672 | L90: =L61/G26 -> 0.04517356158 | M90: =M61/G26 -> 0.01046124584
A91: 3 | B91: =B62/B26 -> 0.005741915987 | C91: =C62/B26 -> 0.002870957993 | D91: =D62/C26 -> 0.006330045635 | E91: =E62/C26 -> 0.003128220227 | F91: =F62/D26 -> 0.02080348286 | G91: =G62/D26 -> 0.01058084426 | H91: =H62/E26 -> 0.0307105329 | I91: =I62/E26 -> 0.02082812109 | J91: =J62/F26 -> 0.03628251536 | K91: =K62/F26 -> 0.02971630609 | L91: =L62/G26 -> 0.05468378507 | M91: =M62/G26 -> 0.01902044698
A92: 4 | B92: =B63/B26 -> 0.0066485343 | C92: =C63/B26 -> 0.004986400725 | D92: =D63/C26 -> 0.007066097453 | E92: =E63/C26 -> 0.004931547181 | F92: =F63/D26 -> 0.02151989419 | G92: =G63/D26 -> 0.01578860355 | H92: =H63/E26 -> 0.03039779835 | I92: =I63/E26 -> 0.02858393795 | J92: =J63/F26 -> 0.03232595336 | K92: =K63/F26 -> 0.03434632545 | L92: =L63/G26 -> 0.04802662863 | M92: =M63/G26 -> 0.0223490252
A93: 5 | B93: =B64/B26 -> 0.006119673617 | C93: =C64/B26 -> 0.005439709882 | D93: =D64/C26 -> 0.008832621817 | E93: =E64/C26 -> 0.005189165317 | F93: =F64/D26 -> 0.02675520776 | G93: =G64/D26 -> 0.02061060289 | H93: =H64/E26 -> 0.03333750313 | I93: =I64/E26 -> 0.02783337503 | J93: =J64/F26 -> 0.03241013553 | K93: =K64/F26 -> 0.03375705026 | L93: =L64/G26 -> 0.0523062292 | M93: =M64/G26 -> 0.02710413695
A94: 6 | B94: =B65/B26 -> 0.007177394983 | C94: =C65/B26 -> 0.006044122091 | D94: =D65/C26 -> 0.01126159282 | E94: =E65/C26 -> 0.006440453408 | F94: =F65/D26 -> 0.0289871046 | G94: =G65/D26 -> 0.02140967706 | H94: =H65/E26 -> 0.03327495622 | I94: =I65/E26 -> 0.03027270453 | J94: =J65/F26 -> 0.02643320145 | K94: =K65/F26 -> 0.02870612004 | L94: =L65/G26 -> 0.03376129339 | M94: =M65/G26 -> 0.03613884926
A95: 7 | B95: =B66/B26 -> 0.008008461771 | C95: =C66/B26 -> 0.007177394983 | D95: =D66/C26 -> 0.013764169 | E95: =E66/C26 -> 0.01203444723 | F95: =F66/D26 -> 0.03438774386 | G95: =G66/D26 -> 0.02984128734 | H95: =H66/E26 -> 0.03252439329 | I95: =I66/E26 -> 0.0319614711 | J95: =J66/F26 -> 0.02710665881 | K95: =K66/F26 -> 0.02820102702 | L95: =L66/G26 -> 0.03043271517 | M95: =M66/G26 -> 0.03804089396
A96: 8 | B96: =B67/B26 -> 0.01095497129 | C96: =C67/B26 -> 0.01148383197 | D96: =D67/C26 -> 0.02285440895 | E96: =E67/C26 -> 0.02090387163 | F96: =F67/D26 -> 0.04769646203 | G96: =G67/D26 -> 0.0472831478 | H96: =H67/E26 -> 0.03296222167 | I96: =I67/E26 -> 0.0350262697 | J96: =J67/F26 -> 0.02390773634 | K96: =K67/F26 -> 0.02963212392 | L96: =L67/G26 -> 0.03471231574 | M96: =M67/G26 -> 0.04517356158
A97: 9 | B97: =B68/B26 -> 0.01903898459 | C97: =C68/B26 -> 0.02379873073 | D97: =D68/C26 -> 0.0440895039 | E97: =E68/C26 -> 0.05590313558 | F97: =F68/D26 -> 0.06081230023 | G97: =G68/D26 -> 0.07412101841 | H97: =H68/E26 -> 0.0344008006 | I97: =I68/E26 -> 0.04540905679 | J97: =J68/F26 -> 0.02416028285 | K97: =K68/F26 -> 0.03434632545 | L97: =L68/G26 -> 0.02948169282 | M97: =M68/G26 -> 0.03328578222
A98: 10 | B98: =B69/B26 -> 0.07902689634 | C98: =C69/B26 -> 0.1438501058 | D98: =D69/C26 -> 0.1279626086 | E98: =E69/C26 -> 0.2341748859 | F98: =F69/D26 -> 0.07139314449 | G98: =G69/D26 -> 0.1214868291 | H98: =H69/E26 -> 0.05222667 | I98: =I69/E26 -> 0.08919189392 | J98: =J69/F26 -> 0.02963212392 | K98: =K69/F26 -> 0.05109857732 | L98: =L69/G26 -> 0.02948169282 | M98: =M69/G26 -> 0.0485021398
A99: Totals | B99: =SUM(B89:B98) -> 0.1840435177 | C99: =SUM(C89:C98) -> 0.2082955576 | D99: 0.271860739 | E99: 0.3445826586 | F99: 0.4243083875 | G99: 0.3482861237 | H99: 0.4683512634 | I99: 0.321741306 | J99: 0.5119117771 | K99: 0.2949743244 | L99: 0.5359010937 | M99: 0.2800760818
A100: Percentage in the Last Month | B100: =SUM(B99:C99) -> 0.3923390752 | D100: =SUM(D99:E99) -> 0.6164433976 | F100: =SUM(F99:G99) -> 0.7725945112 | H100: =SUM(H99:I99) -> 0.7900925694 | J100: =SUM(J99:K99) -> 0.8068861015 | L100: =SUM(L99:M99) -> 0.8159771755
A102: Across All Leagues
A103: Weeks Remaining | B103: Last Week | C103: Last Month | D103: Raw Numbers (Last Week) | E103: Raw Numbers (Last Month)
A104: 1 | B104: =(B60+D60+F60+H60+J60+L60+N60)/I16 -> 0.9995935785 | C104: =SUM(B60:O60)/I16 -> 1 | D104: =B104*I16 -> 9838 | E104: =C104*I16 -> 9842
A105: 2 | B105: =(B61+D61+F61+H61+J61+L61)/I17 -> 0.7491299304 | C105: =SUM(B61:O61)/I17 -> 1 | D105: =B105*I17 -> 2583 | E105: =C105*I17 -> 3448
A106: 3 | B106: =(B62+D62+F62+H62+J62+L62)/I18 -> 0.6232813932 | C106: 1 | D106: 2040 | E106: 3273
A107: 4 | B107: =(B63+D63+F63+H63+J63+L63)/I19 -> 0.546677428 | C107: 1 | D107: 2032 | E107: 3717
A108: 5 | B108: 0.5257194652 | C108: 0.9481078631 | D108: 2320 | E108: 4184
A109: 6 | B109: 0.4585913313 | C109: 0.832623839 | D109: 2370 | E109: 4303
A110: 7 | B110: 0.4033073036 | C110: 0.7755320778 | D110: 2634 | E110: 5065
A111: 8 | B111: 0.3532546233 | C111: 0.7129871487 | D111: 3381 | E111: 6824
A112: 9 | B112: 0.2855173278 | C112: 0.6444820455 | D112: 4556 | E112: 10284
A113: 10 | B113: 0.1860553071 | C113: 0.5155620815 | D113: 8363 | E113: 23174
A114: Totals | B114: =(B70+D70+F70+H70+J70+L70+N70)/I26 -> 0.3753848169 | C114: =SUM(B70:O70)/I26 -> 0.693503261 | D114: =SUM(D104:D113) -> 40117 | E114: =SUM(E104:E113) -> 74114
A116: Inactive Player Analysis (10 bonus pool weeks remaining) | B116: Bronze | C116: Silver | D116: Gold | E116: Platinum | F116: Diamond | G116: Master | H116: Totals
A117: Total Players | B117: 9901 | C117: 17572 | D117: 11411 | E117: 3806 | F117: 1911 | G117: 348 | H117: =SUM(B117:G117) -> 44949
A118: Total Games Played | B118: 49655 | C118: 74023 | D118: 52295 | E118: 16986 | F118: 7247 | G118: 1970 | H118: =SUM(B118:G118) -> 202176
A119: Avg # of Games Played | B119: =H118/H117 -> 4.497897617
A121: Racial Distributions - Raw Counts
A122: Weeks Remaining | B122: Z | C122: T | D122: P | E122: R | F122: Totals
A123: 1 | B123: =B44+F44+J44+N44+R44+V44+Z44 -> 3202 | C123: =C44+G44+K44+O44+S44+W44+AA44 -> 3246 | D123: =D44+H44+L44+P44+T44+X44+AB44 -> 2580 | E123: =E44+I44+M44+Q44+U44+Y44+AC44 -> 814 | F123: =SUM(B123:E123) -> 9842
A124: 2 | B124: =B45+F45+J45+N45+R45+V45+Z45 -> 1108 | C124: 1114 | D124: 935 | E124: 291 | F124: =SUM(B124:E124) -> 3448
A125: 3 | B125: =B46+F46+J46+N46+R46+V46+Z46 -> 1115 | C125: 1033 | D125: 832 | E125: 293 | F125: 3273
A126: 4 | B126: =B47+F47+J47+N47+R47+V47+Z47 -> 1222 | C126: 1107 | D126: 1053 | E126: 335 | F126: 3717
A127: 5 | B127: =B48+F48+J48+N48+R48+V48+Z48 -> 1492 | C127: 1323 | D127: 1224 | E127: 374 | F127: 4413
A128: 6 | B128: =B49+F49+J49+N49+R49+V49+Z49 -> 1761 | C128: 1548 | D128: 1365 | E128: 494 | F128: 5168
A129: 7 | B129: =B50+F50+J50+N50+R50+V50+Z50 -> 2135 | C129: 1921 | D129: 1822 | E129: 653 | F129: 6531
A130: 8 | B130: =B51+F51+J51+N51+R51+V51+Z51 -> 3019 | C130: 2819 | D130: 2787 | E130: 946 | F130: 9571
A131: 9 | B131: =B52+F52+J52+N52+R52+V52+Z52 -> 5154 | C131: 4550 | D131: 4575 | E131: 1678 | F131: 15957
A132: 10 | B132: =B53+F53+J53+N53+R53+V53+Z53 -> 13213 | C132: 13547 | D132: 13038 | E132: 5151 | F132: 44949
A133: Totals | B133: =SUM(B123:B132) -> 33421 | C133: =SUM(C123:C132) -> 32208 | D133: 30211 | E133: 11029 | F133: 106869
A135: Racial Distributions - %
A136: Weeks Remaining | B136: Z | C136: T | D136: P | E136: R
A137: 1 | B137: =B123/F123 -> 0.325340378 | C137: =C123/F123 -> 0.329811014 | D137: =D123/F123 -> 0.2621418411 | E137: =E123/F123 -> 0.08270676692
A138: 2 | B138: =B124/F124 -> 0.3213457077 | C138: =C124/F124 -> 0.3230858469 | D138: =D124/F124 -> 0.2711716937 | E138: =E124/F124 -> 0.08439675174
A139: 3 | B139: 0.3406660556 | C139: 0.3156125878 | D139: 0.2542010388 | E139: 0.08952031775
A140: 4 | B140: 0.3287597525 | C140: 0.2978208232 | D140: 0.2832929782 | E140: 0.09012644606
A141: 5 | B141: 0.3380920009 | C141: 0.2997960571 | D141: 0.2773623385 | E141: 0.08474960344
A142: 6 | B142: 0.340750774 | C142: 0.2995356037 | D142: 0.264125387 | E142: 0.09558823529
A143: 7 | B143: 0.3269024652 | C143: 0.2941356607 | D143: 0.2789771857 | E143: 0.09998468841
A144: 8 | B144: 0.3154320343 | C144: 0.2945355762 | D144: 0.2911921429 | E144: 0.09884024658
A145: 9 | B145: 0.3229930438 | C145: 0.2851413173 | D145: 0.2867080278 | E145: 0.1051576111
A146: 10 | B146: 0.2939553716 | C146: 0.3013860153 | D146: 0.2900620703 | E146: 0.1145965427
A147: Totals | B147: 0.3127286678 | C147: 0.301378323 | D147: 0.2826918938 | E147: 0.1032011154

Sheet 1v1 Bronze
A1: ID | B1: Name | C1: Race | D1: League | E1: Division Name | F1: Wins | G1: Losses | H1: Score | I1: Bonus Pool | J1: Join Date | K1: Last Game | L1: Timestamp | M1: Bonus Pool Weeks Remaining | N1: Inactive Player Games Played
A2: 4023475 | B2: Derick | C2: z | D2: Bronze | E2: Division Fole Chi | F2: 100 | G2: 66 | H2: 999 | I2: 1014 | J2: 2014-05-18 | K2: 9 minutes | L2: 2014-06-20T02:06:47 | M2: 10 | N2: =IF(M2=10,SUM(F2:G2),0) -> 166
A3: 3995607 | B3: Badhorsiee | C3: z | D3: Bronze | E3: Division Gateway Pepper | F3: 30 | G3: 25 | H3: 586 | I3: 614 | J3: 2014-06-01 | K3: 5 days | L3: 2014-06-20T04:43:38 | M3: 6 | N3: =IF(M3=10,SUM(F3:G3),0) -> 0
A4: 2308207 | B4: Heithor | C4: p | D4: Bronze | E4: Division Shiloh Psi | F4: 24 | G4: 8 | H4: 452 | I4: 1001 | J4: 2014-06-19 | K4: 20 hours | L4: 2014-06-20T05:04:56 | M4: 10 | N4: 32
A5: 5788487 | B5: Ihavenoidea | C5: t | D5: Bronze | E5: Division Char Indigo | F5: 2 | G5: 8 | H5: 0 | I5: 947 | J5: 2014-06-16 | K5: 4 days | L5: 2014-06-20T07:57:53 | M5: 10 | N5: 10
A6: 5773950 | B6: Fail | C6: t | D6: Bronze | E6: Division Praetor Beta | F6: 3 | G6: 11 | H6: 66 | I6: 456 | J6: 2014-06-18 | K6: 8 hours | L6: 2014-06-20T09:21:32 | M6: 5 | N6: 0
A7: 4784828 | B7: coleo | C7: p | D7: Bronze | E7: Division Typhon Foxtrot | F7: 0 | G7: 3 | H7: 0 | I7: 679 | J7: 2014-05-07 | K7: 18 days | L7: 2014-06-20T10:47:09 | M7: 7 | N7: 0
A8: 2437355 | B8: nemo | C8: t | D8: Bronze | E8: Division Aiur Kappa | F8: 224 | G8: 253 | H8: 1227 | I8: 1 | J8: 2014-04-14 | K8: 23 hours | L8: 2014-06-20T10:57:38 | M8: 1 | N8: 0
A9: 188197 | B9: Marchall | C9: p | D9: Bronze | E9: Division DuGalle Indigo | F9: 54 | G9: 51 | H9: 1212 | I9: 8 | J9: 2014-04-19 | K9: 1 hours | L9: 2014-06-20T10:57:39 | M9: 1 | N9: 0
A10: 1191024 | B10: CBII | C10: z | D10: Bronze | E10: Division Khas Oscar | F10: 101 | G10: 88 | H10: 1210 | I10: 2 | J10: 2014-05-12 | K10: 16 minutes | L10: 2014-06-20T10:57:39 | M10: 1 | N10: 0
A11: 5745555 | B11: Hogs | C11: z | D11: Bronze | E11: Division Nova Pepper | F11: 98 | G11: 99 | H11: 1201 | I11: 1 | J11: 2014-05-30 | K11: 6 hours | L11: 2014-06-20T10:57:39 | M11: 1 | N11: 0
A12: 4193088 | B12: JoshMan | C12: p | D12: Bronze | E12: Division Taarim Upsilon | F12: 84 | G12: 78 | H12: 1199 | I12: 11 | J12: 2014-04-14 | K12: 7 hours | L12: 2014-06-20T10:57:39 | M12: 1 | N12: 0
A13: 1992499 | B13: ZotZ | C13: t | D13: Bronze | E13: Division Pylon Lambda | F13: 59 | G13: 60 | H13: 1192 | I13: 6 | J13: 2014-05-13 | K13: 4 hours | L13: 2014-06-20T10:57:40 | M13: 1 | N13: 0
A14: 2120254 | B14: headwinds | C14: z | D14: Bronze | E14: Division Taarim Upsilon | F14: 85 | G14: 79 | H14: 1192 | I14: 2 | J14: 2014-04-14 | K14: 11 hours | L14: 2014-06-20T10:57:40 | M14: 1 | N14: 0
A15: 5176152 | B15: BLESTESHE | C15: r | D15: Bronze | E15: Division Spectre Mu | F15: 147 | G15: 143 | H15: 1184 | I15: 0 | J15: 2014-04-15 | K15: 12 hours | L15: 2014-06-20T10:57:41 | M15: 1 | N15: 0
A16: 1123596 | B16: Salieri | C16: r | D16: Bronze | E16: Division Shuttle Iota | F16: 60 | G16: 74 | H16: 1181 | I16: 11 | J16: 2014-04-16 | K16: 2 hours | L16: 2014-06-20T10:57:41 | M16: 1 | N16: 0
A17: 5600712 | B17: IssHooW | C17: p | D17: Bronze | E17: Division Hierarch Lima | F17: 74 | G17: 73 | H17: 1181 | I17: 22 | J17: 2014-04-16 | K17: 1 days | L17: 2014-06-20T10:57:42 | M17: 1 | N17: 0
A18: 4227828 | B18: aaaPeter | C18: r | D18: Bronze | E18: Division Aiur Yankee | F18: 45 | G18: 41 | H18: 1179 | I18: 9 | J18: 2014-04-20 | K18: 3 hours | L18: 2014-06-20T10:57:42 | M18: 1 | N18: 0
A19: 5651389 | B19: Zeras | C19: p | D19: Bronze | E19: Division Auriga Phi | F19: 54 | G19: 59 | H19: 1175 | I19: 7 | J19: 2014-04-22 | K19: 16 minutes | L19: 2014-06-20T10:57:43 | M19: 1 | N19: 0
A20: 618736 | B20: XrayDoc | C20: r | D20: Bronze | E20: Division Praetor Upsilon | F20: 82 | G20: 78 | H20: 1174 | I20: 12 | J20: 2014-04-16 | K20: 9 hours | L20: 2014-06-20T10:57:43 | M20: 1 | N20: 0
A21: 5260506 | B21: gerrilleroxx | C21: p | D21: Bronze | E21: Division Stukov Beta | F21: 73 | G21: 82 | H21: 1172 | I21: 10 | J21: 2014-04-14 | K21: 5 hours | L21: 2014-06-20T10:57:43 | M21: 1 | N21: 0
A22: 4586681 | B22: dUplO | C22: z | D22: Bronze | E22: Division Antioch Echo | F22: 53 | G22: 54 | H22: 1170 | I22: 14 | J22: 2014-04-14 | K22: 11 hours | L22: 2014-06-20T10:57:44 | M22: 1 | N22: 0
A23: 2707159 | B23: Zenphyto | C23: t | D23: Bronze | E23: Division Taarim Upsilon | F23: 348 | G23: 379 | H23: 1166 | I23: 1 | J23: 2014-04-14 | K23: 24 minutes | L23: 2014-06-20T10:57:44 | M23: 1 | N23: 0
A24: 3112235 | B24: Rekindle | C24: t | D24: Bronze | E24: Division Templar Nu | F24: 163 | G24: 183 | H24: 1166 | I24: 9 | J24: 2014-04-15 | K24: 3 hours | L24: 2014-06-20T10:57:44 | M24: 1 | N24: 0
A25: 4522658 | B25: jchamp | C25: t | D25: Bronze | E25: Division Khas Oscar | F25: 89 | G25: 93 | H25: 1163 | I25: 5 | J25: 2014-06-07 | K25: 16 minutes | L25: 2014-06-20T10:57:44 | M25: 1 | N25: 0
A26: 4496414 | B26: HansWurst | C26: p | D26: Bronze | E26: Division Gateway Epsilon | F26: 53 | G26: 57 | H26: 1162 | I26: 15 | J26: 2014-05-09 | K26: 14 hours | L26: 2014-06-20T10:57:45 | M26: 1 | N26: 0
A27: 1335052 | B27: Pita | C27: r | D27: Bronze | E27: Division Scout Phi | F27: 43 | G27: 46 | H27: 1157 | I27: 19 | J27: 2014-04-14 | K27: 7 hours | L27: 2014-06-20T10:57:45 | M27: 1 | N27: 0
A28: 5286734 | B28: Pepsi | C28: p | D28: Bronze | E28: Division Felanis Tango | F28: 48 | G28: 34 | H28: 1157 | I28: 46 | J28: 2014-04-15 | K28: 1 days | L28: 2014-06-20T10:57:45 | M28: 1 | N28: 0
A29: 1564640 | B29: TheFlash | C29: t | D29: Bronze | E29: Division Bucephalus Delta | F29: 87 | G29: 97 | H29: 1156 | I29: 7 | J29: 2014-04-15 | K29: 23 minutes | L29: 2014-06-20T10:57:45 | M29: 1 | N29: 0
A30: 5085671 | B30: Syandtisos | C30: z | D30: Bronze | E30: Division Drone Kilo | F30: 55 | G30: 66 | H30: 1156 | I30: 7 | J30: 2014-04-16 | K30: 17 minutes | L30: 2014-06-20T10:57:46 | M30: 1 | N30: 0
A31: 774008 | B31: Fourier | C31: t | D31: Bronze | E31: Division Felanis Tango | F31: 98 | G31: 98 | H31: 1155 | I31: 7 | J31: 2014-04-15 | K31: 1 hours | L31: 2014-06-20T10:57:46 | M31: 1 | N31: 0
A32: 2384197 | B32: FireZerg | C32: z | D32: Bronze | E32: Division Artika Beta | F32: 69 | G32: 66 | H32: 1155 | I32: 18 | J32: 2014-04-16 | K32: 2 hours | L32: 2014-06-20T10:57:46 | M32: 1 | N32: 0
A33: 4100416 | B33: Ezilix | C33: p | D33: Bronze | E33: Division Medic Pepper | F33: 52 | G33: 42 | H33: 1155 | I33: 3 | J33: 2014-05-21 | K33: 22 hours | L33: 2014-06-20T10:57:47 | M33: 1 | N33: 0
A34: 1305822 | B34: Eric | C34: p | D34: Bronze | E34: Division Hauler Whiskey | F34: 46 | G34: 50 | H34: 1150 | I34: 1 | J34: 2014-04-19 | K34: 6 hours | L34: 2014-06-20T10:57:47 | M34: 1 | N34: 0
A35: 5327599 | B35: Kavaeli | C35: t | D35: Bronze | E35: Division Pridewater Sigma | F35: 85 | G35: 76 | H35: 1150 | I35: 24 | J35: 2014-05-08 | K35: 1 days | L35: 2014-06-20T10:57:47 | M35: 1 | N35: 0
A36: 2522486 | B36: BeeRed | C36: z | D36: Bronze | E36: Division Horner Alamo | F36: 109 | G36: 103 | H36: 1149 | I36: 25 | J36: 2014-04-16 | K36: 1 hours | L36: 2014-06-20T10:57:48 | M36: 1 | N36: 0
A37: 4398053 | B37: papasan | C37: p | D37: Bronze | E37: Division Tychus Xi | F37: 237 | G37: 235 | H37: 1149 | I37: 1 | J37: 2014-04-20 | K37: 7 hours | L37: 2014-06-20T10:57:48 | M37: 1 | N37: 0
A38: 3025938 | B38: skywalker | C38: t | D38: Bronze | E38: Division Overmind Gravity | F38: 52 | G38: 53 | H38: 1147 | I38: 12 | J38: 2014-04-15 | K38: 1 hours | L38: 2014-06-20T10:57:48 | M38: 1 | N38: 0
A39: 4728181 | B39: BoBo | C39: p | D39: Bronze | E39: Division Sentry Dixie | F39: 187 | G39: 202 | H39: 1147 | I39: 0 | J39: 2014-05-23 | K39: 4 hours | L39: 2014-06-20T10:57:49 | M39: 1 | N39: 0
A40: 607327 | B40: SparkOMatic | C40: z | D40: Bronze | E40: Division Baneling Zed | F40: 161 | G40: 184 | H40: 1146 | I40: 10 | J40: 2014-04-14 | K40: 4 hours | L40: 2014-06-20T10:57:49 | M40: 1 | N40: 0
A41: 839832 | B41: Alejo | C41: z | D41: Bronze | E41: Division Routhe Rho | F41: 63 | G41: 65 | H41: 1146 | I41: 4 | J41: 2014-04-21 | K41: 53 minutes | L41: 2014-06-20T10:57:49 | M41: 1 | N41: 0
A42: 5217367 | B42: Dos | C42: p | D42: Bronze | E42: Division Praetor Upsilon | F42: 55 | G42: 68 | H42: 1146 | I42: 22 | J42: 2014-04-24 | K42: 1 days | L42: 2014-06-20T10:57:50 | M42: 1 | N42: 0
A43: 619575 | B43: Kenodd | C43: t | D43: Bronze | E43: Division Shiloh Psi | F43: 70 | G43: 79 | H43: 1144 | I43: 7 | J43: 2014-04-18 | K43: 34 minutes | L43: 2014-06-20T10:57:50 | M43: 1 | N43: 0
A44: 4791817 | B44: ninjawarlord | C44: r | D44: Bronze | E44: Division Hanson Gamma | F44: 55 | G44: 57 | H44: 1144 | I44: 25 | J44: 2014-04-15 | K44: 1 days | L44: 2014-06-20T10:57:50 | M44: 1 | N44: 0
A45: 5150695 | B45: Sinfully | C45: z | D45: Bronze | E45: Division SCV Yankee | F45: 53 | G45: 55 | H45: 1144 | I45: 31 | J45: 2014-05-10 | K45: 1 days | L45: 2014-06-20T10:57:50 | M45: 1 | N45: 0
A46: 872905 | B46: stryker | C46: p | D46: Bronze | E46: Division DuGalle Bravo | F46: 49 | G46: 48 | H46: 1143 | I46: 11 | J46: 2014-04-14 | K46: 2 days | L46: 2014-06-20T10:57:51 | M46: 1 | N46: 0
A47: 952790 | B47: Reaper | C47: t | D47: Bronze | E47: Division Gorn Omega | F47: 95 | G47: 81 | H47: 1142 | I47: 9 | J47: 2014-05-07 | K47: 4 hours | L47: 2014-06-20T10:57:51 | M47: 1 | N47: 0
A48: 5027270 | B48: NuVork | C48: p | D48: Bronze | E48: Division Valerian Eta | F48: 71 | G48: 68 | H48: 1142 | I48: 40 | J48: 2014-05-13 | K48: 2 days | L48: 2014-06-20T10:57:51 | M48: 1 | N48: 0
A49: 3360605 | B49: CoolDude | C49: t | D49: Bronze | E49: Division Azimar Sierra | F49: 83 | G49: 90 | H49: 1141 | I49: 3 | J49: 2014-04-18 | K49: 2 hours | L49: 2014-06-20T10:57:52 | M49: 1 | N49: 0
A50: 285939 | B50: DerGewinner | C50: r | D50: Bronze | E50: Division Typhon X-Ray | F50: 137 | G50: 141 | H50: 1139 | I50: 12 | J50: 2014-04-15 | K50: 8 hours | L50: 2014-06-20T10:57:52 | M50: 1 | N50: 0
A51: 2309387 | B51: jONsHAFT | C51: t | D51: Bronze | E51: Division Sargas Nu | F51: 56 | G51: 62 | H51: 1139 | I51: 9 | J51: 2014-04-19 | K51: 4 hours | L51: 2014-06-20T10:57:52 | M51: 1 | N51: 0
A52: 5004360 | B52: KARONTE | C52: t | D52: Bronze | E52: Division SCV Kappa | F52: 151 | G52: 152 | H52: 1138 | I52: 8 | J52: 2014-04-15 | K52: 1 hours | L52: 2014-06-20T10:57:53 | M52: 1 | N52: 0
A53: 5500962 | B53: Dakka | C53: t | D53: Bronze | E53: Division Reaper Indigo | F53: 52 | G53: 44 | H53: 1138 | I53: 10 | J53: 2014-04-14 | K53: 2 hours | L53: 2014-06-20T10:57:53 | M53: 1 | N53: 0
A54: 2251663 | B54: OutLawCore | C54: p | D54: Bronze | E54: Division Banshee Romeo | F54: 140 | G54: 167 | H54: 1137 | I54: 9 | J54: 2014-04-14 | K54: 3 hours | L54: 2014-06-20T10:57:53 | M54: 1 | N54: 0
A55: 5395133 | B55: LoneGunman | C55: t | D55: Bronze | E55: Division Hellion Romeo | F55: 93 | G55: 90 | H55: 1137 | I55: 0 | J55: 2014-04-17 | K55: 13 minutes | L55: 2014-06-20T10:57:54 | M55: 1 | N55: 0
A56: 5637274 | B56: Doadrift | C56: z | D56: Bronze | E56: Division Scimitar Epsilon | F56: 56 | G56: 45 | H56: 1137 | I56: 0 | J56: 2014-05-29 | K56: 1 hours | L56: 2014-06-20T10:57:54 | M56: 1 | N56: 0
A57: 5712056 | B57: JavoSplv | C57: t | D57: Bronze | E57: Division Ultralisk Yankee | F57: 87 | G57: 102 | H57: 1137 | I57: 0 | J57: 2014-05-23 | K57: 38 minutes | L57: 2014-06-20T10:57:54 | M57: 1 | N57: 0
A58: 4941234 | B58: Jackal | C58: t | D58: Bronze | E58: Division Wraith Pi | F58: 63 | G58: 61 | H58: 1135 | I58: 40 | J58: 2014-05-18 | K58: 4 days | L58: 2014-06-20T10:57:54 | M58: 1 | N58: 0
A59: 295842 | B59: RAIDER | C59: t | D59: Bronze | E59: Division Hanson Gamma | F59: 95 | G59: 121 | H59: 1134 | I59: 1 | J59: 2014-04-15 | K59: 4 hours | L59: 2014-06-20T10:57:55 | M59: 1 | N59: 0
A60: 4783350 | B60: Charls | C60: p | D60: Bronze | E60: Division Zekrath Kappa | F60: 70 | G60: 57 | H60: 1134 | I60: 35 | J60: 2014-05-24 | K60: 1 days | L60: 2014-06-20T10:57:55 | M60: 1 | N60: 0
A61: 4292739 | B61: Marzhina | C61: t | D61: Bronze | E61: Division Anselm Juliet | F61: 114 | G61: 136 | H61: 1133 | I61: 6 | J61: 2014-06-08 | K61: 26 minutes | L61: 2014-06-20T10:57:55 | M61: 1 | N61: 0
A62: 5564219 | B62: joe | C62: z | D62: Bronze | E62: Division Typhon Foxtrot | F62: 95 | G62: 111 | H62: 1133 | I62: 13 | J62: 2014-04-24 | K62: 9 hours | L62: 2014-06-20T10:57:55 | M62: 1 | N62: 0
A63: 830156 | B63: Dutch | C63: r | D63: Bronze | E63: Division Zerus Foxtrot | F63: 86 | G63: 94 | H63: 1132 | I63: 9 | J63: 2014-04-15 | K63: 3 hours | L63: 2014-06-20T10:57:56 | M63: 1 | N63: 0
A64: 584906 | B64: MANOSABOTAGE | C64: t | D64: Bronze | E64: Division Akilae Xi | F64: 124 | G64: 124 | H64: 1131 | I64: 13 | J64: 2014-04-14 | K64: 9 hours | L64: 2014-06-20T10:57:56 | M64: 1 | N64: 0
A65: 3553588 | B65: Maxwoodhouse | C65: z | D65: Bronze | E65: Division Argo Mu | F65: 73 | G65: 86 | H65: 1131 | I65: 6 | J65: 2014-04-18 | K65: 9 hours | L65: 2014-06-20T10:57:56 | M65: 1 | N65: 0
A66: 514117 | B66: enzwarlord | C66: z | D66: Bronze | E66: Division Urun November | F66: 66 | G66: 64 | H66: 1129 | I66: 9 | J66: 2014-05-17 | K66: 3 hours | L66: 2014-06-20T10:57:57 | M66: 1 | N66: 0
A67: 5115490 | B67: Yamitenshi | C67: z | D67: Bronze | E67: Division Hierarch Lima | F67: 88 | G67: 86 | H67: 1129 | I67: 7 | J67: 2014-04-16 | K67: 5 minutes | L67: 2014-06-20T10:57:57 | M67: 1 | N67: =IF(M67=10,SUM(F67:G67),0) -> 0
A68: 5564011 | B68: coenot | C68: z | D68: Bronze | E68: Division Fole Chi | F68: 63 | G68: 48 | H68: 1129 | I68: 86 | J68: 2014-04-14 | K68: 5 days | L68: 2014-06-20T10:57:57 | M68: 1 | N68: 0
A69: 268678 | B69: Diego | C69: t | D69: Bronze | E69: Division Hyperion Lambda | F69: 70 | G69: 80 | H69: 1128 | I69: 9 | J69: 2014-04-14 | K69: 2 hours | L69: 2014-06-20T10:57:58 | M69: 1 | N69: 0
A70: 3032318 | B70: Farly | C70: p | D70: Bronze | E70: Division Hydralisk Victor | F70: 54 | G70: 58 | H70: 1128 | I70: 13 | J70: 2014-06-02 | K70: 10 hours | L70: 2014-06-20T10:57:58 | M70: 1 | N70: 0
A71: 3422733 | B71: zombiekiller | C71: p | D71: Bronze | E71: Division Carrier Kilo | F71: 73 | G71: 79 | H71: 1128 | I71: 1 | J71: 2014-04-27 | K71: 6 hours | L71: 2014-06-20T10:57:58 | M71: 1 | N71: 0
A72: 5284716 | B72: SpikAndSpan | C72: t | D72: Bronze | E72: Division Zerus Foxtrot | F72: 82 | G72: 96 | H72: 1128 | I72: 7 | J72: 2014-04-15 | K72: 37 minutes | L72: 2014-06-20T10:57:58 | M72: 1 | N72: 0
A73: 2481909 | B73: Rocco | C73: r | D73: Bronze | E73: Division Ehlna Omicron | F73: 49 | G73: 58 | H73: 1127 | I73: 5 | J73: 2014-05-16 | K73: 6 hours | L73: 2014-06-20T10:57:59 | M73: 1 | N73: 0
A74: 1085895 | B74: KuNui | C74: t | D74: Bronze | E74: Division Reaper Indigo | F74: 69 | G74: 75 | H74: 1126 | I74: 6 | J74: 2014-04-14 | K74: 4 hours | L74: 2014-06-20T10:57:59 | M74: 1 | N74: 0
A75: 2629757 | B75: omb | C75: r | D75: Bronze | E75: Division Taarim Upsilon | F75: 80 | G75: 86 | H75: 1126 | I75: 2 | J75: 2014-04-14 | K75: 54 minutes | L75: 2014-06-20T10:57:59 | M75: 1 | N75: 0
A76: 5443472 | B76: Logan | C76: t | D76: Bronze | E76: Division Gantrithor Tau | F76: 57 | G76: 54 | H76: 1126 | I76: 5 | J76: 2014-05-24 | K76: 12 minutes | L76: 2014-06-20T10:57:59 | M76: 1 | N76: 0
A77: 2028354 | B77: Elius | C77: t | D77: Bronze | E77: Division Augustgrad Sigma | F77: 98 | G77: 110 | H77: 1124 | I77: 26 | J77: 2014-04-14 | K77: 1 days | L77: 2014-06-20T10:58:00 | M77: 1 | N77: 0
A78: 2112294 | B78: WACKO | C78: p | D78: Bronze | E78: Division Gorn Omega | F78: 58 | G78: 67 | H78: 1124 | I78: 37 | J78: 2014-04-14 | K78: 2 days | L78: 2014-06-20T10:58:00 | M78: 1 | N78: 0
A79: 1092006 | B79: PugeHenis | C79: p | D79: Bronze | E79: Division Scarab Victor | F79: 98 | G79: 94 | H79: 1123 | I79: 38 | J79: 2014-04-15 | K79: 2 days | L79: 2014-06-20T10:58:00 | M79: 1 | N79: 0
A80: 4235033 | B80: Medusa | C80: r | D80: Bronze | E80: Division Khas Oscar | F80: 77 | G80: 70 | H80: 1123 | I80: 14 | J80: 2014-05-01 | K80: 12 hours | L80: 2014-06-20T10:58:00 | M80: 1 | N80: 0
A81: 4184820 | B81: Noc | C81: t | D81: Bronze | E81: Division Firebat Tango | F81: 194 | G81: 195 | H81: 1122 | I81: 10 | J81: 2014-04-17 | K81: 4 hours | L81: 2014-06-20T10:58:01 | M81: 1 | N81: 0
A82: 4420277 | B82: RavensBeast | C82: p | D82: Bronze | E82: Division Gateway Epsilon | F82: 98 | G82: 97 | H82: 1122 | I82: 5 | J82: 2014-04-15 | K82: 6 hours | L82: 2014-06-20T10:58:01 | M82: 1 | N82: 0
A83: 5679764 | B83: Emoneybags | C83: z | D83: Bronze | E83: Division Horner Alamo | F83: 54 | G83: 57 | H83: 1122 | I83: 3 | J83: 2014-06-05 | K83: 3 hours | L83: 2014-06-20T10:58:01 | M83: 1 | N83: 0
A84: 1586709 | B84: LANCE | C84: t | D84: Bronze | E84: Division Jorgensen Mars | F84: 42 | G84: 45 | H84: 1121 | I84: 30 | J84: 2014-04-17 | K84: 1 days | L84: 2014-06-20T10:58:02 | M84: 1 | N84: 0
A85: 5211486 | B85: Raresies | C85: t | D85: Bronze | E85: Division Rimes Alpha | F85: 136 | G85: 151 | H85: 1121 | I85: 7 | J85: 2014-04-17 | K85: 46 minutes | L85: 2014-06-20T10:58:02 | M85: 1 | N85: 0
A86: 5604798 | B86: THEBIGBOAR | C86: p | D86: Bronze | E86: Division Nagglfar Uncle | F86: 62 | G86: 64 | H86: 1119 | I86: 2 | J86: 2014-05-21 | K86: 2 hours | L86: 2014-06-20T10:58:02 | M86: 1 | N86: 0
A87: 1746557 | B87: Fayehawk | C87: r | D87: Bronze | E87: Division Bucephalus Delta | F87: 74 | G87: 84 | H87: 1118 | I87: 6 | J87: 2014-04-15 | K87: 1 days | L87: 2014-06-20T10:58:02 | M87: 1 | N87: 0
A88: 4090240 | B88: general | C88: t | D88: Bronze | E88: Division Scout Phi | F88: 51 | G88: 48 | H88: 1118 | I88: 24 | J88: 2014-04-14 | K88: 7 hours | L88: 2014-06-20T10:58:03 | M88: 1 | N88: 0
A89: 5188937 | B89: fackiundo | C89: t | D89: Bronze | E89: Division Hierarch Uncle | F89: 44 | G89: 43 | H89: 1118 | I89: 30 | J89: 2014-04-30 | K89: 3 hours | L89: 2014-06-20T10:58:03 | M89: 1 | N89: 0
A90: 596238 | B90: Ppoloni | C90: p | D90: Bronze | E90: Division Warfield Charlie | F90: 87 | G90: 79 | H90: 1116 | I90: 15 | J90: 2014-04-14 | K90: 13 hours | L90: 2014-06-20T10:58:03 | M90: 1 | N90: 0
A91: 2911549 | B91: Vacation | C91: t | D91: Bronze | E91: Division Templar Nu | F91: 129 | G91: 132 | H91: 1116 | I91: 12 | J91: 2014-04-15 | K91: 8 hours | L91: 2014-06-20T10:58:03 | M91: 1 | N91: 0
A92: 3316629 | B92: CDman | C92: z | D92: Bronze | E92: Division Torrasque Mars | F92: 50 | G92: 51 | H92: 1116 | I92: 31 | J92: 2014-05-21 | K92: 1 days | L92: 2014-06-20T10:58:04 | M92: 1 | N92: 0
A93: 3725865 | B93: Karsten | C93: t | D93: Bronze | E93: Division Drone November | F93: 48 | G93: 48 | H93: 1115 | I93: 4 | J93: 2014-05-23 | K93: 52 minutes | L93: 2014-06-20T10:58:04 | M93: 1 | N93: 0
A94: 4176673 | B94: salamicake | C94: z | D94: Bronze | E94: Division Horner Alamo | F94: 88 | G94: 108 | H94: 1115 | I94: 10 | J94: 2014-05-09 | K94: 5 hours | L94: 2014-06-20T10:58:04 | M94: 1 | N94: 0
A95: 5183360 | B95: Anakin | C95: z | D95: Bronze | E95: Division Nexus Echo | F95: 68 | G95: 65 | H95: 1114 | I95: 8 | J95: 2014-05-13 | K95: 1 hours | L95: 2014-06-20T10:58:05 | M95: 1 | N95: 0
A96: 1031562 | B96: DocDark | C96: r | D96: Bronze | E96: Division Liberty Chi | F96: 93 | G96: 105 | H96: 1113 | I96: 25 | J96: 2014-04-17 | K96: 1 days | L96: 2014-06-20T10:58:05 | M96: 1 | N96: 0
A97: 4787118 | B97: kOOlbeans | C97: t | D97: Bronze | E97: Division Gantrithor Tau | F97: 75 | G97: 84 | H97: 1112 | I97: 0 | J97: 2014-04-14 | K97: 4 hours | L97: 2014-06-20T10:58:05 | M97: 1 | N97: 0
A98: 5575567 | B98: ABCONQUER | C98: z | D98: Bronze | E98: Division Wraith Pi | F98: 62 | G98: 74 | H98: 1112 | I98: 8 | J98: 2014-04-15 | K98: 2 hours | L98: 2014-06-20T10:58:05 | M98: 1 | N98: 0
A99: 3437482 | B99: Wolgast | C99: t | D99: Bronze | E99: Division Scout Phi | F99: 137 | G99: 144 | H99: 1111 | I99: 69 | J99: 2014-04-14 | K99: 4 days | L99: 2014-06-20T10:58:06 | M99: 1 | N99: 0
A100: 630029 | B100: Kaoz | C100: z | D100: Bronze | E100: Division Sentry Dixie | F100: 89 | G100: 103 | H100: 1110 | I100: 4 | J100: 2014-05-23 | K100: 3 minutes | L100: 2014-06-20T10:58:06 | M100: 1 | N100: 0
A101: 4965455 | B101: Smartwun | C101: t | D101: Bronze | E101: Division Stukov Beta | F101: 169 | G101: 181 | H101: 1110 | I101: 0 | J101: 2014-04-14 | K101: 4 hours | L101: 2014-06-20T10:58:06 | M101: 1 | N101: 0
A102: 4240985 | B102: Zed | C102: z | D102: Bronze | E102: Division Medic Pepper | F102: 93 | G102: 91 | H102: 1109 | I102: 6 | J102: 2014-04-14 | K102: 4 minutes | L102: 2014-06-20T10:58:07 | M102: 1 | N102: 0
A103: 4372172 | B103: jalo | C103: t | D103: Bronze | E103: Division Tal’darim Omega | F103: 129 | G103: 143 | H103: 1109 | I103: 35 | J103: 2014-04-17 | K103: 1 days | L103: 2014-06-20T10:58:07 | M103: 1 | N103: 0
A104: 5679350 | B104: Kais | C104: t | D104: Bronze | E104: Division Praetor Upsilon | F104: 52 | G104: 46 | H104: 1109 | I104: 45 | J104: 2014-05-27 | K104: 2 days | L104: 2014-06-20T10:58:07 | M104: 1 | N104: 0
A105: 5208360 | B105: ColdBlooded | C105: t | D105: Bronze | E105: Division Akilae Xi | F105: 63 | G105: 68 | H105: 1108 | I105: 5 | J105: 2014-04-14 | K105: 22 hours | L105: 2014-06-20T10:58:08 | M105: 1 | N105: 0
A106: 3630144 | B106: stux | C106: t | D106: Bronze | E106: Division Feld Kilo | F106: 119 | G106: 125 | H106: 1106 | I106: 13 | J106: 2014-04-14 | K106: 10 hours | L106: 2014-06-20T10:58:08 | M106: 1 | N106: 0
A107: 4234515 | B107: Arnold | C107: p | D107: Bronze | E107: Division Valerian Sierra | F107: 63 | G107: 71 | H107: 1106 | I107: 8 | J107: 2014-04-15 | K107: 1 hours | L107: 2014-06-20T10:58:08 | M107: 1 | N107: 0
A108: 4865687 | B108: Parko | C108: p | D108: Bronze | E108: Division Carrier Kilo | F108: 115 | G108: 128 | H108: 1106 | I108: 22 | J108: 2014-04-27 | K108: 1 days | L108: 2014-06-20T10:58:08 | M108: 1 | N108: 0
A109: 5089805 | B109: Skullid | C109: t | D109: Bronze | E109: Division Viking Theta | F109: 99 | G109: 105 | H109: 1106 | I109: 4 | J109: 2014-04-14 | K109: 2 hours | L109: 2014-06-20T10:58:09 | M109: 1 | N109: 0
A110: 5175505 | B110: ThorReturns | C110: t | D110: Bronze | E110: Division Jorgensen Mars | F110: 47 | G110: 67 | H110: 1106 | I110: 10 | J110: 2014-06-08 | K110: 5 hours | L110: 2014-06-20T10:58:09 | M110: 1 | N110: 0
A111: 3354619 | B111: wolverine | C111: t | D111: Bronze | E111: Division Taarim Upsilon | F111: 91 | G111: 89 | H111: 1105 | I111: 1 | J111: 2014-04-14 | K111: 2 days | L111: 2014-06-20T10:58:09 | M111: 1 | N111: 0
A112: 619386 | B112: Xtngwishr | C112: t | D112: Bronze | E112: Division Hellion Romeo | F112: 86 | G112: 90 | H112: 1104 | I112: 12 | J112: 2014-05-26 | K112: 8 hours | L112: 2014-06-20T10:58:09 | M112: 1 | N112: 0
A113: 57516 | B113: Wolfman | C113: p | D113: Bronze | E113: Division Raven Whiskey | F113: 66 | G113: 62 | H113: 1103 | I113: 71 | J113: 2014-04-15 | K113: 4 days | L113: 2014-06-20T10:58:10 | M113: 1 | N113: 0
A114: 3937404 | B114: phoobahr | C114: z | D114: Bronze | E114: Division Anselm Omicron | F114: 53 | G114: 54 | H114: 1103 | I114: 61 | J114: 2014-04-15 | K114: 1 days | L114: 2014-06-20T10:58:10 | M114: 1 | N114: 0
A115: 696842 | B115: Pele | C115: r | D115: Bronze | E115: Division Broodling Echo | F115: 67 | G115: 84 | H115: 1102 | I115: 6 | J115: 2014-04-16 | K115: 5 hours | L115: 2014-06-20T10:58:10 | M115: 1 | N115: 0
A116: 794602 | B116: NIKO | C116: t | D116: Bronze | E116: Division Lockwell Echo | F116: 47 | G116: 38 | H116: 1102 | I116: 80 | J116: 2014-05-27 | K116: 13 hours | L116: 2014-06-20T10:58:11 | M116: 1 | N116: 0
A117: 1230490 | B117: bob | C117: t | D117: Bronze | E117: Division Executor Rho | F117: 75 | G117: 79 | H117: 1102 | I117: 8 | J117: 2014-04-17 | K117: 1 hours | L117: 2014-06-20T10:58:11 | M117: 1 | N117: 0
A118: 5634764 | B118: AngelX | C118: p | D118: Bronze | E118: Division Felanis Tango | F118: 83 | G118: 100 | H118: 1102 | I118: 6 | J118: 2014-05-20 | K118: 1 days | L118: 2014-06-20T10:58:11 | M118: 1 | N118: 0
A119: 3122427 | B119: TheLegend | C119: r | D119: Bronze | E119: Division Firebat Tango | F119: 110 | G119: 118 | H119: 1101 | I119: 1 | J119: 2014-04-18 | K119: 1 days | L119: 2014-06-20T10:58:11 | M119: 1 | N119: 0
A120: 5339333 | B120: DasMan | C120: r | D120: Bronze | E120: Division Felanis Victor | F120: 641 | G120: 738 | H120: 1101 | I120: 978 | J120: 2014-04-14 | K120: 25 minutes | L120: 2014-06-20T10:58:12 | M120: 10 | N120: 1379
A121: 4342328 | B121: IRICH | C121: z | D121: Bronze | E121: Division Augustgrad Sigma | F121: 74 | G121: 82 | H121: 1100 | I121: 23 | J121: 2014-04-14 | K121: 1 days | L121: 2014-06-20T10:58:12 | M121: 1 | N121: 0
A122: 4323295 | B122: Lucas | C122: r | D122: Bronze | E122: Division Scout Phi | F122: 69 | G122: 66 | H122: 1099 | I122: 9 | J122: 2014-04-14 | K122: 4 hours | L122: 2014-06-20T10:58:13 | M122: 1 | N122: 0
A123: 4386676 | B123: GRRRILLA | C123: t | D123: Bronze | E123: Division Hydralisk Victor | F123: 121 | G123: 117 | H123: 1099 | I123: 0 | J123: 2014-04-18 | K123: 10 hours | L123: 2014-06-20T10:58:13 | M123: 1 | N123: 0
A124: 5575065 | B124: SpeedPants | C124: t | D124: Bronze | E124: Division Spectre Mu | F124: 50 | G124: 49 | H124: 1099 | I124: 9 | J124: 2014-06-04 | K124: 3 hours | L124: 2014-06-20T10:58:13 | M124: 1 | N124: 0
A125: 2986908 | B125: neon | C125: r | D125: Bronze | E125: Division Pridewater Juliet | F125: 76 | G125: 90 | H125: 1098 | I125: 11 | J125: 2014-04-15 | K125: 6 hours | L125: 2014-06-20T10:58:14 | M125: 1 | N125: 0
A126: 3056627 | B126: Kragle | C126: p | D126: Bronze | E126: Division Selendis Hawk | F126: 44 | G126: 44 | H126: 1098 | I126: 74 | J126: 2014-04-18 | K126: 3 days | L126: 2014-06-20T10:58:14 | M126: 1 | N126: 0
A127: 5339566 | B127: ScarpiaWoton | C127: p | D127: Bronze | E127: Division Praetor Upsilon | F127: 64 | G127: 71 | H127: 1098 | I127: 19 | J127: 2014-05-04 | K127: 8 hours | L127: 2014-06-20T10:58:15 | M127: 1 | N127: 0
A128: 353130 | B128: DeepWade | C128: r | D128: Bronze | E128: Division Drone Kilo | F128: 50 | G128: 50 | H128: 1097 | I128: 11 | J128: 2014-04-16 | K128: 2 hours | L128: 2014-06-20T10:58:15 | M128: 1 | N128: 0
A129: 1688908 | B129: LuisCXXXVIII | C129: t | D129: Bronze | E129: Division Anselm Omicron | F129: 99 | G129: 102 | H129: 1097 | I129: 6 | J129: 2014-04-15 | K129: 3 minutes | L129: 2014-06-20T10:58:15 | M129: 1 | N129: 0
A130: 2544554 | B130: LunarFox | C130: t | D130: Bronze | E130: Division Akilae Xi | F130: 184 | G130: 206 | H130: 1097 | I130: 20 | J130: 2014-04-14 | K130: 2 days | L130: 2014-06-20T10:58:16 | M130: 1 | N130: 0
A131: 4237404 | B131: GNoby | C131: r | D131: Bronze | E131: Division Auriga Mars | F131: 88 | G131: 91 | H131: 1097 | I131: 8 | J131: 2014-06-07 | K131: 1 hours | L131: 2014-06-20T10:58:16 | M131: 1 | N131: =IF(M131=10,SUM(F131:G131),0) -> 0
A132: 4771472 | B132: Ktunk | C132: r | D132: Bronze | E132: Division Dragoon Gravity | F132: 187 | G132: 200 | H132: 1097 | I132: 7 | J132: 2014-04-18 | K132: 18 minutes | L132: 2014-06-20T10:58:16 | M132: 1 | N132: 0
A133: 5308858 | B133: Wattie | C133: t | D133: Bronze | E133: Division Typhon X-Ray | F133: 74 | G133: 70 | H133: 1096 | I133: 8 | J133: 2014-04-14 | K133: 1 hours | L133: 2014-06-20T10:58:17 | M133: 1 | N133: 0
A134: 459994 | B134: jerry | C134: r | D134: Bronze | E134: Division Braxis Pi | F134: 69 | G134: 82 | H134: 1094 | I134: 11 | J134: 2014-04-17 | K134: 6 hours | L134: 2014-06-20T10:58:17 | M134: 1 | N134: 0
A135: 1370100 | B135: Vegas | C135: p | D135: Bronze | E135: Division Scarab Victor | F135: 113 | G135: 130 | H135: 1094 | I135: 6 | J135: 2014-04-15 | K135: 12 minutes | L135: 2014-06-20T10:58:17 | M135: 1 | N135: 0
A136: 4969418 | B136: caspernator | C136: p | D136: Bronze | E136: Division Tychus Xi | F136: 64 | G136: 69 | H136: 1094 | I136: 3 | J136: 2014-05-05 | K136: 3 hours | L136: 2014-06-20T10:58:18 | M136: 1 | N136: 0
A137: 5551589 | B137: Kelso | C137: p | D137: Bronze | E137: Division Antioch Romeo | F137: 65 | G137: 67 | H137: 1094 | I137: 10 | J137: 2014-06-11 | K137: 4 hours | L137: 2014-06-20T10:58:18 | M137: 1 | N137: 0
A138: 2072137 | B138: leviathan | C138: r | D138: Bronze | E138: Division Hierarch Lima | F138: 81 | G138: 81 | H138: 1093 | I138: 11 | J138: 2014-04-16 | K138: 6 hours | L138: 2014-06-20T10:58:18 | M138: 1 | N138: 0
A139: 2924265 | B139: dukenukem | C139: t | D139: Bronze | E139: Division Moratun Hawk | F139: 82 | G139: 90 | H139: 1093 | I139: 14 | J139: 2014-04-15 | K139: 11 hours | L139: 2014-06-20T10:58:18 | M139: 1 | N139: 0
A140: 482916 | B140: Showtimez | C140: t | D140: Bronze | E140: Division Gorn Omega | F140: 138 | G140: 142 | H140: 1092 | I140: 10 | J140: 2014-04-14 | K140: 5 hours | L140: 2014-06-20T10:58:19 | M140: 1 | N140: 0
A141: 514089 | B141: Kevin | C141: t | D141: Bronze | E141: Division Hyperion Lambda | F141: 187 | G141: 216 | H141: 1092 | I141: 10 | J141: 2014-04-15 | K141: 4 hours | L141: 2014-06-20T10:58:19 | M141: 1 | N141: 0
A142: 732241 | B142: GreenDeath | C142: r | D142: Bronze | E142: Division Taarim Upsilon | F142: 66 | G142: 75 | H142: 1092 | I142: 45 | J142: 2014-04-17 | K142: 1 days | L142: 2014-06-20T10:58:20 | M142: 1 | N142: 0
A143: 774621 | B143: FELIPE | C143: t | D143: Bronze | E143: Division Adun Lima | F143: 103 | G143: 98 | H143: 1092 | I143: 1 | J143: 2014-04-14 | K143: 12 hours | L143: 2014-06-20T10:58:20 | M143: 1 | N143: 0
A144: 4033589 | B144: Lushbunny | C144: z | D144: Bronze | E144: Division Halcyon Sigma | F144: 95 | G144: 101 | H144: 1092 | I144: 9 | J144: 2014-04-15 | K144: 3 hours | L144: 2014-06-20T10:58:20 | M144: 1 | N144: 0
A145: 4617786 | B145: LieutenantRo | C145: p | D145: Bronze | E145: Division Dragoon Gravity | F145: 80 | G145: 99 | H145: 1092 | I145: 44 | J145: 2014-04-26 | K145: 2 days | L145: 2014-06-20T10:58:21 | M145: 1 | N145: 0
A146: 5123337 | B146: PufferFish | C146: r | D146: Bronze | E146: Division Medic Pepper | F146: 42 | G146: 57 | H146: 1092 | I146: 1 | J146: 2014-06-13 | K146: 18 hours | L146: 2014-06-20T10:58:21 | M146: 1 | N146: 0
A147: 147199 | B147: CHOFIYEAAAH | C147: p | D147: Bronze | E147: Division Ursa Uncle | F147: 138 | G147: 161 | H147: 1091 | I147: 7 | J147: 2014-04-16 | K147: 29 minutes | L147: 2014-06-20T10:58:21 | M147: 1 | N147: 0
A148: 3874241 | B148: TlonUqbar | C148: p | D148: Bronze | E148: Division Anselm Omicron | F148: 178 | G148: 189 | H148: 1091 | I148: 40 | J148: 2014-04-15 | K148: 1 hours | L148: 2014-06-20T10:58:22 | M148: 1 | N148: 0
A149: 4081299 | B149: StalkVR | C149: p | D149: Bronze | E149: Division Ghost Psi | F149: 39 | G149: 50 | H149: 1091 | I149: 7 | J149: 2014-04-15 | K149: 55 minutes | L149: 2014-06-20T10:58:22 | M149: 1 | N149: 0
A150: 4876032 | B150: Tekla | C150: z | D150: Bronze | E150: Division Ghost Gamma | F150: 55 | G150: 47 | H150: 1091 | I150: 1 | J150: 2014-04-26 | K150: 12 hours | L150: 2014-06-20T10:58:22 | M150: 1 | N150: 0
A151: 5500430 | B151: Munchi | C151: t | D151: Bronze | E151: Division Ladranix Quest | F151: 108 | G151: 110 | H151: 1091 | I151: 0 | J151: 2014-05-25 | K151: 3 hours | L151: 2014-06-20T10:58:23 | M151: 1 | N151: 0
A152: 1173508 | B152: Riffle | C152: t | D152: Bronze | E152: Division Ursa Uncle | F152: 53 | G152: 64 | H152: 1090 | I152: 11 | J152: 2014-04-16 | K152: 6 hours | L152: 2014-06-20T10:58:23 | M152: 1 | N152: 0
A153: 1825583 | B153: Dadio | C153: p | D153: Bronze | E153: Division Gateway Epsilon | F153: 52 | G153: 47 | H153: 1090 | I153: 60 | J153: 2014-04-15 | K153: 22 hours | L153: 2014-06-20T10:58:23 | M153: 1 | N153: 0
A154: 2870032 | B154: Reichsgraf | C154: p | D154: Bronze | E154: Division Reaper Indigo | F154: 78 | G154: 79 | H154: 1089 | I154: 8 | J154: 2014-04-14 | K154: 2 hours | L154: 2014-06-20T10:58:24 | M154: 1 | N154: 0
A155: 3460824 | B155: knocks | C155: t | D155: Bronze | E155: Division Antioch Echo | F155: 46 | G155: 49 | H155: 1089 | I155: 2 | J155: 2014-04-14 | K155: 19 minutes | L155: 2014-06-20T10:58:24 | M155: 1 | N155: 0
A156: 4655017 | B156: ORION | C156: p | D156: Bronze | E156: Division Torus Bravo | F156: 56 | G156: 62 | H156: 1089 | I156: 55 | J156: 2014-04-19 | K156: 3 days | L156: 2014-06-20T10:58:24 | M156: 1 | N156: 0
A157: 4704362 | B157: eclaireur | C157: t | D157: Bronze | E157: Division Viking Theta | F157: 195 | G157: 229 | H157: 1089 | I157: 3 | J157: 2014-04-14 | K157: 17 hours | L157: 2014-06-20T10:58:24 | M157: 1 | N157: 0
A158: 4027452 | B158: Reklawj | C158: r | D158: Bronze | E158: Division Khala Gamma | F158: 40 | G158: 44 | H158: 1088 | I158: 54 | J158: 2014-04-18 | K158: 2 days | L158: 2014-06-20T10:58:25 | M158: 1 | N158: 0
A159: 4027452 | B159: Reklawj | C159: r | D159: Bronze | E159: Division Khala Gamma | F159: 40 | G159: 44 | H159: 1088 | I159: 54 | J159: 2014-04-18 | K159: 2 days | L159: 2014-06-20T10:58:25 | M159: 1 | N159: 0
A160: 4434327 | B160: chounne | C160: p | D160: Bronze | E160: Division Augustgrad Sigma | F160: 90 | G160: 103 | H160: 1088 | I160: 1 | J160: 2014-04-14 | K160: 14 hours | L160: 2014-06-20T10:58:25 | M160: 1 | N160: 0
A161: 2465108 | B161: Ike | C161: z | D161: Bronze | E161: Division Overseer Juliet | F161: 41 | G161: 42 | H161: 1087 | I161: 73 | J161: 2014-04-18 | K161: 8 hours | L161: 2014-06-20T10:58:26 | M161: 1 | N161: 0
A162: 5601301 | B162: Shapeshifter | C162: t | D162: Bronze | E162: Division Templar Lima | F162: 71 | G162: 88 | H162: 1087 | I162: 21 | J162: 2014-04-27 | K162: 22 hours | L162: 2014-06-20T10:58:26 | M162: 1 | N162: 0
A163: 2981260 | B163: KJStokeman | C163: z | D163: Bronze | E163: Division Horner Alamo | F163: 111 | G163: 130 | H163: 1086 | I163: 15 | J163: 2014-04-16 | K163: 12 hours | L163: 2014-06-20T10:58:26 | M163: 1 | N163: 0
A164: 445926 | B164: Battousalem | C164: t | D164: Bronze | E164: Division Bucephalus Bravo | F164: 87 | G164: 92 | H164: 1085 | I164: 26 | J164: 2014-04-26 | K164: 1 days | L164: 2014-06-20T10:58:27 | M164: 1 | N164: 0
A165: 1014012 | B165: Hieronymus | C165: t | D165: Bronze | E165: Division Nagglfar Uncle | F165: 74 | G165: 72 | H165: 1085 | I165: 63 | J165: 2014-04-14 | K165: 3 days | L165: 2014-06-20T10:58:27 | M165: 1 | N165: 0
A166: 4421459 | B166: FoxBodyCoupe | C166: t | D166: Bronze | E166: Division Adun Lima | F166: 210 | G166: 230 | H166: 1085 | I166: 4 | J166: 2014-04-14 | K166: 2 hours | L166: 2014-06-20T10:58:27 | M166: 1 | N166: 0
A167: 4836382 | B167: Hoth | C167: t | D167: Bronze | E167: Division Bucephalus Bravo | F167: 282 | G167: 290 | H167: 1085 | I167: 8 | J167: 2014-04-26 | K167: 1 hours | L167: 2014-06-20T10:58:28 | M167: 1 | N167: 0
A168: 5745617 | B168: DrDinosaur | C168: z | D168: Bronze | E168: Division Medic Pepper | F168: 53 | G168: 62 | H168: 1084 | I168: 70 | J168: 2014-05-31 | K168: 6 hours | L168: 2014-06-20T10:58:28 | M168: 1 | N168: 0
A169: 3207081 | B169: QcLaVieille | C169: r | D169: Bronze | E169: Division Valerian Sierra | F169: 39 | G169: 46 | H169: 1083 | I169: 8 | J169: 2014-04-15 | K169: 1 hours | L169: 2014-06-20T10:58:28 | M169: 1 | N169: 0
A170: 3259398 | B170: Venjik | C170: p | D170: Bronze | E170: Division Queen November | F170: 51 | G170: 50 | H170: 1083 | I170: 56 | J170: 2014-04-14 | K170: 2 days | L170: 2014-06-20T10:58:28 | M170: 1 | N170: 0
A171: 4117758 | B171: Tyline | C171: z | D171: Bronze | E171: Division Sentry Whiskey | F171: 48 | G171: 56 | H171: 1083 | I171: 34 | J171: 2014-05-04 | K171: 1 days | L171: 2014-06-20T10:58:29 | M171: 1 | N171: 0
A172: 3732293 | B172: BangleBros | C172: p | D172: Bronze | E172: Division Hyperion Lambda | F172: 69 | G172: 67 | H172: 1082 | I172: 149 | J172: 2014-05-15 | K172: 9 days | L172: 2014-06-20T10:58:29 | M172: 2 | N172: 0
A173: 301426 | B173: Rabugento | C173: r | D173: Bronze | E173: Division Broodling Echo | F173: 96 | G173: 104 | H173: 1081 | I173: 54 | J173: 2014-04-16 | K173: 6 hours | L173: 2014-06-20T10:58:30 | M173: 1 | N173: 0
A174: 3186019 | B174: Keltar | C174: t | D174: Bronze | E174: Division Void Ray Rho | F174: 102 | G174: 118 | H174: 1081 | I174: 14 | J174: 2014-04-14 | K174: 12 hours | L174: 2014-06-20T10:58:30 | M174: 1 | N174: 0
A175: 4261463 | B175: TrailRAdiO | C175: t | D175: Bronze | E175: Division Overseer Juliet | F175: 48 | G175: 80 | H175: 1081 | I175: 8 | J175: 2014-04-18 | K175: 22 hours | L175: 2014-06-20T10:58:30 | M175: 1 | N175: 0
A176: 4674602 | B176: IMKING | C176: t | D176: Bronze | E176: Division Spectre Mu | F176: 333 | G176: 358 | H176: 1081 | I176: 55 | J176: 2014-04-15 | K176: 1 days | L176: 2014-06-20T10:58:31 | M176: 1 | N176: 0
A177: 2292753 | B177: kip | C177: t | D177: Bronze | E177: Division Aiur Kappa | F177: 147 | G177: 152 | H177: 1080 | I177: 1 | J177: 2014-04-14 | K177: 11 hours | L177: 2014-06-20T10:58:31 | M177: 1 | N177: 0
A178: 710911 | B178: Chacal | C178: t | D178: Bronze | E178: Division Templar Nu | F178: 57 | G178: 75 | H178: 1079 | I178: 0 | J178: 2014-06-07 | K178: 8 hours | L178: 2014-06-20T10:58:31 | M178: 1 | N178: 0
A179: 5018971 | B179: Clawglip | C179: t | D179: Bronze | E179: Division Urun November | F179: 41 | G179: 39 | H179: 1079 | I179: 67 | J179: 2014-04-18 | K179: 22 hours | L179: 2014-06-20T10:58:31 | M179: 1 | N179: 0
A180: 294593 | B180: THORatemyHW | C180: z | D180: Bronze | E180: Division Baneling Zed | F180: 47 | G180: 53 | H180: 1078 | I180: 30 | J180: 2014-04-14 | K180: 8 hours | L180: 2014-06-20T10:58:32 | M180: 1 | N180: 0
A181: 1107160 | B181: ArmenRoi | C181: p | D181: Bronze | E181: Division Azimar Sierra | F181: 41 | G181: 49 | H181: 1078 | I181: 7 | J181: 2014-05-01 | K181: 26 minutes | L181: 2014-06-20T10:58:32 | M181: 1 | N181: 0
A182: 2515791 | B182: Gorgonoth | C182: p | D182: Bronze | E182: Division Typhon Foxtrot | F182: 37 | G182: 49 | H182: 1078 | I182: 9 | J182: 2014-04-22 | K182: 4 hours | L182: 2014-06-20T10:58:32 | M182: 1 | N182: 0
A183: 4059628 | B183: runningnaked | C183: t | D183: Bronze | E183: Division Scout Phi | F183: 343 | G183: 398 | H183: 1078 | I183: 7 | J183: 2014-04-14 | K183: 38 minutes | L183: 2014-06-20T10:58:32 | M183: 1 | N183: 0
A184: 4300795 | B184: freematrix | C184: r | D184: Bronze | E184: Division Scarab Victor | F184: 147 | G184: 177 | H184: 1078 | I184: 42 | J184: 2014-04-21 | K184: 2 days | L184: 2014-06-20T10:58:33 | M184: 1 | N184: 0
A185: 2401535 | B185: TossnYoSalad | C185: p | D185: Bronze | E185: Division Hellion Romeo | F185: 81 | G185: 84 | H185: 1077 | I185: 61 | J185: 2014-04-17 | K185: 1 days | L185: 2014-06-20T10:58:33 | M185: 1 | N185: 0
A186: 4653465 | B186: stryder | C186: t | D186: Bronze | E186: Division Hydralisk Victor | F186: 191 | G186: 227 | H186: 1077 | I186: 7 | J186: 2014-04-18 | K186: 4 minutes | L186: 2014-06-20T10:58:33 | M186: 1 | N186: 0
A187: 4901783 | B187: MrDonkey | C187: t | D187: Bronze | E187: Division Valerian Sierra | F187: 47 | G187: 63 | H187: 1077 | I187: 13 | J187: 2014-04-15 | K187: 10 hours | L187: 2014-06-20T10:58:34 | M187: 1 | N187: 0
A188: 5284167 | B188: Balon | C188: p | D188: Bronze | E188: Division Turaxis Iota | F188: 45 | G188: 52 | H188: 1077 | I188: 11 | J188: 2014-04-17 | K188: 7 hours | L188: 2014-06-20T10:58:34 | M188: 1 | N188: 0
A189: 2013390 | B189: parascope | C189: p | D189: Bronze | E189: Division Baneling Zed | F189: 49 | G189: 52 | H189: 1076 | I189: 26 | J189: 2014-04-14 | K189: 1 days | L189: 2014-06-20T10:58:34 | M189: 1 | N189: 0
A190: 2409333 | B190: nizel | C190: t | D190: Bronze | E190: Division Queen November | F190: 95 | G190: 99 | H190: 1076 | I190: 0 | J190: 2014-04-14 | K190: 9 minutes | L190: 2014-06-20T10:58:34 | M190: 1 | N190: 0
A191: 4315763 | B191: HumanAnD | C191: r | D191: Bronze | E191: Division Baneling Zed | F191: 210 | G191: 262 | H191: 1076 | I191: 37 | J191: 2014-04-17 | K191: 2 days | L191: 2014-06-20T10:58:35 | M191: 1 | N191: 0
A192: 4432570 | B192: Markymark | C192: t | D192: Bronze | E192: Division Void Ray Rho | F192: 105 | G192: 114 | H192: 1076 | I192: 7 | J192: 2014-04-14 | K192: 14 minutes | L192: 2014-06-20T10:58:35 | M192: 1 | N192: 0
A193: 1848032 | B193: Quarkdog | C193: t | D193: Bronze | E193: Division Chau Sara Lima | F193: 52 | G193: 63 | H193: 1075 | I193: 73 | J193: 2014-05-06 | K193: 4 days | L193: 2014-06-20T10:58:35 | M193: 1 | N193: 0
A194: 5341885 | B194: Bozer | C194: z | D194: Bronze | E194: Division Praetor Upsilon | F194: 91 | G194: 75 | H194: 1075 | I194: 58 | J194: 2014-04-16 | K194: 1 days | L194: 2014-06-20T10:58:36 | M194: 1 | N194: 0
A195: 1835233 | B195: IncanDeath | C195: t | D195: Bronze | E195: Division Boros Mars | F195: 65 | G195: 73 | H195: 1074 | I195: 67 | J195: 2014-04-20 | K195: 4 days | L195: 2014-06-20T10:58:36 | M195: 1 | N195: =IF(M195=10,SUM(F195:G195),0) -> 0
A196: 3373056 | B196: theeddykicks | C196: p | D196: Bronze | E196: Division Braken Bravo | F196: 192 | G196: 211 | H196: 1074 | I196: 11 | J196: 2014-05-07 | K196: 7 hours | L196: 2014-06-20T10:58:36 | M196: 1 | N196: 0
A197: 4202565 | B197: Bond | C197: p | D197: Bronze | E197: Division Valerian Sierra | F197: 38 | G197: 47 | H197: 1074 | I197: 55 | J197: 2014-04-15 | K197: 1 days | L197: 2014-06-20T10:58:36 | M197: 1 | N197: 0
A198: 5645134 | B198: Travster | C198: p | D198: Bronze | E198: Division Dylar Chi | F198: 64 | G198: 69 | H198: 1074 | I198: 46 | J198: 2014-05-02 | K198: 7 hours | L198: 2014-06-20T10:58:37 | M198: 1 | N198: 0
A199: 221217 | B199: JEDI | C199: t | D199: Bronze | E199: Division Baneling Zed | F199: 38 | G199: 48 | H199: 1073 | I199: 49 | J199: 2014-04-14 | K199: 3 hours | L199: 2014-06-20T10:58:37 | M199: 1 | N199: 0
A200: 774493 | B200: ToMServo | C200: p | D200: Bronze | E200: Division Gateway Epsilon | F200: 74 | G200: 81 | H200: 1073 | I200: 5 | J200: 2014-06-08 | K200: 20 minutes | L200: 2014-06-20T10:58:38 | M200: 1 | N200: 0
... 4300 more rows

Sheet 1v1 Silver
A1: ID | B1: Name | C1: Race | D1: League | E1: Division Name | F1: Wins | G1: Losses | H1: Score | I1: Bonus Pool | J1: Join Date | K1: Last Game | L1: Timestamp | M1: Bonus Pool Weeks Remaining | N1: Inactive Player Games Played
A2: 3797113 | B2: Mjolnir | C2: t | D2: Silver | E2: Division Defiler Kappa | F2: 3 | G2: 7 | H2: 94 | I2: 675 | J2: 2014-06-19 | K2: 1 hours | L2: 2014-06-20T01:38:40 | M2: 7 | N2: =IF(M2=10,SUM(F2:G2),0) -> 0
A3: 5358019 | B3: blingbling | C3: p | D3: Silver | E3: Division Arbiter Phi | F3: 17 | G3: 13 | H3: 463 | I3: 965 | J3: 2014-06-14 | K3: 23 hours | L3: 2014-06-20T05:03:00 | M3: 10 | N3: =IF(M3=10,SUM(F3:G3),0) -> 30
A4: 335119 | B4: Jetjames | C4: z | D4: Silver | E4: Division Arbiter Phi | F4: 15 | G4: 10 | H4: 422 | I4: 1016 | J4: 2014-05-03 | K4: 28 days | L4: 2014-06-20T05:10:56 | M4: 10 | N4: 25
A5: 3182815 | B5: TIGER | C5: t | D5: Silver | E5: Division Fole Juliet | F5: 0 | G5: 3 | H5: 0 | I5: 1017 | J5: 2014-06-19 | K5: 1 days | L5: 2014-06-20T07:45:45 | M5: 10 | N5: 3
A6: 4610089 | B6: GoodBye | C6: r | D6: Silver | E6: Division Arbiter Phi | F6: 0 | G6: 1 | H6: 0 | I6: 1002 | J6: 2014-05-02 | K6: 48 days | L6: 2014-06-20T07:51:48 | M6: 10 | N6: 1
A7: 4704922 | B7: Catbug | C7: z | D7: Silver | E7: Division Aiur Xi | F7: 98 | G7: 126 | H7: 1178 | I7: 23 | J7: 2014-04-14 | K7: 1 days | L7: 2014-06-20T07:57:58 | M7: 1 | N7: 0
A8: 4654289 | B8: HumveeRuin | C8: t | D8: Silver | E8: Division Reaper Charlie | F8: 46 | G8: 43 | H8: 1176 | I8: 10 | J8: 2014-05-06 | K8: 2 hours | L8: 2014-06-20T07:57:58 | M8: 1 | N8: 0
A9: 1790240 | B9: Tim | C9: z | D9: Silver | E9: Division Kaloth Victor | F9: 70 | G9: 68 | H9: 1170 | I9: 7 | J9: 2014-05-02 | K9: 2 hours | L9: 2014-06-20T07:57:59 | M9: 1 | N9: 0
A10: 5754231 | B10: Sauceny | C10: p | D10: Silver | E10: Division Scourge Bravo | F10: 48 | G10: 49 | H10: 1168 | I10: 8 | J10: 2014-05-31 | K10: 4 hours | L10: 2014-06-20T07:57:59 | M10: 1 | N10: 0
A11: 5593810 | B11: Jarhead | C11: t | D11: Silver | E11: Division Aiur Lambda | F11: 68 | G11: 64 | H11: 1165 | I11: 10 | J11: 2014-06-16 | K11: 2 hours | L11: 2014-06-20T07:57:59 | M11: 1 | N11: 0
A12: 524756 | B12: SIONIS | C12: t | D12: Silver | E12: Division Archon Phi | F12: 63 | G12: 68 | H12: 1164 | I12: 0 | J12: 2014-05-01 | K12: 36 minutes | L12: 2014-06-20T07:58:00 | M12: 1 | N12: 0
A13: 3691385 | B13: swindle | C13: p | D13: Silver | E13: Division Observer Omicron | F13: 156 | G13: 165 | H13: 1164 | I13: 9 | J13: 2014-04-18 | K13: 6 hours | L13: 2014-06-20T07:58:00 | M13: 1 | N13: 0
A14: 4009096 | B14: HeHateMe | C14: p | D14: Silver | E14: Division Lurker Gravity | F14: 100 | G14: 96 | H14: 1162 | I14: 5 | J14: 2014-04-30 | K14: 1 minutes | L14: 2014-06-20T07:58:01 | M14: 1 | N14: 0
A15: 574749 | B15: Xaqar | C15: t | D15: Silver | E15: Division Moria Pepper | F15: 475 | G15: 509 | H15: 1159 | I15: 3 | J15: 2014-05-02 | K15: 6 hours | L15: 2014-06-20T07:58:01 | M15: 1 | N15: 0
A16: 5089858 | B16: MajorAhzi | C16: p | D16: Silver | E16: Division Arbiter Quest | F16: 116 | G16: 119 | H16: 1155 | I16: 14 | J16: 2014-05-27 | K16: 13 hours | L16: 2014-06-20T07:58:01 | M16: 1 | N16: 0
A17: 5403360 | B17: realmmaster | C17: z | D17: Silver | E17: Division Brontes Pepper | F17: 69 | G17: 46 | H17: 1154 | I17: 7 | J17: 2014-06-06 | K17: 29 minutes | L17: 2014-06-20T07:58:02 | M17: 1 | N17: 0
A18: 611667 | B18: PandaPrime | C18: t | D18: Silver | E18: Division Arbiter Xi | F18: 65 | G18: 66 | H18: 1153 | I18: 6 | J18: 2014-05-22 | K18: 40 minutes | L18: 2014-06-20T07:58:02 | M18: 1 | N18: 0
A19: 5488350 | B19: StaticX | C19: z | D19: Silver | E19: Division Akilae Pi | F19: 174 | G19: 154 | H19: 1152 | I19: 4 | J19: 2014-06-03 | K19: 11 hours | L19: 2014-06-20T07:58:02 | M19: 1 | N19: 0
A20: 3359246 | B20: TheSleepyCat | C20: z | D20: Silver | E20: Division Brontes Pepper | F20: 50 | G20: 65 | H20: 1151 | I20: 8 | J20: 2014-05-03 | K20: 3 hours | L20: 2014-06-20T07:58:02 | M20: 1 | N20: 0
A21: 5704019 | B21: Devious | C21: t | D21: Silver | E21: Division Stukov Juliet | F21: 73 | G21: 84 | H21: 1151 | I21: 6 | J21: 2014-06-08 | K21: 37 minutes | L21: 2014-06-20T07:58:03 | M21: 1 | N21: 0
A22: 97313 | B22: HAUNTEDAF | C22: p | D22: Silver | E22: Division Archon Charlie | F22: 58 | G22: 56 | H22: 1150 | I22: 8 | J22: 2014-05-02 | K22: 3 hours | L22: 2014-06-20T07:58:03 | M22: 1 | N22: 0
A23: 282948 | B23: HighArchon | C23: p | D23: Silver | E23: Division Stukov Pi | F23: 96 | G23: 95 | H23: 1150 | I23: 29 | J23: 2014-05-04 | K23: 1 days | L23: 2014-06-20T07:58:03 | M23: 1 | N23: 0
A24: 1717405 | B24: PatoDriver | C24: p | D24: Silver | E24: Division Typhon November | F24: 69 | G24: 68 | H24: 1145 | I24: 7 | J24: 2014-04-28 | K24: 2 hours | L24: 2014-06-20T07:58:04 | M24: 1 | N24: 0
A25: 4218927 | B25: Jess | C25: t | D25: Silver | E25: Division Sargas Alpha | F25: 114 | G25: 116 | H25: 1145 | I25: 7 | J25: 2014-05-03 | K25: 2 hours | L25: 2014-06-20T07:58:04 | M25: 1 | N25: 0
A26: 564010 | B26: KAIJUperfect | C26: t | D26: Silver | E26: Division Aiur Charlie | F26: 59 | G26: 52 | H26: 1144 | I26: 19 | J26: 2014-05-29 | K26: 22 hours | L26: 2014-06-20T07:58:04 | M26: 1 | N26: 0
A27: 4872252 | B27: bani | C27: t | D27: Silver | E27: Division Typhon Rho | F27: 50 | G27: 41 | H27: 1144 | I27: 5 | J27: 2014-05-04 | K27: 3 hours | L27: 2014-06-20T07:58:05 | M27: 1 | N27: 0
A28: 5473555 | B28: JasonBuorne | C28: p | D28: Silver | E28: Division Moria Indigo | F28: 78 | G28: 60 | H28: 1144 | I28: 5 | J28: 2014-05-29 | K28: 6 hours | L28: 2014-06-20T07:58:05 | M28: 1 | N28: 0
A29: 3541495 | B29: Hieroglyphic | C29: z | D29: Silver | E29: Division Amerigo Romeo | F29: 93 | G29: 151 | H29: 1142 | I29: 5 | J29: 2014-06-03 | K29: 15 minutes | L29: 2014-06-20T07:58:05 | M29: 1 | N29: 0
A30: 2246374 | B30: Blackroot | C30: z | D30: Silver | E30: Division Augustgrad Omega | F30: 42 | G30: 43 | H30: 1140 | I30: 13 | J30: 2014-05-02 | K30: 8 hours | L30: 2014-06-20T07:58:06 | M30: 1 | N30: 0
A31: 3574797 | B31: BobbyDigital | C31: p | D31: Silver | E31: Division Brood Lord Zed | F31: 95 | G31: 110 | H31: 1140 | I31: 8 | J31: 2014-04-19 | K31: 4 hours | L31: 2014-06-20T07:58:06 | M31: 1 | N31: 0
A32: 5663696 | B32: TheAssHat | C32: t | D32: Silver | E32: Division Overlord Nu | F32: 52 | G32: 54 | H32: 1140 | I32: 22 | J32: 2014-05-24 | K32: 1 days | L32: 2014-06-20T07:58:07 | M32: 1 | N32: 0
A33: 1380738 | B33: DatWatSheSed | C33: z | D33: Silver | E33: Division Archon Omega | F33: 48 | G33: 49 | H33: 1139 | I33: 10 | J33: 2014-06-04 | K33: 7 hours | L33: 2014-06-20T07:58:07 | M33: 1 | N33: 0
A34: 3258808 | B34: kzierath | C34: p | D34: Silver | E34: Division Kaloth Alamo | F34: 65 | G34: 56 | H34: 1138 | I34: 9 | J34: 2014-05-01 | K34: 6 hours | L34: 2014-06-20T07:58:08 | M34: 1 | N34: 0
A35: 5634062 | B35: NewOneMSeven | C35: p | D35: Silver | E35: Division Arbiter Echo | F35: 114 | G35: 104 | H35: 1137 | I35: 5 | J35: 2014-06-08 | K35: 16 minutes | L35: 2014-06-20T07:58:08 | M35: 1 | N35: 0
A36: 508862 | B36: Woerschling | C36: p | D36: Silver | E36: Division Fole Hawk | F36: 96 | G36: 95 | H36: 1136 | I36: 28 | J36: 2014-05-17 | K36: 1 hours | L36: 2014-06-20T07:58:08 | M36: 1 | N36: 0
A37: 4786264 | B37: LAKO | C37: t | D37: Silver | E37: Division Grizzly Theta | F37: 51 | G37: 52 | H37: 1136 | I37: 9 | J37: 2014-05-03 | K37: 5 hours | L37: 2014-06-20T07:58:09 | M37: 1 | N37: 0
A38: 5072974 | B38: ThadHoush | C38: t | D38: Silver | E38: Division Overseer Bravo | F38: 123 | G38: 123 | H38: 1136 | I38: 31 | J38: 2014-05-03 | K38: 1 hours | L38: 2014-06-20T07:58:09 | M38: 1 | N38: 0
A39: 13529 | B39: DarkFourFire | C39: t | D39: Silver | E39: Division Dragoon Foxtrot | F39: 123 | G39: 124 | H39: 1135 | I39: 0 | J39: 2014-05-08 | K39: 10 minutes | L39: 2014-06-20T07:58:09 | M39: 1 | N39: 0
A40: 175070 | B40: whitescene | C40: t | D40: Silver | E40: Division Scourge Romeo | F40: 60 | G40: 62 | H40: 1135 | I40: 12 | J40: 2014-05-03 | K40: 16 minutes | L40: 2014-06-20T07:58:09 | M40: 1 | N40: 0
A41: 2397868 | B41: zekeman | C41: p | D41: Silver | E41: Division Fole Yankee | F41: 127 | G41: 129 | H41: 1135 | I41: 8 | J41: 2014-05-10 | K41: 4 hours | L41: 2014-06-20T07:58:10 | M41: 1 | N41: 0
A42: 771452 | B42: Leitmotif | C42: p | D42: Silver | E42: Division Aiur Charlie | F42: 104 | G42: 105 | H42: 1134 | I42: 3 | J42: 2014-05-29 | K42: 11 hours | L42: 2014-06-20T07:58:10 | M42: 1 | N42: 0
A43: 4134218 | B43: Starzergian | C43: r | D43: Silver | E43: Division Sargas Tau | F43: 192 | G43: 192 | H43: 1133 | I43: 6 | J43: 2014-05-04 | K43: 20 minutes | L43: 2014-06-20T07:58:10 | M43: 1 | N43: 0
A44: 4323535 | B44: Jonny | C44: z | D44: Silver | E44: Division Typhon Rho | F44: 68 | G44: 64 | H44: 1133 | I44: 11 | J44: 2014-05-05 | K44: 9 hours | L44: 2014-06-20T07:58:11 | M44: 1 | N44: 0
A45: 2531523 | B45: Jubjub | C45: z | D45: Silver | E45: Division New Folsom Gamma | F45: 41 | G45: 44 | H45: 1132 | I45: 28 | J45: 2014-05-06 | K45: 17 minutes | L45: 2014-06-20T07:58:11 | M45: 1 | N45: 0
A46: 2633108 | B46: CHRIS | C46: r | D46: Silver | E46: Division Typhon Juliet | F46: 52 | G46: 51 | H46: 1130 | I46: 6 | J46: 2014-05-02 | K46: 1 hours | L46: 2014-06-20T07:58:11 | M46: 1 | N46: 0
A47: 4046885 | B47: keySTART | C47: z | D47: Silver | E47: Division Hyperion Mars | F47: 99 | G47: 96 | H47: 1130 | I47: 3 | J47: 2014-05-01 | K47: 1 hours | L47: 2014-06-20T07:58:12 | M47: 1 | N47: 0
A48: 5622707 | B48: Aceofacez | C48: z | D48: Silver | E48: Division Defiler Romeo | F48: 46 | G48: 46 | H48: 1129 | I48: 28 | J48: 2014-06-17 | K48: 12 minutes | L48: 2014-06-20T07:58:12 | M48: 1 | N48: 0
A49: 319664 | B49: Toawa | C49: t | D49: Silver | E49: Division Kaloth Iota | F49: 42 | G49: 54 | H49: 1128 | I49: 31 | J49: 2014-05-04 | K49: 8 hours | L49: 2014-06-20T07:58:13 | M49: 1 | N49: 0
A50: 543487 | B50: SkyLine | C50: z | D50: Silver | E50: Division Aiur Echo | F50: 115 | G50: 121 | H50: 1128 | I50: 19 | J50: 2014-05-02 | K50: 22 hours | L50: 2014-06-20T07:58:13 | M50: 1 | N50: 0
A51: 3544186 | B51: EvilSteel | C51: z | D51: Silver | E51: Division Brontes Pepper | F51: 45 | G51: 46 | H51: 1128 | I51: 49 | J51: 2014-04-20 | K51: 49 minutes | L51: 2014-06-20T07:58:13 | M51: 1 | N51: 0
A52: 618217 | B52: Adama | C52: r | D52: Silver | E52: Division Aiur Nu | F52: 54 | G52: 54 | H52: 1127 | I52: 29 | J52: 2014-05-20 | K52: 1 days | L52: 2014-06-20T07:58:14 | M52: 1 | N52: 0
A53: 5269232 | B53: Karim | C53: t | D53: Silver | E53: Division Augustgrad Delta | F53: 54 | G53: 68 | H53: 1127 | I53: 9 | J53: 2014-05-02 | K53: 5 hours | L53: 2014-06-20T07:58:14 | M53: 1 | N53: 0
A54: 2181155 | B54: Gordan | C54: p | D54: Silver | E54: Division Overseer Epsilon | F54: 89 | G54: 92 | H54: 1126 | I54: 24 | J54: 2014-05-09 | K54: 1 days | L54: 2014-06-20T07:58:14 | M54: 1 | N54: 0
A55: 3395803 | B55: CerealKILLA | C55: t | D55: Silver | E55: Division Artanis Quest | F55: 60 | G55: 69 | H55: 1126 | I55: 8 | J55: 2014-06-08 | K55: 5 hours | L55: 2014-06-20T07:58:15 | M55: 1 | N55: 0
A56: 5257625 | B56: Ferc | C56: t | D56: Silver | E56: Division Typhon Hawk | F56: 84 | G56: 91 | H56: 1126 | I56: 3 | J56: 2014-05-29 | K56: 3 hours | L56: 2014-06-20T07:58:15 | M56: 1 | N56: 0
A57: 66884 | B57: throatcutter | C57: t | D57: Silver | E57: Division Stukov Juliet | F57: 53 | G57: 41 | H57: 1125 | I57: 7 | J57: 2014-06-08 | K57: 2 hours | L57: 2014-06-20T07:58:15 | M57: 1 | N57: 0
A58: 5630112 | B58: HoeFoeShow | C58: t | D58: Silver | E58: Division Defiler Dixie | F58: 66 | G58: 68 | H58: 1124 | I58: 5 | J58: 2014-05-13 | K58: 2 minutes | L58: 2014-06-20T07:58:16 | M58: 1 | N58: 0
A59: 2779839 | B59: Zenith | C59: t | D59: Silver | E59: Division Lurker Delta | F59: 59 | G59: 67 | H59: 1123 | I59: 4 | J59: 2014-06-10 | K59: 1 hours | L59: 2014-06-20T07:58:16 | M59: 1 | N59: 0
A60: 4811107 | B60: MrWizdum | C60: p | D60: Silver | E60: Division Moria Pepper | F60: 81 | G60: 84 | H60: 1123 | I60: 21 | J60: 2014-05-02 | K60: 1 days | L60: 2014-06-20T07:58:16 | M60: 1 | N60: 0
A61: 1753237 | B61: THROOPER | C61: t | D61: Silver | E61: Division Warp Prism Lima | F61: 127 | G61: 129 | H61: 1122 | I61: 0 | J61: 2014-05-22 | K61: 4 hours | L61: 2014-06-20T07:58:16 | M61: 1 | N61: 0
A62: 2326774 | B62: SoulReaper | C62: p | D62: Silver | E62: Division Archon Nu | F62: 73 | G62: 68 | H62: 1122 | I62: 9 | J62: 2014-05-10 | K62: 6 hours | L62: 2014-06-20T07:58:17 | M62: 1 | N62: 0
A63: 4167907 | B63: node | C63: t | D63: Silver | E63: Division Fole Whiskey | F63: 52 | G63: 48 | H63: 1122 | I63: 49 | J63: 2014-05-03 | K63: 2 days | L63: 2014-06-20T07:58:17 | M63: 1 | N63: 0
A64: 5134390 | B64: Kazi | C64: z | D64: Silver | E64: Division Nova X-Ray | F64: 58 | G64: 59 | H64: 1122 | I64: 18 | J64: 2014-05-16 | K64: 20 hours | L64: 2014-06-20T07:58:17 | M64: 1 | N64: 0
A65: 961011 | B65: diasleo | C65: t | D65: Silver | E65: Division Archon Sigma | F65: 91 | G65: 90 | H65: 1121 | I65: 6 | J65: 2014-04-21 | K65: 24 minutes | L65: 2014-06-20T07:58:18 | M65: 1 | N65: 0
A66: 1184620 | B66: Larkin | C66: t | D66: Silver | E66: Division Reaper Lambda | F66: 154 | G66: 152 | H66: 1121 | I66: 0 | J66: 2014-05-10 | K66: 5 hours | L66: 2014-06-20T07:58:18 | M66: 1 | N66: 0
A67: 3391423 | B67: FaBiYoYo | C67: t | D67: Silver | E67: Division Warp Prism Romeo | F67: 94 | G67: 100 | H67: 1121 | I67: 36 | J67: 2014-05-10 | K67: 23 hours | L67: 2014-06-20T07:58:19 | M67: 1 | N67: =IF(M67=10,SUM(F67:G67),0) -> 0
A68: 4485661 | B68: JTRaven | C68: p | D68: Silver | E68: Division Brood Lord Yankee | F68: 46 | G68: 53 | H68: 1121 | I68: 5 | J68: 2014-05-22 | K68: 3 hours | L68: 2014-06-20T07:58:19 | M68: 1 | N68: 0
A69: 2672423 | B69: Disease | C69: z | D69: Silver | E69: Division Overlord Xi | F69: 48 | G69: 52 | H69: 1120 | I69: 4 | J69: 2014-05-20 | K69: 29 minutes | L69: 2014-06-20T07:58:19 | M69: 1 | N69: 0
A70: 5504039 | B70: Omega | C70: z | D70: Silver | E70: Division Adun Theta | F70: 51 | G70: 49 | H70: 1120 | I70: 9 | J70: 2014-06-17 | K70: 5 hours | L70: 2014-06-20T07:58:20 | M70: 1 | N70: 0
A71: 534332 | B71: Black | C71: t | D71: Silver | E71: Division Medivac Upsilon | F71: 79 | G71: 77 | H71: 1119 | I71: 7 | J71: 2014-05-02 | K71: 2 hours | L71: 2014-06-20T07:58:20 | M71: 1 | N71: 0
A72: 873057 | B72: KINGS | C72: p | D72: Silver | E72: Division Reaper Alamo | F72: 75 | G72: 62 | H72: 1119 | I72: 4 | J72: 2014-06-15 | K72: 1 days | L72: 2014-06-20T07:58:20 | M72: 1 | N72: 0
A73: 1078660 | B73: mide | C73: p | D73: Silver | E73: Division Adun Nu | F73: 62 | G73: 68 | H73: 1119 | I73: 3 | J73: 2014-05-02 | K73: 1 hours | L73: 2014-06-20T07:58:21 | M73: 1 | N73: 0
A74: 4199204 | B74: Arvizo | C74: t | D74: Silver | E74: Division Overseer Sierra | F74: 109 | G74: 131 | H74: 1119 | I74: 8 | J74: 2014-04-14 | K74: 4 hours | L74: 2014-06-20T07:58:21 | M74: 1 | N74: 0
A75: 3716280 | B75: MoltenGold | C75: t | D75: Silver | E75: Division Xerana Foxtrot | F75: 55 | G75: 59 | H75: 1118 | I75: 4 | J75: 2014-05-02 | K75: 4 hours | L75: 2014-06-20T07:58:21 | M75: 1 | N75: 0
A76: 130527 | B76: XenoDinny | C76: z | D76: Silver | E76: Division Moria Uncle | F76: 68 | G76: 62 | H76: 1117 | I76: 26 | J76: 2014-06-13 | K76: 1 days | L76: 2014-06-20T07:58:21 | M76: 1 | N76: 0
A77: 187610 | B77: Rafassauro | C77: t | D77: Silver | E77: Division Aiur Delta | F77: 117 | G77: 117 | H77: 1117 | I77: 36 | J77: 2014-04-20 | K77: 2 days | L77: 2014-06-20T07:58:22 | M77: 1 | N77: 0
A78: 129237 | B78: FelinoBlues | C78: z | D78: Silver | E78: Division Brontes Foxtrot | F78: 50 | G78: 47 | H78: 1116 | I78: 52 | J78: 2014-05-26 | K78: 1 days | L78: 2014-06-20T07:58:22 | M78: 1 | N78: 0
A79: 625173 | B79: NoobSaibot | C79: z | D79: Silver | E79: Division Overseer Bravo | F79: 80 | G79: 85 | H79: 1116 | I79: 6 | J79: 2014-05-10 | K79: 1 hours | L79: 2014-06-20T07:58:22 | M79: 1 | N79: 0
A80: 713172 | B80: chemical | C80: p | D80: Silver | E80: Division Fole Psi | F80: 71 | G80: 54 | H80: 1116 | I80: 7 | J80: 2014-06-02 | K80: 1 hours | L80: 2014-06-20T07:58:23 | M80: 1 | N80: 0
A81: 1974369 | B81: Spartacus | C81: p | D81: Silver | E81: Division Kaloth Victor | F81: 109 | G81: 106 | H81: 1116 | I81: 19 | J81: 2014-05-22 | K81: 22 hours | L81: 2014-06-20T07:58:23 | M81: 1 | N81: 0
A82: 746677 | B82: Gokan | C82: t | D82: Silver | E82: Division Sargas Epsilon | F82: 48 | G82: 55 | H82: 1115 | I82: 36 | J82: 2014-05-20 | K82: 2 hours | L82: 2014-06-20T07:58:23 | M82: 1 | N82: 0
A83: 914014 | B83: redvision | C83: r | D83: Silver | E83: Division Goliath Gamma | F83: 57 | G83: 58 | H83: 1115 | I83: 0 | J83: 2014-05-02 | K83: 47 minutes | L83: 2014-06-20T07:58:24 | M83: 1 | N83: 0
A84: 2673683 | B84: MrBungle | C84: t | D84: Silver | E84: Division Brood Lord Whiskey | F84: 102 | G84: 114 | H84: 1115 | I84: 9 | J84: 2014-04-17 | K84: 1 hours | L84: 2014-06-20T07:58:24 | M84: 1 | N84: 0
A85: 3824010 | B85: kiwidamien | C85: p | D85: Silver | E85: Division Spectre Kilo | F85: 96 | G85: 91 | H85: 1115 | I85: 8 | J85: 2014-06-07 | K85: 4 hours | L85: 2014-06-20T07:58:24 | M85: 1 | N85: 0
A86: 4374569 | B86: Clobberfist | C86: t | D86: Silver | E86: Division Arbiter Quest | F86: 61 | G86: 60 | H86: 1114 | I86: 50 | J86: 2014-04-22 | K86: 2 days | L86: 2014-06-20T07:58:25 | M86: 1 | N86: 0
A87: 2068059 | B87: GypsyHero | C87: t | D87: Silver | E87: Division Brontes Pepper | F87: 134 | G87: 115 | H87: 1113 | I87: 25 | J87: 2014-05-06 | K87: 8 hours | L87: 2014-06-20T07:58:25 | M87: 1 | N87: 0
A88: 5083797 | B88: GrayMatter | C88: t | D88: Silver | E88: Division Moria Yankee | F88: 60 | G88: 65 | H88: 1113 | I88: 27 | J88: 2014-05-10 | K88: 2 hours | L88: 2014-06-20T07:58:26 | M88: 1 | N88: 0
A89: 5314819 | B89: zaharone | C89: z | D89: Silver | E89: Division Adun Charlie | F89: 75 | G89: 74 | H89: 1113 | I89: 56 | J89: 2014-05-16 | K89: 1 days | L89: 2014-06-20T07:58:26 | M89: 1 | N89: 0
A90: 749543 | B90: Elderbury | C90: t | D90: Silver | E90: Division Xerana Pepper | F90: 57 | G90: 58 | H90: 1112 | I90: 6 | J90: 2014-05-04 | K90: 16 minutes | L90: 2014-06-20T07:58:26 | M90: 1 | N90: 0
A91: 1142909 | B91: Dizzyfalcon | C91: p | D91: Silver | E91: Division Augustgrad Sigma | F91: 75 | G91: 75 | H91: 1112 | I91: 7 | J91: 2014-05-16 | K91: 3 hours | L91: 2014-06-20T07:58:26 | M91: 1 | N91: 0
A92: 2492898 | B92: gart | C92: p | D92: Silver | E92: Division Xerana Uncle | F92: 70 | G92: 64 | H92: 1112 | I92: 13 | J92: 2014-05-01 | K92: 11 hours | L92: 2014-06-20T07:58:27 | M92: 1 | N92: 0
A93: 2685973 | B93: VampLord | C93: t | D93: Silver | E93: Division Queen Rho | F93: 56 | G93: 59 | H93: 1112 | I93: 34 | J93: 2014-04-18 | K93: 1 days | L93: 2014-06-20T07:58:27 | M93: 1 | N93: 0
A94: 3554753 | B94: LotusBlossom | C94: t | D94: Silver | E94: Division Observer Omicron | F94: 62 | G94: 62 | H94: 1112 | I94: 49 | J94: 2014-05-04 | K94: 4 hours | L94: 2014-06-20T07:58:28 | M94: 1 | N94: 0
A95: 4880708 | B95: ALe | C95: t | D95: Silver | E95: Division Adun Sigma | F95: 51 | G95: 66 | H95: 1112 | I95: 14 | J95: 2014-05-11 | K95: 13 hours | L95: 2014-06-20T07:58:28 | M95: 1 | N95: 0
A96: 1897464 | B96: Nehemiascr | C96: z | D96: Silver | E96: Division Brood Lord Pepper | F96: 62 | G96: 60 | H96: 1111 | I96: 11 | J96: 2014-06-10 | K96: 5 hours | L96: 2014-06-20T07:58:28 | M96: 1 | N96: 0
A97: 3703404 | B97: Leadbottom | C97: t | D97: Silver | E97: Division Sargas Zeta | F97: 63 | G97: 63 | H97: 1111 | I97: 6 | J97: 2014-05-24 | K97: 1 hours | L97: 2014-06-20T07:58:29 | M97: 1 | N97: 0
A98: 2781552 | B98: Ssquad | C98: p | D98: Silver | E98: Division Sargas X-Ray | F98: 71 | G98: 67 | H98: 1110 | I98: 3 | J98: 2014-06-02 | K98: 34 minutes | L98: 2014-06-20T07:58:29 | M98: 1 | N98: 0
A99: 3270606 | B99: SourJuicy | C99: r | D99: Silver | E99: Division Hyperion Pi | F99: 48 | G99: 51 | H99: 1110 | I99: 6 | J99: 2014-05-31 | K99: 23 minutes | L99: 2014-06-20T07:58:29 | M99: 1 | N99: 0
A100: 5432869 | B100: DESVADUE | C100: p | D100: Silver | E100: Division Hyperion Mars | F100: 144 | G100: 144 | H100: 1110 | I100: 18 | J100: 2014-05-11 | K100: 20 hours | L100: 2014-06-20T07:58:30 | M100: 1 | N100: 0
A101: 725634 | B101: Nahum | C101: t | D101: Silver | E101: Division Observer Kappa | F101: 107 | G101: 101 | H101: 1109 | I101: 11 | J101: 2014-05-01 | K101: 4 hours | L101: 2014-06-20T07:58:30 | M101: 1 | N101: 0
A102: 3739848 | B102: SolTigh | C102: z | D102: Silver | E102: Division Fole Yankee | F102: 49 | G102: 66 | H102: 1109 | I102: 8 | J102: 2014-05-04 | K102: 22 hours | L102: 2014-06-20T07:58:30 | M102: 1 | N102: 0
A103: 4834034 | B103: charliePRO | C103: p | D103: Silver | E103: Division Xerana Indigo | F103: 57 | G103: 54 | H103: 1109 | I103: 5 | J103: 2014-05-14 | K103: 3 hours | L103: 2014-06-20T07:58:31 | M103: 1 | N103: 0
A104: 5225532 | B104: Kubrick | C104: r | D104: Silver | E104: Division Xerana Indigo | F104: 84 | G104: 88 | H104: 1109 | I104: 9 | J104: 2014-05-02 | K104: 5 hours | L104: 2014-06-20T07:58:31 | M104: 1 | N104: 0
A105: 5718270 | B105: myownsword | C105: p | D105: Silver | E105: Division Adun Omega | F105: 65 | G105: 67 | H105: 1109 | I105: 2 | J105: 2014-06-04 | K105: 11 minutes | L105: 2014-06-20T07:58:32 | M105: 1 | N105: 0
A106: 1134 | B106: Glaedr | C106: r | D106: Silver | E106: Division Xerana Pepper | F106: 79 | G106: 65 | H106: 1108 | I106: 12 | J106: 2014-06-18 | K106: 1 days | L106: 2014-06-20T07:58:32 | M106: 1 | N106: 0
A107: 404605 | B107: Gasper | C107: t | D107: Silver | E107: Division Thor Tau | F107: 65 | G107: 74 | H107: 1108 | I107: 24 | J107: 2014-05-04 | K107: 1 hours | L107: 2014-06-20T07:58:33 | M107: 1 | N107: 0
A108: 786164 | B108: CptKirk | C108: p | D108: Silver | E108: Division Xerana Pepper | F108: 44 | G108: 43 | H108: 1108 | I108: 37 | J108: 2014-05-05 | K108: 21 hours | L108: 2014-06-20T07:58:33 | M108: 1 | N108: 0
A109: 4219209 | B109: deathcyth | C109: p | D109: Silver | E109: Division Azimar Foxtrot | F109: 92 | G109: 100 | H109: 1108 | I109: 0 | J109: 2014-06-01 | K109: 7 hours | L109: 2014-06-20T07:58:33 | M109: 1 | N109: 0
A110: 5617147 | B110: curtdiggler | C110: p | D110: Silver | E110: Division Overseer Bravo | F110: 244 | G110: 268 | H110: 1108 | I110: 5 | J110: 2014-05-12 | K110: 1 hours | L110: 2014-06-20T07:58:34 | M110: 1 | N110: 0
A111: 3201312 | B111: Daezen | C111: z | D111: Silver | E111: Division Lurker Delta | F111: 129 | G111: 112 | H111: 1107 | I111: 13 | J111: 2014-06-11 | K111: 11 hours | L111: 2014-06-20T07:58:34 | M111: 1 | N111: 0
A112: 3262754 | B112: schades | C112: z | D112: Silver | E112: Division Artanis Quest | F112: 89 | G112: 76 | H112: 1107 | I112: 22 | J112: 2014-06-08 | K112: 1 days | L112: 2014-06-20T07:58:34 | M112: 1 | N112: 0
A113: 399068 | B113: Geechi | C113: p | D113: Silver | E113: Division Fole Juliet | F113: 42 | G113: 45 | H113: 1106 | I113: 3 | J113: 2014-05-09 | K113: 8 hours | L113: 2014-06-20T07:58:35 | M113: 1 | N113: 0
A114: 882208 | B114: Dumdik | C114: p | D114: Silver | E114: Division Sargas Lima | F114: 44 | G114: 43 | H114: 1106 | I114: 62 | J114: 2014-05-09 | K114: 1 hours | L114: 2014-06-20T07:58:35 | M114: 1 | N114: 0
A115: 4682491 | B115: Kidz | C115: z | D115: Silver | E115: Division Braxis Indigo | F115: 44 | G115: 57 | H115: 1106 | I115: 2 | J115: 2014-05-02 | K115: 5 hours | L115: 2014-06-20T07:58:35 | M115: 1 | N115: 0
A116: 4731322 | B116: Raph | C116: r | D116: Silver | E116: Division Augustgrad Nu | F116: 89 | G116: 97 | H116: 1106 | I116: 8 | J116: 2014-05-29 | K116: 3 hours | L116: 2014-06-20T07:58:36 | M116: 1 | N116: 0
A117: 389010 | B117: cesteves | C117: t | D117: Silver | E117: Division Defiler Omicron | F117: 115 | G117: 109 | H117: 1105 | I117: 29 | J117: 2014-05-12 | K117: 1 days | L117: 2014-06-20T07:58:36 | M117: 1 | N117: 0
A118: 1787871 | B118: Moira | C118: p | D118: Silver | E118: Division Augustgrad Gravity | F118: 103 | G118: 116 | H118: 1105 | I118: 7 | J118: 2014-06-01 | K118: 2 hours | L118: 2014-06-20T07:58:36 | M118: 1 | N118: 0
A119: 3233769 | B119: LoneWolf | C119: p | D119: Silver | E119: Division Moria Zed | F119: 62 | G119: 69 | H119: 1105 | I119: 7 | J119: 2014-05-03 | K119: 2 hours | L119: 2014-06-20T07:58:37 | M119: 1 | N119: 0
A120: 3492613 | B120: BEAR | C120: p | D120: Silver | E120: Division Archon Sigma | F120: 60 | G120: 67 | H120: 1105 | I120: 6 | J120: 2014-05-11 | K120: 34 minutes | L120: 2014-06-20T07:58:37 | M120: 1 | N120: 0
A121: 4293832 | B121: LoO | C121: r | D121: Silver | E121: Division Xerana Foxtrot | F121: 189 | G121: 195 | H121: 1105 | I121: 57 | J121: 2014-04-25 | K121: 3 days | L121: 2014-06-20T07:58:37 | M121: 1 | N121: 0
A122: 5322759 | B122: RexnRazgriz | C122: p | D122: Silver | E122: Division Hyperion Juliet | F122: 98 | G122: 106 | H122: 1105 | I122: 7 | J122: 2014-05-02 | K122: 2 hours | L122: 2014-06-20T07:58:37 | M122: 1 | N122: 0
A123: 5404540 | B123: spaceGOAT | C123: t | D123: Silver | E123: Division Overlord Delta | F123: 95 | G123: 105 | H123: 1104 | I123: 35 | J123: 2014-04-27 | K123: 1 days | L123: 2014-06-20T07:58:38 | M123: 1 | N123: 0
A124: 20209 | B124: xJACx | C124: t | D124: Silver | E124: Division Fole Zed | F124: 77 | G124: 92 | H124: 1103 | I124: 7 | J124: 2014-05-08 | K124: 2 hours | L124: 2014-06-20T07:58:38 | M124: 1 | N124: 0
A125: 2132522 | B125: HappyK | C125: p | D125: Silver | E125: Division Tosh Zeta | F125: 64 | G125: 70 | H125: 1103 | I125: 15 | J125: 2014-04-16 | K125: 16 hours | L125: 2014-06-20T07:58:39 | M125: 1 | N125: 0
A126: 3638821 | B126: squidbilly | C126: z | D126: Silver | E126: Division Fole Hawk | F126: 119 | G126: 120 | H126: 1103 | I126: 5 | J126: 2014-05-05 | K126: 12 minutes | L126: 2014-06-20T07:58:39 | M126: 1 | N126: 0
A127: 64670 | B127: wuantang | C127: r | D127: Silver | E127: Division Overlord Echo | F127: 140 | G127: 143 | H127: 1102 | I127: 12 | J127: 2014-05-26 | K127: 11 hours | L127: 2014-06-20T07:58:39 | M127: 1 | N127: 0
A128: 3578781 | B128: FireDune | C128: p | D128: Silver | E128: Division Defiler Romeo | F128: 41 | G128: 49 | H128: 1102 | I128: 4 | J128: 2014-04-27 | K128: 4 hours | L128: 2014-06-20T07:58:40 | M128: 1 | N128: 0
A129: 4610748 | B129: shazzman | C129: z | D129: Silver | E129: Division Queen Rho | F129: 51 | G129: 57 | H129: 1102 | I129: 46 | J129: 2014-04-18 | K129: 2 days | L129: 2014-06-20T07:58:40 | M129: 1 | N129: 0
A130: 5124730 | B130: JSix | C130: t | D130: Silver | E130: Division Spectre Dixie | F130: 60 | G130: 74 | H130: 1102 | I130: 8 | J130: 2014-04-27 | K130: 4 hours | L130: 2014-06-20T07:58:40 | M130: 1 | N130: 0
A131: 5700908 | B131: Flyyght | C131: t | D131: Silver | E131: Division Augustgrad Lambda | F131: 48 | G131: 68 | H131: 1102 | I131: 4 | J131: 2014-05-27 | K131: 24 minutes | L131: 2014-06-20T07:58:41 | M131: 1 | N131: =IF(M131=10,SUM(F131:G131),0) -> 0
A132: 2648582 | B132: DonJuanNeon | C132: t | D132: Silver | E132: Division Observer Omicron | F132: 162 | G132: 183 | H132: 1101 | I132: 5 | J132: 2014-04-18 | K132: 4 hours | L132: 2014-06-20T07:58:41 | M132: 1 | N132: 0
A133: 2901312 | B133: Jayrome | C133: r | D133: Silver | E133: Division Hyperion Mars | F133: 131 | G133: 149 | H133: 1101 | I133: 7 | J133: 2014-04-15 | K133: 2 hours | L133: 2014-06-20T07:58:41 | M133: 1 | N133: 0
A134: 4268554 | B134: Gambit | C134: t | D134: Silver | E134: Division Typhon November | F134: 41 | G134: 41 | H134: 1101 | I134: 30 | J134: 2014-04-28 | K134: 1 days | L134: 2014-06-20T07:58:41 | M134: 1 | N134: 0
A135: 5695031 | B135: XxFernandoxX | C135: t | D135: Silver | E135: Division Scourge Beta | F135: 47 | G135: 51 | H135: 1101 | I135: 16 | J135: 2014-05-18 | K135: 16 minutes | L135: 2014-06-20T07:58:42 | M135: 1 | N135: 0
A136: 200806 | B136: diegopac | C136: t | D136: Silver | E136: Division Adun Theta | F136: 100 | G136: 84 | H136: 1100 | I136: 8 | J136: 2014-06-15 | K136: 4 hours | L136: 2014-06-20T07:58:42 | M136: 1 | N136: 0
A137: 537883 | B137: mity | C137: p | D137: Silver | E137: Division Archon Delta | F137: 57 | G137: 63 | H137: 1100 | I137: 14 | J137: 2014-05-04 | K137: 2 hours | L137: 2014-06-20T07:58:42 | M137: 1 | N137: 0
A138: 1204706 | B138: Magnum | C138: r | D138: Silver | E138: Division Fole November | F138: 101 | G138: 105 | H138: 1100 | I138: 9 | J138: 2014-04-21 | K138: 5 hours | L138: 2014-06-20T07:58:43 | M138: 1 | N138: 0
A139: 5201674 | B139: Bazu | C139: t | D139: Silver | E139: Division Warp Prism Sierra | F139: 98 | G139: 93 | H139: 1100 | I139: 8 | J139: 2014-05-21 | K139: 5 hours | L139: 2014-06-20T07:58:43 | M139: 1 | N139: 0
A140: 5605117 | B140: Raeign | C140: r | D140: Silver | E140: Division Typhon Whiskey | F140: 88 | G140: 88 | H140: 1100 | I140: 32 | J140: 2014-05-26 | K140: 3 hours | L140: 2014-06-20T07:58:43 | M140: 1 | N140: 0
A141: 5623322 | B141: lossered | C141: p | D141: Silver | E141: Division Aiur Sigma | F141: 102 | G141: 106 | H141: 1100 | I141: 28 | J141: 2014-04-29 | K141: 3 hours | L141: 2014-06-20T07:58:44 | M141: 1 | N141: 0
A142: 839561 | B142: Maniacs | C142: p | D142: Silver | E142: Division Scourge Oscar | F142: 49 | G142: 64 | H142: 1099 | I142: 10 | J142: 2014-05-11 | K142: 6 hours | L142: 2014-06-20T07:58:44 | M142: 1 | N142: 0
A143: 5671583 | B143: madhatter | C143: z | D143: Silver | E143: Division Thor Tau | F143: 74 | G143: 83 | H143: 1099 | I143: 24 | J143: 2014-04-28 | K143: 1 days | L143: 2014-06-20T07:58:44 | M143: 1 | N143: 0
A144: 1014438 | B144: RFKelly | C144: r | D144: Silver | E144: Division Brontes Eta | F144: 57 | G144: 52 | H144: 1098 | I144: 5 | J144: 2014-05-03 | K144: 10 minutes | L144: 2014-06-20T07:58:45 | M144: 1 | N144: 0
A145: 1432586 | B145: CaptainSpink | C145: t | D145: Silver | E145: Division Scourge Epsilon | F145: 68 | G145: 69 | H145: 1098 | I145: 22 | J145: 2014-04-30 | K145: 1 days | L145: 2014-06-20T07:58:45 | M145: 1 | N145: 0
A146: 4566580 | B146: Znackl | C146: t | D146: Silver | E146: Division Torus X-Ray | F146: 47 | G146: 48 | H146: 1098 | I146: 15 | J146: 2014-05-25 | K146: 3 hours | L146: 2014-06-20T07:58:46 | M146: 1 | N146: 0
A147: 984287 | B147: Biff | C147: t | D147: Silver | E147: Division Fole Tango | F147: 48 | G147: 46 | H147: 1097 | I147: 3 | J147: 2014-06-05 | K147: 23 hours | L147: 2014-06-20T07:58:46 | M147: 1 | N147: 0
A148: 1196156 | B148: Brain | C148: t | D148: Silver | E148: Division Typhon November | F148: 88 | G148: 92 | H148: 1097 | I148: 7 | J148: 2014-05-11 | K148: 2 hours | L148: 2014-06-20T07:58:47 | M148: 1 | N148: 0
A149: 1689554 | B149: Cyphress | C149: t | D149: Silver | E149: Division Kaloth Gamma | F149: 41 | G149: 46 | H149: 1097 | I149: 39 | J149: 2014-06-02 | K149: 22 hours | L149: 2014-06-20T07:58:47 | M149: 1 | N149: 0
A150: 3668736 | B150: anomalous | C150: z | D150: Silver | E150: Division Brood Lord Pepper | F150: 86 | G150: 94 | H150: 1097 | I150: 6 | J150: 2014-06-07 | K150: 25 minutes | L150: 2014-06-20T07:58:47 | M150: 1 | N150: 0
A151: 5018856 | B151: Take | C151: t | D151: Silver | E151: Division Brood Lord November | F151: 150 | G151: 176 | H151: 1097 | I151: 13 | J151: 2014-05-24 | K151: 12 hours | L151: 2014-06-20T07:58:48 | M151: 1 | N151: 0
A152: 5066236 | B152: NearX | C152: p | D152: Silver | E152: Division Adun Iota | F152: 73 | G152: 66 | H152: 1097 | I152: 7 | J152: 2014-06-03 | K152: 2 hours | L152: 2014-06-20T07:58:48 | M152: 1 | N152: 0
A153: 864515 | B153: Norik | C153: t | D153: Silver | E153: Division Augustgrad Delta | F153: 42 | G153: 48 | H153: 1096 | I153: 37 | J153: 2014-05-11 | K153: 2 days | L153: 2014-06-20T07:58:48 | M153: 1 | N153: 0
A154: 654164 | B154: RayMan | C154: p | D154: Silver | E154: Division Reaper Victor | F154: 43 | G154: 36 | H154: 1095 | I154: 31 | J154: 2014-05-12 | K154: 5 hours | L154: 2014-06-20T07:58:49 | M154: 1 | N154: 0
A155: 1389904 | B155: SilentGhost | C155: t | D155: Silver | E155: Division Archon Iota | F155: 69 | G155: 75 | H155: 1095 | I155: 7 | J155: 2014-06-19 | K155: 1 hours | L155: 2014-06-20T07:58:49 | M155: 1 | N155: 0
A156: 2106402 | B156: BattleBreakr | C156: r | D156: Silver | E156: Division Scourge Kilo | F156: 102 | G156: 107 | H156: 1095 | I156: 4 | J156: 2014-05-03 | K156: 1 hours | L156: 2014-06-20T07:58:49 | M156: 1 | N156: 0
A157: 2312866 | B157: NSkowyra | C157: r | D157: Silver | E157: Division Hyperion Pi | F157: 64 | G157: 66 | H157: 1095 | I157: 50 | J157: 2014-05-10 | K157: 3 days | L157: 2014-06-20T07:58:50 | M157: 1 | N157: 0
A158: 3572479 | B158: Lankonos | C158: t | D158: Silver | E158: Division New Folsom Alamo | F158: 84 | G158: 101 | H158: 1095 | I158: 4 | J158: 2014-05-03 | K158: 1 hours | L158: 2014-06-20T07:58:50 | M158: 1 | N158: 0
A159: 3872411 | B159: YunYoungSeo | C159: t | D159: Silver | E159: Division Warp Prism Tau | F159: 110 | G159: 119 | H159: 1095 | I159: 0 | J159: 2014-06-06 | K159: 3 hours | L159: 2014-06-20T07:58:51 | M159: 1 | N159: 0
A160: 5072143 | B160: DyserSNS | C160: t | D160: Silver | E160: Division Archon Delta | F160: 85 | G160: 80 | H160: 1095 | I160: 20 | J160: 2014-05-03 | K160: 23 hours | L160: 2014-06-20T07:58:51 | M160: 1 | N160: 0
A161: 5563197 | B161: Betzler | C161: t | D161: Silver | E161: Division Brontes Uncle | F161: 46 | G161: 51 | H161: 1095 | I161: 25 | J161: 2014-04-23 | K161: 48 minutes | L161: 2014-06-20T07:58:52 | M161: 1 | N161: 0
A162: 2936 | B162: Darik | C162: t | D162: Silver | E162: Division Shuttle Dixie | F162: 64 | G162: 65 | H162: 1094 | I162: 21 | J162: 2014-06-05 | K162: 5 hours | L162: 2014-06-20T07:58:52 | M162: 1 | N162: 0
A163: 4033070 | B163: Riceycakes | C163: t | D163: Silver | E163: Division Adun Charlie | F163: 125 | G163: 131 | H163: 1094 | I163: 12 | J163: 2014-06-07 | K163: 11 hours | L163: 2014-06-20T07:58:53 | M163: 1 | N163: 0
A164: 209120 | B164: Chakal | C164: z | D164: Silver | E164: Division Grizzly Alamo | F164: 67 | G164: 63 | H164: 1093 | I164: 84 | J164: 2014-05-20 | K164: 5 days | L164: 2014-06-20T07:58:53 | M164: 1 | N164: 0
A165: 1345984 | B165: Pyke | C165: t | D165: Silver | E165: Division Xerana Pepper | F165: 159 | G165: 160 | H165: 1093 | I165: 6 | J165: 2014-05-03 | K165: 46 minutes | L165: 2014-06-20T07:58:53 | M165: 1 | N165: 0
A166: 1640698 | B166: Tiberius | C166: p | D166: Silver | E166: Division Infestor Zed | F166: 49 | G166: 48 | H166: 1093 | I166: 13 | J166: 2014-05-04 | K166: 6 hours | L166: 2014-06-20T07:58:54 | M166: 1 | N166: 0
A167: 1950894 | B167: DoUgZ | C167: t | D167: Silver | E167: Division Archon Sigma | F167: 232 | G167: 250 | H167: 1093 | I167: 0 | J167: 2014-04-21 | K167: 8 hours | L167: 2014-06-20T07:58:54 | M167: 1 | N167: 0
A168: 2477533 | B168: matarlos | C168: t | D168: Silver | E168: Division Infestor Foxtrot | F168: 70 | G168: 68 | H168: 1093 | I168: 5 | J168: 2014-06-19 | K168: 5 hours | L168: 2014-06-20T07:58:55 | M168: 1 | N168: 0
A169: 2738506 | B169: Thorkk | C169: r | D169: Silver | E169: Division Infestor Indigo | F169: 92 | G169: 104 | H169: 1093 | I169: 12 | J169: 2014-05-05 | K169: 10 hours | L169: 2014-06-20T07:58:55 | M169: 1 | N169: 0
A170: 5278418 | B170: NightHawk | C170: r | D170: Silver | E170: Division Sargas Lima | F170: 61 | G170: 73 | H170: 1093 | I170: 41 | J170: 2014-04-15 | K170: 2 days | L170: 2014-06-20T07:58:56 | M170: 1 | N170: 0
A171: 2127848 | B171: MajorOwnage | C171: p | D171: Silver | E171: Division Infestor Zed | F171: 176 | G171: 207 | H171: 1092 | I171: 2 | J171: 2014-04-14 | K171: 8 minutes | L171: 2014-06-20T07:58:56 | M171: 1 | N171: 0
A172: 2145456 | B172: Alaska | C172: z | D172: Silver | E172: Division Fole Juliet | F172: 117 | G172: 127 | H172: 1092 | I172: 52 | J172: 2014-05-11 | K172: 3 days | L172: 2014-06-20T07:58:57 | M172: 1 | N172: 0
A173: 3301918 | B173: Daemon | C173: t | D173: Silver | E173: Division Lurker Quest | F173: 62 | G173: 60 | H173: 1092 | I173: 74 | J173: 2014-05-08 | K173: 4 days | L173: 2014-06-20T07:58:57 | M173: 1 | N173: 0
A174: 409829 | B174: Asimov | C174: t | D174: Silver | E174: Division Hyperion Hawk | F174: 78 | G174: 76 | H174: 1091 | I174: 26 | J174: 2014-05-06 | K174: 3 hours | L174: 2014-06-20T07:58:57 | M174: 1 | N174: 0
A175: 3301918 | B175: Daemon | C175: t | D175: Silver | E175: Division Lurker Quest | F175: 62 | G175: 60 | H175: 1092 | I175: 74 | J175: 2014-05-08 | K175: 4 days | L175: 2014-06-20T07:58:58 | M175: 1 | N175: 0
A176: 409829 | B176: Asimov | C176: t | D176: Silver | E176: Division Hyperion Hawk | F176: 78 | G176: 76 | H176: 1091 | I176: 26 | J176: 2014-05-06 | K176: 3 hours | L176: 2014-06-20T07:58:58 | M176: 1 | N176: 0
A177: 1313330 | B177: RunNgun | C177: p | D177: Silver | E177: Division Xerana Uncle | F177: 62 | G177: 68 | H177: 1091 | I177: 7 | J177: 2014-05-04 | K177: 2 hours | L177: 2014-06-20T07:58:58 | M177: 1 | N177: 0
A178: 3423591 | B178: BLuEWaFfLe | C178: p | D178: Silver | E178: Division Archon Nu | F178: 89 | G178: 99 | H178: 1091 | I178: 67 | J178: 2014-04-19 | K178: 4 days | L178: 2014-06-20T07:58:58 | M178: 1 | N178: 0
A179: 4243193 | B179: Jae | C179: r | D179: Silver | E179: Division Observer Kappa | F179: 114 | G179: 124 | H179: 1091 | I179: 5 | J179: 2014-05-09 | K179: 1 minutes | L179: 2014-06-20T07:58:59 | M179: 1 | N179: 0
A180: 4318344 | B180: OscarRyz | C180: t | D180: Silver | E180: Division Infestor Pepper | F180: 137 | G180: 149 | H180: 1091 | I180: 9 | J180: 2014-05-02 | K180: 5 hours | L180: 2014-06-20T07:58:59 | M180: 1 | N180: 0
A181: 5129797 | B181: StormHead | C181: r | D181: Silver | E181: Division Queen Mars | F181: 160 | G181: 173 | H181: 1091 | I181: 11 | J181: 2014-05-10 | K181: 8 hours | L181: 2014-06-20T07:58:59 | M181: 1 | N181: 0
A182: 58472 | B182: Diegopm | C182: p | D182: Silver | E182: Division Spectre Omicron | F182: 68 | G182: 71 | H182: 1090 | I182: 36 | J182: 2014-04-22 | K182: 2 days | L182: 2014-06-20T07:59:00 | M182: 1 | N182: 0
A183: 1712122 | B183: TheWarTurtle | C183: t | D183: Silver | E183: Division Reaper Victor | F183: 47 | G183: 51 | H183: 1090 | I183: 29 | J183: 2014-04-22 | K183: 1 days | L183: 2014-06-20T07:59:00 | M183: 1 | N183: 0
A184: 3215426 | B184: PupWrangler | C184: t | D184: Silver | E184: Division Moria Tango | F184: 103 | G184: 113 | H184: 1090 | I184: 47 | J184: 2014-04-18 | K184: 2 days | L184: 2014-06-20T07:59:01 | M184: 1 | N184: 0
A185: 4199263 | B185: drducks | C185: p | D185: Silver | E185: Division Braxis Foxtrot | F185: 44 | G185: 48 | H185: 1090 | I185: 43 | J185: 2014-05-11 | K185: 2 days | L185: 2014-06-20T07:59:01 | M185: 1 | N185: 0
A186: 4890019 | B186: Marvelous | C186: p | D186: Silver | E186: Division Brontes Psi | F186: 42 | G186: 55 | H186: 1090 | I186: 21 | J186: 2014-05-18 | K186: 1 days | L186: 2014-06-20T07:59:01 | M186: 1 | N186: 0
A187: 5010971 | B187: highlandarx | C187: t | D187: Silver | E187: Division Dragoon Foxtrot | F187: 59 | G187: 54 | H187: 1090 | I187: 20 | J187: 2014-05-02 | K187: 1 days | L187: 2014-06-20T07:59:02 | M187: 1 | N187: 0
A188: 5677050 | B188: itzminyufoo | C188: t | D188: Silver | E188: Division Kaloth Gamma | F188: 40 | G188: 63 | H188: 1090 | I188: 2 | J188: 2014-05-06 | K188: 21 hours | L188: 2014-06-20T07:59:02 | M188: 1 | N188: 0
A189: 369399 | B189: ResortLight | C189: t | D189: Silver | E189: Division Thor Oscar | F189: 51 | G189: 57 | H189: 1089 | I189: 6 | J189: 2014-05-10 | K189: 36 minutes | L189: 2014-06-20T07:59:02 | M189: 1 | N189: 0
A190: 609044 | B190: Deathmunkee | C190: z | D190: Silver | E190: Division Infestor Pepper | F190: 65 | G190: 74 | H190: 1089 | I190: 2 | J190: 2014-04-21 | K190: 1 days | L190: 2014-06-20T07:59:03 | M190: 1 | N190: 0
A191: 3053131 | B191: Stark | C191: p | D191: Silver | E191: Division Warp Prism Epsilon | F191: 79 | G191: 89 | H191: 1089 | I191: 4 | J191: 2014-05-02 | K191: 1 minutes | L191: 2014-06-20T07:59:03 | M191: 1 | N191: 0
A192: 5605898 | B192: Cezaro | C192: z | D192: Silver | E192: Division Warp Prism Epsilon | F192: 163 | G192: 173 | H192: 1089 | I192: 8 | J192: 2014-05-20 | K192: 3 hours | L192: 2014-06-20T07:59:03 | M192: 1 | N192: 0
A193: 532751 | B193: Keith | C193: t | D193: Silver | E193: Division Amerigo Romeo | F193: 78 | G193: 71 | H193: 1088 | I193: 5 | J193: 2014-06-03 | K193: 16 minutes | L193: 2014-06-20T07:59:04 | M193: 1 | N193: 0
A194: 623009 | B194: Gunkof | C194: t | D194: Silver | E194: Division Observer Beta | F194: 37 | G194: 47 | H194: 1088 | I194: 5 | J194: 2014-06-09 | K194: 1 hours | L194: 2014-06-20T07:59:04 | M194: 1 | N194: 0
A195: 652680 | B195: LCHX | C195: p | D195: Silver | E195: Division Akilae Rho | F195: 63 | G195: 64 | H195: 1088 | I195: 6 | J195: 2014-05-01 | K195: 23 minutes | L195: 2014-06-20T07:59:04 | M195: 1 | N195: =IF(M195=10,SUM(F195:G195),0) -> 0
A196: 853565 | B196: BrandonLee | C196: t | D196: Silver | E196: Division Goliath Alamo | F196: 43 | G196: 56 | H196: 1088 | I196: 25 | J196: 2014-05-12 | K196: 1 days | L196: 2014-06-20T07:59:04 | M196: 1 | N196: 0
A197: 3519011 | B197: Frogzilla | C197: z | D197: Silver | E197: Division Hyperion November | F197: 178 | G197: 178 | H197: 1088 | I197: 0 | J197: 2014-06-05 | K197: 5 hours | L197: 2014-06-20T07:59:05 | M197: 1 | N197: 0
A198: 5548156 | B198: TitsMcGee | C198: t | D198: Silver | E198: Division Infestor Uncle | F198: 52 | G198: 59 | H198: 1088 | I198: 33 | J198: 2014-05-21 | K198: 1 days | L198: 2014-06-20T07:59:05 | M198: 1 | N198: 0
A199: 75959 | B199: COWBOYS | C199: r | D199: Silver | E199: Division Overlord Delta | F199: 119 | G199: 135 | H199: 1087 | I199: 10 | J199: 2014-05-15 | K199: 7 hours | L199: 2014-06-20T07:59:05 | M199: 1 | N199: 0
A200: 1759062 | B200: ICEKORE | C200: r | D200: Silver | E200: Division Xerana Pepper | F200: 91 | G200: 114 | H200: 1087 | I200: 8 | J200: 2014-05-14 | K200: 4 hours | L200: 2014-06-20T07:59:06 | M200: 1 | N200: 0
... 4300 more rows

Sheet 1v1 Gold
A1: ID | B1: Name | C1: Race | D1: League | E1: Division Name | F1: Wins | G1: Losses | H1: Score | I1: Bonus Pool | J1: Join Date | K1: Last Game | L1: Timestamp | M1: Bonus Pool Weeks Remaining | N1: Inactive Player Games Played
A2: 4077773 | B2: BasedDoge | C2: z | D2: Gold | E2: Division Drone Rho | F2: 31 | G2: 24 | H2: 806 | I2: 617 | J2: 2014-05-20 | K2: 9 days | L2: 2014-06-20T02:18:54 | M2: 6 | N2: =IF(M2=10,SUM(F2:G2),0) -> 0
A3: 470739 | B3: WeirdoBeardo | C3: z | D3: Gold | E3: Division Raszagal Mu | F3: 109 | G3: 97 | H3: 770 | I3: 1014 | J3: 2014-05-04 | K3: 1 days | L3: 2014-06-20T02:21:03 | M3: 10 | N3: =IF(M3=10,SUM(F3:G3),0) -> 206
A4: 3068506 | B4: AriZona | C4: z | D4: Gold | E4: Division Halcyon Pepper | F4: 82 | G4: 101 | H4: 1298 | I4: 4 | J4: 2014-06-15 | K4: 1 minutes | L4: 2014-06-20T03:43:26 | M4: 1 | N4: 0
A5: 590612 | B5: Phantasm | C5: r | D5: Gold | E5: Division Alzadar Chi | F5: 155 | G5: 143 | H5: 1258 | I5: 3 | J5: 2014-05-02 | K5: 16 minutes | L5: 2014-06-20T03:43:27 | M5: 1 | N5: 0
A6: 2160723 | B6: Newman | C6: z | D6: Gold | E6: Division Drone Romeo | F6: 146 | G6: 134 | H6: 1253 | I6: 4 | J6: 2014-05-06 | K6: 9 minutes | L6: 2014-06-20T03:43:28 | M6: 1 | N6: 0
A7: 5382480 | B7: steeldragon | C7: t | D7: Gold | E7: Division Ulrezaj Hawk | F7: 68 | G7: 56 | H7: 1252 | I7: 7 | J7: 2014-05-07 | K7: 5 hours | L7: 2014-06-20T03:43:28 | M7: 1 | N7: 0
A8: 3972658 | B8: ETtactics | C8: t | D8: Gold | E8: Division Pylon Indigo | F8: 54 | G8: 31 | H8: 1251 | I8: 1 | J8: 2014-05-30 | K8: 9 hours | L8: 2014-06-20T03:43:29 | M8: 1 | N8: 0
A9: 1558902 | B9: Tyle | C9: z | D9: Gold | E9: Division Overmind X-Ray | F9: 84 | G9: 43 | H9: 1250 | I9: 5 | J9: 2014-05-15 | K9: 1 hours | L9: 2014-06-20T03:43:29 | M9: 1 | N9: 0
A10: 2133096 | B10: Kevin | C10: p | D10: Gold | E10: Division Moria Alpha | F10: 54 | G10: 34 | H10: 1250 | I10: 12 | J10: 2014-06-08 | K10: 12 hours | L10: 2014-06-20T03:43:29 | M10: 1 | N10: 0
A11: 5620781 | B11: teamST | C11: r | D11: Gold | E11: Division Chau Sara Omega | F11: 164 | G11: 135 | H11: 1250 | I11: 16 | J11: 2014-05-01 | K11: 10 hours | L11: 2014-06-20T03:43:30 | M11: 1 | N11: 0
A12: 837361 | B12: Entropy | C12: t | D12: Gold | E12: Division Duke Juliet | F12: 63 | G12: 37 | H12: 1248 | I12: 37 | J12: 2014-05-03 | K12: 1 days | L12: 2014-06-20T03:43:30 | M12: 1 | N12: 0
A13: 5708168 | B13: GlaXitO | C13: z | D13: Gold | E13: Division Hydralisk Charlie | F13: 135 | G13: 118 | H13: 1246 | I13: 6 | J13: 2014-05-29 | K13: 2 hours | L13: 2014-06-20T03:43:30 | M13: 1 | N13: 0
A14: 5762637 | B14: stark | C14: t | D14: Gold | E14: Division Nagglfar Omega | F14: 56 | G14: 53 | H14: 1242 | I14: 7 | J14: 2014-06-08 | K14: 4 hours | L14: 2014-06-20T03:43:31 | M14: 1 | N14: 0
A15: 4587069 | B15: TheAce | C15: p | D15: Gold | E15: Division Scarab Gravity | F15: 56 | G15: 34 | H15: 1241 | I15: 1 | J15: 2014-05-24 | K15: 18 hours | L15: 2014-06-20T03:43:32 | M15: 1 | N15: 0
A16: 1494237 | B16: KingSlayer | C16: t | D16: Gold | E16: Division Adun Echo | F16: 120 | G16: 105 | H16: 1239 | I16: 0 | J16: 2014-05-15 | K16: 53 minutes | L16: 2014-06-20T03:43:32 | M16: 1 | N16: 0
A17: 4679462 | B17: Tears | C17: p | D17: Gold | E17: Division Amerigo Lima | F17: 82 | G17: 59 | H17: 1239 | I17: 6 | J17: 2014-05-30 | K17: 3 hours | L17: 2014-06-20T03:43:32 | M17: 1 | N17: 0
A18: 167103 | B18: xDaveNeox | C18: t | D18: Gold | E18: Division Roxara Indigo | F18: 157 | G18: 158 | H18: 1236 | I18: 7 | J18: 2014-05-03 | K18: 4 hours | L18: 2014-06-20T03:43:33 | M18: 1 | N18: 0
A19: 684622 | B19: Crucial | C19: t | D19: Gold | E19: Division Hyperion Quest | F19: 135 | G19: 130 | H19: 1235 | I19: 17 | J19: 2014-04-15 | K19: 21 hours | L19: 2014-06-20T03:43:33 | M19: 1 | N19: 0
A20: 892242 | B20: SuNmAN | C20: t | D20: Gold | E20: Division Ursa Juliet | F20: 136 | G20: 114 | H20: 1235 | I20: 4 | J20: 2014-05-04 | K20: 22 minutes | L20: 2014-06-20T03:43:34 | M20: 1 | N20: 0
A21: 1482577 | B21: Caveman | C21: z | D21: Gold | E21: Division Immortal Kilo | F21: 64 | G21: 43 | H21: 1235 | I21: 2 | J21: 2014-05-18 | K21: 3 hours | L21: 2014-06-20T03:43:34 | M21: 1 | N21: 0
A22: 4959490 | B22: ssim | C22: t | D22: Gold | E22: Division Sarengo Chi | F22: 62 | G22: 46 | H22: 1234 | I22: 6 | J22: 2014-06-09 | K22: 3 hours | L22: 2014-06-20T03:43:35 | M22: 1 | N22: 0
A23: 5174132 | B23: Anima | C23: z | D23: Gold | E23: Division Immortal Kilo | F23: 52 | G23: 33 | H23: 1234 | I23: 0 | J23: 2014-05-18 | K23: 6 hours | L23: 2014-06-20T03:43:35 | M23: 1 | N23: 0
A24: 443795 | B24: BanelingSoup | C24: z | D24: Gold | E24: Division Kalathi Beta | F24: 146 | G24: 124 | H24: 1233 | I24: 8 | J24: 2014-05-02 | K24: 6 hours | L24: 2014-06-20T03:43:36 | M24: 1 | N24: 0
A25: 2859255 | B25: appleslices | C25: z | D25: Gold | E25: Division Zerus Kappa | F25: 66 | G25: 48 | H25: 1233 | I25: 72 | J25: 2014-05-07 | K25: 3 days | L25: 2014-06-20T03:43:36 | M25: 1 | N25: 0
A26: 712841 | B26: DarKSnakE | C26: t | D26: Gold | E26: Division Overseer Zed | F26: 56 | G26: 36 | H26: 1231 | I26: 9 | J26: 2014-05-01 | K26: 6 hours | L26: 2014-06-20T03:43:37 | M26: 1 | N26: 0
A27: 782047 | B27: PabloWeed | C27: z | D27: Gold | E27: Division Braxis Omicron | F27: 209 | G27: 180 | H27: 1231 | I27: 1 | J27: 2014-05-02 | K27: 1 days | L27: 2014-06-20T03:43:37 | M27: 1 | N27: 0
A28: 5047574 | B28: Angusman | C28: t | D28: Gold | E28: Division Anselm Pepper | F28: 91 | G28: 78 | H28: 1231 | I28: 8 | J28: 2014-05-03 | K28: 5 hours | L28: 2014-06-20T03:43:38 | M28: 1 | N28: 0
A29: 666244 | B29: MrToss | C29: p | D29: Gold | E29: Division Void Ray Lambda | F29: 51 | G29: 45 | H29: 1230 | I29: 8 | J29: 2014-05-02 | K29: 7 hours | L29: 2014-06-20T03:43:39 | M29: 1 | N29: 0
A30: 4750333 | B30: OpenChan | C30: r | D30: Gold | E30: Division Duran Beta | F30: 158 | G30: 128 | H30: 1230 | I30: 17 | J30: 2014-05-28 | K30: 21 hours | L30: 2014-06-20T03:43:39 | M30: 1 | N30: 0
A31: 623508 | B31: MáKrómáräüDë | C31: t | D31: Gold | E31: Division Overmind X-Ray | F31: 90 | G31: 71 | H31: 1229 | I31: 20 | J31: 2014-05-15 | K31: 1 days | L31: 2014-06-20T03:43:40 | M31: 1 | N31: 0
A32: 5131075 | B32: RyKkOlaN | C32: t | D32: Gold | E32: Division Void Ray Lambda | F32: 76 | G32: 57 | H32: 1229 | I32: 8 | J32: 2014-05-04 | K32: 6 hours | L32: 2014-06-20T03:43:40 | M32: 1 | N32: 0
A33: 3015529 | B33: NewbTaco | C33: z | D33: Gold | E33: Division Dropship Foxtrot | F33: 75 | G33: 51 | H33: 1227 | I33: 18 | J33: 2014-05-25 | K33: 22 hours | L33: 2014-06-20T03:43:40 | M33: 1 | N33: 0
A34: 3334898 | B34: BEaM | C34: z | D34: Gold | E34: Division Valkyrie November | F34: 98 | G34: 78 | H34: 1227 | I34: 11 | J34: 2014-05-02 | K34: 9 hours | L34: 2014-06-20T03:43:41 | M34: 1 | N34: 0
A35: 292897 | B35: Forsaken | C35: z | D35: Gold | E35: Division Zeratul Tau | F35: 130 | G35: 110 | H35: 1226 | I35: 3 | J35: 2014-05-02 | K35: 21 hours | L35: 2014-06-20T03:43:41 | M35: 1 | N35: 0
A36: 4268146 | B36: GoodbyeKitty | C36: z | D36: Gold | E36: Division Aldaris Iota | F36: 66 | G36: 40 | H36: 1225 | I36: 18 | J36: 2014-05-13 | K36: 22 hours | L36: 2014-06-20T03:43:42 | M36: 1 | N36: 0
A37: 4936336 | B37: James | C37: t | D37: Gold | E37: Division Baneling Psi | F37: 89 | G37: 81 | H37: 1223 | I37: 3 | J37: 2014-05-05 | K37: 1 minutes | L37: 2014-06-20T03:43:42 | M37: 1 | N37: 0
A38: 3987367 | B38: tumblus | C38: p | D38: Gold | E38: Division Reaper Alpha | F38: 55 | G38: 46 | H38: 1222 | I38: 21 | J38: 2014-05-01 | K38: 1 days | L38: 2014-06-20T03:43:43 | M38: 1 | N38: 0
A39: 378439 | B39: Meagol | C39: z | D39: Gold | E39: Division Aleksander Dixie | F39: 91 | G39: 73 | H39: 1220 | I39: 5 | J39: 2014-05-02 | K39: 1 hours | L39: 2014-06-20T03:43:43 | M39: 1 | N39: 0
A40: 3049795 | B40: KillCredit | C40: r | D40: Gold | E40: Division Rimes Rho | F40: 155 | G40: 145 | H40: 1220 | I40: 3 | J40: 2014-05-01 | K40: 1 hours | L40: 2014-06-20T03:43:44 | M40: 1 | N40: 0
A41: 3457515 | B41: GarbleR | C41: p | D41: Gold | E41: Division Nahaan Indigo | F41: 70 | G41: 51 | H41: 1220 | I41: 6 | J41: 2014-05-30 | K41: 2 hours | L41: 2014-06-20T03:43:44 | M41: 1 | N41: 0
A42: 3653885 | B42: Trifle | C42: t | D42: Gold | E42: Division Akilae Victor | F42: 78 | G42: 64 | H42: 1220 | I42: 23 | J42: 2014-05-02 | K42: 21 hours | L42: 2014-06-20T03:43:45 | M42: 1 | N42: 0
A43: 2778156 | B43: Vitamins | C43: t | D43: Gold | E43: Division Bucephalus Beta | F43: 51 | G43: 35 | H43: 1219 | I43: 1 | J43: 2014-06-11 | K43: 5 minutes | L43: 2014-06-20T03:43:46 | M43: 1 | N43: 0
A44: 5670942 | B44: HIgosu | C44: p | D44: Gold | E44: Division Kalathi Beta | F44: 154 | G44: 141 | H44: 1219 | I44: 1 | J44: 2014-05-07 | K44: 11 hours | L44: 2014-06-20T03:43:46 | M44: 1 | N44: 0
A45: 1836895 | B45: BoostingPSI | C45: z | D45: Gold | E45: Division Marine Tango | F45: 111 | G45: 112 | H45: 1218 | I45: 6 | J45: 2014-04-17 | K45: 3 hours | L45: 2014-06-20T03:43:47 | M45: 1 | N45: 0
A46: 3075146 | B46: Chen | C46: z | D46: Gold | E46: Division Corruptor Oscar | F46: 156 | G46: 134 | H46: 1216 | I46: 2 | J46: 2014-05-02 | K46: 3 hours | L46: 2014-06-20T03:43:47 | M46: 1 | N46: 0
A47: 4322094 | B47: Messerschmit | C47: p | D47: Gold | E47: Division Aiur Lima | F47: 153 | G47: 138 | H47: 1216 | I47: 8 | J47: 2014-05-02 | K47: 6 hours | L47: 2014-06-20T03:43:47 | M47: 1 | N47: 0
A48: 2949466 | B48: Blackcat | C48: t | D48: Gold | E48: Division Zeratul Tau | F48: 112 | G48: 90 | H48: 1215 | I48: 5 | J48: 2014-05-29 | K48: 1 hours | L48: 2014-06-20T03:43:48 | M48: 1 | N48: 0
A49: 4793979 | B49: Bigdickrick | C49: p | D49: Gold | E49: Division Moria Zed | F49: 69 | G49: 47 | H49: 1215 | I49: 2 | J49: 2014-05-15 | K49: 1 minutes | L49: 2014-06-20T03:43:48 | M49: 1 | N49: 0
A50: 3161472 | B50: Coldlight | C50: z | D50: Gold | E50: Division Leviathan Kilo | F50: 80 | G50: 60 | H50: 1214 | I50: 6 | J50: 2014-05-02 | K50: 3 hours | L50: 2014-06-20T03:43:49 | M50: 1 | N50: 0
A51: 787645 | B51: arvso | C51: z | D51: Gold | E51: Division Moria Echo | F51: 61 | G51: 41 | H51: 1213 | I51: 22 | J51: 2014-05-02 | K51: 1 days | L51: 2014-06-20T03:43:49 | M51: 1 | N51: 0
A52: 5624589 | B52: Robb | C52: z | D52: Gold | E52: Division Duke Theta | F52: 180 | G52: 150 | H52: 1212 | I52: 8 | J52: 2014-05-10 | K52: 6 hours | L52: 2014-06-20T03:43:50 | M52: 1 | N52: 0
A53: 840079 | B53: Puddingkup | C53: t | D53: Gold | E53: Division Phash Gamma | F53: 53 | G53: 32 | H53: 1211 | I53: 7 | J53: 2014-05-21 | K53: 5 hours | L53: 2014-06-20T03:43:50 | M53: 1 | N53: 0
A54: 4165598 | B54: GoldPiPi | C54: r | D54: Gold | E54: Division Corsair Zeta | F54: 284 | G54: 293 | H54: 1211 | I54: 2 | J54: 2014-05-04 | K54: 9 hours | L54: 2014-06-20T03:43:51 | M54: 1 | N54: 0
A55: 417252 | B55: Scorer | C55: r | D55: Gold | E55: Division Hyperion Alamo | F55: 822 | G55: 1014 | H55: 1207 | I55: 20 | J55: 2014-06-13 | K55: 1 days | L55: 2014-06-20T03:43:51 | M55: 1 | N55: 0
A56: 638201 | B56: RicoGZP | C56: p | D56: Gold | E56: Division Corsair Zeta | F56: 116 | G56: 104 | H56: 1207 | I56: 10 | J56: 2014-05-04 | K56: 10 hours | L56: 2014-06-20T03:43:52 | M56: 1 | N56: 0
A57: 393878 | B57: ChacMool | C57: z | D57: Gold | E57: Division Valkyrie X-Ray | F57: 122 | G57: 115 | H57: 1206 | I57: 3 | J57: 2014-05-02 | K57: 1 hours | L57: 2014-06-20T03:43:52 | M57: 1 | N57: 0
A58: 4625700 | B58: Mixcoatl | C58: p | D58: Gold | E58: Division Marine Mu | F58: 110 | G58: 100 | H58: 1205 | I58: 32 | J58: 2014-05-05 | K58: 1 days | L58: 2014-06-20T03:43:52 | M58: 1 | N58: 0
A59: 523417 | B59: CrisRogoy | C59: t | D59: Gold | E59: Division Adun Alpha | F59: 53 | G59: 29 | H59: 1203 | I59: 49 | J59: 2014-05-25 | K59: 3 hours | L59: 2014-06-20T03:43:53 | M59: 1 | N59: 0
A60: 1132077 | B60: SillyTilly | C60: r | D60: Gold | E60: Division Changeling Bravo | F60: 58 | G60: 42 | H60: 1203 | I60: 9 | J60: 2014-05-05 | K60: 8 hours | L60: 2014-06-20T03:43:53 | M60: 1 | N60: 0
A61: 1360024 | B61: BillDogPapaw | C61: z | D61: Gold | E61: Division Leviathan Charlie | F61: 151 | G61: 131 | H61: 1203 | I61: 3 | J61: 2014-05-02 | K61: 34 minutes | L61: 2014-06-20T03:43:54 | M61: 1 | N61: 0
A62: 2415984 | B62: RUFaded | C62: p | D62: Gold | E62: Division Zeratul Yankee | F62: 65 | G62: 57 | H62: 1202 | I62: 43 | J62: 2014-05-06 | K62: 2 days | L62: 2014-06-20T03:43:54 | M62: 1 | N62: 0
A63: 2468914 | B63: Raivax | C63: z | D63: Gold | E63: Division Carrier Mu | F63: 59 | G63: 46 | H63: 1202 | I63: 22 | J63: 2014-05-12 | K63: 1 days | L63: 2014-06-20T03:43:54 | M63: 1 | N63: 0
A64: 4435354 | B64: Bosporan | C64: r | D64: Gold | E64: Division Phash Epsilon | F64: 53 | G64: 40 | H64: 1202 | I64: 8 | J64: 2014-05-04 | K64: 18 hours | L64: 2014-06-20T03:43:55 | M64: 1 | N64: 0
A65: 5252187 | B65: SKARNDJ | C65: p | D65: Gold | E65: Division Xerana Omicron | F65: 179 | G65: 157 | H65: 1202 | I65: 7 | J65: 2014-05-23 | K65: 5 hours | L65: 2014-06-20T03:43:55 | M65: 1 | N65: 0
A66: 4502198 | B66: Reindeer | C66: p | D66: Gold | E66: Division Rimes Romeo | F66: 86 | G66: 75 | H66: 1201 | I66: 25 | J66: 2014-05-14 | K66: 1 days | L66: 2014-06-20T03:43:56 | M66: 1 | N66: 0
A67: 4844647 | B67: Fahima | C67: p | D67: Gold | E67: Division Kaloth Omicron | F67: 65 | G67: 48 | H67: 1201 | I67: 5 | J67: 2014-05-12 | K67: 1 hours | L67: 2014-06-20T03:43:56 | M67: 1 | N67: =IF(M67=10,SUM(F67:G67),0) -> 0
A68: 5340533 | B68: moops | C68: p | D68: Gold | E68: Division Zamara Gamma | F68: 95 | G68: 84 | H68: 1201 | I68: 25 | J68: 2014-05-01 | K68: 2 hours | L68: 2014-06-20T03:43:57 | M68: 1 | N68: 0
A69: 895065 | B69: Kels | C69: z | D69: Gold | E69: Division Marine Tango | F69: 85 | G69: 68 | H69: 1200 | I69: 19 | J69: 2014-05-02 | K69: 1 days | L69: 2014-06-20T03:43:57 | M69: 1 | N69: 0
A70: 5100846 | B70: Cbiscuit | C70: r | D70: Gold | E70: Division Kalathi Beta | F70: 108 | G70: 96 | H70: 1199 | I70: 9 | J70: 2014-05-07 | K70: 8 hours | L70: 2014-06-20T03:43:58 | M70: 1 | N70: 0
A71: 2494431 | B71: DoorMan | C71: z | D71: Gold | E71: Division Lockwell Pi | F71: 92 | G71: 79 | H71: 1197 | I71: 2 | J71: 2014-05-01 | K71: 6 hours | L71: 2014-06-20T03:43:58 | M71: 1 | N71: 0
A72: 3011767 | B72: Nightmare | C72: t | D72: Gold | E72: Division Swann Psi | F72: 103 | G72: 92 | H72: 1197 | I72: 18 | J72: 2014-04-27 | K72: 23 hours | L72: 2014-06-20T03:43:59 | M72: 1 | N72: 0
A73: 4607979 | B73: Kreator | C73: z | D73: Gold | E73: Division Adun Zed | F73: 74 | G73: 60 | H73: 1197 | I73: 26 | J73: 2014-05-06 | K73: 1 days | L73: 2014-06-20T03:43:59 | M73: 1 | N73: 0
A74: 716142 | B74: ZOO | C74: z | D74: Gold | E74: Division Ultralisk Iota | F74: 111 | G74: 93 | H74: 1196 | I74: 34 | J74: 2014-05-02 | K74: 2 days | L74: 2014-06-20T03:43:59 | M74: 1 | N74: 0
A75: 1438354 | B75: eraserface | C75: t | D75: Gold | E75: Division Felanis Sierra | F75: 85 | G75: 76 | H75: 1196 | I75: 11 | J75: 2014-05-12 | K75: 11 hours | L75: 2014-06-20T03:44:00 | M75: 1 | N75: 0
A76: 2008187 | B76: moloko | C76: z | D76: Gold | E76: Division Umoja Omega | F76: 56 | G76: 50 | H76: 1196 | I76: 33 | J76: 2014-04-14 | K76: 1 days | L76: 2014-06-20T03:44:00 | M76: 1 | N76: 0
A77: 3394769 | B77: ZillionXil | C77: z | D77: Gold | E77: Division Torus Omicron | F77: 58 | G77: 40 | H77: 1196 | I77: 4 | J77: 2014-06-05 | K77: 1 minutes | L77: 2014-06-20T03:44:01 | M77: 1 | N77: 0
A78: 1720927 | B78: Vincenk | C78: r | D78: Gold | E78: Division Tosh Delta | F78: 59 | G78: 48 | H78: 1195 | I78: 4 | J78: 2014-04-26 | K78: 3 minutes | L78: 2014-06-20T03:44:02 | M78: 1 | N78: 0
A79: 1983332 | B79: Serenata | C79: t | D79: Gold | E79: Division Tassadar Psi | F79: 72 | G79: 65 | H79: 1195 | I79: 7 | J79: 2014-05-04 | K79: 22 hours | L79: 2014-06-20T03:44:02 | M79: 1 | N79: 0
A80: 4024733 | B80: unDturd | C80: p | D80: Gold | E80: Division Overmind X-Ray | F80: 53 | G80: 45 | H80: 1195 | I80: 16 | J80: 2014-05-18 | K80: 19 hours | L80: 2014-06-20T03:44:02 | M80: 1 | N80: 0
A81: 5077049 | B81: ActionWords | C81: z | D81: Gold | E81: Division Sarengo Beta | F81: 130 | G81: 115 | H81: 1195 | I81: 2 | J81: 2014-05-02 | K81: 2 hours | L81: 2014-06-20T03:44:03 | M81: 1 | N81: 0
A82: 349984 | B82: thePusherman | C82: r | D82: Gold | E82: Division Raszagal Tango | F82: 102 | G82: 101 | H82: 1194 | I82: 5 | J82: 2014-05-24 | K82: 2 hours | L82: 2014-06-20T03:44:03 | M82: 1 | N82: 0
A83: 606312 | B83: Ironhide | C83: t | D83: Gold | E83: Division Raszagal Phi | F83: 104 | G83: 85 | H83: 1193 | I83: 35 | J83: 2014-05-06 | K83: 2 days | L83: 2014-06-20T03:44:04 | M83: 1 | N83: 0
A84: 3041163 | B84: Juicysauce | C84: z | D84: Gold | E84: Division Anselm Nu | F84: 94 | G84: 84 | H84: 1193 | I84: 13 | J84: 2014-05-04 | K84: 13 hours | L84: 2014-06-20T03:44:04 | M84: 1 | N84: 0
A85: 4346634 | B85: Hellcife | C85: z | D85: Gold | E85: Division Drone Rho | F85: 100 | G85: 91 | H85: 1193 | I85: 49 | J85: 2014-04-18 | K85: 3 days | L85: 2014-06-20T03:44:04 | M85: 1 | N85: 0
A86: 4998777 | B86: Zautron | C86: t | D86: Gold | E86: Division Tosh Eta | F86: 61 | G86: 48 | H86: 1193 | I86: 3 | J86: 2014-05-11 | K86: 41 minutes | L86: 2014-06-20T03:44:05 | M86: 1 | N86: 0
A87: 5098528 | B87: piggywoody | C87: z | D87: Gold | E87: Division Korhal Mars | F87: 155 | G87: 147 | H87: 1193 | I87: 4 | J87: 2014-04-19 | K87: 19 minutes | L87: 2014-06-20T03:44:05 | M87: 1 | N87: 0
A88: 1436517 | B88: Toneman | C88: t | D88: Gold | E88: Division Overseer Zed | F88: 116 | G88: 120 | H88: 1192 | I88: 32 | J88: 2014-05-01 | K88: 1 days | L88: 2014-06-20T03:44:06 | M88: 1 | N88: 0
A89: 2494379 | B89: Junta | C89: p | D89: Gold | E89: Division Defiler Whiskey | F89: 59 | G89: 68 | H89: 1192 | I89: 18 | J89: 2014-04-15 | K89: 22 hours | L89: 2014-06-20T03:44:06 | M89: 1 | N89: 0
A90: 3866942 | B90: SuchName | C90: t | D90: Gold | E90: Division Ursa Bravo | F90: 53 | G90: 49 | H90: 1192 | I90: 29 | J90: 2014-05-20 | K90: 1 days | L90: 2014-06-20T03:44:06 | M90: 1 | N90: 0
A91: 4174037 | B91: Sun | C91: p | D91: Gold | E91: Division Scion Mu | F91: 46 | G91: 34 | H91: 1192 | I91: 15 | J91: 2014-05-03 | K91: 1 days | L91: 2014-06-20T03:44:07 | M91: 1 | N91: 0
A92: 5019180 | B92: Vatsilla | C92: p | D92: Gold | E92: Division Drone Iota | F92: 51 | G92: 43 | H92: 1192 | I92: 8 | J92: 2014-05-24 | K92: 6 hours | L92: 2014-06-20T03:44:07 | M92: 1 | N92: 0
A93: 749072 | B93: TheJanitor | C93: p | D93: Gold | E93: Division Duke Juliet | F93: 103 | G93: 101 | H93: 1191 | I93: 0 | J93: 2014-04-14 | K93: 17 hours | L93: 2014-06-20T03:44:08 | M93: 1 | N93: 0
A94: 995579 | B94: PlayDaMasta | C94: p | D94: Gold | E94: Division Hive Sigma | F94: 74 | G94: 70 | H94: 1191 | I94: 6 | J94: 2014-05-31 | K94: 3 hours | L94: 2014-06-20T03:44:08 | M94: 1 | N94: 0
A95: 4403667 | B95: Spoonman | C95: t | D95: Gold | E95: Division Ladranix Iota | F95: 102 | G95: 90 | H95: 1191 | I95: 4 | J95: 2014-05-01 | K95: 8 minutes | L95: 2014-06-20T03:44:09 | M95: 1 | N95: 0
A96: 4876409 | B96: JOKER | C96: t | D96: Gold | E96: Division Infestor Alpha | F96: 51 | G96: 31 | H96: 1191 | I96: 51 | J96: 2014-05-06 | K96: 3 days | L96: 2014-06-20T03:44:09 | M96: 1 | N96: 0
A97: 1872044 | B97: Curly | C97: z | D97: Gold | E97: Division Arbiter Victor | F97: 78 | G97: 66 | H97: 1190 | I97: 34 | J97: 2014-05-01 | K97: 2 days | L97: 2014-06-20T03:44:10 | M97: 1 | N97: 0
A98: 1959048 | B98: Grandes | C98: z | D98: Gold | E98: Division Tychus Zeta | F98: 61 | G98: 47 | H98: 1190 | I98: 6 | J98: 2014-05-01 | K98: 2 hours | L98: 2014-06-20T03:44:10 | M98: 1 | N98: 0
A99: 2033182 | B99: Istian | C99: t | D99: Gold | E99: Division Alzadar Chi | F99: 414 | G99: 405 | H99: 1190 | I99: 2 | J99: 2014-05-02 | K99: 16 minutes | L99: 2014-06-20T03:44:10 | M99: 1 | N99: 0
A100: 2347347 | B100: Backlasher | C100: t | D100: Gold | E100: Division Alzadar Chi | F100: 97 | G100: 82 | H100: 1190 | I100: 29 | J100: 2014-05-02 | K100: 1 days | L100: 2014-06-20T03:44:10 | M100: 1 | N100: 0
A101: 4201628 | B101: Mohagnar | C101: r | D101: Gold | E101: Division Ramsey Gamma | F101: 108 | G101: 93 | H101: 1190 | I101: 11 | J101: 2014-05-04 | K101: 11 hours | L101: 2014-06-20T03:44:11 | M101: 1 | N101: 0
A102: 331695 | B102: FrostSaber | C102: p | D102: Gold | E102: Division Banshee Pi | F102: 69 | G102: 60 | H102: 1189 | I102: 17 | J102: 2014-05-24 | K102: 21 hours | L102: 2014-06-20T03:44:11 | M102: 1 | N102: 0
A103: 4040105 | B103: Bowtra | C103: t | D103: Gold | E103: Division Hive Sigma | F103: 70 | G103: 50 | H103: 1189 | I103: 3 | J103: 2014-05-31 | K103: 5 minutes | L103: 2014-06-20T03:44:11 | M103: 1 | N103: 0
A104: 4589318 | B104: KaiserNet | C104: z | D104: Gold | E104: Division Zergling Nu | F104: 72 | G104: 45 | H104: 1189 | I104: 19 | J104: 2014-05-02 | K104: 1 days | L104: 2014-06-20T03:44:12 | M104: 1 | N104: 0
A105: 4688963 | B105: Erebus | C105: p | D105: Gold | E105: Division Augustgrad Zed | F105: 78 | G105: 82 | H105: 1189 | I105: 0 | J105: 2014-06-09 | K105: 4 minutes | L105: 2014-06-20T03:44:12 | M105: 1 | N105: 0
A106: 550403 | B106: tiroth | C106: p | D106: Gold | E106: Division Corruptor Oscar | F106: 74 | G106: 57 | H106: 1188 | I106: 35 | J106: 2014-05-02 | K106: 2 days | L106: 2014-06-20T03:44:13 | M106: 1 | N106: 0
A107: 4176259 | B107: KansasFF | C107: t | D107: Gold | E107: Division Nahaan Sigma | F107: 86 | G107: 66 | H107: 1188 | I107: 19 | J107: 2014-05-10 | K107: 23 hours | L107: 2014-06-20T03:44:13 | M107: 1 | N107: 0
A108: 5534823 | B108: vivi | C108: z | D108: Gold | E108: Division Immortal Kilo | F108: 69 | G108: 36 | H108: 1188 | I108: 26 | J108: 2014-05-28 | K108: 1 days | L108: 2014-06-20T03:44:13 | M108: 1 | N108: 0
A109: 2651912 | B109: Centipede | C109: p | D109: Gold | E109: Division Routhe X-Ray | F109: 94 | G109: 79 | H109: 1187 | I109: 8 | J109: 2014-05-02 | K109: 57 minutes | L109: 2014-06-20T03:44:14 | M109: 1 | N109: 0
A110: 3351581 | B110: Trifectuh | C110: t | D110: Gold | E110: Division Queen Whiskey | F110: 44 | G110: 47 | H110: 1187 | I110: 4 | J110: 2014-06-01 | K110: 30 minutes | L110: 2014-06-20T03:44:14 | M110: 1 | N110: 0
A111: 4032706 | B111: Papirius | C111: p | D111: Gold | E111: Division Void Ray Lambda | F111: 59 | G111: 39 | H111: 1187 | I111: 1 | J111: 2014-05-10 | K111: 6 hours | L111: 2014-06-20T03:44:15 | M111: 1 | N111: 0
A112: 3420319 | B112: deitees | C112: p | D112: Gold | E112: Division Urun Phi | F112: 71 | G112: 53 | H112: 1186 | I112: 0 | J112: 2014-05-14 | K112: 16 hours | L112: 2014-06-20T03:44:15 | M112: 1 | N112: 0
A113: 4666222 | B113: BigJay | C113: r | D113: Gold | E113: Division Artanis Pi | F113: 91 | G113: 68 | H113: 1186 | I113: 61 | J113: 2014-05-05 | K113: 5 hours | L113: 2014-06-20T03:44:15 | M113: 1 | N113: 0
A114: 5424469 | B114: BaronC | C114: r | D114: Gold | E114: Division Scimitar Hawk | F114: 92 | G114: 92 | H114: 1186 | I114: 11 | J114: 2014-05-02 | K114: 10 hours | L114: 2014-06-20T03:44:16 | M114: 1 | N114: 0
A115: 3015766 | B115: Marty | C115: p | D115: Gold | E115: Division Goliath Delta | F115: 170 | G115: 162 | H115: 1185 | I115: 6 | J115: 2014-05-04 | K115: 1 days | L115: 2014-06-20T03:44:16 | M115: 1 | N115: 0
A116: 3639961 | B116: IdleSCV | C116: z | D116: Gold | E116: Division Hydralisk Charlie | F116: 55 | G116: 50 | H116: 1185 | I116: 2 | J116: 2014-05-29 | K116: 7 hours | L116: 2014-06-20T03:44:16 | M116: 1 | N116: 0
A117: 3362162 | B117: zephyr | C117: p | D117: Gold | E117: Division Void Ray Lambda | F117: 122 | G117: 118 | H117: 1184 | I117: 7 | J117: 2014-04-19 | K117: 5 hours | L117: 2014-06-20T03:44:17 | M117: 1 | N117: 0
A118: 1511941 | B118: DrkWanderer | C118: p | D118: Gold | E118: Division Dragoon Eta | F118: 48 | G118: 49 | H118: 1183 | I118: 4 | J118: 2014-05-04 | K118: 14 minutes | L118: 2014-06-20T03:44:17 | M118: 1 | N118: 0
A119: 2060590 | B119: Horangi | C119: z | D119: Gold | E119: Division Moria Zed | F119: 68 | G119: 45 | H119: 1183 | I119: 8 | J119: 2014-05-15 | K119: 6 hours | L119: 2014-06-20T03:44:17 | M119: 1 | N119: 0
A120: 2440368 | B120: Sanifox | C120: z | D120: Gold | E120: Division Tassadar Zeta | F120: 62 | G120: 44 | H120: 1183 | I120: 6 | J120: 2014-05-22 | K120: 2 hours | L120: 2014-06-20T03:44:18 | M120: 1 | N120: 0
A121: 2763951 | B121: MsIeKoE | C121: t | D121: Gold | E121: Division Raynor Psi | F121: 84 | G121: 76 | H121: 1183 | I121: 2 | J121: 2014-05-23 | K121: 59 minutes | L121: 2014-06-20T03:44:18 | M121: 1 | N121: 0
A122: 2396707 | B122: Silvercode | C122: p | D122: Gold | E122: Division Kalathi Lambda | F122: 81 | G122: 68 | H122: 1182 | I122: 3 | J122: 2014-05-02 | K122: 12 minutes | L122: 2014-06-20T03:44:19 | M122: 1 | N122: 0
A123: 2830581 | B123: DjibutiRage | C123: t | D123: Gold | E123: Division Amerigo Quest | F123: 88 | G123: 83 | H123: 1182 | I123: 1 | J123: 2014-04-23 | K123: 8 hours | L123: 2014-06-20T03:44:19 | M123: 1 | N123: 0
A124: 4943715 | B124: jamesflovi | C124: z | D124: Gold | E124: Division Forge Mu | F124: 58 | G124: 42 | H124: 1182 | I124: 6 | J124: 2014-05-24 | K124: 2 hours | L124: 2014-06-20T03:44:20 | M124: 1 | N124: 0
A125: 526901 | B125: Kent | C125: p | D125: Gold | E125: Division Felanis Sierra | F125: 110 | G125: 104 | H125: 1181 | I125: 5 | J125: 2014-05-12 | K125: 1 hours | L125: 2014-06-20T03:44:20 | M125: 1 | N125: 0
A126: 1192731 | B126: Frogdog | C126: t | D126: Gold | E126: Division Torus Omicron | F126: 54 | G126: 31 | H126: 1181 | I126: 43 | J126: 2014-06-05 | K126: 2 days | L126: 2014-06-20T03:44:21 | M126: 1 | N126: 0
A127: 2204986 | B127: EdgarPoe | C127: z | D127: Gold | E127: Division Overmind November | F127: 252 | G127: 251 | H127: 1181 | I127: 13 | J127: 2014-05-02 | K127: 14 hours | L127: 2014-06-20T03:44:21 | M127: 1 | N127: 0
A128: 4025907 | B128: rumikanan | C128: t | D128: Gold | E128: Division Halcyon Dixie | F128: 54 | G128: 30 | H128: 1181 | I128: 6 | J128: 2014-05-05 | K128: 1 days | L128: 2014-06-20T03:44:21 | M128: 1 | N128: 0
A129: 4996630 | B129: Murica | C129: p | D129: Gold | E129: Division Bhekar Ro Iota | F129: 63 | G129: 50 | H129: 1181 | I129: 8 | J129: 2014-05-05 | K129: 3 hours | L129: 2014-06-20T03:44:22 | M129: 1 | N129: 0
A130: 5120004 | B130: AZergTY | C130: z | D130: Gold | E130: Division Aleksander Pepper | F130: 53 | G130: 42 | H130: 1181 | I130: 52 | J130: 2014-06-01 | K130: 3 days | L130: 2014-06-20T03:44:22 | M130: 1 | N130: 0
A131: 889476 | B131: Raiyn | C131: z | D131: Gold | E131: Division Zeratul Tau | F131: 140 | G131: 130 | H131: 1180 | I131: 17 | J131: 2014-05-02 | K131: 21 hours | L131: 2014-06-20T03:44:22 | M131: 1 | N131: =IF(M131=10,SUM(F131:G131),0) -> 0
A132: 4447486 | B132: Vates | C132: p | D132: Gold | E132: Division Rimes Rho | F132: 161 | G132: 147 | H132: 1180 | I132: 4 | J132: 2014-05-01 | K132: 1 minutes | L132: 2014-06-20T03:44:23 | M132: 1 | N132: 0
A133: 4546557 | B133: fhjalle | C133: p | D133: Gold | E133: Division SCV Mu | F133: 59 | G133: 41 | H133: 1180 | I133: 68 | J133: 2014-04-17 | K133: 4 days | L133: 2014-06-20T03:44:23 | M133: 1 | N133: 0
A134: 1260648 | B134: Bowzer | C134: t | D134: Gold | E134: Division Lockwell Sierra | F134: 113 | G134: 99 | H134: 1179 | I134: 24 | J134: 2014-05-05 | K134: 1 days | L134: 2014-06-20T03:44:23 | M134: 1 | N134: 0
A135: 4036887 | B135: PCYKCUL | C135: z | D135: Gold | E135: Division Artanis Pi | F135: 183 | G135: 167 | H135: 1179 | I135: 8 | J135: 2014-05-05 | K135: 6 hours | L135: 2014-06-20T03:44:24 | M135: 1 | N135: 0
A136: 4635298 | B136: THORwagner | C136: r | D136: Gold | E136: Division Raynor Psi | F136: 51 | G136: 38 | H136: 1179 | I136: 5 | J136: 2014-05-23 | K136: 2 hours | L136: 2014-06-20T03:44:24 | M136: 1 | N136: 0
A137: 4935874 | B137: llllllllllll | C137: p | D137: Gold | E137: Division Overseer Alpha | F137: 65 | G137: 47 | H137: 1179 | I137: 51 | J137: 2014-05-14 | K137: 3 days | L137: 2014-06-20T03:44:25 | M137: 1 | N137: 0
A138: 588878 | B138: mati | C138: z | D138: Gold | E138: Division Zergling Pepper | F138: 65 | G138: 44 | H138: 1178 | I138: 52 | J138: 2014-05-04 | K138: 3 days | L138: 2014-06-20T03:44:25 | M138: 1 | N138: 0
A139: 3675641 | B139: GenetiKs | C139: z | D139: Gold | E139: Division Furinax Omega | F139: 91 | G139: 74 | H139: 1178 | I139: 4 | J139: 2014-05-27 | K139: 18 hours | L139: 2014-06-20T03:44:25 | M139: 1 | N139: 0
A140: 368987 | B140: Dealer | C140: z | D140: Gold | E140: Division Carrier Mu | F140: 92 | G140: 85 | H140: 1177 | I140: 19 | J140: 2014-05-13 | K140: 1 days | L140: 2014-06-20T03:44:26 | M140: 1 | N140: 0
A141: 2070093 | B141: UnoOchoSiete | C141: t | D141: Gold | E141: Division Vulture Sierra | F141: 52 | G141: 35 | H141: 1177 | I141: 57 | J141: 2014-05-02 | K141: 22 hours | L141: 2014-06-20T03:44:26 | M141: 1 | N141: 0
A142: 2093869 | B142: HydrocarbonX | C142: z | D142: Gold | E142: Division Lockwell Pi | F142: 93 | G142: 82 | H142: 1177 | I142: 7 | J142: 2014-04-17 | K142: 5 hours | L142: 2014-06-20T03:44:26 | M142: 1 | N142: 0
A143: 3698517 | B143: MaxBeast | C143: t | D143: Gold | E143: Division Lockwell Sierra | F143: 113 | G143: 106 | H143: 1177 | I143: 3 | J143: 2014-05-05 | K143: 1 minutes | L143: 2014-06-20T03:44:26 | M143: 1 | N143: 0
A144: 4578851 | B144: refrigeratus | C144: p | D144: Gold | E144: Division Lurker Quest | F144: 60 | G144: 41 | H144: 1177 | I144: 6 | J144: 2014-05-03 | K144: 3 hours | L144: 2014-06-20T03:44:27 | M144: 1 | N144: 0
A145: 2099628 | B145: BabyTiger | C145: r | D145: Gold | E145: Division Praetor Rho | F145: 61 | G145: 48 | H145: 1176 | I145: 7 | J145: 2014-05-15 | K145: 4 hours | L145: 2014-06-20T03:44:27 | M145: 1 | N145: 0
A146: 92468 | B146: Leviatan | C146: z | D146: Gold | E146: Division Feld Kappa | F146: 64 | G146: 50 | H146: 1175 | I146: 26 | J146: 2014-05-03 | K146: 22 hours | L146: 2014-06-20T03:44:28 | M146: 1 | N146: 0
A147: 2964655 | B147: GamerTorture | C147: z | D147: Gold | E147: Division Torrasque Upsilon | F147: 93 | G147: 83 | H147: 1175 | I147: 6 | J147: 2014-05-03 | K147: 2 hours | L147: 2014-06-20T03:44:28 | M147: 1 | N147: 0
A148: 4300312 | B148: CoolWind | C148: p | D148: Gold | E148: Division Hierarch Nu | F148: 106 | G148: 92 | H148: 1175 | I148: 2 | J148: 2014-05-05 | K148: 8 hours | L148: 2014-06-20T03:44:29 | M148: 1 | N148: 0
A149: 217496 | B149: Leozito | C149: t | D149: Gold | E149: Division Shelak Juliet | F149: 105 | G149: 93 | H149: 1174 | I149: 4 | J149: 2014-05-11 | K149: 43 minutes | L149: 2014-06-20T03:44:29 | M149: 1 | N149: 0
A150: 704211 | B150: Maverick | C150: z | D150: Gold | E150: Division Anselm Pepper | F150: 72 | G150: 60 | H150: 1174 | I150: 7 | J150: 2014-05-03 | K150: 5 hours | L150: 2014-06-20T03:44:29 | M150: 1 | N150: 0
A151: 3397277 | B151: litemash | C151: z | D151: Gold | E151: Division Grizzly Eta | F151: 67 | G151: 49 | H151: 1174 | I151: 52 | J151: 2014-05-03 | K151: 3 days | L151: 2014-06-20T03:44:30 | M151: 1 | N151: 0
A152: 5381297 | B152: RrRr | C152: t | D152: Gold | E152: Division SCV Mu | F152: 111 | G152: 107 | H152: 1174 | I152: 31 | J152: 2014-04-17 | K152: 1 days | L152: 2014-06-20T03:44:30 | M152: 1 | N152: 0
A153: 376969 | B153: Yettee | C153: p | D153: Gold | E153: Division Defiler Lima | F153: 53 | G153: 35 | H153: 1173 | I153: 5 | J153: 2014-05-03 | K153: 1 hours | L153: 2014-06-20T03:44:31 | M153: 1 | N153: 0
A154: 404904 | B154: Marvel | C154: t | D154: Gold | E154: Division Swann Psi | F154: 74 | G154: 70 | H154: 1173 | I154: 9 | J154: 2014-05-02 | K154: 7 hours | L154: 2014-06-20T03:44:31 | M154: 1 | N154: 0
A155: 4468787 | B155: Eze | C155: t | D155: Gold | E155: Division Hellion Upsilon | F155: 62 | G155: 42 | H155: 1173 | I155: 47 | J155: 2014-05-10 | K155: 12 hours | L155: 2014-06-20T03:44:31 | M155: 1 | N155: 0
A156: 328355 | B156: Hydralisk | C156: z | D156: Gold | E156: Division Dragoon Delta | F156: 52 | G156: 43 | H156: 1172 | I156: 46 | J156: 2014-05-22 | K156: 2 days | L156: 2014-06-20T03:44:32 | M156: 1 | N156: 0
A157: 3032433 | B157: Bninja | C157: z | D157: Gold | E157: Division Shelak Juliet | F157: 119 | G157: 106 | H157: 1172 | I157: 6 | J157: 2014-05-11 | K157: 2 hours | L157: 2014-06-20T03:44:32 | M157: 1 | N157: 0
A158: 505813 | B158: VaderMort | C158: t | D158: Gold | E158: Division Valkyrie X-Ray | F158: 96 | G158: 78 | H158: 1171 | I158: 4 | J158: 2014-05-02 | K158: 15 minutes | L158: 2014-06-20T03:44:33 | M158: 1 | N158: 0
A159: 593262 | B159: DMC | C159: p | D159: Gold | E159: Division Routhe X-Ray | F159: 143 | G159: 118 | H159: 1171 | I159: 11 | J159: 2014-05-02 | K159: 10 hours | L159: 2014-06-20T03:44:33 | M159: 1 | N159: 0
A160: 610977 | B160: Tango | C160: z | D160: Gold | E160: Division Marauder Uncle | F160: 144 | G160: 126 | H160: 1171 | I160: 10 | J160: 2014-05-08 | K160: 9 hours | L160: 2014-06-20T03:44:34 | M160: 1 | N160: 0
A161: 4190872 | B161: Syoris | C161: z | D161: Gold | E161: Division Forge Mu | F161: 54 | G161: 33 | H161: 1171 | I161: 25 | J161: 2014-05-24 | K161: 1 days | L161: 2014-06-20T03:44:34 | M161: 1 | N161: 0
A162: 4546307 | B162: SillE | C162: p | D162: Gold | E162: Division Wraith Xi | F162: 50 | G162: 33 | H162: 1171 | I162: 23 | J162: 2014-05-08 | K162: 1 days | L162: 2014-06-20T03:44:35 | M162: 1 | N162: 0
A163: 4687731 | B163: avhaha | C163: z | D163: Gold | E163: Division Nahaan Sigma | F163: 60 | G163: 39 | H163: 1171 | I163: 14 | J163: 2014-05-21 | K163: 16 hours | L163: 2014-06-20T03:44:35 | M163: 1 | N163: 0
A164: 4854205 | B164: DarkParadox | C164: z | D164: Gold | E164: Division Zealot Uncle | F164: 100 | G164: 84 | H164: 1171 | I164: 39 | J164: 2014-05-06 | K164: 2 days | L164: 2014-06-20T03:44:35 | M164: 1 | N164: 0
A165: 5542384 | B165: lIIlIIlIlI | C165: p | D165: Gold | E165: Division Wraith Xi | F165: 119 | G165: 102 | H165: 1171 | I165: 22 | J165: 2014-05-08 | K165: 1 days | L165: 2014-06-20T03:44:36 | M165: 1 | N165: 0
A166: 2388581 | B166: SafetyGi | C166: t | D166: Gold | E166: Division Corruptor Foxtrot | F166: 55 | G166: 55 | H166: 1170 | I166: 4 | J166: 2014-06-07 | K166: 1 minutes | L166: 2014-06-20T03:44:36 | M166: 1 | N166: 0
A167: 2674484 | B167: Absolute | C167: t | D167: Gold | E167: Division Changeling Juliet | F167: 54 | G167: 38 | H167: 1170 | I167: 4 | J167: 2014-06-09 | K167: 2 hours | L167: 2014-06-20T03:44:37 | M167: 1 | N167: 0
A168: 2959061 | B168: PopeOfBlades | C168: p | D168: Gold | E168: Division Lockwell Pi | F168: 63 | G168: 51 | H168: 1170 | I168: 40 | J168: 2014-04-17 | K168: 12 hours | L168: 2014-06-20T03:44:37 | M168: 1 | N168: 0
A169: 3103740 | B169: Koganutz | C169: z | D169: Gold | E169: Division Baneling Zeta | F169: 56 | G169: 41 | H169: 1170 | I169: 49 | J169: 2014-05-12 | K169: 3 days | L169: 2014-06-20T03:44:37 | M169: 1 | N169: 0
A170: 3427138 | B170: Sakuraka | C170: p | D170: Gold | E170: Division Scourge Alamo | F170: 99 | G170: 82 | H170: 1170 | I170: 13 | J170: 2014-05-02 | K170: 12 hours | L170: 2014-06-20T03:44:38 | M170: 1 | N170: 0
A171: 3526399 | B171: Weizy | C171: p | D171: Gold | E171: Division Selendis Foxtrot | F171: 84 | G171: 63 | H171: 1170 | I171: 11 | J171: 2014-05-07 | K171: 10 hours | L171: 2014-06-20T03:44:38 | M171: 1 | N171: 0
A172: 3995143 | B172: HappyZzh | C172: p | D172: Gold | E172: Division Prelate Indigo | F172: 112 | G172: 94 | H172: 1170 | I172: 1 | J172: 2014-05-03 | K172: 19 hours | L172: 2014-06-20T03:44:38 | M172: 1 | N172: 0
A173: 4247384 | B173: starwarrior | C173: t | D173: Gold | E173: Division Selendis Foxtrot | F173: 65 | G173: 67 | H173: 1170 | I173: 16 | J173: 2014-05-03 | K173: 18 hours | L173: 2014-06-20T03:44:38 | M173: 1 | N173: 0
A174: 4432697 | B174: PzychQ | C174: z | D174: Gold | E174: Division Executor Gamma | F174: 109 | G174: 87 | H174: 1170 | I174: 34 | J174: 2014-05-09 | K174: 2 days | L174: 2014-06-20T03:44:39 | M174: 1 | N174: 0
A175: 4635166 | B175: JUGGERNAUT | C175: t | D175: Gold | E175: Division Umoja Omega | F175: 187 | G175: 189 | H175: 1170 | I175: 4 | J175: 2014-04-14 | K175: 19 minutes | L175: 2014-06-20T03:44:40 | M175: 1 | N175: 0
A176: 360433 | B176: gamesmenezes | C176: r | D176: Gold | E176: Division Hellion Upsilon | F176: 133 | G176: 123 | H176: 1169 | I176: 5 | J176: 2014-05-09 | K176: 1 hours | L176: 2014-06-20T03:44:40 | M176: 1 | N176: 0
A177: 1078403 | B177: Mastaace | C177: t | D177: Gold | E177: Division Halcyon Dixie | F177: 55 | G177: 40 | H177: 1169 | I177: 88 | J177: 2014-05-04 | K177: 2 days | L177: 2014-06-20T03:44:40 | M177: 1 | N177: 0
A178: 1776001 | B178: encore | C178: p | D178: Gold | E178: Division Tarsonis Dixie | F178: 110 | G178: 97 | H178: 1169 | I178: 1 | J178: 2014-05-11 | K178: 18 hours | L178: 2014-06-20T03:44:41 | M178: 1 | N178: 0
A179: 3641146 | B179: MacedoN | C179: t | D179: Gold | E179: Division Mohandar X-Ray | F179: 75 | G179: 58 | H179: 1169 | I179: 3 | J179: 2014-05-07 | K179: 58 minutes | L179: 2014-06-20T03:44:41 | M179: 1 | N179: 0
A180: 4452245 | B180: chEEch | C180: p | D180: Gold | E180: Division Nagglfar Mars | F180: 158 | G180: 139 | H180: 1169 | I180: 3 | J180: 2014-05-02 | K180: 8 hours | L180: 2014-06-20T03:44:41 | M180: 1 | N180: 0
A181: 4220483 | B181: Hero | C181: p | D181: Gold | E181: Division Firebat Yankee | F181: 147 | G181: 129 | H181: 1168 | I181: 4 | J181: 2014-05-03 | K181: 3 minutes | L181: 2014-06-20T03:44:42 | M181: 1 | N181: 0
A182: 4573904 | B182: TurboCowboy | C182: t | D182: Gold | E182: Division Kerrigan Eta | F182: 83 | G182: 89 | H182: 1168 | I182: 2 | J182: 2014-04-16 | K182: 21 hours | L182: 2014-06-20T03:44:42 | M182: 1 | N182: 0
A183: 5117658 | B183: Hadex | C183: t | D183: Gold | E183: Division Shelak Bravo | F183: 51 | G183: 34 | H183: 1168 | I183: 24 | J183: 2014-06-01 | K183: 1 days | L183: 2014-06-20T03:44:43 | M183: 1 | N183: 0
A184: 1020713 | B184: Geist | C184: z | D184: Gold | E184: Division Colossus Phi | F184: 60 | G184: 49 | H184: 1167 | I184: 2 | J184: 2014-06-08 | K184: 9 minutes | L184: 2014-06-20T03:44:43 | M184: 1 | N184: 0
A185: 1806026 | B185: Glyde | C185: p | D185: Gold | E185: Division Nova Omicron | F185: 69 | G185: 48 | H185: 1167 | I185: 43 | J185: 2014-05-05 | K185: 2 days | L185: 2014-06-20T03:44:43 | M185: 1 | N185: 0
A186: 2801536 | B186: Destroyer | C186: p | D186: Gold | E186: Division Mohandar November | F186: 60 | G186: 51 | H186: 1167 | I186: 22 | J186: 2014-05-02 | K186: 21 hours | L186: 2014-06-20T03:44:44 | M186: 1 | N186: 0
A187: 3636990 | B187: sGPhatHamsta | C187: z | D187: Gold | E187: Division Corruptor Omega | F187: 97 | G187: 78 | H187: 1167 | I187: 1 | J187: 2014-05-14 | K187: 1 hours | L187: 2014-06-20T03:44:44 | M187: 1 | N187: 0
A188: 3682951 | B188: solidangle | C188: z | D188: Gold | E188: Division Infestor Alpha | F188: 225 | G188: 220 | H188: 1167 | I188: 16 | J188: 2014-05-06 | K188: 18 hours | L188: 2014-06-20T03:44:45 | M188: 1 | N188: 0
A189: 4022686 | B189: Kenny | C189: t | D189: Gold | E189: Division Infestor Alpha | F189: 53 | G189: 48 | H189: 1167 | I189: 36 | J189: 2014-05-06 | K189: 27 minutes | L189: 2014-06-20T03:44:45 | M189: 1 | N189: 0
A190: 4719417 | B190: chlapf | C190: t | D190: Gold | E190: Division Shuttle Sierra | F190: 48 | G190: 38 | H190: 1167 | I190: 0 | J190: 2014-05-24 | K190: 8 hours | L190: 2014-06-20T03:44:46 | M190: 1 | N190: 0
A191: 5258900 | B191: LoOneyTunes | C191: t | D191: Gold | E191: Division Hydralisk Charlie | F191: 51 | G191: 46 | H191: 1167 | I191: 4 | J191: 2014-06-13 | K191: 16 minutes | L191: 2014-06-20T03:44:46 | M191: 1 | N191: 0
A192: 769848 | B192: Xanistar | C192: z | D192: Gold | E192: Division Reagan Gravity | F192: 155 | G192: 161 | H192: 1166 | I192: 0 | J192: 2014-05-02 | K192: 19 hours | L192: 2014-06-20T03:44:47 | M192: 1 | N192: 0
A193: 4115770 | B193: gReeNaSh | C193: p | D193: Gold | E193: Division Ultralisk Iota | F193: 86 | G193: 89 | H193: 1166 | I193: 16 | J193: 2014-05-03 | K193: 19 hours | L193: 2014-06-20T03:44:47 | M193: 1 | N193: 0
A194: 4384097 | B194: insu | C194: t | D194: Gold | E194: Division Siege Tank Yankee | F194: 59 | G194: 57 | H194: 1165 | I194: 13 | J194: 2014-06-13 | K194: 14 hours | L194: 2014-06-20T03:44:48 | M194: 1 | N194: 0
A195: 4870493 | B195: SaintVitus | C195: z | D195: Gold | E195: Division Corruptor Omega | F195: 51 | G195: 33 | H195: 1165 | I195: 5 | J195: 2014-05-14 | K195: 49 minutes | L195: 2014-06-20T03:44:48 | M195: 1 | N195: =IF(M195=10,SUM(F195:G195),0) -> 0
A196: 5392916 | B196: RiverNa | C196: t | D196: Gold | E196: Division Carrier Mu | F196: 52 | G196: 52 | H196: 1165 | I196: 6 | J196: 2014-05-12 | K196: 3 hours | L196: 2014-06-20T03:44:49 | M196: 1 | N196: 0
A197: 5374325 | B197: CodeBreaker | C197: t | D197: Gold | E197: Division Selendis Foxtrot | F197: 295 | G197: 263 | H197: 1164 | I197: 1 | J197: 2014-05-01 | K197: 31 minutes | L197: 2014-06-20T03:44:49 | M197: 1 | N197: 0
A198: 5615905 | B198: thfcksgkek | C198: r | D198: Gold | E198: Division Defiler Lima | F198: 97 | G198: 82 | H198: 1164 | I198: 69 | J198: 2014-05-03 | K198: 1 days | L198: 2014-06-20T03:44:49 | M198: 1 | N198: 0
A199: 321317 | B199: Raugeston | C199: z | D199: Gold | E199: Division Artanis Sierra | F199: 163 | G199: 142 | H199: 1163 | I199: 6 | J199: 2014-05-23 | K199: 3 hours | L199: 2014-06-20T03:44:50 | M199: 1 | N199: 0
A200: 1144550 | B200: MORTOCK | C200: z | D200: Gold | E200: Division Hierarch Nu | F200: 216 | G200: 209 | H200: 1163 | I200: 3 | J200: 2014-04-23 | K200: 9 minutes | L200: 2014-06-20T03:44:50 | M200: 1 | N200: 0
... 4300 more rows

Sheet 1v1 Platinum
A1: ID | B1: Name | C1: Race | D1: League | E1: Division Name | F1: Wins | G1: Losses | H1: Score | I1: Bonus Pool | J1: Join Date | K1: Last Game | L1: Timestamp | M1: Bonus Pool Weeks Remaining | N1: Inactive Player Games Played
A2: 3025566 | B2: Atka | C2: z | D2: Platinum | E2: Division Swann Theta | F2: 16 | G2: 10 | H2: 355 | I2: 998 | J2: 2014-06-01 | K2: 18 days | L2: 2014-06-20T01:23:55 | M2: 10 | N2: =IF(M2=10,SUM(F2:G2),0) -> 26
A3: 873707 | B3: Rain | C3: t | D3: Platinum | E3: Division Valkyrie Zeta | F3: 76 | G3: 89 | H3: 1313 | I3: 55 | J3: 2014-06-10 | K3: 2 hours | L3: 2014-06-20T01:51:02 | M3: 1 | N3: =IF(M3=10,SUM(F3:G3),0) -> 0
A4: 4618095 | B4: Burashi | C4: z | D4: Platinum | E4: Division Nexus Mu | F4: 65 | G4: 31 | H4: 1247 | I4: 24 | J4: 2014-05-05 | K4: 5 hours | L4: 2014-06-20T01:51:02 | M4: 1 | N4: 0
A5: 4448881 | B5: Waffen | C5: p | D5: Platinum | E5: Division Kaloth Delta | F5: 71 | G5: 24 | H5: 1244 | I5: 7 | J5: 2014-06-15 | K5: 6 hours | L5: 2014-06-20T01:51:03 | M5: 1 | N5: 0
A6: 496409 | B6: Spiraled | C6: z | D6: Platinum | E6: Division Colossus Omicron | F6: 204 | G6: 159 | H6: 1237 | I6: 2 | J6: 2014-05-17 | K6: 1 hours | L6: 2014-06-20T01:51:03 | M6: 1 | N6: 0
A7: 4069312 | B7: Sahara | C7: p | D7: Platinum | E7: Division Warp Prism Lambda | F7: 111 | G7: 84 | H7: 1237 | I7: 13 | J7: 2014-05-16 | K7: 15 hours | L7: 2014-06-20T01:51:04 | M7: 1 | N7: 0
A8: 268976 | B8: EverZTinker | C8: t | D8: Platinum | E8: Division Hauler Foxtrot | F8: 50 | G8: 32 | H8: 1234 | I8: 1 | J8: 2014-05-28 | K8: 2 hours | L8: 2014-06-20T01:51:04 | M8: 1 | N8: 0
A9: 2065949 | B9: vegeta | C9: p | D9: Platinum | E9: Division Dylar Yankee | F9: 57 | G9: 47 | H9: 1229 | I9: 16 | J9: 2014-05-22 | K9: 19 hours | L9: 2014-06-20T01:51:04 | M9: 1 | N9: 0
A10: 5343396 | B10: JacDraco | C10: z | D10: Platinum | E10: Division Dropship Alpha | F10: 85 | G10: 72 | H10: 1229 | I10: 0 | J10: 2014-05-22 | K10: 8 hours | L10: 2014-06-20T01:51:05 | M10: 1 | N10: 0
A11: 5098424 | B11: nikoniko | C11: z | D11: Platinum | E11: Division Observer Lima | F11: 88 | G11: 78 | H11: 1228 | I11: 10 | J11: 2014-05-09 | K11: 10 hours | L11: 2014-06-20T01:51:05 | M11: 1 | N11: 0
A12: 2453397 | B12: jarjar | C12: t | D12: Platinum | E12: Division Nexus Romeo | F12: 74 | G12: 62 | H12: 1227 | I12: 9 | J12: 2014-05-03 | K12: 9 hours | L12: 2014-06-20T01:51:06 | M12: 1 | N12: 0
A13: 3370623 | B13: TucO | C13: p | D13: Platinum | E13: Division Shiloh Omega | F13: 79 | G13: 54 | H13: 1226 | I13: 7 | J13: 2014-05-02 | K13: 5 hours | L13: 2014-06-20T01:51:06 | M13: 1 | N13: 0
A14: 4369084 | B14: TAndRU | C14: t | D14: Platinum | E14: Division Overlord Sigma | F14: 62 | G14: 29 | H14: 1225 | I14: 11 | J14: 2014-05-02 | K14: 6 hours | L14: 2014-06-20T01:51:07 | M14: 1 | N14: 0
A15: 1037653 | B15: Dawner | C15: r | D15: Platinum | E15: Division Typhon Beta | F15: 135 | G15: 100 | H15: 1224 | I15: 42 | J15: 2014-06-01 | K15: 1 hours | L15: 2014-06-20T01:51:08 | M15: 1 | N15: 0
A16: 413830 | B16: Hades | C16: z | D16: Platinum | E16: Division Anselm Lambda | F16: 90 | G16: 63 | H16: 1222 | I16: 1 | J16: 2014-05-16 | K16: 7 minutes | L16: 2014-06-20T01:51:09 | M16: 1 | N16: 0
A17: 4296362 | B17: PrymeTime | C17: z | D17: Platinum | E17: Division Carrier Foxtrot | F17: 75 | G17: 46 | H17: 1221 | I17: 9 | J17: 2014-05-06 | K17: 5 hours | L17: 2014-06-20T01:51:09 | M17: 1 | N17: 0
A18: 1670112 | B18: Sherlock | C18: z | D18: Platinum | E18: Division Mutalisk Psi | F18: 108 | G18: 74 | H18: 1220 | I18: 3 | J18: 2014-05-15 | K18: 8 minutes | L18: 2014-06-20T01:51:09 | M18: 1 | N18: 0
A19: 4559348 | B19: Zarghust | C19: t | D19: Platinum | E19: Division Valkyrie Sierra | F19: 64 | G19: 61 | H19: 1220 | I19: 6 | J19: 2014-06-04 | K19: 5 hours | L19: 2014-06-20T01:51:10 | M19: 1 | N19: 0
A20: 2395975 | B20: MugreMario | C20: p | D20: Platinum | E20: Division Duke Delta | F20: 113 | G20: 101 | H20: 1219 | I20: 32 | J20: 2014-05-13 | K20: 1 days | L20: 2014-06-20T01:51:10 | M20: 1 | N20: 0
A21: 4337307 | B21: Waffle | C21: p | D21: Platinum | E21: Division Praetor Nu | F21: 116 | G21: 87 | H21: 1219 | I21: 16 | J21: 2014-06-16 | K21: 20 hours | L21: 2014-06-20T01:51:10 | M21: 1 | N21: 0
A22: 1038597 | B22: Zeratai | C22: t | D22: Platinum | E22: Division Gantrithor Delta | F22: 133 | G22: 121 | H22: 1218 | I22: 0 | J22: 2014-05-02 | K22: 6 hours | L22: 2014-06-20T01:51:11 | M22: 1 | N22: 0
A23: 2905945 | B23: MoltoVivace | C23: t | D23: Platinum | E23: Division Bucephalus Bravo | F23: 59 | G23: 47 | H23: 1218 | I23: 22 | J23: 2014-05-09 | K23: 1 days | L23: 2014-06-20T01:51:11 | M23: 1 | N23: 0
A24: 4004670 | B24: NaYa | C24: t | D24: Platinum | E24: Division Chau Sara Quest | F24: 144 | G24: 123 | H24: 1217 | I24: 4 | J24: 2014-06-15 | K24: 1 hours | L24: 2014-06-20T01:51:12 | M24: 1 | N24: 0
A25: 5221258 | B25: TearEmBug | C25: r | D25: Platinum | E25: Division Ramsey Dixie | F25: 63 | G25: 42 | H25: 1217 | I25: 6 | J25: 2014-05-30 | K25: 4 hours | L25: 2014-06-20T01:51:13 | M25: 1 | N25: 0
A26: 4740331 | B26: Kushkumen | C26: z | D26: Platinum | E26: Division Marauder Victor | F26: 117 | G26: 93 | H26: 1216 | I26: 3 | J26: 2014-05-28 | K26: 1 hours | L26: 2014-06-20T01:51:13 | M26: 1 | N26: 0
A27: 201512 | B27: iMaX | C27: p | D27: Platinum | E27: Division Nexus Mu | F27: 236 | G27: 232 | H27: 1215 | I27: 22 | J27: 2014-05-01 | K27: 1 days | L27: 2014-06-20T01:51:14 | M27: 1 | N27: 0
A28: 4026267 | B28: CurryBomb | C28: p | D28: Platinum | E28: Division Shiloh Omega | F28: 149 | G28: 108 | H28: 1215 | I28: 4 | J28: 2014-05-07 | K28: 1 hours | L28: 2014-06-20T01:51:14 | M28: 1 | N28: 0
A29: 5168631 | B29: Cloud | C29: p | D29: Platinum | E29: Division Norad Nu | F29: 260 | G29: 246 | H29: 1211 | I29: 3 | J29: 2014-05-02 | K29: 2 hours | L29: 2014-06-20T01:51:14 | M29: 1 | N29: 0
A30: 4344880 | B30: JunZergCola | C30: z | D30: Platinum | E30: Division Colossus Omicron | F30: 76 | G30: 41 | H30: 1210 | I30: 27 | J30: 2014-05-08 | K30: 1 days | L30: 2014-06-20T01:51:15 | M30: 1 | N30: 0
A31: 4295049 | B31: Wearmysocks | C31: z | D31: Platinum | E31: Division Tosh Upsilon | F31: 51 | G31: 32 | H31: 1208 | I31: 14 | J31: 2014-05-27 | K31: 16 hours | L31: 2014-06-20T01:51:15 | M31: 1 | N31: 0
A32: 1538947 | B32: Jaws | C32: t | D32: Platinum | E32: Division Warp Prism Lambda | F32: 60 | G32: 40 | H32: 1207 | I32: 33 | J32: 2014-05-05 | K32: 1 days | L32: 2014-06-20T01:51:16 | M32: 1 | N32: 0
A33: 2139874 | B33: FoxxyLove | C33: z | D33: Platinum | E33: Division Tosh Upsilon | F33: 60 | G33: 41 | H33: 1207 | I33: 8 | J33: 2014-04-14 | K33: 7 hours | L33: 2014-06-20T01:51:16 | M33: 1 | N33: 0
A34: 716772 | B34: GEsurface | C34: t | D34: Platinum | E34: Division Ulrezaj Chi | F34: 71 | G34: 64 | H34: 1205 | I34: 7 | J34: 2014-05-05 | K34: 6 hours | L34: 2014-06-20T01:51:17 | M34: 1 | N34: 0
A35: 2233881 | B35: Asamov | C35: p | D35: Platinum | E35: Division Tal’darim Beta | F35: 88 | G35: 63 | H35: 1204 | I35: 1 | J35: 2014-05-07 | K35: 14 hours | L35: 2014-06-20T01:51:17 | M35: 1 | N35: 0
A36: 3317173 | B36: DieOrRear | C36: z | D36: Platinum | E36: Division Judicator Iota | F36: 69 | G36: 58 | H36: 1204 | I36: 26 | J36: 2014-05-07 | K36: 13 hours | L36: 2014-06-20T01:51:18 | M36: 1 | N36: 0
A37: 4432265 | B37: BoNanner | C37: t | D37: Platinum | E37: Division Warp Prism Lambda | F37: 89 | G37: 76 | H37: 1204 | I37: 11 | J37: 2014-05-02 | K37: 12 hours | L37: 2014-06-20T01:51:18 | M37: 1 | N37: 0
A38: 4451102 | B38: DonToss | C38: z | D38: Platinum | E38: Division Tal’darim X-Ray | F38: 73 | G38: 39 | H38: 1204 | I38: 38 | J38: 2014-05-09 | K38: 2 days | L38: 2014-06-20T01:51:18 | M38: 1 | N38: 0
A39: 4696555 | B39: Impulse | C39: p | D39: Platinum | E39: Division Typhon X-Ray | F39: 54 | G39: 32 | H39: 1204 | I39: 1 | J39: 2014-06-08 | K39: 3 hours | L39: 2014-06-20T01:51:19 | M39: 1 | N39: 0
A40: 4956542 | B40: DeftBowling | C40: r | D40: Platinum | E40: Division Colossus Epsilon | F40: 92 | G40: 79 | H40: 1204 | I40: 2 | J40: 2014-05-10 | K40: 6 minutes | L40: 2014-06-20T01:51:19 | M40: 1 | N40: 0
A41: 5060052 | B41: ZackCode | C41: z | D41: Platinum | E41: Division Norad Theta | F41: 54 | G41: 38 | H41: 1204 | I41: 8 | J41: 2014-05-18 | K41: 7 hours | L41: 2014-06-20T01:51:19 | M41: 1 | N41: 0
A42: 4049339 | B42: Googoo | C42: p | D42: Platinum | E42: Division Prelate Epsilon | F42: 84 | G42: 52 | H42: 1203 | I42: 7 | J42: 2014-06-05 | K42: 6 hours | L42: 2014-06-20T01:51:20 | M42: 1 | N42: 0
A43: 4872429 | B43: ShadoV | C43: z | D43: Platinum | E43: Division Judicator Iota | F43: 65 | G43: 32 | H43: 1203 | I43: 13 | J43: 2014-05-02 | K43: 3 hours | L43: 2014-06-20T01:51:20 | M43: 1 | N43: 0
A44: 4967777 | B44: Stealth | C44: p | D44: Platinum | E44: Division Shuttle Echo | F44: 147 | G44: 106 | H44: 1203 | I44: 9 | J44: 2014-05-12 | K44: 8 hours | L44: 2014-06-20T01:51:20 | M44: 1 | N44: 0
A45: 4222267 | B45: HTX | C45: p | D45: Platinum | E45: Division Shuttle Omega | F45: 68 | G45: 55 | H45: 1202 | I45: 7 | J45: 2014-05-16 | K45: 6 hours | L45: 2014-06-20T01:51:21 | M45: 1 | N45: 0
A46: 1266386 | B46: Eric | C46: t | D46: Platinum | E46: Division Changeling Kilo | F46: 59 | G46: 67 | H46: 1200 | I46: 18 | J46: 2014-05-30 | K46: 23 hours | L46: 2014-06-20T01:51:21 | M46: 1 | N46: 0
A47: 2737136 | B47: Conflux | C47: z | D47: Platinum | E47: Division Mohandar Indigo | F47: 213 | G47: 203 | H47: 1200 | I47: 0 | J47: 2014-05-05 | K47: 20 hours | L47: 2014-06-20T01:51:21 | M47: 1 | N47: 0
A48: 94912 | B48: BLSkillbatle | C48: p | D48: Platinum | E48: Division Infestor Iota | F48: 53 | G48: 31 | H48: 1199 | I48: 23 | J48: 2014-05-17 | K48: 1 days | L48: 2014-06-20T01:51:22 | M48: 1 | N48: 0
A49: 739274 | B49: Starlord | C49: p | D49: Platinum | E49: Division Colossus Epsilon | F49: 50 | G49: 29 | H49: 1199 | I49: 15 | J49: 2014-05-10 | K49: 18 hours | L49: 2014-06-20T01:51:22 | M49: 1 | N49: 0
A50: 2852654 | B50: Villain | C50: t | D50: Platinum | E50: Division Chau Sara Alamo | F50: 97 | G50: 50 | H50: 1199 | I50: 28 | J50: 2014-06-04 | K50: 1 days | L50: 2014-06-20T01:51:23 | M50: 1 | N50: 0
A51: 2720411 | B51: Moke | C51: t | D51: Platinum | E51: Division Auriga Gravity | F51: 107 | G51: 97 | H51: 1197 | I51: 3 | J51: 2014-05-02 | K51: 2 minutes | L51: 2014-06-20T01:51:23 | M51: 1 | N51: 0
A52: 3083283 | B52: BurntToast | C52: t | D52: Platinum | E52: Division Tosh Charlie | F52: 199 | G52: 186 | H52: 1197 | I52: 6 | J52: 2014-05-03 | K52: 4 hours | L52: 2014-06-20T01:51:24 | M52: 1 | N52: 0
A53: 4298192 | B53: SAP | C53: t | D53: Platinum | E53: Division Preserver Hawk | F53: 95 | G53: 84 | H53: 1197 | I53: 1 | J53: 2014-05-04 | K53: 1 days | L53: 2014-06-20T01:51:25 | M53: 1 | N53: 0
A54: 4560381 | B54: Drax | C54: z | D54: Platinum | E54: Division Swann Theta | F54: 84 | G54: 49 | H54: 1197 | I54: 8 | J54: 2014-06-01 | K54: 7 hours | L54: 2014-06-20T01:51:25 | M54: 1 | N54: 0
A55: 422834 | B55: cango | C55: z | D55: Platinum | E55: Division Gorn Juliet | F55: 139 | G55: 94 | H55: 1196 | I55: 2 | J55: 2014-05-02 | K55: 29 minutes | L55: 2014-06-20T01:51:26 | M55: 1 | N55: 0
A56: 941300 | B56: TRxArce | C56: z | D56: Platinum | E56: Division Preserver Hawk | F56: 130 | G56: 104 | H56: 1196 | I56: 3 | J56: 2014-05-01 | K56: 1 minutes | L56: 2014-06-20T01:51:26 | M56: 1 | N56: 0
A57: 3772478 | B57: DaNengMao | C57: t | D57: Platinum | E57: Division Gantrithor Delta | F57: 116 | G57: 88 | H57: 1196 | I57: 16 | J57: 2014-05-04 | K57: 20 hours | L57: 2014-06-20T01:51:26 | M57: 1 | N57: 0
A58: 2281176 | B58: tezzlacoil | C58: z | D58: Platinum | E58: Division Raven Quest | F58: 199 | G58: 186 | H58: 1195 | I58: 9 | J58: 2014-05-21 | K58: 9 hours | L58: 2014-06-20T01:51:27 | M58: 1 | N58: 0
A59: 1549177 | B59: Siphox | C59: z | D59: Platinum | E59: Division Anselm Lambda | F59: 94 | G59: 52 | H59: 1194 | I59: 51 | J59: 2014-05-16 | K59: 1 hours | L59: 2014-06-20T01:51:27 | M59: 1 | N59: 0
A60: 3399633 | B60: Rayleigh | C60: z | D60: Platinum | E60: Division Brood Lord Juliet | F60: 56 | G60: 38 | H60: 1194 | I60: 2 | J60: 2014-05-21 | K60: 9 hours | L60: 2014-06-20T01:51:28 | M60: 1 | N60: 0
A61: 4302738 | B61: huGGy | C61: p | D61: Platinum | E61: Division Prelate Omicron | F61: 58 | G61: 26 | H61: 1194 | I61: 8 | J61: 2014-05-29 | K61: 7 hours | L61: 2014-06-20T01:51:28 | M61: 1 | N61: 0
A62: 5102456 | B62: PocketAces | C62: t | D62: Platinum | E62: Division Hierarch Zeta | F62: 330 | G62: 313 | H62: 1194 | I62: 1 | J62: 2014-05-01 | K62: 1 days | L62: 2014-06-20T01:51:28 | M62: 1 | N62: 0
A63: 5624510 | B63: rogl | C63: z | D63: Platinum | E63: Division Torus Tango | F63: 175 | G63: 160 | H63: 1194 | I63: 1 | J63: 2014-05-03 | K63: 4 hours | L63: 2014-06-20T01:51:29 | M63: 1 | N63: 0
A64: 5135812 | B64: AiuR | C64: p | D64: Platinum | E64: Division Leviathan Kappa | F64: 49 | G64: 35 | H64: 1193 | I64: 16 | J64: 2014-05-03 | K64: 3 hours | L64: 2014-06-20T01:51:29 | M64: 1 | N64: 0
A65: 2250344 | B65: JiveTurkey | C65: t | D65: Platinum | E65: Division Gantrithor Gamma | F65: 223 | G65: 214 | H65: 1192 | I65: 3 | J65: 2014-05-03 | K65: 1 minutes | L65: 2014-06-20T01:51:30 | M65: 1 | N65: 0
A66: 3283295 | B66: HeresiarcH | C66: t | D66: Platinum | E66: Division Colossus Omicron | F66: 160 | G66: 146 | H66: 1192 | I66: 17 | J66: 2014-05-06 | K66: 21 hours | L66: 2014-06-20T01:51:30 | M66: 1 | N66: 0
A67: 905341 | B67: Mavrick | C67: p | D67: Platinum | E67: Division Xerana Kilo | F67: 71 | G67: 69 | H67: 1191 | I67: 0 | J67: 2014-05-08 | K67: 2 hours | L67: 2014-06-20T01:51:30 | M67: 1 | N67: =IF(M67=10,SUM(F67:G67),0) -> 0
A68: 4603736 | B68: nahj | C68: t | D68: Platinum | E68: Division Horner November | F68: 105 | G68: 101 | H68: 1191 | I68: 12 | J68: 2014-05-05 | K68: 14 hours | L68: 2014-06-20T01:51:31 | M68: 1 | N68: 0
A69: 5168543 | B69: nDieElectrOn | C69: z | D69: Platinum | E69: Division Phash Victor | F69: 67 | G69: 56 | H69: 1191 | I69: 11 | J69: 2014-05-04 | K69: 11 hours | L69: 2014-06-20T01:51:31 | M69: 1 | N69: 0
A70: 5492083 | B70: ISeeTheLight | C70: p | D70: Platinum | E70: Division Observer Lima | F70: 124 | G70: 114 | H70: 1191 | I70: 1 | J70: 2014-05-09 | K70: 1 days | L70: 2014-06-20T01:51:32 | M70: 1 | N70: 0
A71: 164069 | B71: Leon | C71: z | D71: Platinum | E71: Division Dominion November | F71: 50 | G71: 40 | H71: 1188 | I71: 5 | J71: 2014-05-23 | K71: 2 hours | L71: 2014-06-20T01:51:32 | M71: 1 | N71: 0
A72: 3416419 | B72: Alpha | C72: p | D72: Platinum | E72: Division Vulture Omicron | F72: 78 | G72: 52 | H72: 1188 | I72: 5 | J72: 2014-05-03 | K72: 3 hours | L72: 2014-06-20T01:51:33 | M72: 1 | N72: 0
A73: 4178845 | B73: RickyBobee | C73: z | D73: Platinum | E73: Division War Pigs Psi | F73: 77 | G73: 37 | H73: 1188 | I73: 75 | J73: 2014-05-24 | K73: 4 hours | L73: 2014-06-20T01:51:33 | M73: 1 | N73: 0
A74: 419451 | B74: BlackStar | C74: z | D74: Platinum | E74: Division Zerus Iota | F74: 201 | G74: 203 | H74: 1187 | I74: 5 | J74: 2014-04-14 | K74: 3 hours | L74: 2014-06-20T01:51:34 | M74: 1 | N74: 0
A75: 4014527 | B75: llllllllllll | C75: z | D75: Platinum | E75: Division Defiler Pi | F75: 87 | G75: 66 | H75: 1187 | I75: 28 | J75: 2014-05-03 | K75: 1 days | L75: 2014-06-20T01:51:34 | M75: 1 | N75: 0
A76: 5048466 | B76: Freaklin | C76: t | D76: Platinum | E76: Division Overlord Alamo | F76: 110 | G76: 100 | H76: 1187 | I76: 1 | J76: 2014-05-02 | K76: 3 hours | L76: 2014-06-20T01:51:35 | M76: 1 | N76: 0
A77: 3514811 | B77: LasCoL | C77: t | D77: Platinum | E77: Division Judicator Iota | F77: 79 | G77: 71 | H77: 1186 | I77: 23 | J77: 2014-05-02 | K77: 1 days | L77: 2014-06-20T01:51:35 | M77: 1 | N77: 0
A78: 4880500 | B78: KayZeR | C78: z | D78: Platinum | E78: Division Changeling Kilo | F78: 92 | G78: 68 | H78: 1186 | I78: 8 | J78: 2014-05-02 | K78: 8 hours | L78: 2014-06-20T01:51:35 | M78: 1 | N78: 0
A79: 772370 | B79: frijolemole | C79: t | D79: Platinum | E79: Division Aldaris Xi | F79: 110 | G79: 110 | H79: 1185 | I79: 1 | J79: 2014-04-14 | K79: 17 hours | L79: 2014-06-20T01:51:36 | M79: 1 | N79: 0
A80: 4386958 | B80: MaTpOcKuH | C80: z | D80: Platinum | E80: Division Shiloh Echo | F80: 85 | G80: 76 | H80: 1185 | I80: 7 | J80: 2014-05-02 | K80: 5 hours | L80: 2014-06-20T01:51:36 | M80: 1 | N80: 0
A81: 4941436 | B81: Cokeholik | C81: t | D81: Platinum | E81: Division Duke Delta | F81: 63 | G81: 55 | H81: 1184 | I81: 5 | J81: 2014-05-14 | K81: 2 hours | L81: 2014-06-20T01:51:36 | M81: 1 | N81: 0
A82: 4333260 | B82: LeTemeraire | C82: z | D82: Platinum | E82: Division Torus Rho | F82: 171 | G82: 179 | H82: 1183 | I82: 8 | J82: 2014-05-02 | K82: 6 hours | L82: 2014-06-20T01:51:37 | M82: 1 | N82: 0
A83: 4526529 | B83: Zero | C83: p | D83: Platinum | E83: Division Auriga Victor | F83: 64 | G83: 59 | H83: 1183 | I83: 4 | J83: 2014-05-02 | K83: 27 minutes | L83: 2014-06-20T01:51:37 | M83: 1 | N83: 0
A84: 3092353 | B84: exp | C84: t | D84: Platinum | E84: Division Warp Prism Xi | F84: 85 | G84: 70 | H84: 1182 | I84: 3 | J84: 2014-05-02 | K84: 58 minutes | L84: 2014-06-20T01:51:38 | M84: 1 | N84: 0
A85: 3990971 | B85: McSwagger | C85: p | D85: Platinum | E85: Division Bucephalus Bravo | F85: 363 | G85: 343 | H85: 1182 | I85: 7 | J85: 2014-05-09 | K85: 6 hours | L85: 2014-06-20T01:51:38 | M85: 1 | N85: 0
A86: 4091202 | B86: WaspVenoM | C86: t | D86: Platinum | E86: Division Dropship Alpha | F86: 86 | G86: 75 | H86: 1182 | I86: 20 | J86: 2014-05-01 | K86: 1 days | L86: 2014-06-20T01:51:38 | M86: 1 | N86: 0
A87: 2741629 | B87: wuning | C87: z | D87: Platinum | E87: Division Void Ray Kilo | F87: 143 | G87: 118 | H87: 1181 | I87: 2 | J87: 2014-06-01 | K87: 12 minutes | L87: 2014-06-20T01:51:39 | M87: 1 | N87: 0
A88: 4774434 | B88: OraKILL | C88: t | D88: Platinum | E88: Division Raven Sigma | F88: 85 | G88: 77 | H88: 1181 | I88: 14 | J88: 2014-05-02 | K88: 6 hours | L88: 2014-06-20T01:51:39 | M88: 1 | N88: 0
A89: 5723987 | B89: SpaCe | C89: z | D89: Platinum | E89: Division War Pigs Pi | F89: 120 | G89: 106 | H89: 1181 | I89: 28 | J89: 2014-05-20 | K89: 1 days | L89: 2014-06-20T01:51:40 | M89: 1 | N89: 0
A90: 281010 | B90: Artenuous | C90: r | D90: Platinum | E90: Division Lenassa Nu | F90: 101 | G90: 98 | H90: 1180 | I90: 2 | J90: 2014-05-28 | K90: 6 hours | L90: 2014-06-20T01:51:40 | M90: 1 | N90: 0
A91: 452581 | B91: SweetWilliam | C91: z | D91: Platinum | E91: Division Prelate Epsilon | F91: 101 | G91: 73 | H91: 1180 | I91: 2 | J91: 2014-06-05 | K91: 2 hours | L91: 2014-06-20T01:51:41 | M91: 1 | N91: 0
A92: 5615613 | B92: Spectro | C92: p | D92: Platinum | E92: Division Grizzly Alpha | F92: 97 | G92: 77 | H92: 1180 | I92: 1 | J92: 2014-06-09 | K92: 13 minutes | L92: 2014-06-20T01:51:41 | M92: 1 | N92: 0
A93: 1222571 | B93: Rasgard | C93: t | D93: Platinum | E93: Division Colossus Omicron | F93: 157 | G93: 134 | H93: 1178 | I93: 0 | J93: 2014-05-06 | K93: 6 hours | L93: 2014-06-20T01:51:41 | M93: 1 | N93: 0
A94: 2159945 | B94: Jah | C94: z | D94: Platinum | E94: Division War Pigs Psi | F94: 55 | G94: 28 | H94: 1178 | I94: 85 | J94: 2014-05-24 | K94: 5 days | L94: 2014-06-20T01:51:42 | M94: 1 | N94: 0
A95: 4668757 | B95: Maloja | C95: r | D95: Platinum | E95: Division Carrier Zed | F95: 50 | G95: 41 | H95: 1178 | I95: 44 | J95: 2014-05-04 | K95: 6 hours | L95: 2014-06-20T01:51:42 | M95: 1 | N95: 0
A96: 5104861 | B96: Nomad | C96: z | D96: Platinum | E96: Division Hierarch Zeta | F96: 223 | G96: 188 | H96: 1178 | I96: 2 | J96: 2014-05-01 | K96: 13 minutes | L96: 2014-06-20T01:51:43 | M96: 1 | N96: 0
A97: 711750 | B97: NoFear | C97: t | D97: Platinum | E97: Division Raven Quest | F97: 204 | G97: 197 | H97: 1176 | I97: 3 | J97: 2014-05-01 | K97: 10 hours | L97: 2014-06-20T01:51:43 | M97: 1 | N97: 0
A98: 1143202 | B98: Monkeylover | C98: p | D98: Platinum | E98: Division Infestor Phi | F98: 62 | G98: 51 | H98: 1176 | I98: 1 | J98: 2014-05-12 | K98: 32 minutes | L98: 2014-06-20T01:51:44 | M98: 1 | N98: 0
A99: 2343726 | B99: MKP | C99: z | D99: Platinum | E99: Division Mutalisk Psi | F99: 78 | G99: 69 | H99: 1176 | I99: 8 | J99: 2014-05-05 | K99: 8 hours | L99: 2014-06-20T01:51:44 | M99: 1 | N99: 0
A100: 2551361 | B100: Soto | C100: p | D100: Platinum | E100: Division Norad Nu | F100: 78 | G100: 73 | H100: 1176 | I100: 21 | J100: 2014-05-02 | K100: 1 days | L100: 2014-06-20T01:51:44 | M100: 1 | N100: 0
A101: 501912 | B101: Church | C101: t | D101: Platinum | E101: Division Nexus Romeo | F101: 229 | G101: 218 | H101: 1175 | I101: 6 | J101: 2014-05-16 | K101: 5 hours | L101: 2014-06-20T01:51:45 | M101: 1 | N101: 0
A102: 2602934 | B102: Trevor | C102: p | D102: Platinum | E102: Division Kalathi Rho | F102: 49 | G102: 42 | H102: 1175 | I102: 4 | J102: 2014-05-03 | K102: 1 hours | L102: 2014-06-20T01:51:46 | M102: 1 | N102: 0
A103: 3989358 | B103: TheShack | C103: z | D103: Platinum | E103: Division Zerus Phi | F103: 48 | G103: 41 | H103: 1175 | I103: 22 | J103: 2014-05-02 | K103: 1 days | L103: 2014-06-20T01:51:46 | M103: 1 | N103: 0
A104: 5438466 | B104: FeaR | C104: t | D104: Platinum | E104: Division Chau Sara Alamo | F104: 49 | G104: 33 | H104: 1175 | I104: 11 | J104: 2014-05-18 | K104: 11 hours | L104: 2014-06-20T01:51:46 | M104: 1 | N104: 0
A105: 126579 | B105: LuffyDmonkey | C105: t | D105: Platinum | E105: Division Overlord Alamo | F105: 79 | G105: 69 | H105: 1174 | I105: 3 | J105: 2014-04-15 | K105: 19 minutes | L105: 2014-06-20T01:51:47 | M105: 1 | N105: 0
A106: 1540474 | B106: Aellerian | C106: z | D106: Platinum | E106: Division Torus Tango | F106: 143 | G106: 120 | H106: 1174 | I106: 8 | J106: 2014-05-02 | K106: 7 hours | L106: 2014-06-20T01:51:47 | M106: 1 | N106: 0
A107: 2746755 | B107: DoKtor | C107: p | D107: Platinum | E107: Division Leviathan Lima | F107: 84 | G107: 76 | H107: 1174 | I107: 2 | J107: 2014-05-04 | K107: 3 hours | L107: 2014-06-20T01:51:48 | M107: 1 | N107: 0
A108: 3737815 | B108: Requiem | C108: z | D108: Platinum | E108: Division Dylar Yankee | F108: 101 | G108: 92 | H108: 1174 | I108: 6 | J108: 2014-05-22 | K108: 4 hours | L108: 2014-06-20T01:51:48 | M108: 1 | N108: 0
A109: 5393524 | B109: IllIllIll | C109: p | D109: Platinum | E109: Division Duke Gamma | F109: 129 | G109: 103 | H109: 1174 | I109: 24 | J109: 2014-05-26 | K109: 1 days | L109: 2014-06-20T01:51:49 | M109: 1 | N109: 0
A110: 5479933 | B110: Victorine | C110: t | D110: Platinum | E110: Division Bhekar Ro Pepper | F110: 88 | G110: 52 | H110: 1174 | I110: 19 | J110: 2014-06-03 | K110: 1 days | L110: 2014-06-20T01:51:49 | M110: 1 | N110: 0
A111: 313215 | B111: RightBauer | C111: p | D111: Platinum | E111: Division Tassadar Beta | F111: 66 | G111: 28 | H111: 1173 | I111: 1 | J111: 2014-05-31 | K111: 21 hours | L111: 2014-06-20T01:51:49 | M111: 1 | N111: 0
A112: 524568 | B112: Rustypipe | C112: z | D112: Platinum | E112: Division War Pigs Psi | F112: 89 | G112: 50 | H112: 1173 | I112: 4 | J112: 2014-05-24 | K112: 1 hours | L112: 2014-06-20T01:51:50 | M112: 1 | N112: 0
A113: 881674 | B113: FamilyAcount | C113: t | D113: Platinum | E113: Division Forge Gamma | F113: 143 | G113: 161 | H113: 1173 | I113: 24 | J113: 2014-05-02 | K113: 1 days | L113: 2014-06-20T01:51:50 | M113: 1 | N113: 0
A114: 2692086 | B114: Erich | C114: p | D114: Platinum | E114: Division Brood Lord Pepper | F114: 71 | G114: 59 | H114: 1173 | I114: 32 | J114: 2014-05-26 | K114: 1 days | L114: 2014-06-20T01:51:50 | M114: 1 | N114: 0
A115: 4448758 | B115: IMStarker | C115: t | D115: Platinum | E115: Division Zerus Phi | F115: 57 | G115: 52 | H115: 1173 | I115: 2 | J115: 2014-05-13 | K115: 4 hours | L115: 2014-06-20T01:51:51 | M115: 1 | N115: 0
A116: 349846 | B116: Blade | C116: p | D116: Platinum | E116: Division Mohandar Indigo | F116: 105 | G116: 91 | H116: 1172 | I116: 65 | J116: 2014-05-05 | K116: 1 days | L116: 2014-06-20T01:51:52 | M116: 1 | N116: 0
A117: 3051565 | B117: fibric | C117: z | D117: Platinum | E117: Division Tal’darim X-Ray | F117: 80 | G117: 51 | H117: 1172 | I117: 30 | J117: 2014-05-10 | K117: 1 days | L117: 2014-06-20T01:51:52 | M117: 1 | N117: 0
A118: 3688731 | B118: llIIlIlIIllI | C118: t | D118: Platinum | E118: Division Dropship Alpha | F118: 71 | G118: 72 | H118: 1171 | I118: 9 | J118: 2014-05-02 | K118: 9 hours | L118: 2014-06-20T01:51:52 | M118: 1 | N118: 0
A119: 590661 | B119: Noname | C119: t | D119: Platinum | E119: Division Zerus Phi | F119: 168 | G119: 161 | H119: 1170 | I119: 6 | J119: 2014-05-02 | K119: 19 hours | L119: 2014-06-20T01:51:53 | M119: 1 | N119: 0
A120: 678377 | B120: Apocalypse | C120: p | D120: Platinum | E120: Division Dragoon Hawk | F120: 145 | G120: 136 | H120: 1170 | I120: 18 | J120: 2014-05-03 | K120: 23 hours | L120: 2014-06-20T01:51:53 | M120: 1 | N120: 0
A121: 1088619 | B121: TedBundy | C121: z | D121: Platinum | E121: Division Pylon Uncle | F121: 85 | G121: 73 | H121: 1170 | I121: 42 | J121: 2014-05-05 | K121: 1 hours | L121: 2014-06-20T01:51:54 | M121: 1 | N121: 0
A122: 2253690 | B122: BolivianFrog | C122: t | D122: Platinum | E122: Division Torus Rho | F122: 94 | G122: 90 | H122: 1170 | I122: 30 | J122: 2014-05-02 | K122: 1 days | L122: 2014-06-20T01:51:54 | M122: 1 | N122: 0
A123: 2443647 | B123: NighTLeafs | C123: t | D123: Platinum | E123: Division Marine Kappa | F123: 61 | G123: 55 | H123: 1170 | I123: 4 | J123: 2014-05-31 | K123: 29 minutes | L123: 2014-06-20T01:51:54 | M123: 1 | N123: 0
A124: 4815370 | B124: GingerKiller | C124: r | D124: Platinum | E124: Division Preserver Hawk | F124: 102 | G124: 110 | H124: 1170 | I124: 23 | J124: 2014-05-07 | K124: 1 days | L124: 2014-06-20T01:51:55 | M124: 1 | N124: 0
A125: 5449287 | B125: VoodooGypsy | C125: z | D125: Platinum | E125: Division War Pigs Psi | F125: 65 | G125: 38 | H125: 1170 | I125: 3 | J125: 2014-05-25 | K125: 1 hours | L125: 2014-06-20T01:51:55 | M125: 1 | N125: 0
A126: 1619199 | B126: Dave | C126: z | D126: Platinum | E126: Division Gantrithor Delta | F126: 125 | G126: 113 | H126: 1169 | I126: 68 | J126: 2014-05-02 | K126: 4 days | L126: 2014-06-20T01:51:55 | M126: 1 | N126: 0
A127: 2607703 | B127: jonarlo | C127: z | D127: Platinum | E127: Division Dominion November | F127: 112 | G127: 82 | H127: 1169 | I127: 16 | J127: 2014-05-23 | K127: 21 hours | L127: 2014-06-20T01:51:56 | M127: 1 | N127: 0
A128: 1066393 | B128: Ose | C128: z | D128: Platinum | E128: Division Dragoon Eta | F128: 149 | G128: 120 | H128: 1168 | I128: 37 | J128: 2014-05-22 | K128: 2 days | L128: 2014-06-20T01:51:56 | M128: 1 | N128: 0
A129: 2848080 | B129: Luzyus | C129: z | D129: Platinum | E129: Division Ultralisk Romeo | F129: 52 | G129: 35 | H129: 1168 | I129: 18 | J129: 2014-06-03 | K129: 23 hours | L129: 2014-06-20T01:51:57 | M129: 1 | N129: 0
A130: 4570883 | B130: SnoW | C130: z | D130: Platinum | E130: Division Infestor Iota | F130: 67 | G130: 45 | H130: 1168 | I130: 8 | J130: 2014-05-17 | K130: 7 hours | L130: 2014-06-20T01:51:57 | M130: 1 | N130: 0
A131: 4933436 | B131: JohnGalt | C131: t | D131: Platinum | E131: Division Chau Sara Alamo | F131: 256 | G131: 244 | H131: 1168 | I131: 1 | J131: 2014-05-18 | K131: 4 hours | L131: 2014-06-20T01:51:58 | M131: 1 | N131: =IF(M131=10,SUM(F131:G131),0) -> 0
A132: 5455508 | B132: Draac | C132: z | D132: Platinum | E132: Division Gantrithor Delta | F132: 230 | G132: 201 | H132: 1168 | I132: 3 | J132: 2014-05-02 | K132: 37 minutes | L132: 2014-06-20T01:51:58 | M132: 1 | N132: 0
A133: 209669 | B133: Modius | C133: t | D133: Platinum | E133: Division UED Upsilon | F133: 106 | G133: 109 | H133: 1167 | I133: 9 | J133: 2014-05-01 | K133: 9 hours | L133: 2014-06-20T01:51:58 | M133: 1 | N133: 0
A134: 305194 | B134: David | C134: z | D134: Platinum | E134: Division Taarim Romeo | F134: 67 | G134: 56 | H134: 1167 | I134: 7 | J134: 2014-05-08 | K134: 5 hours | L134: 2014-06-20T01:51:59 | M134: 1 | N134: 0
A135: 32880 | B135: GeneralSmith | C135: t | D135: Platinum | E135: Division Mutalisk Pi | F135: 64 | G135: 43 | H135: 1166 | I135: 16 | J135: 2014-05-11 | K135: 19 hours | L135: 2014-06-20T01:51:59 | M135: 1 | N135: 0
A136: 2727822 | B136: hantuki | C136: p | D136: Platinum | E136: Division Taarim Mu | F136: 112 | G136: 80 | H136: 1166 | I136: 38 | J136: 2014-05-10 | K136: 2 days | L136: 2014-06-20T01:51:59 | M136: 1 | N136: 0
A137: 344194 | B137: Fatal | C137: p | D137: Platinum | E137: Division Chau Sara Sigma | F137: 57 | G137: 43 | H137: 1165 | I137: 1 | J137: 2014-05-14 | K137: 1 hours | L137: 2014-06-20T01:52:00 | M137: 1 | N137: 0
A138: 2563663 | B138: Wearth | C138: t | D138: Platinum | E138: Division Bhekar Ro Pepper | F138: 89 | G138: 86 | H138: 1165 | I138: 23 | J138: 2014-05-05 | K138: 1 days | L138: 2014-06-20T01:52:00 | M138: 1 | N138: 0
A139: 2996609 | B139: cdtThylacine | C139: z | D139: Platinum | E139: Division Observer Kappa | F139: 68 | G139: 35 | H139: 1165 | I139: 6 | J139: 2014-06-17 | K139: 4 hours | L139: 2014-06-20T01:52:01 | M139: 1 | N139: 0
A140: 3300740 | B140: TheGreatMoOk | C140: z | D140: Platinum | E140: Division Chau Sara Sigma | F140: 104 | G140: 74 | H140: 1165 | I140: 63 | J140: 2014-05-14 | K140: 3 days | L140: 2014-06-20T01:52:01 | M140: 1 | N140: 0
A141: 4023415 | B141: davo | C141: z | D141: Platinum | E141: Division Bhekar Ro Juliet | F141: 99 | G141: 85 | H141: 1165 | I141: 3 | J141: 2014-05-03 | K141: 7 minutes | L141: 2014-06-20T01:52:02 | M141: 1 | N141: 0
A142: 4543192 | B142: Wizard | C142: p | D142: Platinum | E142: Division Raven Sigma | F142: 113 | G142: 95 | H142: 1165 | I142: 6 | J142: 2014-05-02 | K142: 3 hours | L142: 2014-06-20T01:52:03 | M142: 1 | N142: 0
A143: 5612136 | B143: smudge | C143: p | D143: Platinum | E143: Division Pylon Yankee | F143: 147 | G143: 129 | H143: 1165 | I143: 4 | J143: 2014-05-04 | K143: 1 hours | L143: 2014-06-20T01:52:03 | M143: 1 | N143: 0
A144: 288130 | B144: Automatic | C144: t | D144: Platinum | E144: Division Pylon Uncle | F144: 116 | G144: 91 | H144: 1164 | I144: 16 | J144: 2014-05-05 | K144: 17 hours | L144: 2014-06-20T01:52:03 | M144: 1 | N144: 0
A145: 467446 | B145: lowlypawn | C145: z | D145: Platinum | E145: Division Leviathan Lima | F145: 191 | G145: 209 | H145: 1164 | I145: 1 | J145: 2014-05-02 | K145: 15 hours | L145: 2014-06-20T01:52:04 | M145: 1 | N145: 0
A146: 3273463 | B146: Ataraxia | C146: t | D146: Platinum | E146: Division Marine Lima | F146: 82 | G146: 46 | H146: 1164 | I146: 3 | J146: 2014-06-07 | K146: 20 minutes | L146: 2014-06-20T01:52:04 | M146: 1 | N146: 0
A147: 4988295 | B147: Fartbox | C147: z | D147: Platinum | E147: Division Norad Nu | F147: 70 | G147: 53 | H147: 1164 | I147: 73 | J147: 2014-05-02 | K147: 3 days | L147: 2014-06-20T01:52:04 | M147: 1 | N147: 0
A148: 5186983 | B148: InfestedSLK | C148: z | D148: Platinum | E148: Division Gantrithor Delta | F148: 103 | G148: 90 | H148: 1164 | I148: 3 | J148: 2014-05-03 | K148: 1 minutes | L148: 2014-06-20T01:52:05 | M148: 1 | N148: 0
A149: 5731868 | B149: FORESTMEN | C149: t | D149: Platinum | E149: Division Valkyrie Sierra | F149: 61 | G149: 42 | H149: 1164 | I149: 15 | J149: 2014-06-04 | K149: 11 hours | L149: 2014-06-20T01:52:05 | M149: 1 | N149: 0
A150: 2142165 | B150: Azron | C150: p | D150: Platinum | E150: Division Marine Lima | F150: 47 | G150: 53 | H150: 1163 | I150: 12 | J150: 2014-06-07 | K150: 14 hours | L150: 2014-06-20T01:52:06 | M150: 1 | N150: 0
A151: 2522917 | B151: TyranT | C151: z | D151: Platinum | E151: Division Anselm Lambda | F151: 173 | G151: 157 | H151: 1163 | I151: 18 | J151: 2014-05-16 | K151: 1 days | L151: 2014-06-20T01:52:06 | M151: 1 | N151: 0
A152: 4110419 | B152: Great | C152: t | D152: Platinum | E152: Division Warp Prism Lambda | F152: 89 | G152: 83 | H152: 1163 | I152: 13 | J152: 2014-05-02 | K152: 10 hours | L152: 2014-06-20T01:52:07 | M152: 1 | N152: 0
A153: 4307887 | B153: Nike | C153: r | D153: Platinum | E153: Division Warp Prism Lambda | F153: 204 | G153: 186 | H153: 1163 | I153: 24 | J153: 2014-05-02 | K153: 1 days | L153: 2014-06-20T01:52:07 | M153: 1 | N153: 0
A154: 1155150 | B154: Hans | C154: t | D154: Platinum | E154: Division Khalis Whiskey | F154: 76 | G154: 72 | H154: 1162 | I154: 20 | J154: 2014-05-02 | K154: 1 days | L154: 2014-06-20T01:52:08 | M154: 1 | N154: 0
A155: 3488821 | B155: hondofish | C155: z | D155: Platinum | E155: Division Brood Lord Juliet | F155: 100 | G155: 81 | H155: 1162 | I155: 11 | J155: 2014-05-21 | K155: 12 hours | L155: 2014-06-20T01:52:08 | M155: 1 | N155: 0
A156: 5328332 | B156: ghosteater | C156: t | D156: Platinum | E156: Division UED Charlie | F156: 70 | G156: 62 | H156: 1162 | I156: 6 | J156: 2014-05-02 | K156: 4 hours | L156: 2014-06-20T01:52:08 | M156: 1 | N156: 0
A157: 875949 | B157: bawby | C157: t | D157: Platinum | E157: Division Lenassa Theta | F157: 70 | G157: 82 | H157: 1161 | I157: 4 | J157: 2014-05-24 | K157: 57 minutes | L157: 2014-06-20T01:52:09 | M157: 1 | N157: 0
A158: 1138931 | B158: Funky | C158: t | D158: Platinum | E158: Division Xerana Kilo | F158: 205 | G158: 209 | H158: 1161 | I158: 1 | J158: 2014-05-07 | K158: 17 minutes | L158: 2014-06-20T01:52:10 | M158: 1 | N158: 0
A159: 2854603 | B159: FrankDaTank | C159: z | D159: Platinum | E159: Division Bucephalus Dixie | F159: 77 | G159: 50 | H159: 1161 | I159: 0 | J159: 2014-06-15 | K159: 1 hours | L159: 2014-06-20T01:52:10 | M159: 1 | N159: 0
A160: 2899451 | B160: Ming | C160: t | D160: Platinum | E160: Division Swann Nu | F160: 60 | G160: 24 | H160: 1161 | I160: 83 | J160: 2014-05-14 | K160: 5 days | L160: 2014-06-20T01:52:11 | M160: 1 | N160: 0
A161: 914167 | B161: Helo | C161: p | D161: Platinum | E161: Division Raven Alamo | F161: 119 | G161: 85 | H161: 1160 | I161: 20 | J161: 2014-05-03 | K161: 1 days | L161: 2014-06-20T01:52:11 | M161: 1 | N161: 0
A162: 1174884 | B162: pkpenguin | C162: z | D162: Platinum | E162: Division Overmind Omega | F162: 46 | G162: 33 | H162: 1160 | I162: 45 | J162: 2014-05-04 | K162: 1 hours | L162: 2014-06-20T01:52:12 | M162: 1 | N162: 0
A163: 2264308 | B163: Hemingway | C163: t | D163: Platinum | E163: Division Infestor Phi | F163: 96 | G163: 90 | H163: 1160 | I163: 5 | J163: 2014-05-12 | K163: 3 hours | L163: 2014-06-20T01:52:12 | M163: 1 | N163: 0
A164: 2541257 | B164: flanaganapus | C164: z | D164: Platinum | E164: Division Changeling Tau | F164: 74 | G164: 69 | H164: 1160 | I164: 7 | J164: 2014-05-02 | K164: 6 hours | L164: 2014-06-20T01:52:12 | M164: 1 | N164: 0
A165: 3067201 | B165: Tysunami | C165: z | D165: Platinum | E165: Division Judicator Phi | F165: 68 | G165: 64 | H165: 1160 | I165: 16 | J165: 2014-05-02 | K165: 21 hours | L165: 2014-06-20T01:52:13 | M165: 1 | N165: 0
A166: 4299494 | B166: lIlIlIlIlIlI | C166: t | D166: Platinum | E166: Division Carrier Mars | F166: 65 | G166: 37 | H166: 1160 | I166: 14 | J166: 2014-05-03 | K166: 16 hours | L166: 2014-06-20T01:52:13 | M166: 1 | N166: 0
A167: 4716484 | B167: Dozule | C167: p | D167: Platinum | E167: Division Tal’darim Beta | F167: 108 | G167: 113 | H167: 1160 | I167: 9 | J167: 2014-05-07 | K167: 9 hours | L167: 2014-06-20T01:52:13 | M167: 1 | N167: 0
A168: 5296129 | B168: PinoyAKO | C168: t | D168: Platinum | E168: Division Dragoon Hawk | F168: 123 | G168: 119 | H168: 1160 | I168: 39 | J168: 2014-05-03 | K168: 2 days | L168: 2014-06-20T01:52:13 | M168: 1 | N168: 0
A169: 500632 | B169: robyyz | C169: t | D169: Platinum | E169: Division Raven Sigma | F169: 242 | G169: 257 | H169: 1159 | I169: 5 | J169: 2014-05-02 | K169: 2 hours | L169: 2014-06-20T01:52:14 | M169: 1 | N169: 0
A170: 3551077 | B170: Mowgli | C170: z | D170: Platinum | E170: Division Banshee Hawk | F170: 84 | G170: 61 | H170: 1159 | I170: 2 | J170: 2014-05-21 | K170: 21 hours | L170: 2014-06-20T01:52:14 | M170: 1 | N170: 0
A171: 4036426 | B171: Cerdoken | C171: z | D171: Platinum | E171: Division Changeling Tau | F171: 119 | G171: 116 | H171: 1159 | I171: 16 | J171: 2014-05-03 | K171: 21 hours | L171: 2014-06-20T01:52:15 | M171: 1 | N171: 0
A172: 609103 | B172: Doihy | C172: z | D172: Platinum | E172: Division Raven Alamo | F172: 126 | G172: 101 | H172: 1158 | I172: 9 | J172: 2014-05-03 | K172: 1 days | L172: 2014-06-20T01:52:15 | M172: 1 | N172: 0
A173: 916034 | B173: MahlerG | C173: p | D173: Platinum | E173: Division Gorn Pepper | F173: 64 | G173: 56 | H173: 1158 | I173: 4 | J173: 2014-05-02 | K173: 1 hours | L173: 2014-06-20T01:52:15 | M173: 1 | N173: 0
A174: 4007920 | B174: Jester | C174: t | D174: Platinum | E174: Division Overmind Omega | F174: 169 | G174: 163 | H174: 1158 | I174: 6 | J174: 2014-05-03 | K174: 23 hours | L174: 2014-06-20T01:52:16 | M174: 1 | N174: 0
A175: 680209 | B175: UCWATIDITHAR | C175: t | D175: Platinum | E175: Division Hauler Zed | F175: 74 | G175: 71 | H175: 1157 | I175: 1 | J175: 2014-05-24 | K175: 3 hours | L175: 2014-06-20T01:52:16 | M175: 1 | N175: 0
A176: 1863427 | B176: Delay | C176: t | D176: Platinum | E176: Division Vulture Omicron | F176: 56 | G176: 74 | H176: 1157 | I176: 19 | J176: 2014-04-19 | K176: 1 days | L176: 2014-06-20T01:52:16 | M176: 1 | N176: 0
A177: 2873815 | B177: PencilBean | C177: z | D177: Platinum | E177: Division Anselm Lambda | F177: 168 | G177: 163 | H177: 1157 | I177: 5 | J177: 2014-05-16 | K177: 2 hours | L177: 2014-06-20T01:52:17 | M177: 1 | N177: 0
A178: 3089054 | B178: dahaka | C178: p | D178: Platinum | E178: Division Khaydarin Oscar | F178: 146 | G178: 113 | H178: 1157 | I178: 8 | J178: 2014-05-07 | K178: 8 hours | L178: 2014-06-20T01:52:17 | M178: 1 | N178: 0
A179: 3140366 | B179: Duncan | C179: t | D179: Platinum | E179: Division Jorgensen Whiskey | F179: 196 | G179: 153 | H179: 1157 | I179: 32 | J179: 2014-05-22 | K179: 1 days | L179: 2014-06-20T01:52:17 | M179: 1 | N179: 0
A180: 3287650 | B180: TASTYWAFFLE | C180: r | D180: Platinum | E180: Division Typhon Beta | F180: 66 | G180: 29 | H180: 1157 | I180: 6 | J180: 2014-06-01 | K180: 4 hours | L180: 2014-06-20T01:52:18 | M180: 1 | N180: 0
A181: 3727933 | B181: Leefknay | C181: t | D181: Platinum | E181: Division Carrier Foxtrot | F181: 81 | G181: 81 | H181: 1157 | I181: 7 | J181: 2014-05-06 | K181: 5 hours | L181: 2014-06-20T01:52:18 | M181: 1 | N181: 0
A182: 4296195 | B182: Joannedark | C182: r | D182: Platinum | E182: Division Ulrezaj Chi | F182: 106 | G182: 106 | H182: 1157 | I182: 21 | J182: 2014-05-05 | K182: 1 days | L182: 2014-06-20T01:52:19 | M182: 1 | N182: 0
A183: 4476733 | B183: Daytar | C183: z | D183: Platinum | E183: Division Duke Gamma | F183: 67 | G183: 40 | H183: 1157 | I183: 55 | J183: 2014-05-17 | K183: 2 days | L183: 2014-06-20T01:52:19 | M183: 1 | N183: 0
A184: 5130844 | B184: Lenzman | C184: z | D184: Platinum | E184: Division Leviathan Lima | F184: 144 | G184: 138 | H184: 1157 | I184: 6 | J184: 2014-05-14 | K184: 4 hours | L184: 2014-06-20T01:52:20 | M184: 1 | N184: 0
A185: 492652 | B185: Chad | C185: p | D185: Platinum | E185: Division Xerana Kilo | F185: 73 | G185: 55 | H185: 1156 | I185: 5 | J185: 2014-05-07 | K185: 20 hours | L185: 2014-06-20T01:52:20 | M185: 1 | N185: 0
A186: 4426437 | B186: MathObsessed | C186: t | D186: Platinum | E186: Division Marine Lima | F186: 273 | G186: 237 | H186: 1156 | I186: 10 | J186: 2014-06-07 | K186: 11 hours | L186: 2014-06-20T01:52:20 | M186: 1 | N186: 0
A187: 494723 | B187: romavictoria | C187: t | D187: Platinum | E187: Division Raven Quest | F187: 98 | G187: 89 | H187: 1155 | I187: 23 | J187: 2014-05-01 | K187: 1 days | L187: 2014-06-20T01:52:21 | M187: 1 | N187: 0
A188: 1044472 | B188: Sinme | C188: z | D188: Platinum | E188: Division Bhekar Ro Juliet | F188: 106 | G188: 95 | H188: 1155 | I188: 7 | J188: 2014-05-04 | K188: 6 hours | L188: 2014-06-20T01:52:21 | M188: 1 | N188: 0
A189: 1656818 | B189: Huna | C189: p | D189: Platinum | E189: Division Kalathi Rho | F189: 49 | G189: 36 | H189: 1155 | I189: 17 | J189: 2014-05-03 | K189: 10 hours | L189: 2014-06-20T01:52:21 | M189: 1 | N189: 0
A190: 2091237 | B190: Holiday | C190: z | D190: Platinum | E190: Division Gantrithor Gamma | F190: 67 | G190: 56 | H190: 1155 | I190: 7 | J190: 2014-06-01 | K190: 5 hours | L190: 2014-06-20T01:52:22 | M190: 1 | N190: 0
A191: 2561995 | B191: ImmortaLz | C191: z | D191: Platinum | E191: Division Tal’darim X-Ray | F191: 132 | G191: 95 | H191: 1155 | I191: 3 | J191: 2014-05-31 | K191: 36 minutes | L191: 2014-06-20T01:52:22 | M191: 1 | N191: 0
A192: 3668570 | B192: IMoGsPrime | C192: t | D192: Platinum | E192: Division Agria Charlie | F192: 99 | G192: 64 | H192: 1155 | I192: 1 | J192: 2014-06-18 | K192: 5 hours | L192: 2014-06-20T01:52:22 | M192: 1 | N192: 0
A193: 4085437 | B193: DynamiteBang | C193: z | D193: Platinum | E193: Division Nexus Mu | F193: 40 | G193: 44 | H193: 1155 | I193: 1 | J193: 2014-05-01 | K193: 46 minutes | L193: 2014-06-20T01:52:23 | M193: 1 | N193: 0
A194: 10060 | B194: SolidDragon | C194: p | D194: Platinum | E194: Division Dylar Uncle | F194: 58 | G194: 52 | H194: 1154 | I194: 11 | J194: 2014-05-26 | K194: 8 hours | L194: 2014-06-20T01:52:23 | M194: 1 | N194: 0
A195: 1879260 | B195: RabbiT | C195: p | D195: Platinum | E195: Division Norad Theta | F195: 60 | G195: 39 | H195: 1154 | I195: 36 | J195: 2014-05-17 | K195: 2 days | L195: 2014-06-20T01:52:24 | M195: 1 | N195: =IF(M195=10,SUM(F195:G195),0) -> 0
A196: 5596481 | B196: Bawss | C196: z | D196: Platinum | E196: Division Gorn Pepper | F196: 149 | G196: 135 | H196: 1154 | I196: 22 | J196: 2014-05-02 | K196: 1 days | L196: 2014-06-20T01:52:24 | M196: 1 | N196: 0
A197: 2989200 | B197: VaroClaw | C197: p | D197: Platinum | E197: Division Dylar Uncle | F197: 88 | G197: 80 | H197: 1153 | I197: 2 | J197: 2014-05-27 | K197: 26 minutes | L197: 2014-06-20T01:52:24 | M197: 1 | N197: 0
A198: 3932155 | B198: Dogen | C198: p | D198: Platinum | E198: Division Warp Prism Xi | F198: 93 | G198: 86 | H198: 1153 | I198: 4 | J198: 2014-05-02 | K198: 1 hours | L198: 2014-06-20T01:52:25 | M198: 1 | N198: 0
A199: 4001353 | B199: darkluster | C199: p | D199: Platinum | E199: Division Khaydarin Alpha | F199: 65 | G199: 44 | H199: 1153 | I199: 16 | J199: 2014-05-10 | K199: 3 hours | L199: 2014-06-20T01:52:25 | M199: 1 | N199: 0
A200: 4386375 | B200: Bexy | C200: z | D200: Platinum | E200: Division Dylar Yankee | F200: 161 | G200: 126 | H200: 1153 | I200: 3 | J200: 2014-05-22 | K200: 24 minutes | L200: 2014-06-20T01:52:26 | M200: 1 | N200: 0
... 4300 more rows

Sheet 1v1 Diamond
A1: ID | B1: Name | C1: Race | D1: League | E1: Division Name | F1: Wins | G1: Losses | H1: Score | I1: Bonus Pool | J1: Join Date | K1: Last Game | L1: Timestamp | M1: Bonus Pool Weeks Remaining | N1: Inactive Player Games Played
A2: 3542177 | B2: Cephei | C2: z | D2: Diamond | E2: Division Braken Nu | F2: 101 | G2: 41 | H2: 1384 | I2: 4 | J2: 2014-05-03 | K2: 3 hours | L2: 2014-06-20T00:27:58 | M2: 1 | N2: =IF(M2=10,SUM(F2:G2),0) -> 0
A3: 736965 | B3: TyrantJunior | C3: t | D3: Diamond | E3: Division Banshee Phi | F3: 86 | G3: 64 | H3: 1378 | I3: 8 | J3: 2014-04-28 | K3: 7 hours | L3: 2014-06-20T00:27:58 | M3: 1 | N3: =IF(M3=10,SUM(F3:G3),0) -> 0
A4: 2879029 | B4: Cryo | C4: t | D4: Diamond | E4: Division New Folsom Quest | F4: 85 | G4: 6 | H4: 1378 | I4: 30 | J4: 2014-05-26 | K4: 21 hours | L4: 2014-06-20T00:27:58 | M4: 1 | N4: 0
A5: 412615 | B5: Fallen | C5: z | D5: Diamond | E5: Division Tyrador November | F5: 200 | G5: 155 | H5: 1367 | I5: 1 | J5: 2014-05-28 | K5: 2 hours | L5: 2014-06-20T00:27:59 | M5: 1 | N5: 0
A6: 3138391 | B6: llllllllllll | C6: p | D6: Diamond | E6: Division Wraith Gravity | F6: 105 | G6: 104 | H6: 1367 | I6: 23 | J6: 2014-04-14 | K6: 20 hours | L6: 2014-06-20T00:27:59 | M6: 1 | N6: 0
A7: 4458840 | B7: IIIIIIIIIIII | C7: z | D7: Diamond | E7: Division Duke Charlie | F7: 111 | G7: 30 | H7: 1349 | I7: 12 | J7: 2014-06-03 | K7: 15 hours | L7: 2014-06-20T00:28:00 | M7: 1 | N7: 0
A8: 340013 | B8: YellOwSky | C8: p | D8: Diamond | E8: Division Judicator X-Ray | F8: 85 | G8: 66 | H8: 1347 | I8: 1 | J8: 2014-04-14 | K8: 20 hours | L8: 2014-06-20T00:28:00 | M8: 1 | N8: 0
A9: 2901916 | B9: Elitist | C9: p | D9: Diamond | E9: Division Ghost Uncle | F9: 308 | G9: 281 | H9: 1347 | I9: 1 | J9: 2014-04-14 | K9: 3 minutes | L9: 2014-06-20T00:28:00 | M9: 1 | N9: 0
A10: 4174935 | B10: Acolyte | C10: z | D10: Diamond | E10: Division Araq Alpha | F10: 95 | G10: 80 | H10: 1347 | I10: 3 | J10: 2014-04-17 | K10: 25 minutes | L10: 2014-06-20T00:28:01 | M10: 1 | N10: 0
A11: 4163689 | B11: Nova | C11: r | D11: Diamond | E11: Division Zealot Dixie | F11: 91 | G11: 22 | H11: 1345 | I11: 47 | J11: 2014-05-31 | K11: 2 days | L11: 2014-06-20T00:28:01 | M11: 1 | N11: 0
A12: 4294171 | B12: TerraRu | C12: p | D12: Diamond | E12: Division Hanson Delta | F12: 98 | G12: 44 | H12: 1340 | I12: 1 | J12: 2014-05-15 | K12: 18 hours | L12: 2014-06-20T00:28:01 | M12: 1 | N12: 0
A13: 4367193 | B13: MarineKing | C13: t | D13: Diamond | E13: Division Overmind X-Ray | F13: 87 | G13: 25 | H13: 1337 | I13: 27 | J13: 2014-06-04 | K13: 1 days | L13: 2014-06-20T00:28:02 | M13: 1 | N13: 0
A14: 639045 | B14: beans | C14: z | D14: Diamond | E14: Division Raven Sigma | F14: 179 | G14: 177 | H14: 1335 | I14: 3 | J14: 2014-04-18 | K14: 1 hours | L14: 2014-06-20T00:28:02 | M14: 1 | N14: 0
A15: 4469411 | B15: OrAnge | C15: t | D15: Diamond | E15: Division Duke Charlie | F15: 138 | G15: 110 | H15: 1335 | I15: 5 | J15: 2014-06-03 | K15: 3 hours | L15: 2014-06-20T00:28:02 | M15: 1 | N15: 0
A16: 3323080 | B16: BlueRibbonQc | C16: t | D16: Diamond | E16: Division Dominion Epsilon | F16: 185 | G16: 160 | H16: 1332 | I16: 2 | J16: 2014-04-15 | K16: 15 minutes | L16: 2014-06-20T00:28:03 | M16: 1 | N16: 0
A17: 4414308 | B17: Claire | C17: t | D17: Diamond | E17: Division New Folsom Quest | F17: 90 | G17: 67 | H17: 1331 | I17: 4 | J17: 2014-05-25 | K17: 1 hours | L17: 2014-06-20T00:28:03 | M17: 1 | N17: 0
A18: 2692516 | B18: Lokk | C18: t | D18: Diamond | E18: Division Khaydarin Lima | F18: 71 | G18: 58 | H18: 1328 | I18: 6 | J18: 2014-04-24 | K18: 6 hours | L18: 2014-06-20T00:28:03 | M18: 1 | N18: 0
A19: 2188016 | B19: Micromancer | C19: t | D19: Diamond | E19: Division Meinhoff Juliet | F19: 112 | G19: 112 | H19: 1327 | I19: 0 | J19: 2014-04-18 | K19: 1 hours | L19: 2014-06-20T00:28:03 | M19: 1 | N19: 0
A20: 4377066 | B20: Ohayoo | C20: z | D20: Diamond | E20: Division Queen Xi | F20: 148 | G20: 108 | H20: 1326 | I20: 3 | J20: 2014-04-28 | K20: 1 hours | L20: 2014-06-20T00:28:04 | M20: 1 | N20: 0
A21: 4628683 | B21: Exogene | C21: t | D21: Diamond | E21: Division Jorgensen Omega | F21: 72 | G21: 51 | H21: 1322 | I21: 9 | J21: 2014-04-14 | K21: 10 hours | L21: 2014-06-20T00:28:04 | M21: 1 | N21: 0
A22: 1740474 | B22: TenaciousDG | C22: z | D22: Diamond | E22: Division Bucephalus Delta | F22: 120 | G22: 105 | H22: 1321 | I22: 77 | J22: 2014-04-21 | K22: 5 days | L22: 2014-06-20T00:28:04 | M22: 1 | N22: 0
A23: 1127039 | B23: Chocoboo | C23: z | D23: Diamond | E23: Division Scion Lambda | F23: 67 | G23: 56 | H23: 1318 | I23: 15 | J23: 2014-05-10 | K23: 19 hours | L23: 2014-06-20T00:28:05 | M23: 1 | N23: 0
A24: 1653574 | B24: SKYTOSS | C24: p | D24: Diamond | E24: Division Akilae Bravo | F24: 93 | G24: 79 | H24: 1317 | I24: 2 | J24: 2014-05-16 | K24: 21 minutes | L24: 2014-06-20T00:28:05 | M24: 1 | N24: 0
A25: 345197 | B25: SoaDogS | C25: p | D25: Diamond | E25: Division Nova November | F25: 121 | G25: 104 | H25: 1313 | I25: 20 | J25: 2014-04-14 | K25: 1 days | L25: 2014-06-20T00:28:06 | M25: 1 | N25: 0
A26: 3787639 | B26: KobeSystem | C26: p | D26: Diamond | E26: Division Artika Omicron | F26: 138 | G26: 113 | H26: 1313 | I26: 20 | J26: 2014-05-12 | K26: 1 days | L26: 2014-06-20T00:28:06 | M26: 1 | N26: 0
A27: 2630428 | B27: YasirOh | C27: p | D27: Diamond | E27: Division Siege Tank Yankee | F27: 151 | G27: 118 | H27: 1312 | I27: 0 | J27: 2014-05-14 | K27: 5 minutes | L27: 2014-06-20T00:28:07 | M27: 1 | N27: 0
A28: 3111896 | B28: MrNinja | C28: p | D28: Diamond | E28: Division Khaydarin Lima | F28: 84 | G28: 81 | H28: 1312 | I28: 4 | J28: 2014-04-14 | K28: 2 hours | L28: 2014-06-20T00:28:07 | M28: 1 | N28: 0
A29: 377834 | B29: Kesai | C29: t | D29: Diamond | E29: Division Zasz Kappa | F29: 316 | G29: 253 | H29: 1311 | I29: 2 | J29: 2014-05-08 | K29: 8 minutes | L29: 2014-06-20T00:28:08 | M29: 1 | N29: 0
A30: 3501713 | B30: HopeKills | C30: z | D30: Diamond | E30: Division Sargas Theta | F30: 183 | G30: 138 | H30: 1311 | I30: 33 | J30: 2014-04-27 | K30: 2 days | L30: 2014-06-20T00:28:08 | M30: 1 | N30: 0
A31: 4290049 | B31: Swifty | C31: z | D31: Diamond | E31: Division Kagg Pi | F31: 218 | G31: 137 | H31: 1309 | I31: 66 | J31: 2014-05-14 | K31: 4 days | L31: 2014-06-20T00:28:09 | M31: 1 | N31: 0
A32: 5555684 | B32: Walle | C32: z | D32: Diamond | E32: Division Spectre Phi | F32: 51 | G32: 27 | H32: 1308 | I32: 44 | J32: 2014-05-18 | K32: 2 days | L32: 2014-06-20T00:28:09 | M32: 1 | N32: 0
A33: 279766 | B33: eNtitY | C33: p | D33: Diamond | E33: Division Moria Kilo | F33: 105 | G33: 107 | H33: 1305 | I33: 15 | J33: 2014-04-14 | K33: 20 hours | L33: 2014-06-20T00:28:10 | M33: 1 | N33: 0
A34: 3936931 | B34: Enak | C34: p | D34: Diamond | E34: Division Agria Romeo | F34: 337 | G34: 309 | H34: 1303 | I34: 9 | J34: 2014-04-15 | K34: 10 hours | L34: 2014-06-20T00:28:10 | M34: 1 | N34: 0
A35: 4069189 | B35: prOkilleR | C35: t | D35: Diamond | E35: Division Gantrithor Psi | F35: 100 | G35: 103 | H35: 1302 | I35: 13 | J35: 2014-04-16 | K35: 7 hours | L35: 2014-06-20T00:28:11 | M35: 1 | N35: 0
A36: 2243700 | B36: WiTuLo | C36: z | D36: Diamond | E36: Division Wraith Gravity | F36: 101 | G36: 62 | H36: 1300 | I36: 2 | J36: 2014-05-02 | K36: 14 minutes | L36: 2014-06-20T00:28:11 | M36: 1 | N36: 0
A37: 2462451 | B37: grepStar | C37: r | D37: Diamond | E37: Division Raven Sigma | F37: 175 | G37: 156 | H37: 1298 | I37: 1 | J37: 2014-04-21 | K37: 5 minutes | L37: 2014-06-20T00:28:12 | M37: 1 | N37: 0
A38: 3966618 | B38: SpongeHead | C38: t | D38: Diamond | E38: Division Tabrenus Beta | F38: 88 | G38: 74 | H38: 1298 | I38: 9 | J38: 2014-04-15 | K38: 10 hours | L38: 2014-06-20T00:28:12 | M38: 1 | N38: 0
A39: 4495258 | B39: Krash | C39: z | D39: Diamond | E39: Division Gorn Pepper | F39: 55 | G39: 23 | H39: 1298 | I39: 78 | J39: 2014-05-04 | K39: 4 days | L39: 2014-06-20T00:28:13 | M39: 1 | N39: 0
A40: 5003734 | B40: Sly | C40: p | D40: Diamond | E40: Division Selendis Gamma | F40: 112 | G40: 93 | H40: 1295 | I40: 3 | J40: 2014-04-15 | K40: 1 hours | L40: 2014-06-20T00:28:13 | M40: 1 | N40: 0
A41: 4949099 | B41: StormyNights | C41: z | D41: Diamond | E41: Division Routhe Rho | F41: 93 | G41: 50 | H41: 1294 | I41: 0 | J41: 2014-06-13 | K41: 10 hours | L41: 2014-06-20T00:28:13 | M41: 1 | N41: 0
A42: 1363825 | B42: Tosstradamus | C42: r | D42: Diamond | E42: Division Dominion Epsilon | F42: 141 | G42: 133 | H42: 1293 | I42: 2 | J42: 2014-04-15 | K42: 15 minutes | L42: 2014-06-20T00:28:14 | M42: 1 | N42: 0
A43: 2701451 | B43: aigoo | C43: p | D43: Diamond | E43: Division Artika Omicron | F43: 87 | G43: 58 | H43: 1293 | I43: 4 | J43: 2014-05-10 | K43: 5 minutes | L43: 2014-06-20T00:28:14 | M43: 1 | N43: 0
A44: 4572275 | B44: Noctis | C44: t | D44: Diamond | E44: Division Raven Sigma | F44: 72 | G44: 68 | H44: 1293 | I44: 4 | J44: 2014-04-18 | K44: 3 hours | L44: 2014-06-20T00:28:15 | M44: 1 | N44: 0
A45: 839372 | B45: Scorber | C45: z | D45: Diamond | E45: Division Ramsey Gamma | F45: 76 | G45: 39 | H45: 1289 | I45: 0 | J45: 2014-05-06 | K45: 17 hours | L45: 2014-06-20T00:28:15 | M45: 1 | N45: 0
A46: 316908 | B46: Tempest | C46: p | D46: Diamond | E46: Division Warbringer Kappa | F46: 54 | G46: 46 | H46: 1288 | I46: 1 | J46: 2014-04-16 | K46: 12 minutes | L46: 2014-06-20T00:28:16 | M46: 1 | N46: 0
A47: 3994237 | B47: BlackMEsa | C47: z | D47: Diamond | E47: Division Reaver Zeta | F47: 147 | G47: 139 | H47: 1287 | I47: 7 | J47: 2014-04-16 | K47: 6 hours | L47: 2014-06-20T00:28:16 | M47: 1 | N47: 0
A48: 2632277 | B48: Psychosis | C48: z | D48: Diamond | E48: Division Wraith Gravity | F48: 123 | G48: 108 | H48: 1283 | I48: 3 | J48: 2014-04-14 | K48: 1 hours | L48: 2014-06-20T00:28:17 | M48: 1 | N48: 0
A49: 2296939 | B49: Sketchy | C49: z | D49: Diamond | E49: Division Warbringer Kappa | F49: 59 | G49: 63 | H49: 1282 | I49: 5 | J49: 2014-05-22 | K49: 4 hours | L49: 2014-06-20T00:28:17 | M49: 1 | N49: 0
A50: 5631090 | B50: Neighbor | C50: t | D50: Diamond | E50: Division Feld Upsilon | F50: 89 | G50: 66 | H50: 1282 | I50: 50 | J50: 2014-04-15 | K50: 3 days | L50: 2014-06-20T00:28:18 | M50: 1 | N50: 0
A51: 444326 | B51: Knar | C51: z | D51: Diamond | E51: Division Hanson Chi | F51: 134 | G51: 125 | H51: 1281 | I51: 22 | J51: 2014-04-19 | K51: 1 days | L51: 2014-06-20T00:28:18 | M51: 1 | N51: 0
A52: 5769931 | B52: ScumBag | C52: z | D52: Diamond | E52: Division Jorgensen Omega | F52: 63 | G52: 39 | H52: 1281 | I52: 1 | J52: 2014-06-12 | K52: 2 minutes | L52: 2014-06-20T00:28:19 | M52: 1 | N52: 0
A53: 4187160 | B53: KSdarkThor | C53: t | D53: Diamond | E53: Division Nova November | F53: 122 | G53: 87 | H53: 1280 | I53: 11 | J53: 2014-05-09 | K53: 1 hours | L53: 2014-06-20T00:28:19 | M53: 1 | N53: 0
A54: 4292791 | B54: subkutan | C54: z | D54: Diamond | E54: Division Grizzly Tango | F54: 62 | G54: 43 | H54: 1280 | I54: 12 | J54: 2014-05-24 | K54: 15 hours | L54: 2014-06-20T00:28:20 | M54: 1 | N54: 0
A55: 968990 | B55: DIESEL | C55: z | D55: Diamond | E55: Division Artika Omicron | F55: 78 | G55: 46 | H55: 1279 | I55: 8 | J55: 2014-05-11 | K55: 9 hours | L55: 2014-06-20T00:28:20 | M55: 1 | N55: 0
A56: 999879 | B56: ZenGamr | C56: t | D56: Diamond | E56: Division Raven Sigma | F56: 140 | G56: 121 | H56: 1278 | I56: 12 | J56: 2014-04-21 | K56: 16 hours | L56: 2014-06-20T00:28:21 | M56: 1 | N56: 0
A57: 4023733 | B57: Adept | C57: p | D57: Diamond | E57: Division Ghost Uncle | F57: 162 | G57: 148 | H57: 1278 | I57: 1 | J57: 2014-04-14 | K57: 2 hours | L57: 2014-06-20T00:28:21 | M57: 1 | N57: 0
A58: 333290 | B58: abmeister | C58: z | D58: Diamond | E58: Division Mutalisk Mu | F58: 103 | G58: 83 | H58: 1277 | I58: 1 | J58: 2014-04-16 | K58: 8 hours | L58: 2014-06-20T00:28:22 | M58: 1 | N58: 0
A59: 345833 | B59: veKtory | C59: z | D59: Diamond | E59: Division Antioch Echo | F59: 97 | G59: 70 | H59: 1277 | I59: 15 | J59: 2014-04-15 | K59: 21 hours | L59: 2014-06-20T00:28:22 | M59: 1 | N59: 0
A60: 4582701 | B60: Flamm | C60: p | D60: Diamond | E60: Division Defiler Indigo | F60: 141 | G60: 113 | H60: 1276 | I60: 67 | J60: 2014-05-22 | K60: 4 days | L60: 2014-06-20T00:28:23 | M60: 1 | N60: 0
A61: 2506551 | B61: Psych | C61: r | D61: Diamond | E61: Division Zamara Zed | F61: 123 | G61: 91 | H61: 1275 | I61: 4 | J61: 2014-05-07 | K61: 3 hours | L61: 2014-06-20T00:28:23 | M61: 1 | N61: 0
A62: 4013197 | B62: cloud | C62: z | D62: Diamond | E62: Division Hydralisk Whiskey | F62: 240 | G62: 227 | H62: 1275 | I62: 9 | J62: 2014-04-14 | K62: 10 hours | L62: 2014-06-20T00:28:24 | M62: 1 | N62: 0
A63: 2010288 | B63: ClockWise | C63: t | D63: Diamond | E63: Division Hydralisk Whiskey | F63: 171 | G63: 163 | H63: 1274 | I63: 3 | J63: 2014-04-14 | K63: 58 minutes | L63: 2014-06-20T00:28:25 | M63: 1 | N63: 0
A64: 4328336 | B64: Stephano | C64: z | D64: Diamond | E64: Division Vulture Chi | F64: 95 | G64: 45 | H64: 1273 | I64: 74 | J64: 2014-05-13 | K64: 1 days | L64: 2014-06-20T00:28:25 | M64: 1 | N64: 0
A65: 3834903 | B65: FeaR | C65: p | D65: Diamond | E65: Division Tabrenus Beta | F65: 74 | G65: 61 | H65: 1270 | I65: 36 | J65: 2014-04-15 | K65: 2 days | L65: 2014-06-20T00:28:25 | M65: 1 | N65: 0
A66: 681672 | B66: PrimusDeskia | C66: t | D66: Diamond | E66: Division Ghost Uncle | F66: 70 | G66: 57 | H66: 1269 | I66: 20 | J66: 2014-04-14 | K66: 21 hours | L66: 2014-06-20T00:28:26 | M66: 1 | N66: 0
A67: 415297 | B67: Killboy | C67: t | D67: Diamond | E67: Division Ramsey Gamma | F67: 69 | G67: 56 | H67: 1268 | I67: 3 | J67: 2014-05-09 | K67: 50 minutes | L67: 2014-06-20T00:28:27 | M67: 1 | N67: =IF(M67=10,SUM(F67:G67),0) -> 0
A68: 478691 | B68: TeKniQ | C68: z | D68: Diamond | E68: Division Wraith Gravity | F68: 44 | G68: 48 | H68: 1267 | I68: 16 | J68: 2014-04-14 | K68: 2 hours | L68: 2014-06-20T00:28:27 | M68: 1 | N68: 0
A69: 2994910 | B69: MorgaN | C69: t | D69: Diamond | E69: Division Bhekar Ro Omega | F69: 118 | G69: 94 | H69: 1266 | I69: 6 | J69: 2014-05-28 | K69: 6 hours | L69: 2014-06-20T00:28:28 | M69: 1 | N69: 0
A70: 3236370 | B70: LiskLisk | C70: z | D70: Diamond | E70: Division Jorgensen Omega | F70: 66 | G70: 59 | H70: 1266 | I70: 1 | J70: 2014-04-14 | K70: 2 days | L70: 2014-06-20T00:28:28 | M70: 1 | N70: 0
A71: 4765951 | B71: Aybek | C71: z | D71: Diamond | E71: Division Jorgensen Dixie | F71: 177 | G71: 145 | H71: 1265 | I71: 0 | J71: 2014-05-02 | K71: 6 hours | L71: 2014-06-20T00:28:29 | M71: 1 | N71: 0
A72: 5441712 | B72: SlaineD | C72: p | D72: Diamond | E72: Division Duke Charlie | F72: 62 | G72: 51 | H72: 1265 | I72: 5 | J72: 2014-06-03 | K72: 5 hours | L72: 2014-06-20T00:28:29 | M72: 1 | N72: 0
A73: 2038113 | B73: LinkinPark | C73: p | D73: Diamond | E73: Division Jorgensen Omega | F73: 111 | G73: 98 | H73: 1264 | I73: 12 | J73: 2014-04-14 | K73: 15 hours | L73: 2014-06-20T00:28:29 | M73: 1 | N73: 0
A74: 3976670 | B74: Lavos | C74: t | D74: Diamond | E74: Division Mutalisk Mu | F74: 60 | G74: 45 | H74: 1264 | I74: 53 | J74: 2014-04-20 | K74: 3 days | L74: 2014-06-20T00:28:30 | M74: 1 | N74: 0
A75: 405047 | B75: IIIIIIIIIIII | C75: p | D75: Diamond | E75: Division Vermillion Mars | F75: 118 | G75: 107 | H75: 1263 | I75: 4 | J75: 2014-05-17 | K75: 1 hours | L75: 2014-06-20T00:28:30 | M75: 1 | N75: 0
A76: 650739 | B76: MaidenSlayer | C76: p | D76: Diamond | E76: Division Braken Foxtrot | F76: 154 | G76: 146 | H76: 1263 | I76: 7 | J76: 2014-04-14 | K76: 7 hours | L76: 2014-06-20T00:28:31 | M76: 1 | N76: 0
A77: 800181 | B77: gatsby | C77: z | D77: Diamond | E77: Division Braken Foxtrot | F77: 175 | G77: 168 | H77: 1263 | I77: 50 | J77: 2014-04-14 | K77: 3 days | L77: 2014-06-20T00:28:31 | M77: 1 | N77: 0
A78: 3374857 | B78: Asteriea | C78: p | D78: Diamond | E78: Division Viking Alamo | F78: 69 | G78: 16 | H78: 1263 | I78: 63 | J78: 2014-06-18 | K78: 1 days | L78: 2014-06-20T00:28:31 | M78: 1 | N78: 0
A79: 2207819 | B79: Sytrept | C79: z | D79: Diamond | E79: Division Vermillion Mars | F79: 129 | G79: 115 | H79: 1262 | I79: 12 | J79: 2014-05-17 | K79: 16 hours | L79: 2014-06-20T00:28:32 | M79: 1 | N79: 0
A80: 2913056 | B80: dNpWhisKey | C80: t | D80: Diamond | E80: Division Vermillion Bravo | F80: 159 | G80: 123 | H80: 1262 | I80: 3 | J80: 2014-04-21 | K80: 1 hours | L80: 2014-06-20T00:28:32 | M80: 1 | N80: 0
A81: 522494 | B81: Shockwave | C81: z | D81: Diamond | E81: Division Dominion Epsilon | F81: 89 | G81: 76 | H81: 1261 | I81: 26 | J81: 2014-04-15 | K81: 1 days | L81: 2014-06-20T00:28:33 | M81: 1 | N81: 0
A82: 3362571 | B82: IIIIIIIIIIII | C82: t | D82: Diamond | E82: Division Feld Upsilon | F82: 132 | G82: 122 | H82: 1260 | I82: 5 | J82: 2014-04-15 | K82: 3 hours | L82: 2014-06-20T00:28:33 | M82: 1 | N82: 0
A83: 496044 | B83: BloodSpartan | C83: p | D83: Diamond | E83: Division Rimes Hawk | F83: 76 | G83: 73 | H83: 1259 | I83: 19 | J83: 2014-04-14 | K83: 12 hours | L83: 2014-06-20T00:28:34 | M83: 1 | N83: 0
A84: 4310686 | B84: Highpingftw | C84: t | D84: Diamond | E84: Division Aiur Sierra | F84: 111 | G84: 99 | H84: 1259 | I84: 3 | J84: 2014-05-19 | K84: 1 hours | L84: 2014-06-20T00:28:34 | M84: 1 | N84: 0
A85: 759266 | B85: hazing | C85: p | D85: Diamond | E85: Division Wraith Gravity | F85: 66 | G85: 71 | H85: 1258 | I85: 31 | J85: 2014-04-14 | K85: 1 days | L85: 2014-06-20T00:28:35 | M85: 1 | N85: 0
A86: 3993466 | B86: Starbelly | C86: z | D86: Diamond | E86: Division Wraith Gravity | F86: 218 | G86: 206 | H86: 1258 | I86: 15 | J86: 2014-04-14 | K86: 20 hours | L86: 2014-06-20T00:28:35 | M86: 1 | N86: 0
A87: 4482552 | B87: Rhiot | C87: z | D87: Diamond | E87: Division Reaver Zeta | F87: 128 | G87: 128 | H87: 1258 | I87: 14 | J87: 2014-04-16 | K87: 19 hours | L87: 2014-06-20T00:28:35 | M87: 1 | N87: 0
A88: 610272 | B88: Yoshi | C88: t | D88: Diamond | E88: Division Sentry Nu | F88: 125 | G88: 135 | H88: 1255 | I88: 1 | J88: 2014-04-14 | K88: 23 hours | L88: 2014-06-20T00:28:36 | M88: 1 | N88: 0
A89: 3754678 | B89: Iota | C89: z | D89: Diamond | E89: Division Moria Kilo | F89: 165 | G89: 163 | H89: 1255 | I89: 1 | J89: 2014-04-14 | K89: 5 minutes | L89: 2014-06-20T00:28:36 | M89: 1 | N89: 0
A90: 513405 | B90: Papulatus | C90: z | D90: Diamond | E90: Division Fole Eta | F90: 194 | G90: 176 | H90: 1254 | I90: 61 | J90: 2014-04-25 | K90: 3 days | L90: 2014-06-20T00:28:36 | M90: 1 | N90: 0
A91: 697483 | B91: Solar | C91: p | D91: Diamond | E91: Division Zasz Iota | F91: 66 | G91: 54 | H91: 1254 | I91: 0 | J91: 2014-04-16 | K91: 20 hours | L91: 2014-06-20T00:28:37 | M91: 1 | N91: 0
A92: 4571028 | B92: pepo | C92: z | D92: Diamond | E92: Division Infestor Eta | F92: 51 | G92: 30 | H92: 1254 | I92: 79 | J92: 2014-05-20 | K92: 4 days | L92: 2014-06-20T00:28:37 | M92: 1 | N92: 0
A93: 396837 | B93: TheNewblar | C93: t | D93: Diamond | E93: Division Wraith Gravity | F93: 101 | G93: 98 | H93: 1253 | I93: 37 | J93: 2014-04-14 | K93: 2 days | L93: 2014-06-20T00:28:38 | M93: 1 | N93: 0
A94: 446172 | B94: Ferran | C94: p | D94: Diamond | E94: Division New Folsom Tango | F94: 56 | G94: 54 | H94: 1251 | I94: 17 | J94: 2014-05-06 | K94: 22 hours | L94: 2014-06-20T00:28:38 | M94: 1 | N94: 0
A95: 460889 | B95: DaRkHaZarD | C95: z | D95: Diamond | E95: Division Meinhoff Juliet | F95: 126 | G95: 108 | H95: 1251 | I95: 3 | J95: 2014-04-18 | K95: 1 hours | L95: 2014-06-20T00:28:38 | M95: 1 | N95: 0
A96: 2346004 | B96: mcse | C96: z | D96: Diamond | E96: Division Judicator X-Ray | F96: 301 | G96: 279 | H96: 1251 | I96: 3 | J96: 2014-04-14 | K96: 51 minutes | L96: 2014-06-20T00:28:39 | M96: 1 | N96: 0
A97: 5634097 | B97: Trickster | C97: z | D97: Diamond | E97: Division Tosh Theta | F97: 73 | G97: 54 | H97: 1251 | I97: 44 | J97: 2014-05-21 | K97: 1 days | L97: 2014-06-20T00:28:40 | M97: 1 | N97: 0
A98: 213251 | B98: XeLa | C98: p | D98: Diamond | E98: Division Dominion Epsilon | F98: 77 | G98: 72 | H98: 1250 | I98: 0 | J98: 2014-04-15 | K98: 1 days | L98: 2014-06-20T00:28:40 | M98: 1 | N98: 0
A99: 471434 | B99: HughJackman | C99: z | D99: Diamond | E99: Division Selendis Gamma | F99: 83 | G99: 70 | H99: 1250 | I99: 15 | J99: 2014-04-15 | K99: 19 hours | L99: 2014-06-20T00:28:41 | M99: 1 | N99: 0
A100: 5636270 | B100: MvpGG | C100: t | D100: Diamond | E100: Division Roach Mars | F100: 92 | G100: 76 | H100: 1250 | I100: 6 | J100: 2014-04-23 | K100: 6 hours | L100: 2014-06-20T00:28:41 | M100: 1 | N100: 0
A101: 2874217 | B101: kArTeL | C101: t | D101: Diamond | E101: Division Zealot Dixie | F101: 45 | G101: 45 | H101: 1249 | I101: 31 | J101: 2014-06-01 | K101: 1 days | L101: 2014-06-20T00:28:41 | M101: 1 | N101: 0
A102: 734204 | B102: Pacheco | C102: t | D102: Diamond | E102: Division Tassadar Lima | F102: 49 | G102: 35 | H102: 1247 | I102: 47 | J102: 2014-06-10 | K102: 3 days | L102: 2014-06-20T00:28:42 | M102: 1 | N102: 0
A103: 2949070 | B103: KingHydra | C103: p | D103: Diamond | E103: Division Kagg Tau | F103: 177 | G103: 159 | H103: 1247 | I103: 4 | J103: 2014-04-19 | K103: 2 hours | L103: 2014-06-20T00:28:42 | M103: 1 | N103: 0
A104: 1440495 | B104: Ullr | C104: p | D104: Diamond | E104: Division Selendis Gamma | F104: 176 | G104: 159 | H104: 1246 | I104: 1 | J104: 2014-04-15 | K104: 21 hours | L104: 2014-06-20T00:28:43 | M104: 1 | N104: 0
A105: 2469497 | B105: CoRviX | C105: z | D105: Diamond | E105: Division Medivac Sierra | F105: 146 | G105: 125 | H105: 1246 | I105: 9 | J105: 2014-04-25 | K105: 6 hours | L105: 2014-06-20T00:28:43 | M105: 1 | N105: 0
A106: 390446 | B106: mYst | C106: p | D106: Diamond | E106: Division Kagg Pi | F106: 234 | G106: 227 | H106: 1245 | I106: 3 | J106: 2014-05-26 | K106: 35 minutes | L106: 2014-06-20T00:28:43 | M106: 1 | N106: 0
A107: 1206594 | B107: IIIIIIIIIIII | C107: z | D107: Diamond | E107: Division Jorgensen Omega | F107: 207 | G107: 193 | H107: 1245 | I107: 1 | J107: 2014-04-14 | K107: 3 hours | L107: 2014-06-20T00:28:44 | M107: 1 | N107: 0
A108: 1460622 | B108: Santacruz | C108: z | D108: Diamond | E108: Division Wraith Gravity | F108: 106 | G108: 99 | H108: 1245 | I108: 10 | J108: 2014-04-14 | K108: 11 hours | L108: 2014-06-20T00:28:44 | M108: 1 | N108: 0
A109: 2663282 | B109: MrLando | C109: t | D109: Diamond | E109: Division Mutalisk Mu | F109: 192 | G109: 185 | H109: 1243 | I109: 50 | J109: 2014-04-14 | K109: 14 hours | L109: 2014-06-20T00:28:45 | M109: 1 | N109: 0
A110: 278438 | B110: FlowOfIdeas | C110: z | D110: Diamond | E110: Division Hanson Delta | F110: 182 | G110: 132 | H110: 1242 | I110: 3 | J110: 2014-05-15 | K110: 53 minutes | L110: 2014-06-20T00:28:45 | M110: 1 | N110: 0
A111: 467265 | B111: KINtoYou | C111: z | D111: Diamond | E111: Division Xerana Kilo | F111: 77 | G111: 46 | H111: 1242 | I111: 1 | J111: 2014-05-02 | K111: 1 days | L111: 2014-06-20T00:28:46 | M111: 1 | N111: 0
A112: 1319700 | B112: Vachalait | C112: z | D112: Diamond | E112: Division Void Ray Tau | F112: 81 | G112: 78 | H112: 1242 | I112: 12 | J112: 2014-05-29 | K112: 1 days | L112: 2014-06-20T00:28:46 | M112: 1 | N112: 0
A113: 3766238 | B113: Electro | C113: p | D113: Diamond | E113: Division Braken Foxtrot | F113: 88 | G113: 54 | H113: 1242 | I113: 4 | J113: 2014-04-14 | K113: 2 hours | L113: 2014-06-20T00:28:46 | M113: 1 | N113: 0
A114: 4670203 | B114: IIIIIllllll | C114: p | D114: Diamond | E114: Division Duke Charlie | F114: 114 | G114: 84 | H114: 1242 | I114: 1 | J114: 2014-06-03 | K114: 11 hours | L114: 2014-06-20T00:28:47 | M114: 1 | N114: 0
A115: 1833161 | B115: LowBattery | C115: t | D115: Diamond | E115: Division Hanson Chi | F115: 67 | G115: 76 | H115: 1241 | I115: 20 | J115: 2014-04-19 | K115: 1 days | L115: 2014-06-20T00:28:47 | M115: 1 | N115: 0
A116: 364065 | B116: conan | C116: z | D116: Diamond | E116: Division Sargas Oscar | F116: 164 | G116: 136 | H116: 1240 | I116: 13 | J116: 2014-05-23 | K116: 17 hours | L116: 2014-06-20T00:28:48 | M116: 1 | N116: 0
A117: 507307 | B117: Varithus | C117: z | D117: Diamond | E117: Division Sargas Theta | F117: 174 | G117: 144 | H117: 1240 | I117: 13 | J117: 2014-04-26 | K117: 8 hours | L117: 2014-06-20T00:28:48 | M117: 1 | N117: 0
A118: 5511959 | B118: llllllllllll | C118: z | D118: Diamond | E118: Division Overmind X-Ray | F118: 47 | G118: 32 | H118: 1240 | I118: 57 | J118: 2014-06-04 | K118: 1 days | L118: 2014-06-20T00:28:49 | M118: 1 | N118: 0
A119: 345031 | B119: Sunshine | C119: p | D119: Diamond | E119: Division Chau Sara Alamo | F119: 56 | G119: 28 | H119: 1239 | I119: 35 | J119: 2014-05-04 | K119: 16 hours | L119: 2014-06-20T00:28:49 | M119: 1 | N119: 0
A120: 869316 | B120: RuNei | C120: z | D120: Diamond | E120: Division Akilae Bravo | F120: 83 | G120: 56 | H120: 1238 | I120: 4 | J120: 2014-05-16 | K120: 2 hours | L120: 2014-06-20T00:28:50 | M120: 1 | N120: 0
A121: 3532412 | B121: eDxX | C121: t | D121: Diamond | E121: Division Kagg Tau | F121: 160 | G121: 151 | H121: 1238 | I121: 4 | J121: 2014-04-19 | K121: 3 hours | L121: 2014-06-20T00:28:51 | M121: 1 | N121: 0
A122: 3764772 | B122: Monkey | C122: t | D122: Diamond | E122: Division New Folsom Tango | F122: 123 | G122: 126 | H122: 1237 | I122: 32 | J122: 2014-04-30 | K122: 2 days | L122: 2014-06-20T00:28:51 | M122: 1 | N122: 0
A123: 4617607 | B123: DiiViNe | C123: z | D123: Diamond | E123: Division Chau Sara Alamo | F123: 115 | G123: 82 | H123: 1237 | I123: 10 | J123: 2014-05-04 | K123: 33 minutes | L123: 2014-06-20T00:28:52 | M123: 1 | N123: 0
A124: 447692 | B124: Trinric | C124: z | D124: Diamond | E124: Division Ramsey Gamma | F124: 125 | G124: 96 | H124: 1236 | I124: 5 | J124: 2014-05-06 | K124: 3 hours | L124: 2014-06-20T00:28:53 | M124: 1 | N124: 0
A125: 864576 | B125: GhostShadow | C125: z | D125: Diamond | E125: Division Moria Kilo | F125: 278 | G125: 262 | H125: 1236 | I125: 41 | J125: 2014-04-14 | K125: 3 days | L125: 2014-06-20T00:28:53 | M125: 1 | N125: 0
A126: 2478347 | B126: Exceed | C126: p | D126: Diamond | E126: Division Tabrenus Beta | F126: 186 | G126: 178 | H126: 1236 | I126: 7 | J126: 2014-04-15 | K126: 7 hours | L126: 2014-06-20T00:28:54 | M126: 1 | N126: 0
A127: 516974 | B127: ToiletFinder | C127: p | D127: Diamond | E127: Division Medivac Sierra | F127: 42 | G127: 49 | H127: 1235 | I127: 81 | J127: 2014-04-25 | K127: 5 days | L127: 2014-06-20T00:28:54 | M127: 1 | N127: 0
A128: 1222665 | B128: Arbiter | C128: p | D128: Diamond | E128: Division Gorn Pepper | F128: 76 | G128: 84 | H128: 1235 | I128: 60 | J128: 2014-04-15 | K128: 2 days | L128: 2014-06-20T00:28:54 | M128: 1 | N128: 0
A129: 2293826 | B129: Dancer | C129: p | D129: Diamond | E129: Division Tabrenus Beta | F129: 75 | G129: 51 | H129: 1235 | I129: 1 | J129: 2014-05-08 | K129: 34 minutes | L129: 2014-06-20T00:28:55 | M129: 1 | N129: 0
A130: 2149252 | B130: Drinksarlot | C130: z | D130: Diamond | E130: Division Bucephalus Delta | F130: 118 | G130: 100 | H130: 1234 | I130: 40 | J130: 2014-04-21 | K130: 2 days | L130: 2014-06-20T00:28:55 | M130: 1 | N130: 0
A131: 739323 | B131: SkrOs | C131: p | D131: Diamond | E131: Division Agria Romeo | F131: 450 | G131: 438 | H131: 1232 | I131: 6 | J131: 2014-04-15 | K131: 6 hours | L131: 2014-06-20T00:28:55 | M131: 1 | N131: =IF(M131=10,SUM(F131:G131),0) -> 0
A132: 3410694 | B132: UnReal | C132: t | D132: Diamond | E132: Division Araq Juliet | F132: 71 | G132: 55 | H132: 1232 | I132: 0 | J132: 2014-05-11 | K132: 2 hours | L132: 2014-06-20T00:28:56 | M132: 1 | N132: 0
A133: 3488063 | B133: Hypernia | C133: p | D133: Diamond | E133: Division Moria Kilo | F133: 62 | G133: 66 | H133: 1232 | I133: 2 | J133: 2014-04-14 | K133: 14 minutes | L133: 2014-06-20T00:28:56 | M133: 1 | N133: 0
A134: 1992696 | B134: coa | C134: t | D134: Diamond | E134: Division Sargas Oscar | F134: 167 | G134: 143 | H134: 1231 | I134: 0 | J134: 2014-05-23 | K134: 18 hours | L134: 2014-06-20T00:28:57 | M134: 1 | N134: 0
A135: 386552 | B135: Sabre | C135: t | D135: Diamond | E135: Division Mutalisk Mu | F135: 121 | G135: 123 | H135: 1230 | I135: 9 | J135: 2014-04-14 | K135: 11 hours | L135: 2014-06-20T00:28:58 | M135: 1 | N135: 0
A136: 2399252 | B136: Crookedpinky | C136: p | D136: Diamond | E136: Division New Folsom Tango | F136: 81 | G136: 62 | H136: 1230 | I136: 3 | J136: 2014-04-30 | K136: 35 minutes | L136: 2014-06-20T00:28:58 | M136: 1 | N136: 0
A137: 189415 | B137: Soul | C137: p | D137: Diamond | E137: Division Chau Sara Alamo | F137: 84 | G137: 55 | H137: 1229 | I137: 109 | J137: 2014-05-04 | K137: 7 days | L137: 2014-06-20T00:28:58 | M137: 2 | N137: 0
A138: 2924634 | B138: TheKing | C138: t | D138: Diamond | E138: Division Tosh Theta | F138: 63 | G138: 54 | H138: 1229 | I138: 16 | J138: 2014-05-22 | K138: 21 hours | L138: 2014-06-20T00:28:59 | M138: 1 | N138: 0
A139: 313839 | B139: Dritpit | C139: p | D139: Diamond | E139: Division Bucephalus Delta | F139: 366 | G139: 341 | H139: 1228 | I139: 1 | J139: 2014-04-20 | K139: 1 hours | L139: 2014-06-20T00:28:59 | M139: 1 | N139: 0
A140: 747310 | B140: chummers | C140: z | D140: Diamond | E140: Division Ghost Gravity | F140: 143 | G140: 123 | H140: 1227 | I140: 15 | J140: 2014-05-04 | K140: 20 hours | L140: 2014-06-20T00:28:59 | M140: 1 | N140: 0
A141: 958456 | B141: Zoure | C141: r | D141: Diamond | E141: Division Gorn Pepper | F141: 114 | G141: 96 | H141: 1227 | I141: 63 | J141: 2014-04-15 | K141: 4 days | L141: 2014-06-20T00:29:00 | M141: 1 | N141: 0
A142: 1387539 | B142: Casey | C142: t | D142: Diamond | E142: Division Hanson Delta | F142: 60 | G142: 21 | H142: 1227 | I142: 47 | J142: 2014-05-15 | K142: 2 days | L142: 2014-06-20T00:29:00 | M142: 1 | N142: 0
A143: 1517134 | B143: Lacuna | C143: p | D143: Diamond | E143: Division Corsair Uncle | F143: 128 | G143: 114 | H143: 1227 | I143: 6 | J143: 2014-05-03 | K143: 5 hours | L143: 2014-06-20T00:29:01 | M143: 1 | N143: 0
A144: 1230055 | B144: Donsa | C144: z | D144: Diamond | E144: Division Valkyrie Nu | F144: 55 | G144: 45 | H144: 1226 | I144: 0 | J144: 2014-06-08 | K144: 2 hours | L144: 2014-06-20T00:29:01 | M144: 1 | N144: 0
A145: 5080960 | B145: QuackQueok | C145: z | D145: Diamond | E145: Division Raven Sigma | F145: 57 | G145: 42 | H145: 1225 | I145: 143 | J145: 2014-04-23 | K145: 3 days | L145: 2014-06-20T00:29:02 | M145: 2 | N145: 0
A146: 5708066 | B146: hinata | C146: t | D146: Diamond | E146: Division Defiler Indigo | F146: 123 | G146: 97 | H146: 1225 | I146: 41 | J146: 2014-05-16 | K146: 2 days | L146: 2014-06-20T00:29:02 | M146: 1 | N146: 0
A147: 320123 | B147: Tricky | C147: p | D147: Diamond | E147: Division Gorn Pepper | F147: 107 | G147: 116 | H147: 1224 | I147: 22 | J147: 2014-04-15 | K147: 1 days | L147: 2014-06-20T00:29:02 | M147: 1 | N147: 0
A148: 750728 | B148: Powoo | C148: z | D148: Diamond | E148: Division Grizzly Tango | F148: 61 | G148: 24 | H148: 1224 | I148: 1 | J148: 2014-05-24 | K148: 6 minutes | L148: 2014-06-20T00:29:03 | M148: 1 | N148: 0
A149: 1080234 | B149: SGPostIT | C149: p | D149: Diamond | E149: Division Tabrenus Beta | F149: 86 | G149: 87 | H149: 1224 | I149: 17 | J149: 2014-04-15 | K149: 23 hours | L149: 2014-06-20T00:29:03 | M149: 1 | N149: 0
A150: 1600722 | B150: ElegancE | C150: p | D150: Diamond | E150: Division Gorn Echo | F150: 85 | G150: 74 | H150: 1224 | I150: 14 | J150: 2014-05-05 | K150: 17 hours | L150: 2014-06-20T00:29:04 | M150: 1 | N150: 0
A151: 1701315 | B151: rhythMsurfer | C151: p | D151: Diamond | E151: Division Bucephalus Delta | F151: 174 | G151: 149 | H151: 1224 | I151: 9 | J151: 2014-04-20 | K151: 11 minutes | L151: 2014-06-20T00:29:05 | M151: 1 | N151: 0
A152: 1903663 | B152: YoMaN | C152: z | D152: Diamond | E152: Division Reaver Yankee | F152: 99 | G152: 81 | H152: 1224 | I152: 6 | J152: 2014-05-09 | K152: 5 hours | L152: 2014-06-20T00:29:05 | M152: 1 | N152: 0
A153: 2088197 | B153: MidniiTe | C153: z | D153: Diamond | E153: Division Ramsey Gamma | F153: 311 | G153: 274 | H153: 1223 | I153: 13 | J153: 2014-05-06 | K153: 17 hours | L153: 2014-06-20T00:29:06 | M153: 1 | N153: 0
A154: 4268448 | B154: DRASOR | C154: z | D154: Diamond | E154: Division Rimes Hawk | F154: 58 | G154: 46 | H154: 1222 | I154: 22 | J154: 2014-04-14 | K154: 8 hours | L154: 2014-06-20T00:29:06 | M154: 1 | N154: 0
A155: 4344378 | B155: Lando | C155: p | D155: Diamond | E155: Division Defiler Indigo | F155: 72 | G155: 64 | H155: 1222 | I155: 2 | J155: 2014-05-16 | K155: 2 hours | L155: 2014-06-20T00:29:06 | M155: 1 | N155: 0
A156: 2135379 | B156: eXoBLaZeR | C156: t | D156: Diamond | E156: Division Kagg Pi | F156: 128 | G156: 72 | H156: 1221 | I156: 2 | J156: 2014-05-14 | K156: 21 hours | L156: 2014-06-20T00:29:07 | M156: 1 | N156: 0
A157: 4447865 | B157: LLLukeJ | C157: p | D157: Diamond | E157: Division Azimar Kilo | F157: 79 | G157: 35 | H157: 1221 | I157: 62 | J157: 2014-05-26 | K157: 1 days | L157: 2014-06-20T00:29:07 | M157: 1 | N157: 0
A158: 4838503 | B158: PDizz | C158: z | D158: Diamond | E158: Division Nahaan Uncle | F158: 105 | G158: 35 | H158: 1221 | I158: 37 | J158: 2014-06-11 | K158: 2 days | L158: 2014-06-20T00:29:07 | M158: 1 | N158: 0
A159: 1005963 | B159: llllIllIllll | C159: r | D159: Diamond | E159: Division Leviathan Victor | F159: 102 | G159: 38 | H159: 1220 | I159: 115 | J159: 2014-05-27 | K159: 2 days | L159: 2014-06-20T00:29:07 | M159: 2 | N159: 0
A160: 2665528 | B160: Blazer | C160: t | D160: Diamond | E160: Division Queen Xi | F160: 170 | G160: 141 | H160: 1220 | I160: 6 | J160: 2014-04-27 | K160: 5 hours | L160: 2014-06-20T00:29:08 | M160: 1 | N160: 0
A161: 3940088 | B161: Cel | C161: t | D161: Diamond | E161: Division Tosh Theta | F161: 172 | G161: 154 | H161: 1220 | I161: 9 | J161: 2014-05-21 | K161: 9 hours | L161: 2014-06-20T00:29:08 | M161: 1 | N161: 0
A162: 3996538 | B162: IIIIIIIIIIII | C162: t | D162: Diamond | E162: Division Nahaan Uncle | F162: 56 | G162: 106 | H162: 1220 | I162: 12 | J162: 2014-06-11 | K162: 21 hours | L162: 2014-06-20T00:29:08 | M162: 1 | N162: 0
A163: 4700410 | B163: HELL | C163: p | D163: Diamond | E163: Division Hanson Chi | F163: 92 | G163: 54 | H163: 1219 | I163: 65 | J163: 2014-05-01 | K163: 3 days | L163: 2014-06-20T00:29:09 | M163: 1 | N163: 0
A164: 1696214 | B164: tofu | C164: t | D164: Diamond | E164: Division Gorn Pepper | F164: 177 | G164: 169 | H164: 1218 | I164: 2 | J164: 2014-04-15 | K164: 7 minutes | L164: 2014-06-20T00:29:09 | M164: 1 | N164: 0
A165: 379732 | B165: Hybillisk | C165: z | D165: Diamond | E165: Division Khaydarin Lima | F165: 108 | G165: 107 | H165: 1217 | I165: 1 | J165: 2014-04-14 | K165: 5 hours | L165: 2014-06-20T00:29:10 | M165: 1 | N165: 0
A166: 1446648 | B166: ErZZr | C166: t | D166: Diamond | E166: Division Braken Foxtrot | F166: 43 | G166: 46 | H166: 1217 | I166: 25 | J166: 2014-04-14 | K166: 13 hours | L166: 2014-06-20T00:29:10 | M166: 1 | N166: 0
A167: 3216063 | B167: AFK | C167: p | D167: Diamond | E167: Division Medic Zed | F167: 68 | G167: 68 | H167: 1217 | I167: 42 | J167: 2014-04-17 | K167: 2 days | L167: 2014-06-20T00:29:11 | M167: 1 | N167: 0
A168: 3543771 | B168: Switch | C168: t | D168: Diamond | E168: Division Gantrithor Upsilon | F168: 60 | G168: 33 | H168: 1217 | I168: 24 | J168: 2014-05-06 | K168: 1 days | L168: 2014-06-20T00:29:11 | M168: 1 | N168: 0
A169: 770223 | B169: PwnyExpress | C169: z | D169: Diamond | E169: Division Tabrenus Beta | F169: 180 | G169: 165 | H169: 1216 | I169: 2 | J169: 2014-04-16 | K169: 22 hours | L169: 2014-06-20T00:29:11 | M169: 1 | N169: 0
A170: 502936 | B170: IIIIIIIIIIII | C170: z | D170: Diamond | E170: Division Ladranix Mu | F170: 617 | G170: 575 | H170: 1215 | I170: 2 | J170: 2014-05-02 | K170: 14 minutes | L170: 2014-06-20T00:29:12 | M170: 1 | N170: 0
A171: 2929923 | B171: Kangaroosack | C171: z | D171: Diamond | E171: Division Zasz Iota | F171: 362 | G171: 338 | H171: 1215 | I171: 18 | J171: 2014-04-16 | K171: 1 days | L171: 2014-06-20T00:29:12 | M171: 1 | N171: 0
A172: 3027036 | B172: CurdOCheese | C172: z | D172: Diamond | E172: Division Akilae Bravo | F172: 279 | G172: 249 | H172: 1215 | I172: 1 | J172: 2014-05-16 | K172: 3 minutes | L172: 2014-06-20T00:29:13 | M172: 1 | N172: 0
A173: 831134 | B173: Videoboy | C173: t | D173: Diamond | E173: Division Judicator X-Ray | F173: 195 | G173: 196 | H173: 1214 | I173: 16 | J173: 2014-04-14 | K173: 21 hours | L173: 2014-06-20T00:29:13 | M173: 1 | N173: 0
A174: 2623291 | B174: CalabreZ | C174: p | D174: Diamond | E174: Division Tychus Epsilon | F174: 160 | G174: 120 | H174: 1214 | I174: 1 | J174: 2014-05-04 | K174: 21 hours | L174: 2014-06-20T00:29:14 | M174: 1 | N174: 0
A175: 2827956 | B175: BlackJakoo | C175: z | D175: Diamond | E175: Division Ghost Uncle | F175: 105 | G175: 104 | H175: 1214 | I175: 5 | J175: 2014-04-14 | K175: 3 hours | L175: 2014-06-20T00:29:14 | M175: 1 | N175: 0
A176: 1299339 | B176: MKPPrime | C176: t | D176: Diamond | E176: Division Kagg Tau | F176: 145 | G176: 137 | H176: 1213 | I176: 1 | J176: 2014-04-19 | K176: 1 days | L176: 2014-06-20T00:29:14 | M176: 1 | N176: 0
A177: 4195359 | B177: UrbanZakapa | C177: z | D177: Diamond | E177: Division Pridewater Mu | F177: 64 | G177: 34 | H177: 1213 | I177: 39 | J177: 2014-05-30 | K177: 2 days | L177: 2014-06-20T00:29:15 | M177: 1 | N177: 0
A178: 4465244 | B178: SlayerSBoxeR | C178: t | D178: Diamond | E178: Division Infestor Eta | F178: 48 | G178: 34 | H178: 1212 | I178: 24 | J178: 2014-05-28 | K178: 4 hours | L178: 2014-06-20T00:29:15 | M178: 1 | N178: 0
A179: 4547279 | B179: Biyaam | C179: t | D179: Diamond | E179: Division Spectre Indigo | F179: 156 | G179: 142 | H179: 1211 | I179: 15 | J179: 2014-04-22 | K179: 20 hours | L179: 2014-06-20T00:29:16 | M179: 1 | N179: 0
A180: 1003970 | B180: Saku | C180: z | D180: Diamond | E180: Division Feld Upsilon | F180: 88 | G180: 81 | H180: 1210 | I180: 33 | J180: 2014-04-15 | K180: 2 days | L180: 2014-06-20T00:29:16 | M180: 1 | N180: 0
A181: 4382096 | B181: Blur | C181: z | D181: Diamond | E181: Division Araq Alpha | F181: 64 | G181: 30 | H181: 1210 | I181: 42 | J181: 2014-05-10 | K181: 2 days | L181: 2014-06-20T00:29:16 | M181: 1 | N181: 0
A182: 4734291 | B182: Sniper | C182: z | D182: Diamond | E182: Division Warbringer Kappa | F182: 109 | G182: 101 | H182: 1210 | I182: 1 | J182: 2014-04-16 | K182: 21 hours | L182: 2014-06-20T00:29:17 | M182: 1 | N182: 0
A183: 998301 | B183: TastyZerg | C183: z | D183: Diamond | E183: Division Gantrithor Upsilon | F183: 65 | G183: 36 | H183: 1209 | I183: 1 | J183: 2014-05-06 | K183: 23 hours | L183: 2014-06-20T00:29:17 | M183: 1 | N183: 0
A184: 4268288 | B184: Tyler | C184: z | D184: Diamond | E184: Division Nova November | F184: 163 | G184: 142 | H184: 1209 | I184: 137 | J184: 2014-04-14 | K184: 11 hours | L184: 2014-06-20T00:29:18 | M184: 2 | N184: 0
A185: 1176607 | B185: Slumlord | C185: z | D185: Diamond | E185: Division Sentry Nu | F185: 102 | G185: 108 | H185: 1208 | I185: 4 | J185: 2014-04-14 | K185: 2 hours | L185: 2014-06-20T00:29:18 | M185: 1 | N185: 0
A186: 1929989 | B186: Klipsich | C186: t | D186: Diamond | E186: Division Rimes Hawk | F186: 184 | G186: 184 | H186: 1208 | I186: 29 | J186: 2014-04-14 | K186: 1 days | L186: 2014-06-20T00:29:18 | M186: 1 | N186: 0
A187: 2703931 | B187: Kaguro | C187: z | D187: Diamond | E187: Division Ehlna X-Ray | F187: 54 | G187: 43 | H187: 1208 | I187: 4 | J187: 2014-05-02 | K187: 2 hours | L187: 2014-06-20T00:29:19 | M187: 1 | N187: 0
A188: 1349639 | B188: Haro | C188: p | D188: Diamond | E188: Division Fole Eta | F188: 142 | G188: 126 | H188: 1206 | I188: 3 | J188: 2014-04-26 | K188: 28 minutes | L188: 2014-06-20T00:29:19 | M188: 1 | N188: 0
A189: 549196 | B189: MrHobo | C189: z | D189: Diamond | E189: Division Gantrithor Upsilon | F189: 81 | G189: 58 | H189: 1205 | I189: 8 | J189: 2014-05-06 | K189: 8 hours | L189: 2014-06-20T00:29:20 | M189: 1 | N189: 0
A190: 1035353 | B190: shmoo | C190: z | D190: Diamond | E190: Division Antioch Echo | F190: 152 | G190: 117 | H190: 1205 | I190: 62 | J190: 2014-04-15 | K190: 4 days | L190: 2014-06-20T00:29:20 | M190: 1 | N190: 0
A191: 4177064 | B191: xongnoc | C191: t | D191: Diamond | E191: Division Vermillion Bravo | F191: 60 | G191: 34 | H191: 1205 | I191: 75 | J191: 2014-04-21 | K191: 12 hours | L191: 2014-06-20T00:29:20 | M191: 1 | N191: 0
A192: 4564336 | B192: Sharpflex | C192: t | D192: Diamond | E192: Division Araq Alpha | F192: 99 | G192: 76 | H192: 1205 | I192: 25 | J192: 2014-04-17 | K192: 1 days | L192: 2014-06-20T00:29:20 | M192: 1 | N192: 0
A193: 5291947 | B193: JellyBean | C193: r | D193: Diamond | E193: Division Sentry Nu | F193: 83 | G193: 30 | H193: 1205 | I193: 23 | J193: 2014-05-29 | K193: 1 days | L193: 2014-06-20T00:29:21 | M193: 1 | N193: 0
A194: 700375 | B194: gopher | C194: z | D194: Diamond | E194: Division Gantrithor Psi | F194: 123 | G194: 129 | H194: 1204 | I194: 41 | J194: 2014-04-15 | K194: 2 days | L194: 2014-06-20T00:29:21 | M194: 1 | N194: 0
A195: 736137 | B195: PokerBrat | C195: z | D195: Diamond | E195: Division Spectre Indigo | F195: 197 | G195: 170 | H195: 1203 | I195: 1 | J195: 2014-04-22 | K195: 5 hours | L195: 2014-06-20T00:29:22 | M195: 1 | N195: =IF(M195=10,SUM(F195:G195),0) -> 0
A196: 1629895 | B196: CallMeMVP | C196: p | D196: Diamond | E196: Division Sentry Nu | F196: 131 | G196: 90 | H196: 1203 | I196: 82 | J196: 2014-04-21 | K196: 5 days | L196: 2014-06-20T00:29:22 | M196: 1 | N196: 0
A197: 2851296 | B197: Light | C197: p | D197: Diamond | E197: Division Khaydarin Lima | F197: 167 | G197: 163 | H197: 1203 | I197: 5 | J197: 2014-04-14 | K197: 4 hours | L197: 2014-06-20T00:29:22 | M197: 1 | N197: 0
A198: 3025515 | B198: miLKiSS | C198: r | D198: Diamond | E198: Division Rimes Hawk | F198: 170 | G198: 164 | H198: 1203 | I198: 149 | J198: 2014-04-14 | K198: 5 days | L198: 2014-06-20T00:29:23 | M198: 2 | N198: 0
A199: 2617934 | B199: Rooo | C199: r | D199: Diamond | E199: Division Khaydarin Lima | F199: 336 | G199: 338 | H199: 1202 | I199: 2 | J199: 2014-04-14 | K199: 1 hours | L199: 2014-06-20T00:29:23 | M199: 1 | N199: 0
A200: 2727952 | B200: Atlas | C200: t | D200: Diamond | E200: Division Tabrenus Beta | F200: 152 | G200: 145 | H200: 1202 | I200: 5 | J200: 2014-04-16 | K200: 5 hours | L200: 2014-06-20T00:29:24 | M200: 1 | N200: 0
... 4300 more rows

Sheet 1v1 Master
A1: ID | B1: Name | C1: Race | D1: League | E1: Division Name | F1: Wins | G1: Losses | H1: Score | I1: Bonus Pool | J1: Join Date | K1: Last Game | L1: Timestamp | M1: Bonus Pool Weeks Remaining | N1: Inactive Player Games Played
A2: 4042793 | B2: AxRyung | C2: t | D2: Master | E2: Division Ulrezaj Zeta | F2: 116 | G2: 30 | H2: 2632 | I2: 61 | J2: 2014-05-23 | K2: 6 minutes | L2: 2014-06-20T00:13:53 | M2: 1 | N2: =IF(M2=10,SUM(F2:G2),0) -> 0
A3: 3955539 | B3: YoutoPia | C3: t | D3: Master | E3: Division Nargil Beta | F3: 147 | G3: 121 | H3: 2100 | I3: 150 | J3: 2014-04-26 | K3: 20 hours | L3: 2014-06-20T00:13:54 | M3: 1 | N3: =IF(M3=10,SUM(F3:G3),0) -> 0
A4: 3584165 | B4: hale | C4: t | D4: Master | E4: Division Victory Lima | F4: 72 | G4: 61 | H4: 2088 | I4: 194 | J4: 2014-04-18 | K4: 6 minutes | L4: 2014-06-20T00:13:54 | M4: 2 | N4: 0
A5: 702108 | B5: babo | C5: p | D5: Master | E5: Division Ulrezaj Zeta | F5: 80 | G5: 15 | H5: 2070 | I5: 481 | J5: 2014-05-17 | K5: 4 days | L5: 2014-06-20T00:13:54 | M5: 3 | N5: 0
A6: 313920 | B6: ZoeyDeschanl | C6: z | D6: Master | E6: Division Mutalisk Romeo | F6: 147 | G6: 127 | H6: 2031 | I6: 15 | J6: 2014-06-01 | K6: 10 hours | L6: 2014-06-20T00:13:54 | M6: 1 | N6: 0
A7: 1489967 | B7: BadVibes | C7: z | D7: Master | E7: Division Feld Chi | F7: 187 | G7: 170 | H7: 2021 | I7: 7 | J7: 2014-04-28 | K7: 3 hours | L7: 2014-06-20T00:13:55 | M7: 1 | N7: 0
A8: 3267710 | B8: FoolOfaTooK | C8: z | D8: Master | E8: Division Scourge Pepper | F8: 84 | G8: 58 | H8: 2021 | I8: 32 | J8: 2014-04-30 | K8: 1 days | L8: 2014-06-20T00:13:55 | M8: 1 | N8: 0
A9: 2131735 | B9: Goliath | C9: t | D9: Master | E9: Division Nagglfar Tango | F9: 162 | G9: 94 | H9: 2019 | I9: 167 | J9: 2014-06-05 | K9: 1 hours | L9: 2014-06-20T00:13:56 | M9: 1 | N9: 0
A10: 5044476 | B10: llllllllllll | C10: z | D10: Master | E10: Division Ulrezaj Zeta | F10: 96 | G10: 55 | H10: 2008 | I10: 28 | J10: 2014-05-15 | K10: 6 hours | L10: 2014-06-20T00:13:56 | M10: 1 | N10: 0
A11: 3818145 | B11: IamMagic | C11: z | D11: Master | E11: Division Nagglfar Tango | F11: 183 | G11: 155 | H11: 1993 | I11: 28 | J11: 2014-05-01 | K11: 23 hours | L11: 2014-06-20T00:13:56 | M11: 1 | N11: 0
A12: 4179048 | B12: Dolan | C12: z | D12: Master | E12: Division Firebat Alpha | F12: 99 | G12: 93 | H12: 1993 | I12: 14 | J12: 2014-04-14 | K12: 10 hours | L12: 2014-06-20T00:13:57 | M12: 1 | N12: 0
A13: 3202227 | B13: viOLet | C13: p | D13: Master | E13: Division Void Ray Sigma | F13: 66 | G13: 53 | H13: 1988 | I13: 374 | J13: 2014-05-06 | K13: 1 hours | L13: 2014-06-20T00:13:57 | M13: 3 | N13: 0
A14: 4770905 | B14: Rosso | C14: t | D14: Master | E14: Division Nexus Bravo | F14: 113 | G14: 53 | H14: 1985 | I14: 41 | J14: 2014-05-27 | K14: 1 days | L14: 2014-06-20T00:13:58 | M14: 1 | N14: 0
A15: 524508 | B15: Sushi | C15: p | D15: Master | E15: Division Daggoth Sierra | F15: 151 | G15: 138 | H15: 1984 | I15: 0 | J15: 2014-04-14 | K15: 15 minutes | L15: 2014-06-20T00:13:58 | M15: 1 | N15: 0
A16: 1820657 | B16: Berserkforce | C16: t | D16: Master | E16: Division Nargil Beta | F16: 156 | G16: 156 | H16: 1983 | I16: 3 | J16: 2014-04-14 | K16: 1 hours | L16: 2014-06-20T00:13:58 | M16: 1 | N16: 0
A17: 3650249 | B17: CranK | C17: p | D17: Master | E17: Division Hartley Omega | F17: 64 | G17: 34 | H17: 1982 | I17: 471 | J17: 2014-05-04 | K17: 6 minutes | L17: 2014-06-20T00:13:59 | M17: 3 | N17: 0
A18: 3354094 | B18: ParalyzE | C18: p | D18: Master | E18: Division Forge Kilo | F18: 230 | G18: 230 | H18: 1971 | I18: 5 | J18: 2014-06-12 | K18: 2 hours | L18: 2014-06-20T00:13:59 | M18: 1 | N18: 0
A19: 3578946 | B19: Nakoz | C19: z | D19: Master | E19: Division Shuttle Xi | F19: 268 | G19: 241 | H19: 1954 | I19: 2 | J19: 2014-05-13 | K19: 5 minutes | L19: 2014-06-20T00:13:59 | M19: 1 | N19: 0
A20: 4171797 | B20: lIlIlIlIlIlI | C20: p | D20: Master | E20: Division Hartley Omega | F20: 194 | G20: 144 | H20: 1950 | I20: 7 | J20: 2014-05-05 | K20: 3 hours | L20: 2014-06-20T00:13:59 | M20: 1 | N20: 0
A21: 796488 | B21: TheTRUTH | C21: p | D21: Master | E21: Division Nargil Beta | F21: 135 | G21: 123 | H21: 1944 | I21: 7 | J21: 2014-04-14 | K21: 3 hours | L21: 2014-06-20T00:14:00 | M21: 1 | N21: 0
A22: 4135344 | B22: IllIIIllIllI | C22: t | D22: Master | E22: Division Mutalisk Romeo | F22: 125 | G22: 18 | H22: 1941 | I22: 551 | J22: 2014-06-19 | K22: 1 days | L22: 2014-06-20T00:14:00 | M22: 4 | N22: 0
A23: 3936866 | B23: Roy | C23: z | D23: Master | E23: Division Victory Lima | F23: 141 | G23: 134 | H23: 1933 | I23: 59 | J23: 2014-04-14 | K23: 22 hours | L23: 2014-06-20T00:14:01 | M23: 1 | N23: 0
A24: 311422 | B24: Htw | C24: z | D24: Master | E24: Division Daggoth Sierra | F24: 102 | G24: 110 | H24: 1932 | I24: 65 | J24: 2014-04-14 | K24: 23 hours | L24: 2014-06-20T00:14:01 | M24: 1 | N24: 0
A25: 1766264 | B25: HuShang | C25: p | D25: Master | E25: Division Nagglfar Tango | F25: 112 | G25: 108 | H25: 1932 | I25: 50 | J25: 2014-04-18 | K25: 1 days | L25: 2014-06-20T00:14:02 | M25: 1 | N25: 0
A26: 1307511 | B26: Sanctuary | C26: p | D26: Master | E26: Division Daggoth Sierra | F26: 112 | G26: 102 | H26: 1917 | I26: 3 | J26: 2014-04-14 | K26: 17 hours | L26: 2014-06-20T00:14:02 | M26: 1 | N26: 0
A27: 4177949 | B27: RedViper | C27: z | D27: Master | E27: Division Nargil Beta | F27: 79 | G27: 78 | H27: 1917 | I27: 10 | J27: 2014-04-14 | K27: 16 minutes | L27: 2014-06-20T00:14:03 | M27: 1 | N27: 0
A28: 2249971 | B28: IIIIllllIIll | C28: p | D28: Master | E28: Division Firebat Alpha | F28: 119 | G28: 107 | H28: 1916 | I28: 20 | J28: 2014-04-14 | K28: 15 hours | L28: 2014-06-20T00:14:03 | M28: 1 | N28: 0
A29: 4937305 | B29: llllllllllll | C29: p | D29: Master | E29: Division Firebat Alpha | F29: 171 | G29: 134 | H29: 1913 | I29: 15 | J29: 2014-04-14 | K29: 10 hours | L29: 2014-06-20T00:14:03 | M29: 1 | N29: 0
A30: 3721429 | B30: IIIIIIIIIIII | C30: z | D30: Master | E30: Division Forge Kilo | F30: 88 | G30: 23 | H30: 1906 | I30: 370 | J30: 2014-06-14 | K30: 4 days | L30: 2014-06-20T00:14:03 | M30: 3 | N30: 0
A31: 785815 | B31: Krul | C31: z | D31: Master | E31: Division Feld Chi | F31: 104 | G31: 96 | H31: 1905 | I31: 15 | J31: 2014-04-15 | K31: 4 hours | L31: 2014-06-20T00:14:04 | M31: 1 | N31: 0
A32: 3335774 | B32: Crilmon | C32: r | D32: Master | E32: Division Void Ray Sigma | F32: 121 | G32: 104 | H32: 1902 | I32: 2 | J32: 2014-05-07 | K32: 3 hours | L32: 2014-06-20T00:14:05 | M32: 1 | N32: 0
A33: 4199086 | B33: Bini | C33: t | D33: Master | E33: Division Shuttle Xi | F33: 130 | G33: 91 | H33: 1901 | I33: 86 | J33: 2014-06-18 | K33: 16 hours | L33: 2014-06-20T00:14:05 | M33: 1 | N33: 0
A34: 1314497 | B34: LoraX | C34: p | D34: Master | E34: Division Aleksander Dixie | F34: 294 | G34: 264 | H34: 1900 | I34: 53 | J34: 2014-04-15 | K34: 1 days | L34: 2014-06-20T00:14:06 | M34: 1 | N34: 0
A35: 3496315 | B35: HLH | C35: z | D35: Master | E35: Division Nagglfar Tango | F35: 100 | G35: 95 | H35: 1900 | I35: 61 | J35: 2014-04-17 | K35: 2 days | L35: 2014-06-20T00:14:06 | M35: 1 | N35: 0
A36: 302115 | B36: Nistic | C36: z | D36: Master | E36: Division Sargas Yankee | F36: 132 | G36: 120 | H36: 1899 | I36: 1 | J36: 2014-04-19 | K36: 15 minutes | L36: 2014-06-20T00:14:07 | M36: 1 | N36: 0
A37: 3522304 | B37: RedStone | C37: t | D37: Master | E37: Division Sargas Yankee | F37: 129 | G37: 39 | H37: 1893 | I37: 245 | J37: 2014-05-22 | K37: 9 days | L37: 2014-06-20T00:14:07 | M37: 2 | N37: 0
A38: 413547 | B38: Heafy | C38: t | D38: Master | E38: Division Dominion Gravity | F38: 106 | G38: 87 | H38: 1891 | I38: 5 | J38: 2014-05-10 | K38: 1 hours | L38: 2014-06-20T00:14:08 | M38: 1 | N38: 0
A39: 761743 | B39: EndOfLine | C39: z | D39: Master | E39: Division Aleksander Dixie | F39: 164 | G39: 165 | H39: 1887 | I39: 30 | J39: 2014-04-15 | K39: 5 hours | L39: 2014-06-20T00:14:08 | M39: 1 | N39: 0
A40: 388429 | B40: Maharishi | C40: p | D40: Master | E40: Division Scourge Pepper | F40: 141 | G40: 99 | H40: 1886 | I40: 90 | J40: 2014-04-16 | K40: 2 days | L40: 2014-06-20T00:14:09 | M40: 1 | N40: 0
A41: 3805717 | B41: avilo | C41: p | D41: Master | E41: Division Mutalisk Romeo | F41: 61 | G41: 17 | H41: 1886 | I41: 667 | J41: 2014-05-31 | K41: 33 minutes | L41: 2014-06-20T00:14:10 | M41: 4 | N41: 0
A42: 291685 | B42: KiFirE | C42: p | D42: Master | E42: Division Daggoth Sierra | F42: 270 | G42: 249 | H42: 1885 | I42: 2 | J42: 2014-04-14 | K42: 24 minutes | L42: 2014-06-20T00:14:10 | M42: 1 | N42: 0
A43: 4649230 | B43: Virus | C43: t | D43: Master | E43: Division Hartley Omega | F43: 154 | G43: 138 | H43: 1884 | I43: 94 | J43: 2014-05-04 | K43: 2 days | L43: 2014-06-20T00:14:10 | M43: 1 | N43: 0
A44: 5631522 | B44: OuTLaW | C44: p | D44: Master | E44: Division Scourge Pepper | F44: 122 | G44: 102 | H44: 1884 | I44: 23 | J44: 2014-04-16 | K44: 18 hours | L44: 2014-06-20T00:14:11 | M44: 1 | N44: 0
A45: 583432 | B45: Cookies | C45: p | D45: Master | E45: Division Daggoth Sierra | F45: 174 | G45: 172 | H45: 1882 | I45: 1 | J45: 2014-04-14 | K45: 2 hours | L45: 2014-06-20T00:14:11 | M45: 1 | N45: 0
A46: 5265169 | B46: PappiJoe | C46: p | D46: Master | E46: Division Shiloh X-Ray | F46: 196 | G46: 168 | H46: 1880 | I46: 4 | J46: 2014-05-20 | K46: 56 minutes | L46: 2014-06-20T00:14:12 | M46: 1 | N46: 0
A47: 3372169 | B47: TenderThighs | C47: p | D47: Master | E47: Division Victory Lima | F47: 230 | G47: 230 | H47: 1879 | I47: 14 | J47: 2014-04-14 | K47: 10 hours | L47: 2014-06-20T00:14:12 | M47: 1 | N47: 0
A48: 5104999 | B48: coLDeathEnD | C48: p | D48: Master | E48: Division Forge Kilo | F48: 160 | G48: 113 | H48: 1876 | I48: 269 | J48: 2014-06-12 | K48: 19 hours | L48: 2014-06-20T00:14:12 | M48: 2 | N48: 0
A49: 1285402 | B49: Emyndri | C49: p | D49: Master | E49: Division Shuttle Xi | F49: 157 | G49: 125 | H49: 1866 | I49: 34 | J49: 2014-05-11 | K49: 21 hours | L49: 2014-06-20T00:14:12 | M49: 1 | N49: 0
A50: 2326102 | B50: TRAGIC | C50: t | D50: Master | E50: Division Firebat Alpha | F50: 136 | G50: 75 | H50: 1860 | I50: 28 | J50: 2014-05-30 | K50: 22 hours | L50: 2014-06-20T00:14:14 | M50: 1 | N50: 0
A51: 3129638 | B51: MaGiCaL | C51: p | D51: Master | E51: Division Forge Kilo | F51: 146 | G51: 85 | H51: 1860 | I51: 183 | J51: 2014-06-19 | K51: 12 hours | L51: 2014-06-20T00:14:14 | M51: 2 | N51: 0
A52: 4319683 | B52: Lancel | C52: r | D52: Master | E52: Division Daggoth Sierra | F52: 161 | G52: 162 | H52: 1860 | I52: 7 | J52: 2014-04-14 | K52: 3 hours | L52: 2014-06-20T00:14:14 | M52: 1 | N52: 0
A53: 701666 | B53: Integral | C53: r | D53: Master | E53: Division Nagglfar Tango | F53: 226 | G53: 217 | H53: 1850 | I53: 24 | J53: 2014-04-19 | K53: 22 hours | L53: 2014-06-20T00:14:15 | M53: 1 | N53: 0
A54: 2182304 | B54: llllllllllll | C54: p | D54: Master | E54: Division Nexus Bravo | F54: 96 | G54: 68 | H54: 1847 | I54: 316 | J54: 2014-06-17 | K54: 2 days | L54: 2014-06-20T00:14:15 | M54: 2 | N54: 0
A55: 456045 | B55: Button | C55: p | D55: Master | E55: Division Firebat Alpha | F55: 141 | G55: 141 | H55: 1846 | I55: 19 | J55: 2014-04-14 | K55: 14 hours | L55: 2014-06-20T00:14:16 | M55: 1 | N55: 0
A56: 5251197 | B56: JiYeon | C56: p | D56: Master | E56: Division Sargas Yankee | F56: 106 | G56: 87 | H56: 1846 | I56: 110 | J56: 2014-04-20 | K56: 4 hours | L56: 2014-06-20T00:14:16 | M56: 1 | N56: 0
A57: 4805485 | B57: ReQuieM | C57: p | D57: Master | E57: Division Shuttle Xi | F57: 94 | G57: 59 | H57: 1845 | I57: 76 | J57: 2014-05-14 | K57: 2 days | L57: 2014-06-20T00:14:16 | M57: 1 | N57: 0
A58: 1078874 | B58: IrishLad | C58: p | D58: Master | E58: Division Victory Lima | F58: 142 | G58: 133 | H58: 1844 | I58: 7 | J58: 2014-04-14 | K58: 3 hours | L58: 2014-06-20T00:14:17 | M58: 1 | N58: 0
A59: 3773461 | B59: Freizya | C59: p | D59: Master | E59: Division Void Ray Sigma | F59: 123 | G59: 117 | H59: 1843 | I59: 4 | J59: 2014-05-06 | K59: 18 hours | L59: 2014-06-20T00:14:17 | M59: 1 | N59: 0
A60: 4478821 | B60: IIIIIIIIIIII | C60: t | D60: Master | E60: Division Mutalisk Romeo | F60: 179 | G60: 124 | H60: 1843 | I60: 11 | J60: 2014-06-01 | K60: 7 hours | L60: 2014-06-20T00:14:18 | M60: 1 | N60: 0
A61: 1070292 | B61: AegiS | C61: t | D61: Master | E61: Division Nargil Beta | F61: 182 | G61: 168 | H61: 1842 | I61: 6 | J61: 2014-04-14 | K61: 2 hours | L61: 2014-06-20T00:14:18 | M61: 1 | N61: 0
A62: 4520545 | B62: HELLO | C62: p | D62: Master | E62: Division Void Ray Sigma | F62: 87 | G62: 72 | H62: 1841 | I62: 5 | J62: 2014-05-07 | K62: 2 hours | L62: 2014-06-20T00:14:19 | M62: 1 | N62: 0
A63: 2523135 | B63: tonho | C63: p | D63: Master | E63: Division Feld Chi | F63: 211 | G63: 199 | H63: 1837 | I63: 1 | J63: 2014-04-16 | K63: 16 minutes | L63: 2014-06-20T00:14:19 | M63: 1 | N63: 0
A64: 4458978 | B64: GosuBisu | C64: p | D64: Master | E64: Division Hartley Omega | F64: 218 | G64: 118 | H64: 1836 | I64: 102 | J64: 2014-05-04 | K64: 3 days | L64: 2014-06-20T00:14:20 | M64: 1 | N64: 0
A65: 1277462 | B65: Android | C65: z | D65: Master | E65: Division Mutalisk Romeo | F65: 81 | G65: 91 | H65: 1835 | I65: 49 | J65: 2014-06-08 | K65: 1 hours | L65: 2014-06-20T00:14:21 | M65: 1 | N65: 0
A66: 413799 | B66: scv | C66: t | D66: Master | E66: Division Victory Lima | F66: 140 | G66: 143 | H66: 1832 | I66: 2 | J66: 2014-04-14 | K66: 25 minutes | L66: 2014-06-20T00:14:21 | M66: 1 | N66: 0
A67: 2746362 | B67: EGG | C67: z | D67: Master | E67: Division Scourge Pepper | F67: 206 | G67: 202 | H67: 1829 | I67: 43 | J67: 2014-04-16 | K67: 36 minutes | L67: 2014-06-20T00:14:21 | M67: 1 | N67: =IF(M67=10,SUM(F67:G67),0) -> 0
A68: 5243502 | B68: WinD | C68: z | D68: Master | E68: Division Feld Chi | F68: 191 | G68: 181 | H68: 1828 | I68: 97 | J68: 2014-04-15 | K68: 3 days | L68: 2014-06-20T00:14:22 | M68: 1 | N68: 0
A69: 3261825 | B69: Nyden | C69: z | D69: Master | E69: Division Warbringer Hawk | F69: 496 | G69: 478 | H69: 1824 | I69: 24 | J69: 2014-04-21 | K69: 19 hours | L69: 2014-06-20T00:14:22 | M69: 1 | N69: 0
A70: 3469451 | B70: NoBleSse | C70: t | D70: Master | E70: Division Firebat Alpha | F70: 185 | G70: 162 | H70: 1824 | I70: 59 | J70: 2014-04-14 | K70: 1 days | L70: 2014-06-20T00:14:23 | M70: 1 | N70: 0
A71: 3087051 | B71: akira | C71: p | D71: Master | E71: Division Firebat Alpha | F71: 298 | G71: 294 | H71: 1819 | I71: 5 | J71: 2014-04-14 | K71: 1 hours | L71: 2014-06-20T00:14:23 | M71: 1 | N71: 0
A72: 1583726 | B72: PoorPotato | C72: z | D72: Master | E72: Division Sargas Yankee | F72: 192 | G72: 178 | H72: 1818 | I72: 75 | J72: 2014-04-19 | K72: 2 days | L72: 2014-06-20T00:14:24 | M72: 1 | N72: 0
A73: 493056 | B73: pGsixtynine | C73: r | D73: Master | E73: Division Firebat Alpha | F73: 71 | G73: 75 | H73: 1817 | I73: 37 | J73: 2014-04-18 | K73: 1 days | L73: 2014-06-20T00:14:24 | M73: 1 | N73: 0
A74: 1069635 | B74: MoMaN | C74: z | D74: Master | E74: Division Victory Lima | F74: 80 | G74: 76 | H74: 1817 | I74: 66 | J74: 2014-04-14 | K74: 5 hours | L74: 2014-06-20T00:14:24 | M74: 1 | N74: 0
A75: 394573 | B75: lIIIlIIIIIll | C75: t | D75: Master | E75: Division Firebat Alpha | F75: 120 | G75: 114 | H75: 1815 | I75: 27 | J75: 2014-05-02 | K75: 21 hours | L75: 2014-06-20T00:14:25 | M75: 1 | N75: 0
A76: 2359032 | B76: Felicity | C76: z | D76: Master | E76: Division Ulrezaj Zeta | F76: 83 | G76: 81 | H76: 1815 | I76: 257 | J76: 2014-05-15 | K76: 2 hours | L76: 2014-06-20T00:14:25 | M76: 2 | N76: 0
A77: 2943703 | B77: TippyTurtle | C77: z | D77: Master | E77: Division Shiloh X-Ray | F77: 109 | G77: 79 | H77: 1815 | I77: 32 | J77: 2014-05-23 | K77: 1 days | L77: 2014-06-20T00:14:26 | M77: 1 | N77: 0
A78: 2185219 | B78: Pinky | C78: t | D78: Master | E78: Division Firebat Alpha | F78: 323 | G78: 303 | H78: 1813 | I78: 14 | J78: 2014-05-01 | K78: 10 hours | L78: 2014-06-20T00:14:26 | M78: 1 | N78: 0
A79: 5570348 | B79: Gladiator | C79: t | D79: Master | E79: Division Sargas Yankee | F79: 82 | G79: 87 | H79: 1813 | I79: 66 | J79: 2014-04-28 | K79: 7 hours | L79: 2014-06-20T00:14:27 | M79: 1 | N79: 0
A80: 4161975 | B80: IlllllIlIllI | C80: t | D80: Master | E80: Division Hartley Omega | F80: 136 | G80: 68 | H80: 1808 | I80: 52 | J80: 2014-05-03 | K80: 1 days | L80: 2014-06-20T00:14:27 | M80: 1 | N80: 0
A81: 4680714 | B81: ElFatal | C81: t | D81: Master | E81: Division Nagglfar Tango | F81: 256 | G81: 226 | H81: 1808 | I81: 77 | J81: 2014-05-01 | K81: 1 days | L81: 2014-06-20T00:14:27 | M81: 1 | N81: 0
A82: 3471192 | B82: IIIIIIIIIIII | C82: p | D82: Master | E82: Division Victory Lima | F82: 82 | G82: 47 | H82: 1805 | I82: 435 | J82: 2014-04-14 | K82: 1 days | L82: 2014-06-20T00:14:27 | M82: 3 | N82: 0
A83: 383770 | B83: Nero | C83: t | D83: Master | E83: Division Nargil Beta | F83: 262 | G83: 252 | H83: 1804 | I83: 6 | J83: 2014-04-14 | K83: 2 hours | L83: 2014-06-20T00:14:28 | M83: 1 | N83: 0
A84: 5002573 | B84: chobosniper | C84: z | D84: Master | E84: Division Firebat Alpha | F84: 142 | G84: 134 | H84: 1804 | I84: 41 | J84: 2014-04-14 | K84: 1 days | L84: 2014-06-20T00:14:28 | M84: 1 | N84: 0
A85: 1810848 | B85: Gool | C85: p | D85: Master | E85: Division Shuttle Xi | F85: 121 | G85: 101 | H85: 1801 | I85: 42 | J85: 2014-05-13 | K85: 1 days | L85: 2014-06-20T00:14:29 | M85: 1 | N85: 0
A86: 2888501 | B86: Goky | C86: t | D86: Master | E86: Division Shiloh X-Ray | F86: 100 | G86: 84 | H86: 1800 | I86: 77 | J86: 2014-05-21 | K86: 2 days | L86: 2014-06-20T00:14:29 | M86: 1 | N86: 0
A87: 4014626 | B87: IIIIIIIIIIII | C87: z | D87: Master | E87: Division Sargas Yankee | F87: 216 | G87: 204 | H87: 1800 | I87: 25 | J87: 2014-05-01 | K87: 19 hours | L87: 2014-06-20T00:14:30 | M87: 1 | N87: 0
A88: 4549478 | B88: Balloon | C88: r | D88: Master | E88: Division Zergling Gamma | F88: 123 | G88: 94 | H88: 1800 | I88: 404 | J88: 2014-06-18 | K88: 2 hours | L88: 2014-06-20T00:14:30 | M88: 3 | N88: 0
A89: 4088414 | B89: imeurotrash | C89: t | D89: Master | E89: Division Nexus Bravo | F89: 159 | G89: 125 | H89: 1799 | I89: 79 | J89: 2014-05-25 | K89: 2 days | L89: 2014-06-20T00:14:30 | M89: 1 | N89: 0
A90: 813998 | B90: PrimalMoon | C90: p | D90: Master | E90: Division Feld Chi | F90: 145 | G90: 131 | H90: 1798 | I90: 104 | J90: 2014-04-15 | K90: 23 hours | L90: 2014-06-20T00:14:31 | M90: 1 | N90: 0
A91: 2222066 | B91: Pox | C91: z | D91: Master | E91: Division Firebat Alpha | F91: 139 | G91: 127 | H91: 1798 | I91: 160 | J91: 2014-04-14 | K91: 6 days | L91: 2014-06-20T00:14:31 | M91: 1 | N91: 0
A92: 3732236 | B92: KoopA | C92: p | D92: Master | E92: Division Nargil Beta | F92: 160 | G92: 157 | H92: 1798 | I92: 9 | J92: 2014-04-14 | K92: 5 hours | L92: 2014-06-20T00:14:31 | M92: 1 | N92: 0
A93: 4560349 | B93: Cocoon | C93: z | D93: Master | E93: Division Scourge Pepper | F93: 516 | G93: 471 | H93: 1797 | I93: 7 | J93: 2014-04-16 | K93: 8 hours | L93: 2014-06-20T00:14:32 | M93: 1 | N93: 0
A94: 679584 | B94: Wrath | C94: z | D94: Master | E94: Division Void Ray Sigma | F94: 100 | G94: 67 | H94: 1794 | I94: 114 | J94: 2014-05-07 | K94: 3 days | L94: 2014-06-20T00:14:32 | M94: 1 | N94: 0
A95: 3509813 | B95: FalcaoDoidao | C95: z | D95: Master | E95: Division Scourge Pepper | F95: 235 | G95: 219 | H95: 1794 | I95: 5 | J95: 2014-05-02 | K95: 1 hours | L95: 2014-06-20T00:14:32 | M95: 1 | N95: 0
A96: 2879077 | B96: Xaoke | C96: p | D96: Master | E96: Division Mutalisk Romeo | F96: 125 | G96: 68 | H96: 1793 | I96: 605 | J96: 2014-06-02 | K96: 2 days | L96: 2014-06-20T00:14:33 | M96: 4 | N96: 0
A97: 2798891 | B97: Jowj | C97: z | D97: Master | E97: Division Feld Chi | F97: 80 | G97: 80 | H97: 1792 | I97: 36 | J97: 2014-04-15 | K97: 1 days | L97: 2014-06-20T00:14:33 | M97: 1 | N97: 0
A98: 2177591 | B98: Mandalore | C98: t | D98: Master | E98: Division Kerrigan Mars | F98: 118 | G98: 104 | H98: 1789 | I98: 1 | J98: 2014-05-02 | K98: 23 hours | L98: 2014-06-20T00:14:34 | M98: 1 | N98: 0
A99: 1010182 | B99: SwifTFiRe | C99: t | D99: Master | E99: Division Nagglfar Tango | F99: 245 | G99: 234 | H99: 1788 | I99: 16 | J99: 2014-04-18 | K99: 12 hours | L99: 2014-06-20T00:14:34 | M99: 1 | N99: 0
A100: 1179666 | B100: lIlIlIIIIIII | C100: p | D100: Master | E100: Division Nagglfar Tango | F100: 202 | G100: 188 | H100: 1786 | I100: 27 | J100: 2014-04-17 | K100: 22 hours | L100: 2014-06-20T00:14:35 | M100: 1 | N100: 0
A101: 3545675 | B101: Backtothis | C101: t | D101: Master | E101: Division Firebat Alpha | F101: 79 | G101: 71 | H101: 1786 | I101: 210 | J101: 2014-04-14 | K101: 2 hours | L101: 2014-06-20T00:14:35 | M101: 2 | N101: 0
A102: 320008 | B102: Akroz | C102: z | D102: Master | E102: Division Void Ray Sigma | F102: 375 | G102: 352 | H102: 1785 | I102: 25 | J102: 2014-05-06 | K102: 3 hours | L102: 2014-06-20T00:14:35 | M102: 1 | N102: 0
A103: 2965167 | B103: Zen | C103: p | D103: Master | E103: Division Daggoth Sierra | F103: 118 | G103: 106 | H103: 1785 | I103: 98 | J103: 2014-04-14 | K103: 2 days | L103: 2014-06-20T00:14:36 | M103: 1 | N103: 0
A104: 344433 | B104: NerdStompeR | C104: p | D104: Master | E104: Division Sargas Yankee | F104: 250 | G104: 246 | H104: 1783 | I104: 29 | J104: 2014-04-21 | K104: 1 days | L104: 2014-06-20T00:14:36 | M104: 1 | N104: 0
A105: 2459231 | B105: Fear | C105: p | D105: Master | E105: Division Victory Lima | F105: 117 | G105: 119 | H105: 1780 | I105: 13 | J105: 2014-04-14 | K105: 9 hours | L105: 2014-06-20T00:14:37 | M105: 1 | N105: 0
A106: 983287 | B106: lllIIIlllIIl | C106: p | D106: Master | E106: Division Kerrigan Mars | F106: 270 | G106: 224 | H106: 1776 | I106: 107 | J106: 2014-05-02 | K106: 4 days | L106: 2014-06-20T00:14:37 | M106: 1 | N106: 0
A107: 4384580 | B107: GhOsT | C107: p | D107: Master | E107: Division Daggoth Sierra | F107: 142 | G107: 104 | H107: 1772 | I107: 149 | J107: 2014-04-26 | K107: 5 days | L107: 2014-06-20T00:14:37 | M107: 1 | N107: 0
A108: 5445192 | B108: Ehre | C108: z | D108: Master | E108: Division Victory Lima | F108: 228 | G108: 218 | H108: 1772 | I108: 6 | J108: 2014-04-14 | K108: 3 hours | L108: 2014-06-20T00:14:38 | M108: 1 | N108: 0
A109: 2610135 | B109: Kevin | C109: t | D109: Master | E109: Division Scourge Pepper | F109: 72 | G109: 61 | H109: 1770 | I109: 194 | J109: 2014-04-27 | K109: 6 days | L109: 2014-06-20T00:14:38 | M109: 2 | N109: 0
A110: 3342483 | B110: JuliusSeizur | C110: z | D110: Master | E110: Division Daggoth Sierra | F110: 283 | G110: 264 | H110: 1770 | I110: 66 | J110: 2014-04-14 | K110: 2 days | L110: 2014-06-20T00:14:39 | M110: 1 | N110: 0
A111: 685959 | B111: DarKicE | C111: t | D111: Master | E111: Division Shiloh X-Ray | F111: 89 | G111: 65 | H111: 1767 | I111: 1 | J111: 2014-05-21 | K111: 2 minutes | L111: 2014-06-20T00:14:39 | M111: 1 | N111: 0
A112: 1923095 | B112: Sleeper | C112: t | D112: Master | E112: Division Kerrigan Mars | F112: 191 | G112: 169 | H112: 1762 | I112: 0 | J112: 2014-05-02 | K112: 5 minutes | L112: 2014-06-20T00:14:40 | M112: 1 | N112: 0
A113: 4542800 | B113: lllllllllll | C113: p | D113: Master | E113: Division Forge Kilo | F113: 91 | G113: 48 | H113: 1761 | I113: 90 | J113: 2014-06-13 | K113: 1 days | L113: 2014-06-20T00:14:40 | M113: 1 | N113: 0
A114: 2612207 | B114: LeviathaN | C114: p | D114: Master | E114: Division Nexus Bravo | F114: 106 | G114: 79 | H114: 1754 | I114: 79 | J114: 2014-05-27 | K114: 2 days | L114: 2014-06-20T00:14:40 | M114: 1 | N114: 0
A115: 3537849 | B115: Hunta | C115: z | D115: Master | E115: Division Scourge Pepper | F115: 87 | G115: 72 | H115: 1754 | I115: 54 | J115: 2014-05-02 | K115: 1 days | L115: 2014-06-20T00:14:41 | M115: 1 | N115: 0
A116: 4177164 | B116: Incand | C116: z | D116: Master | E116: Division Victory Lima | F116: 87 | G116: 70 | H116: 1754 | I116: 28 | J116: 2014-04-14 | K116: 2 hours | L116: 2014-06-20T00:14:41 | M116: 1 | N116: 0
A117: 4929457 | B117: bullet | C117: z | D117: Master | E117: Division Forge Kilo | F117: 101 | G117: 77 | H117: 1754 | I117: 350 | J117: 2014-06-14 | K117: 2 days | L117: 2014-06-20T00:14:41 | M117: 2 | N117: 0
A118: 4507390 | B118: IIIIIIIIIIII | C118: z | D118: Master | E118: Division Ulrezaj Zeta | F118: 107 | G118: 89 | H118: 1753 | I118: 42 | J118: 2014-05-16 | K118: 1 days | L118: 2014-06-20T00:14:42 | M118: 1 | N118: 0
A119: 3574640 | B119: Onett | C119: z | D119: Master | E119: Division Mutalisk Romeo | F119: 99 | G119: 68 | H119: 1750 | I119: 31 | J119: 2014-06-01 | K119: 1 days | L119: 2014-06-20T00:14:42 | M119: 1 | N119: 0
A120: 2494963 | B120: nickyboy | C120: z | D120: Master | E120: Division Aleksander Dixie | F120: 342 | G120: 325 | H120: 1749 | I120: 0 | J120: 2014-04-15 | K120: 2 hours | L120: 2014-06-20T00:14:42 | M120: 1 | N120: 0
A121: 1976744 | B121: ScrubbleS | C121: z | D121: Master | E121: Division Daggoth Sierra | F121: 93 | G121: 55 | H121: 1747 | I121: 349 | J121: 2014-04-14 | K121: 2 hours | L121: 2014-06-20T00:14:42 | M121: 2 | N121: 0
A122: 696279 | B122: llllllllll | C122: z | D122: Master | E122: Division Shuttle Xi | F122: 170 | G122: 145 | H122: 1746 | I122: 21 | J122: 2014-05-11 | K122: 16 hours | L122: 2014-06-20T00:14:43 | M122: 1 | N122: 0
A123: 2009005 | B123: Bop | C123: z | D123: Master | E123: Division Nagglfar Tango | F123: 113 | G123: 115 | H123: 1744 | I123: 60 | J123: 2014-04-17 | K123: 2 days | L123: 2014-06-20T00:14:43 | M123: 1 | N123: 0
A124: 2830585 | B124: Kicker | C124: z | D124: Master | E124: Division Victory Lima | F124: 90 | G124: 74 | H124: 1744 | I124: 53 | J124: 2014-04-17 | K124: 1 days | L124: 2014-06-20T00:14:44 | M124: 1 | N124: 0
A125: 4327669 | B125: GilTzOkO | C125: t | D125: Master | E125: Division Nexus Bravo | F125: 161 | G125: 132 | H125: 1744 | I125: 0 | J125: 2014-05-28 | K125: 1 minutes | L125: 2014-06-20T00:14:44 | M125: 1 | N125: 0
A126: 428382 | B126: IIIIIIIIIIII | C126: p | D126: Master | E126: Division Victory Lima | F126: 360 | G126: 338 | H126: 1743 | I126: 2 | J126: 2014-04-19 | K126: 6 minutes | L126: 2014-06-20T00:14:44 | M126: 1 | N126: 0
A127: 2827981 | B127: patnessdark | C127: z | D127: Master | E127: Division Firebat Alpha | F127: 138 | G127: 131 | H127: 1742 | I127: 61 | J127: 2014-04-14 | K127: 2 days | L127: 2014-06-20T00:14:45 | M127: 1 | N127: 0
A128: 2004065 | B128: Fayth | C128: p | D128: Master | E128: Division Dominion Gravity | F128: 197 | G128: 164 | H128: 1741 | I128: 89 | J128: 2014-05-08 | K128: 28 minutes | L128: 2014-06-20T00:14:45 | M128: 1 | N128: 0
A129: 3900835 | B129: IIIIIIIIIIII | C129: z | D129: Master | E129: Division Aleksander Dixie | F129: 137 | G129: 133 | H129: 1741 | I129: 86 | J129: 2014-04-15 | K129: 1 days | L129: 2014-06-20T00:14:45 | M129: 1 | N129: 0
A130: 456535 | B130: CealeR | C130: t | D130: Master | E130: Division Victory Lima | F130: 90 | G130: 90 | H130: 1739 | I130: 76 | J130: 2014-04-30 | K130: 2 days | L130: 2014-06-20T00:14:46 | M130: 1 | N130: 0
A131: 4836760 | B131: Dedication | C131: z | D131: Master | E131: Division Nagglfar Tango | F131: 95 | G131: 91 | H131: 1731 | I131: 62 | J131: 2014-04-17 | K131: 2 days | L131: 2014-06-20T00:14:46 | M131: 1 | N131: =IF(M131=10,SUM(F131:G131),0) -> 0
A132: 1451913 | B132: GRASScutter | C132: z | D132: Master | E132: Division Sargas Yankee | F132: 143 | G132: 135 | H132: 1729 | I132: 5 | J132: 2014-04-20 | K132: 1 hours | L132: 2014-06-20T00:14:47 | M132: 1 | N132: 0
A133: 4323392 | B133: hypnotoad | C133: z | D133: Master | E133: Division Nagglfar Tango | F133: 122 | G133: 112 | H133: 1722 | I133: 16 | J133: 2014-05-02 | K133: 11 hours | L133: 2014-06-20T00:14:47 | M133: 1 | N133: 0
A134: 958616 | B134: Pseudorandom | C134: z | D134: Master | E134: Division Scourge Pepper | F134: 175 | G134: 160 | H134: 1720 | I134: 23 | J134: 2014-04-28 | K134: 18 hours | L134: 2014-06-20T00:14:47 | M134: 1 | N134: 0
A135: 2495668 | B135: Drainage | C135: p | D135: Master | E135: Division Zergling Gamma | F135: 118 | G135: 91 | H135: 1720 | I135: 67 | J135: 2014-05-02 | K135: 10 hours | L135: 2014-06-20T00:14:48 | M135: 1 | N135: 0
A136: 1460689 | B136: Deadzerg | C136: p | D136: Master | E136: Division Victory Lima | F136: 341 | G136: 329 | H136: 1716 | I136: 30 | J136: 2014-04-14 | K136: 1 days | L136: 2014-06-20T00:14:48 | M136: 1 | N136: 0
A137: 2133575 | B137: MelOn | C137: z | D137: Master | E137: Division Mutalisk Romeo | F137: 89 | G137: 57 | H137: 1715 | I137: 422 | J137: 2014-06-01 | K137: 2 days | L137: 2014-06-20T00:14:49 | M137: 3 | N137: 0
A138: 2426004 | B138: spencer | C138: z | D138: Master | E138: Division Forge Kilo | F138: 94 | G138: 78 | H138: 1713 | I138: 0 | J138: 2014-06-13 | K138: 5 minutes | L138: 2014-06-20T00:14:49 | M138: 1 | N138: 0
A139: 4616016 | B139: GAMETIME | C139: z | D139: Master | E139: Division Shiloh X-Ray | F139: 328 | G139: 299 | H139: 1713 | I139: 5 | J139: 2014-05-20 | K139: 1 hours | L139: 2014-06-20T00:14:49 | M139: 1 | N139: 0
A140: 218479 | B140: Supremo | C140: p | D140: Master | E140: Division Nargil Beta | F140: 99 | G140: 97 | H140: 1710 | I140: 1 | J140: 2014-04-29 | K140: 7 minutes | L140: 2014-06-20T00:14:50 | M140: 1 | N140: 0
A141: 5033621 | B141: Flump | C141: z | D141: Master | E141: Division Firebat Alpha | F141: 174 | G141: 164 | H141: 1710 | I141: 156 | J141: 2014-04-14 | K141: 1 days | L141: 2014-06-20T00:14:50 | M141: 1 | N141: 0
A142: 724166 | B142: RiseWillis | C142: t | D142: Master | E142: Division Daggoth Sierra | F142: 245 | G142: 238 | H142: 1709 | I142: 9 | J142: 2014-04-27 | K142: 5 hours | L142: 2014-06-20T00:14:51 | M142: 1 | N142: 0
A143: 373444 | B143: iNcontroL | C143: p | D143: Master | E143: Division Firebat Alpha | F143: 237 | G143: 229 | H143: 1708 | I143: 286 | J143: 2014-06-18 | K143: 1 days | L143: 2014-06-20T00:14:52 | M143: 2 | N143: 0
A144: 1306655 | B144: MrCesander | C144: p | D144: Master | E144: Division Hartley Omega | F144: 174 | G144: 155 | H144: 1705 | I144: 0 | J144: 2014-05-04 | K144: 22 hours | L144: 2014-06-20T00:14:52 | M144: 1 | N144: 0
A145: 403447 | B145: Lightning | C145: p | D145: Master | E145: Division Victory Lima | F145: 92 | G145: 92 | H145: 1701 | I145: 77 | J145: 2014-04-14 | K145: 1 days | L145: 2014-06-20T00:14:53 | M145: 1 | N145: 0
A146: 2667056 | B146: DoctorC | C146: p | D146: Master | E146: Division Firebat Alpha | F146: 270 | G146: 266 | H146: 1699 | I146: 215 | J146: 2014-04-14 | K146: 5 days | L146: 2014-06-20T00:14:53 | M146: 2 | N146: 0
A147: 702387 | B147: Aidan | C147: t | D147: Master | E147: Division Feld Chi | F147: 114 | G147: 105 | H147: 1698 | I147: 185 | J147: 2014-04-24 | K147: 7 days | L147: 2014-06-20T00:14:54 | M147: 2 | N147: 0
A148: 365740 | B148: Caliber | C148: r | D148: Master | E148: Division Hartley Omega | F148: 68 | G148: 59 | H148: 1697 | I148: 493 | J148: 2014-05-10 | K148: 1 days | L148: 2014-06-20T00:14:54 | M148: 3 | N148: 0
A149: 1088752 | B149: Spec | C149: r | D149: Master | E149: Division Scourge Pepper | F149: 84 | G149: 30 | H149: 1695 | I149: 421 | J149: 2014-06-04 | K149: 2 days | L149: 2014-06-20T00:14:55 | M149: 3 | N149: 0
A150: 365040 | B150: llllllllllll | C150: z | D150: Master | E150: Division Forge Kilo | F150: 120 | G150: 98 | H150: 1694 | I150: 3 | J150: 2014-06-12 | K150: 33 minutes | L150: 2014-06-20T00:14:55 | M150: 1 | N150: 0
A151: 2569055 | B151: Benjadeath | C151: z | D151: Master | E151: Division Sargas Yankee | F151: 150 | G151: 140 | H151: 1694 | I151: 4 | J151: 2014-04-26 | K151: 51 minutes | L151: 2014-06-20T00:14:55 | M151: 1 | N151: 0
A152: 4310716 | B152: MythiC | C152: t | D152: Master | E152: Division Victory Lima | F152: 89 | G152: 76 | H152: 1694 | I152: 306 | J152: 2014-04-14 | K152: 8 hours | L152: 2014-06-20T00:14:56 | M152: 2 | N152: 0
A153: 4245328 | B153: IIIIIIII | C153: t | D153: Master | E153: Division Dominion Gravity | F153: 107 | G153: 88 | H153: 1687 | I153: 92 | J153: 2014-05-08 | K153: 9 hours | L153: 2014-06-20T00:14:56 | M153: 1 | N153: 0
A154: 3071228 | B154: Pistoletov | C154: z | D154: Master | E154: Division Victory Lima | F154: 80 | G154: 84 | H154: 1685 | I154: 208 | J154: 2014-04-14 | K154: 2 days | L154: 2014-06-20T00:14:56 | M154: 2 | N154: 0
A155: 5122584 | B155: lapinou | C155: z | D155: Master | E155: Division Warbringer Hawk | F155: 166 | G155: 87 | H155: 1685 | I155: 13 | J155: 2014-06-08 | K155: 9 hours | L155: 2014-06-20T00:14:57 | M155: 1 | N155: 0
A156: 759182 | B156: spaceballz | C156: z | D156: Master | E156: Division Sargas Yankee | F156: 197 | G156: 179 | H156: 1682 | I156: 81 | J156: 2014-04-20 | K156: 3 days | L156: 2014-06-20T00:14:57 | M156: 1 | N156: 0
A157: 2944457 | B157: Risk | C157: z | D157: Master | E157: Division Feld Chi | F157: 187 | G157: 191 | H157: 1682 | I157: 2 | J157: 2014-04-16 | K157: 3 hours | L157: 2014-06-20T00:14:58 | M157: 1 | N157: 0
A158: 425678 | B158: CharaDa | C158: p | D158: Master | E158: Division Firebat Alpha | F158: 267 | G158: 262 | H158: 1681 | I158: 2 | J158: 2014-05-01 | K158: 3 minutes | L158: 2014-06-20T00:14:58 | M158: 1 | N158: 0
A159: 1200256 | B159: ROCCAT | C159: z | D159: Master | E159: Division Nagglfar Tango | F159: 68 | G159: 35 | H159: 1680 | I159: 522 | J159: 2014-04-18 | K159: 22 hours | L159: 2014-06-20T00:14:58 | M159: 3 | N159: 0
A160: 4778851 | B160: OppOb | C160: z | D160: Master | E160: Division Firebat Alpha | F160: 87 | G160: 78 | H160: 1676 | I160: 217 | J160: 2014-04-14 | K160: 1 days | L160: 2014-06-20T00:14:59 | M160: 2 | N160: 0
A161: 567281 | B161: IlIlIlIlIlIl | C161: z | D161: Master | E161: Division Mutalisk Romeo | F161: 70 | G161: 53 | H161: 1675 | I161: 491 | J161: 2014-06-02 | K161: 1 days | L161: 2014-06-20T00:14:59 | M161: 3 | N161: 0
A162: 2696058 | B162: Starlight | C162: p | D162: Master | E162: Division Scourge Pepper | F162: 223 | G162: 223 | H162: 1675 | I162: 0 | J162: 2014-04-18 | K162: 21 hours | L162: 2014-06-20T00:14:59 | M162: 1 | N162: 0
A163: 416097 | B163: StoicNonY | C163: p | D163: Master | E163: Division Nargil Beta | F163: 58 | G163: 36 | H163: 1674 | I163: 649 | J163: 2014-06-05 | K163: 7 days | L163: 2014-06-20T00:15:00 | M163: 4 | N163: 0
A164: 1459340 | B164: CriMsoN | C164: p | D164: Master | E164: Division Victory Lima | F164: 135 | G164: 131 | H164: 1674 | I164: 95 | J164: 2014-04-14 | K164: 8 hours | L164: 2014-06-20T00:15:00 | M164: 1 | N164: 0
A165: 4167961 | B165: IIIIIIIIIIII | C165: t | D165: Master | E165: Division Shuttle Xi | F165: 168 | G165: 139 | H165: 1672 | I165: 241 | J165: 2014-06-15 | K165: 1 days | L165: 2014-06-20T00:15:00 | M165: 2 | N165: 0
A166: 4647029 | B166: ImPaS | C166: z | D166: Master | E166: Division Nexus Bravo | F166: 318 | G166: 255 | H166: 1668 | I166: 43 | J166: 2014-05-28 | K166: 1 days | L166: 2014-06-20T00:15:01 | M166: 1 | N166: 0
A167: 4679757 | B167: summer | C167: p | D167: Master | E167: Division Victory Lima | F167: 143 | G167: 133 | H167: 1668 | I167: 12 | J167: 2014-05-01 | K167: 8 hours | L167: 2014-06-20T00:15:01 | M167: 1 | N167: 0
A168: 4796193 | B168: Jotem | C168: z | D168: Master | E168: Division Warbringer Hawk | F168: 109 | G168: 75 | H168: 1668 | I168: 211 | J168: 2014-04-26 | K168: 8 days | L168: 2014-06-20T00:15:01 | M168: 2 | N168: 0
A169: 3203375 | B169: HTOMario | C169: t | D169: Master | E169: Division Mutalisk Romeo | F169: 62 | G169: 57 | H169: 1667 | I169: 415 | J169: 2014-06-02 | K169: 1 hours | L169: 2014-06-20T00:15:02 | M169: 3 | N169: 0
A170: 4171112 | B170: Friend | C170: z | D170: Master | E170: Division Nargil Beta | F170: 59 | G170: 62 | H170: 1666 | I170: 406 | J170: 2014-04-14 | K170: 1 days | L170: 2014-06-20T00:15:02 | M170: 3 | N170: 0
A171: 4287694 | B171: Acronym | C171: p | D171: Master | E171: Division Nexus Bravo | F171: 154 | G171: 134 | H171: 1666 | I171: 0 | J171: 2014-06-16 | K171: 10 minutes | L171: 2014-06-20T00:15:02 | M171: 1 | N171: 0
A172: 1823963 | B172: aeontech | C172: z | D172: Master | E172: Division Aleksander Dixie | F172: 146 | G172: 148 | H172: 1663 | I172: 376 | J172: 2014-06-06 | K172: 12 days | L172: 2014-06-20T00:15:02 | M172: 3 | N172: 0
A173: 4887772 | B173: Wupunpun | C173: t | D173: Master | E173: Division Shuttle Xi | F173: 140 | G173: 46 | H173: 1663 | I173: 242 | J173: 2014-05-11 | K173: 2 days | L173: 2014-06-20T00:15:03 | M173: 2 | N173: 0
A174: 356392 | B174: Kaede | C174: z | D174: Master | E174: Division Aleksander Dixie | F174: 101 | G174: 84 | H174: 1662 | I174: 15 | J174: 2014-04-24 | K174: 1 days | L174: 2014-06-20T00:15:03 | M174: 1 | N174: 0
A175: 4080149 | B175: wiNgiAN | C175: p | D175: Master | E175: Division Sargas Yankee | F175: 59 | G175: 57 | H175: 1661 | I175: 435 | J175: 2014-04-20 | K175: 2 days | L175: 2014-06-20T00:15:04 | M175: 3 | N175: 0
A176: 5060004 | B176: IIllIlIlIllI | C176: z | D176: Master | E176: Division Sargas Yankee | F176: 69 | G176: 60 | H176: 1660 | I176: 134 | J176: 2014-04-26 | K176: 1 days | L176: 2014-06-20T00:15:04 | M176: 1 | N176: 0
A177: 3364079 | B177: cellonoOb | C177: r | D177: Master | E177: Division Daggoth Sierra | F177: 75 | G177: 89 | H177: 1659 | I177: 9 | J177: 2014-04-14 | K177: 2 hours | L177: 2014-06-20T00:15:05 | M177: 1 | N177: 0
A178: 4802722 | B178: Tyrion | C178: z | D178: Master | E178: Division Void Ray Sigma | F178: 310 | G178: 304 | H178: 1659 | I178: 11 | J178: 2014-05-06 | K178: 7 hours | L178: 2014-06-20T00:15:05 | M178: 1 | N178: 0
A179: 824091 | B179: tGNoStrA | C179: z | D179: Master | E179: Division Daggoth Sierra | F179: 125 | G179: 108 | H179: 1658 | I179: 140 | J179: 2014-04-27 | K179: 19 hours | L179: 2014-06-20T00:15:05 | M179: 1 | N179: 0
A180: 323044 | B180: DeathToU | C180: p | D180: Master | E180: Division Hartley Omega | F180: 270 | G180: 234 | H180: 1657 | I180: 21 | J180: 2014-05-23 | K180: 17 hours | L180: 2014-06-20T00:15:06 | M180: 1 | N180: 0
A181: 3287175 | B181: MinAh | C181: p | D181: Master | E181: Division Firebat Alpha | F181: 288 | G181: 294 | H181: 1657 | I181: 32 | J181: 2014-04-14 | K181: 1 days | L181: 2014-06-20T00:15:06 | M181: 1 | N181: 0
A182: 3544098 | B182: VIP | C182: z | D182: Master | E182: Division Victory Lima | F182: 202 | G182: 203 | H182: 1654 | I182: 11 | J182: 2014-04-14 | K182: 7 hours | L182: 2014-06-20T00:15:07 | M182: 1 | N182: 0
A183: 198651 | B183: TerraN | C183: t | D183: Master | E183: Division Victory Lima | F183: 167 | G183: 141 | H183: 1653 | I183: 0 | J183: 2014-04-18 | K183: 3 hours | L183: 2014-06-20T00:15:07 | M183: 1 | N183: 0
A184: 3253596 | B184: Winter | C184: z | D184: Master | E184: Division Nargil Beta | F184: 97 | G184: 103 | H184: 1652 | I184: 35 | J184: 2014-04-15 | K184: 1 days | L184: 2014-06-20T00:15:08 | M184: 1 | N184: 0
A185: 4557236 | B185: Starbuck | C185: z | D185: Master | E185: Division Warbringer Hawk | F185: 49 | G185: 26 | H185: 1652 | I185: 754 | J185: 2014-04-21 | K185: 1 days | L185: 2014-06-20T00:15:08 | M185: 5 | N185: 0
A186: 190334 | B186: VanDraken | C186: p | D186: Master | E186: Division Kerrigan Mars | F186: 130 | G186: 113 | H186: 1648 | I186: 49 | J186: 2014-05-02 | K186: 11 hours | L186: 2014-06-20T00:15:08 | M186: 1 | N186: 0
A187: 301194 | B187: Akuji | C187: z | D187: Master | E187: Division Daggoth Sierra | F187: 146 | G187: 147 | H187: 1648 | I187: 48 | J187: 2014-04-14 | K187: 1 hours | L187: 2014-06-20T00:15:09 | M187: 1 | N187: 0
A188: 2645644 | B188: Plurmorant | C188: z | D188: Master | E188: Division Nargil Beta | F188: 164 | G188: 174 | H188: 1647 | I188: 11 | J188: 2014-04-14 | K188: 7 hours | L188: 2014-06-20T00:15:09 | M188: 1 | N188: 0
A189: 3894495 | B189: Cube | C189: p | D189: Master | E189: Division Daggoth Sierra | F189: 91 | G189: 83 | H189: 1647 | I189: 341 | J189: 2014-06-04 | K189: 5 days | L189: 2014-06-20T00:15:10 | M189: 2 | N189: 0
A190: 2604 | B190: Rivera | C190: z | D190: Master | E190: Division Daggoth Sierra | F190: 166 | G190: 157 | H190: 1644 | I190: 352 | J190: 2014-04-14 | K190: 8 days | L190: 2014-06-20T00:15:10 | M190: 2 | N190: 0
A191: 42534 | B191: Fiend | C191: t | D191: Master | E191: Division Warbringer Hawk | F191: 64 | G191: 62 | H191: 1644 | I191: 392 | J191: 2014-04-22 | K191: 2 days | L191: 2014-06-20T00:15:11 | M191: 3 | N191: 0
A192: 2834476 | B192: Goomba | C192: t | D192: Master | E192: Division Warbringer Hawk | F192: 381 | G192: 373 | H192: 1644 | I192: 60 | J192: 2014-04-21 | K192: 2 days | L192: 2014-06-20T00:15:11 | M192: 1 | N192: 0
A193: 4292834 | B193: Tunechi | C193: t | D193: Master | E193: Division Daggoth Sierra | F193: 76 | G193: 63 | H193: 1639 | I193: 153 | J193: 2014-04-28 | K193: 3 hours | L193: 2014-06-20T00:15:12 | M193: 1 | N193: 0
A194: 809788 | B194: Jerry | C194: p | D194: Master | E194: Division Mutalisk Romeo | F194: 107 | G194: 99 | H194: 1638 | I194: 7 | J194: 2014-06-02 | K194: 3 hours | L194: 2014-06-20T00:15:12 | M194: 1 | N194: 0
A195: 291273 | B195: Shard | C195: r | D195: Master | E195: Division Firebat Alpha | F195: 222 | G195: 228 | H195: 1636 | I195: 42 | J195: 2014-04-14 | K195: 19 hours | L195: 2014-06-20T00:15:12 | M195: 1 | N195: =IF(M195=10,SUM(F195:G195),0) -> 0
A196: 2132792 | B196: Krewella | C196: z | D196: Master | E196: Division Ulrezaj Zeta | F196: 167 | G196: 159 | H196: 1635 | I196: 58 | J196: 2014-05-15 | K196: 1 days | L196: 2014-06-20T00:15:13 | M196: 1 | N196: 0
A197: 2621509 | B197: avilo | C197: t | D197: Master | E197: Division Warbringer Hawk | F197: 101 | G197: 95 | H197: 1635 | I197: 71 | J197: 2014-04-21 | K197: 3 hours | L197: 2014-06-20T00:15:13 | M197: 1 | N197: 0
A198: 2057574 | B198: MrPandaPants | C198: t | D198: Master | E198: Division Firebat Alpha | F198: 108 | G198: 115 | H198: 1634 | I198: 0 | J198: 2014-04-14 | K198: 22 hours | L198: 2014-06-20T00:15:13 | M198: 1 | N198: 0
A199: 781769 | B199: SquidfingerS | C199: p | D199: Master | E199: Division Dominion Gravity | F199: 129 | G199: 120 | H199: 1633 | I199: 9 | J199: 2014-05-08 | K199: 5 hours | L199: 2014-06-20T00:15:14 | M199: 1 | N199: 0
A200: 5056512 | B200: IlIIIllIlIIl | C200: z | D200: Master | E200: Division Hartley Omega | F200: 136 | G200: 87 | H200: 1632 | I200: 120 | J200: 2014-05-05 | K200: 1 days | L200: 2014-06-20T00:15:14 | M200: 1 | N200: 0
... 1907 more rows

Sheet GM
A1: ID | B1: Name | C1: Race | D1: League | E1: Division Name | F1: Wins | G1: Losses | H1: Score | I1: Bonus Pool | J1: Join Date | K1: Last Game | L1: Timestamp | M1: Bonus Pool Weeks Remaining
A2: 3644481 | B2: Losira | C2: z | D2: Grandmaster | E2: Grandmaster | F2: 201 | G2: 86 | H2: 2456 | I2: 23 | J2: 2014-05-24 | K2: 18 hours | L2: 2014-06-20T00:12:23 | M2: 1
A3: 5179650 | B3: Serendipity | C3: p | D3: Grandmaster | E3: Grandmaster | F3: 139 | G3: 114 | H3: 2414 | I3: 0 | J3: 2014-04-21 | K3: 5 hours | L3: 2014-06-20T00:12:24 | M3: 1
A4: 2997983 | B4: Petraeus | C4: z | D4: Grandmaster | E4: Grandmaster | F4: 168 | G4: 102 | H4: 2401 | I4: 65 | J4: 2014-04-21 | K4: 23 hours | L4: 2014-06-20T00:12:25 | M4: 1
A5: 668585 | B5: Cham | C5: z | D5: Grandmaster | E5: Grandmaster | F5: 181 | G5: 112 | H5: 2396 | I5: 8 | J5: 2014-04-21 | K5: 3 hours | L5: 2014-06-20T00:12:25 | M5: 1
A6: 2226443 | B6: Katana | C6: p | D6: Grandmaster | E6: Grandmaster | F6: 110 | G6: 51 | H6: 2378 | I6: 40 | J6: 2014-05-10 | K6: 20 hours | L6: 2014-06-20T00:12:26 | M6: 1
A7: 4101666 | B7: Phog | C7: z | D7: Grandmaster | E7: Grandmaster | F7: 254 | G7: 183 | H7: 2322 | I7: 48 | J7: 2014-04-21 | K7: 21 hours | L7: 2014-06-20T00:12:26 | M7: 1
A8: 3390362 | B8: lIllIIllIIll | C8: p | D8: Grandmaster | E8: Grandmaster | F8: 188 | G8: 116 | H8: 2319 | I8: 80 | J8: 2014-04-21 | K8: 2 days | L8: 2014-06-20T00:12:27 | M8: 1
A9: 3177044 | B9: ViBE | C9: z | D9: Grandmaster | E9: Grandmaster | F9: 194 | G9: 131 | H9: 2317 | I9: 22 | J9: 2014-04-21 | K9: 17 hours | L9: 2014-06-20T00:12:27 | M9: 1
A10: 4342895 | B10: lllIIIlllIlI | C10: p | D10: Grandmaster | E10: Grandmaster | F10: 106 | G10: 55 | H10: 2305 | I10: 176 | J10: 2014-05-02 | K10: 1 days | L10: 2014-06-20T00:12:27 | M10: 1
A11: 1618140 | B11: Hitman | C11: p | D11: Grandmaster | E11: Grandmaster | F11: 517 | G11: 342 | H11: 2303 | I11: 5 | J11: 2014-04-22 | K11: 1 hours | L11: 2014-06-20T00:12:28 | M11: 1
A12: 2893801 | B12: Sorrow | C12: z | D12: Grandmaster | E12: Grandmaster | F12: 130 | G12: 78 | H12: 2287 | I12: 6 | J12: 2014-05-15 | K12: 2 hours | L12: 2014-06-20T00:12:29 | M12: 1
A13: 4177992 | B13: Positive | C13: p | D13: Grandmaster | E13: Grandmaster | F13: 124 | G13: 31 | H13: 2264 | I13: 3 | J13: 2014-06-16 | K13: 20 hours | L13: 2014-06-20T00:12:29 | M13: 1
A14: 992628 | B14: JonSnow | C14: z | D14: Grandmaster | E14: Grandmaster | F14: 117 | G14: 74 | H14: 2251 | I14: 8 | J14: 2014-04-21 | K14: 4 hours | L14: 2014-06-20T00:12:30 | M14: 1
A15: 2575821 | B15: HuK | C15: p | D15: Grandmaster | E15: Grandmaster | F15: 121 | G15: 72 | H15: 2251 | I15: 29 | J15: 2014-04-21 | K15: 7 hours | L15: 2014-06-20T00:12:30 | M15: 1
A16: 5553596 | B16: GipsyDanger | C16: p | D16: Grandmaster | E16: Grandmaster | F16: 94 | G16: 51 | H16: 2247 | I16: 79 | J16: 2014-04-21 | K16: 7 hours | L16: 2014-06-20T00:12:31 | M16: 1
A17: 2103543 | B17: IIIIIIIIIIII | C17: p | D17: Grandmaster | E17: Grandmaster | F17: 156 | G17: 107 | H17: 2229 | I17: 4 | J17: 2014-06-04 | K17: 37 minutes | L17: 2014-06-20T00:12:31 | M17: 1
A18: 2778732 | B18: IIIIIIIIIIII | C18: p | D18: Grandmaster | E18: Grandmaster | F18: 350 | G18: 147 | H18: 2218 | I18: 157 | J18: 2014-04-22 | K18: 5 days | L18: 2014-06-20T00:12:32 | M18: 1
A19: 2661999 | B19: Moosegills | C19: z | D19: Grandmaster | E19: Grandmaster | F19: 116 | G19: 88 | H19: 2214 | I19: 76 | J19: 2014-04-21 | K19: 2 days | L19: 2014-06-20T00:12:32 | M19: 1
A20: 694288 | B20: cSaroVati | C20: p | D20: Grandmaster | E20: Grandmaster | F20: 201 | G20: 161 | H20: 2207 | I20: 28 | J20: 2014-04-21 | K20: 23 hours | L20: 2014-06-20T00:12:33 | M20: 1
A21: 1043317 | B21: avilo | C21: t | D21: Grandmaster | E21: Grandmaster | F21: 181 | G21: 156 | H21: 2203 | I21: 3 | J21: 2014-06-13 | K21: 8 minutes | L21: 2014-06-20T00:12:33 | M21: 1
A22: 354208 | B22: Bioice | C22: z | D22: Grandmaster | E22: Grandmaster | F22: 314 | G22: 226 | H22: 2195 | I22: 66 | J22: 2014-04-21 | K22: 11 hours | L22: 2014-06-20T00:12:34 | M22: 1
A23: 5337665 | B23: Tikky | C23: t | D23: Grandmaster | E23: Grandmaster | F23: 145 | G23: 67 | H23: 2189 | I23: 0 | J23: 2014-06-04 | K23: 19 minutes | L23: 2014-06-20T00:12:34 | M23: 1
A24: 5612423 | B24: llllllllllll | C24: z | D24: Grandmaster | E24: Grandmaster | F24: 212 | G24: 175 | H24: 2171 | I24: 5 | J24: 2014-04-21 | K24: 2 hours | L24: 2014-06-20T00:12:35 | M24: 1
A25: 2455827 | B25: RuFF | C25: p | D25: Grandmaster | E25: Grandmaster | F25: 124 | G25: 97 | H25: 2158 | I25: 12 | J25: 2014-06-12 | K25: 8 hours | L25: 2014-06-20T00:12:35 | M25: 1
A26: 2965254 | B26: llllllllllll | C26: p | D26: Grandmaster | E26: Grandmaster | F26: 153 | G26: 121 | H26: 2132 | I26: 0 | J26: 2014-04-21 | K26: 8 minutes | L26: 2014-06-20T00:12:36 | M26: 1
A27: 2992224 | B27: SpiderNaDo | C27: t | D27: Grandmaster | E27: Grandmaster | F27: 131 | G27: 51 | H27: 2132 | I27: 12 | J27: 2014-06-18 | K27: 7 hours | L27: 2014-06-20T00:12:36 | M27: 1
A28: 1560267 | B28: Spectre | C28: t | D28: Grandmaster | E28: Grandmaster | F28: 102 | G28: 77 | H28: 2122 | I28: 20 | J28: 2014-04-21 | K28: 8 minutes | L28: 2014-06-20T00:12:37 | M28: 1
A29: 4368782 | B29: LsEbA | C29: z | D29: Grandmaster | E29: Grandmaster | F29: 115 | G29: 75 | H29: 2120 | I29: 80 | J29: 2014-04-21 | K29: 5 hours | L29: 2014-06-20T00:12:38 | M29: 1
A30: 1443122 | B30: DeeMo | C30: t | D30: Grandmaster | E30: Grandmaster | F30: 85 | G30: 70 | H30: 2118 | I30: 75 | J30: 2014-05-11 | K30: 1 days | L30: 2014-06-20T00:12:38 | M30: 1
A31: 2446261 | B31: ElhayM | C31: t | D31: Grandmaster | E31: Grandmaster | F31: 80 | G31: 68 | H31: 2112 | I31: 55 | J31: 2014-04-21 | K31: 2 days | L31: 2014-06-20T00:12:39 | M31: 1
A32: 4175156 | B32: llllllllllll | C32: t | D32: Grandmaster | E32: Grandmaster | F32: 103 | G32: 71 | H32: 2112 | I32: 32 | J32: 2014-04-21 | K32: 11 hours | L32: 2014-06-20T00:12:40 | M32: 1
A33: 3634201 | B33: Trace | C33: p | D33: Grandmaster | E33: Grandmaster | F33: 169 | G33: 127 | H33: 2105 | I33: 68 | J33: 2014-04-27 | K33: 1 days | L33: 2014-06-20T00:12:40 | M33: 1
A34: 5671087 | B34: SpiderDaisy | C34: p | D34: Grandmaster | E34: Grandmaster | F34: 160 | G34: 30 | H34: 2095 | I34: 15 | J34: 2014-06-19 | K34: 10 hours | L34: 2014-06-20T00:12:41 | M34: 1
A35: 2787184 | B35: IMBACoaching | C35: z | D35: Grandmaster | E35: Grandmaster | F35: 193 | G35: 61 | H35: 2084 | I35: 14 | J35: 2014-06-08 | K35: 9 hours | L35: 2014-06-20T00:12:41 | M35: 1
A36: 2439371 | B36: IlIlIlIlIlIl | C36: p | D36: Grandmaster | E36: Grandmaster | F36: 122 | G36: 116 | H36: 2080 | I36: 3 | J36: 2014-06-13 | K36: 8 minutes | L36: 2014-06-20T00:12:42 | M36: 1
A37: 5255425 | B37: IIIIIIIIIIII | C37: p | D37: Grandmaster | E37: Grandmaster | F37: 119 | G37: 73 | H37: 2079 | I37: 50 | J37: 2014-06-12 | K37: 1 days | L37: 2014-06-20T00:12:42 | M37: 1
A38: 5438312 | B38: IIIIIIIIIIII | C38: p | D38: Grandmaster | E38: Grandmaster | F38: 430 | G38: 368 | H38: 2079 | I38: 27 | J38: 2014-04-30 | K38: 21 hours | L38: 2014-06-20T00:12:43 | M38: 1
A39: 3486739 | B39: Josiah | C39: p | D39: Grandmaster | E39: Grandmaster | F39: 83 | G39: 65 | H39: 2077 | I39: 59 | J39: 2014-05-27 | K39: 5 hours | L39: 2014-06-20T00:12:43 | M39: 1
A40: 4325908 | B40: IIIIIIIIIIII | C40: p | D40: Grandmaster | E40: Grandmaster | F40: 287 | G40: 213 | H40: 2067 | I40: 13 | J40: 2014-04-24 | K40: 9 hours | L40: 2014-06-20T00:12:44 | M40: 1
A41: 3051386 | B41: Siphonn | C41: p | D41: Grandmaster | E41: Grandmaster | F41: 155 | G41: 135 | H41: 2065 | I41: 7 | J41: 2014-05-13 | K41: 3 hours | L41: 2014-06-20T00:12:44 | M41: 1
A42: 4816083 | B42: PiLiPiLi | C42: p | D42: Grandmaster | E42: Grandmaster | F42: 93 | G42: 84 | H42: 2062 | I42: 7 | J42: 2014-04-22 | K42: 8 minutes | L42: 2014-06-20T00:12:45 | M42: 1
A43: 2871224 | B43: sWs | C43: p | D43: Grandmaster | E43: Grandmaster | F43: 269 | G43: 231 | H43: 2058 | I43: 25 | J43: 2014-04-21 | K43: 2 hours | L43: 2014-06-20T00:12:45 | M43: 1
A44: 2689667 | B44: David | C44: z | D44: Grandmaster | E44: Grandmaster | F44: 183 | G44: 150 | H44: 2051 | I44: 4 | J44: 2014-04-21 | K44: 18 hours | L44: 2014-06-20T00:12:46 | M44: 1
A45: 4338936 | B45: ShaDoWn | C45: p | D45: Grandmaster | E45: Grandmaster | F45: 152 | G45: 97 | H45: 2050 | I45: 73 | J45: 2014-05-23 | K45: 1 days | L45: 2014-06-20T00:12:46 | M45: 1
A46: 2943632 | B46: Loraine | C46: t | D46: Grandmaster | E46: Grandmaster | F46: 122 | G46: 117 | H46: 2045 | I46: 35 | J46: 2014-04-21 | K46: 1 days | L46: 2014-06-20T00:12:47 | M46: 1
A47: 532902 | B47: IlIlIlIlIlIl | C47: t | D47: Grandmaster | E47: Grandmaster | F47: 156 | G47: 128 | H47: 2041 | I47: 36 | J47: 2014-04-21 | K47: 1 days | L47: 2014-06-20T00:12:47 | M47: 1
A48: 1005598 | B48: WhatAmI | C48: p | D48: Grandmaster | E48: Grandmaster | F48: 216 | G48: 197 | H48: 2038 | I48: 1 | J48: 2014-06-11 | K48: 8 minutes | L48: 2014-06-20T00:12:48 | M48: 1
A49: 564358 | B49: Jimmy | C49: p | D49: Grandmaster | E49: Grandmaster | F49: 175 | G49: 134 | H49: 2037 | I49: 3 | J49: 2014-05-26 | K49: 5 hours | L49: 2014-06-20T00:12:48 | M49: 1
A50: 3784498 | B50: IIIIIIIIIIII | C50: p | D50: Grandmaster | E50: Grandmaster | F50: 157 | G50: 77 | H50: 2036 | I50: 93 | J50: 2014-05-17 | K50: 17 hours | L50: 2014-06-20T00:12:48 | M50: 1
A51: 763427 | B51: NWABroseidon | C51: t | D51: Grandmaster | E51: Grandmaster | F51: 99 | G51: 93 | H51: 2028 | I51: 33 | J51: 2014-04-21 | K51: 21 hours | L51: 2014-06-20T00:12:49 | M51: 1
A52: 1022268 | B52: Starelf | C52: z | D52: Grandmaster | E52: Grandmaster | F52: 429 | G52: 382 | H52: 2028 | I52: 24 | J52: 2014-05-01 | K52: 19 hours | L52: 2014-06-20T00:12:49 | M52: 1
A53: 5748729 | B53: lIlIIllIIllI | C53: t | D53: Grandmaster | E53: Grandmaster | F53: 89 | G53: 32 | H53: 2027 | I53: 2 | J53: 2014-06-16 | K53: 17 hours | L53: 2014-06-20T00:12:50 | M53: 1
A54: 4494758 | B54: Boris | C54: z | D54: Grandmaster | E54: Grandmaster | F54: 200 | G54: 163 | H54: 2026 | I54: 19 | J54: 2014-04-21 | K54: 14 hours | L54: 2014-06-20T00:12:50 | M54: 1
A55: 2466822 | B55: Daenerys | C55: t | D55: Grandmaster | E55: Grandmaster | F55: 174 | G55: 110 | H55: 2020 | I55: 24 | J55: 2014-06-06 | K55: 19 hours | L55: 2014-06-20T00:12:50 | M55: 1
A56: 3916704 | B56: IIIIIIIIIIII | C56: t | D56: Grandmaster | E56: Grandmaster | F56: 97 | G56: 66 | H56: 2015 | I56: 26 | J56: 2014-06-11 | K56: 21 hours | L56: 2014-06-20T00:12:51 | M56: 1
A57: 3625852 | B57: llllllllllll | C57: t | D57: Grandmaster | E57: Grandmaster | F57: 267 | G57: 188 | H57: 2012 | I57: 11 | J57: 2014-05-20 | K57: 7 hours | L57: 2014-06-20T00:12:51 | M57: 1
A58: 2178677 | B58: Fenner | C58: z | D58: Grandmaster | E58: Grandmaster | F58: 359 | G58: 328 | H58: 2006 | I58: 33 | J58: 2014-04-21 | K58: 21 hours | L58: 2014-06-20T00:12:52 | M58: 1
A59: 1784721 | B59: Bones | C59: p | D59: Grandmaster | E59: Grandmaster | F59: 105 | G59: 95 | H59: 2004 | I59: 25 | J59: 2014-04-21 | K59: 19 hours | L59: 2014-06-20T00:12:52 | M59: 1
A60: 1203434 | B60: komandirskie | C60: t | D60: Grandmaster | E60: Grandmaster | F60: 156 | G60: 82 | H60: 1999 | I60: 27 | J60: 2014-05-16 | K60: 22 hours | L60: 2014-06-20T00:12:53 | M60: 1
A61: 1640778 | B61: Guitarcheese | C61: r | D61: Grandmaster | E61: Grandmaster | F61: 161 | G61: 130 | H61: 1994 | I61: 121 | J61: 2014-04-21 | K61: 4 days | L61: 2014-06-20T00:12:54 | M61: 1
A62: 2690275 | B62: EJK | C62: t | D62: Grandmaster | E62: Grandmaster | F62: 226 | G62: 205 | H62: 1993 | I62: 5 | J62: 2014-04-21 | K62: 1 hours | L62: 2014-06-20T00:12:54 | M62: 1
A63: 2777213 | B63: Lucky | C63: p | D63: Grandmaster | E63: Grandmaster | F63: 329 | G63: 261 | H63: 1993 | I63: 62 | J63: 2014-04-21 | K63: 22 hours | L63: 2014-06-20T00:12:54 | M63: 1
A64: 4180737 | B64: llllllllllll | C64: z | D64: Grandmaster | E64: Grandmaster | F64: 182 | G64: 157 | H64: 1991 | I64: 31 | J64: 2014-05-12 | K64: 1 days | L64: 2014-06-20T00:12:55 | M64: 1
A65: 1585728 | B65: Soulquest | C65: p | D65: Grandmaster | E65: Grandmaster | F65: 110 | G65: 99 | H65: 1988 | I65: 12 | J65: 2014-06-04 | K65: 3 hours | L65: 2014-06-20T00:12:55 | M65: 1
A66: 450133 | B66: TheoRy | C66: p | D66: Grandmaster | E66: Grandmaster | F66: 141 | G66: 139 | H66: 1987 | I66: 5 | J66: 2014-04-21 | K66: 2 hours | L66: 2014-06-20T00:12:56 | M66: 1
A67: 867686 | B67: RuFF | C67: t | D67: Grandmaster | E67: Grandmaster | F67: 479 | G67: 428 | H67: 1987 | I67: 23 | J67: 2014-04-21 | K67: 18 hours | L67: 2014-06-20T00:12:56 | M67: 1
A68: 237708 | B68: Kelazhur | C68: t | D68: Grandmaster | E68: Grandmaster | F68: 137 | G68: 122 | H68: 1982 | I68: 40 | J68: 2014-05-25 | K68: 1 days | L68: 2014-06-20T00:12:57 | M68: 1
A69: 1724561 | B69: LiquidFire | C69: t | D69: Grandmaster | E69: Grandmaster | F69: 186 | G69: 89 | H69: 1982 | I69: 69 | J69: 2014-06-10 | K69: 2 days | L69: 2014-06-20T00:12:57 | M69: 1
A70: 3980201 | B70: llllllllllll | C70: z | D70: Grandmaster | E70: Grandmaster | F70: 182 | G70: 158 | H70: 1981 | I70: 31 | J70: 2014-04-22 | K70: 1 days | L70: 2014-06-20T00:12:58 | M70: 1
A71: 4844517 | B71: llllllllllll | C71: p | D71: Grandmaster | E71: Grandmaster | F71: 189 | G71: 151 | H71: 1981 | I71: 17 | J71: 2014-06-10 | K71: 13 hours | L71: 2014-06-20T00:12:58 | M71: 1
A72: 3983909 | B72: Vitross | C72: z | D72: Grandmaster | E72: Grandmaster | F72: 112 | G72: 99 | H72: 1978 | I72: 5 | J72: 2014-06-02 | K72: 1 hours | L72: 2014-06-20T00:12:59 | M72: 1
A73: 582455 | B73: BruceLee | C73: t | D73: Grandmaster | E73: Grandmaster | F73: 95 | G73: 60 | H73: 1971 | I73: 127 | J73: 2014-05-08 | K73: 22 hours | L73: 2014-06-20T00:12:59 | M73: 1
A74: 5443583 | B74: TheJoker | C74: z | D74: Grandmaster | E74: Grandmaster | F74: 85 | G74: 61 | H74: 1971 | I74: 149 | J74: 2014-05-18 | K74: 7 hours | L74: 2014-06-20T00:13:00 | M74: 1
A75: 138477 | B75: IllIIlllIlII | C75: t | D75: Grandmaster | E75: Grandmaster | F75: 197 | G75: 167 | H75: 1970 | I75: 0 | J75: 2014-04-21 | K75: 19 hours | L75: 2014-06-20T00:13:00 | M75: 1
A76: 4024637 | B76: mewby | C76: t | D76: Grandmaster | E76: Grandmaster | F76: 291 | G76: 267 | H76: 1966 | I76: 4 | J76: 2014-06-04 | K76: 27 minutes | L76: 2014-06-20T00:13:00 | M76: 1
A77: 583969 | B77: Zan | C77: t | D77: Grandmaster | E77: Grandmaster | F77: 279 | G77: 261 | H77: 1960 | I77: 23 | J77: 2014-04-21 | K77: 18 hours | L77: 2014-06-20T00:13:01 | M77: 1
A78: 2812699 | B78: DeathEnD | C78: p | D78: Grandmaster | E78: Grandmaster | F78: 193 | G78: 194 | H78: 1955 | I78: 32 | J78: 2014-04-21 | K78: 17 hours | L78: 2014-06-20T00:13:01 | M78: 1
A79: 3125048 | B79: Schnieder | C79: z | D79: Grandmaster | E79: Grandmaster | F79: 499 | G79: 479 | H79: 1952 | I79: 1 | J79: 2014-04-21 | K79: 1 hours | L79: 2014-06-20T00:13:02 | M79: 1
A80: 1102980 | B80: ppgBubbles | C80: p | D80: Grandmaster | E80: Grandmaster | F80: 139 | G80: 114 | H80: 1947 | I80: 89 | J80: 2014-04-21 | K80: 21 hours | L80: 2014-06-20T00:13:02 | M80: 1
A81: 2763882 | B81: LeGeND | C81: t | D81: Grandmaster | E81: Grandmaster | F81: 729 | G81: 679 | H81: 1945 | I81: 3 | J81: 2014-04-21 | K81: 27 minutes | L81: 2014-06-20T00:13:02 | M81: 1
A82: 617716 | B82: AmpliFy | C82: p | D82: Grandmaster | E82: Grandmaster | F82: 382 | G82: 367 | H82: 1942 | I82: 14 | J82: 2014-06-10 | K82: 3 hours | L82: 2014-06-20T00:13:03 | M82: 1
A83: 3514567 | B83: Kirby | C83: p | D83: Grandmaster | E83: Grandmaster | F83: 79 | G83: 89 | H83: 1942 | I83: 91 | J83: 2014-04-21 | K83: 1 days | L83: 2014-06-20T00:13:03 | M83: 1
A84: 304440 | B84: Atomic | C84: t | D84: Grandmaster | E84: Grandmaster | F84: 330 | G84: 302 | H84: 1932 | I84: 5 | J84: 2014-05-27 | K84: 1 hours | L84: 2014-06-20T00:13:04 | M84: 1
A85: 3268843 | B85: Kreos | C85: z | D85: Grandmaster | E85: Grandmaster | F85: 178 | G85: 166 | H85: 1925 | I85: 29 | J85: 2014-06-07 | K85: 1 days | L85: 2014-06-20T00:13:04 | M85: 1
A86: 3789711 | B86: Shinga | C86: p | D86: Grandmaster | E86: Grandmaster | F86: 102 | G86: 53 | H86: 1923 | I86: 65 | J86: 2014-06-06 | K86: 2 days | L86: 2014-06-20T00:13:04 | M86: 1
A87: 993821 | B87: Ninja | C87: p | D87: Grandmaster | E87: Grandmaster | F87: 266 | G87: 253 | H87: 1914 | I87: 1 | J87: 2014-04-21 | K87: 27 minutes | L87: 2014-06-20T00:13:05 | M87: 1
A88: 1691419 | B88: Corolla | C88: p | D88: Grandmaster | E88: Grandmaster | F88: 149 | G88: 125 | H88: 1913 | I88: 43 | J88: 2014-05-28 | K88: 1 days | L88: 2014-06-20T00:13:05 | M88: 1
A89: 3763965 | B89: lIllIIIlIlII | C89: t | D89: Grandmaster | E89: Grandmaster | F89: 127 | G89: 114 | H89: 1911 | I89: 37 | J89: 2014-04-29 | K89: 2 days | L89: 2014-06-20T00:13:06 | M89: 1
A90: 310150 | B90: Destiny | C90: z | D90: Grandmaster | E90: Grandmaster | F90: 290 | G90: 267 | H90: 1908 | I90: 78 | J90: 2014-05-04 | K90: 2 days | L90: 2014-06-20T00:13:06 | M90: 1
A91: 314228 | B91: Bluemagic | C91: z | D91: Grandmaster | E91: Grandmaster | F91: 166 | G91: 147 | H91: 1906 | I91: 2 | J91: 2014-05-14 | K91: 1 hours | L91: 2014-06-20T00:13:06 | M91: 1
A92: 622713 | B92: rsvp | C92: p | D92: Grandmaster | E92: Grandmaster | F92: 193 | G92: 178 | H92: 1906 | I92: 4 | J92: 2014-06-01 | K92: 37 minutes | L92: 2014-06-20T00:13:07 | M92: 1
A93: 960740 | B93: ReGoR | C93: z | D93: Grandmaster | E93: Grandmaster | F93: 139 | G93: 115 | H93: 1904 | I93: 131 | J93: 2014-05-01 | K93: 2 hours | L93: 2014-06-20T00:13:07 | M93: 1
A94: 3303312 | B94: Probe | C94: p | D94: Grandmaster | E94: Grandmaster | F94: 138 | G94: 127 | H94: 1890 | I94: 4 | J94: 2014-05-18 | K94: 37 minutes | L94: 2014-06-20T00:13:08 | M94: 1
A95: 3456539 | B95: Baku | C95: t | D95: Grandmaster | E95: Grandmaster | F95: 296 | G95: 276 | H95: 1889 | I95: 43 | J95: 2014-04-21 | K95: 27 minutes | L95: 2014-06-20T00:13:08 | M95: 1
A96: 4196212 | B96: llllllllllll | C96: t | D96: Grandmaster | E96: Grandmaster | F96: 299 | G96: 269 | H96: 1887 | I96: 13 | J96: 2014-05-10 | K96: 9 hours | L96: 2014-06-20T00:13:09 | M96: 1
A97: 3531577 | B97: Melancholy | C97: p | D97: Grandmaster | E97: Grandmaster | F97: 72 | G97: 77 | H97: 1886 | I97: 89 | J97: 2014-04-21 | K97: 1 days | L97: 2014-06-20T00:13:09 | M97: 1
A98: 4193752 | B98: reborn | C98: t | D98: Grandmaster | E98: Grandmaster | F98: 134 | G98: 116 | H98: 1886 | I98: 53 | J98: 2014-05-31 | K98: 1 days | L98: 2014-06-20T00:13:09 | M98: 1
A99: 2868603 | B99: BestPinSEA | C99: p | D99: Grandmaster | E99: Grandmaster | F99: 219 | G99: 193 | H99: 1885 | I99: 0 | J99: 2014-04-30 | K99: 10 hours | L99: 2014-06-20T00:13:10 | M99: 1
A100: 1551892 | B100: Drachma | C100: p | D100: Grandmaster | E100: Grandmaster | F100: 416 | G100: 371 | H100: 1882 | I100: 14 | J100: 2014-05-31 | K100: 10 hours | L100: 2014-06-20T00:13:11 | M100: 1
A101: 4163263 | B101: FIGARO | C101: z | D101: Grandmaster | E101: Grandmaster | F101: 135 | G101: 108 | H101: 1878 | I101: 36 | J101: 2014-05-05 | K101: 19 minutes | L101: 2014-06-20T00:13:11 | M101: 1
A102: 4177119 | B102: IIIllllllIII | C102: z | D102: Grandmaster | E102: Grandmaster | F102: 81 | G102: 70 | H102: 1877 | I102: 69 | J102: 2014-04-21 | K102: 1 days | L102: 2014-06-20T00:13:11 | M102: 1
A103: 945960 | B103: PsychO | C103: z | D103: Grandmaster | E103: Grandmaster | F103: 132 | G103: 127 | H103: 1876 | I103: 56 | J103: 2014-04-21 | K103: 1 days | L103: 2014-06-20T00:13:12 | M103: 1
A104: 3785363 | B104: FATALBUNNY | C104: z | D104: Grandmaster | E104: Grandmaster | F104: 187 | G104: 164 | H104: 1874 | I104: 13 | J104: 2014-05-29 | K104: 9 hours | L104: 2014-06-20T00:13:12 | M104: 1
A105: 3797007 | B105: WinterSC | C105: p | D105: Grandmaster | E105: Grandmaster | F105: 154 | G105: 91 | H105: 1873 | I105: 1 | J105: 2014-06-14 | K105: 2 hours | L105: 2014-06-20T00:13:12 | M105: 1
A106: 2782310 | B106: MikeRoss | C106: p | D106: Grandmaster | E106: Grandmaster | F106: 90 | G106: 97 | H106: 1870 | I106: 2 | J106: 2014-04-21 | K106: 8 minutes | L106: 2014-06-20T00:13:13 | M106: 1
A107: 4647736 | B107: IIIIIIIIIIII | C107: p | D107: Grandmaster | E107: Grandmaster | F107: 136 | G107: 125 | H107: 1870 | I107: 106 | J107: 2014-04-21 | K107: 1 days | L107: 2014-06-20T00:13:13 | M107: 1
A108: 2489149 | B108: Sterling | C108: t | D108: Grandmaster | E108: Grandmaster | F108: 264 | G108: 260 | H108: 1867 | I108: 55 | J108: 2014-04-21 | K108: 2 days | L108: 2014-06-20T00:13:14 | M108: 1
A109: 2879375 | B109: duckhunt | C109: t | D109: Grandmaster | E109: Grandmaster | F109: 233 | G109: 185 | H109: 1865 | I109: 106 | J109: 2014-05-16 | K109: 2 days | L109: 2014-06-20T00:13:14 | M109: 1
